Workbook

Sheet Lista (hidden)
A1: Depto | B1: Mpio | D1: Udepto | E1: Filtro | H1: Mpio Unicos | N1: Dpto | O1: mpio | P1: para unicos
A2: =_xlfn.UNIQUE(N2:O3371) -> Sin Info | B2: Sin Info | D2: =_xlfn._xlws.SORT(_xlfn.UNIQUE(A2:A3355),,1) -> AMAZONAS | E2: =_xlfn._xlws.FILTER($A$2:$B$4500,$A$2:$A$4500=Visor!$Q$7,"") -> ANTIOQUIA | F2: MEDELLÍN | H2: =_xlfn._xlws.SORT(_xlfn.UNIQUE($F$2:$F$1000),,1) -> ABEJORRAL | J2: Conteo | N2: Sin Info | O2: Sin Info | Q2: MES | R2: Diciembre
A3: ANTIOQUIA | B3: MEDELLÍN | D3: ANTIOQUIA | E3: ANTIOQUIA | F3: GUARNE | H3: ABRIAQUÍ | J3: =COUNTIF(_xlfn.ANCHORARRAY(H2),"<>"&"")-1 -> 125 | N3: Sin Info | O3: Sin Info
A4: BOGOTÁ, D.C. | B4: BOGOTÁ, D.C. | D4: ARAUCA | E4: ANTIOQUIA | F4: LA UNIÓN | H4: ALEJANDRÍA | N4: Sin Info | O4: Sin Info
A5: VALLE DEL CAUCA | B5: CALI | D5: ARCHIPIÉLAGO DE SAN ANDRÉS, PROVIDENCIA Y SANTA CATALINA | E5: ANTIOQUIA | F5: SABANETA | H5: AMAGÁ | N5: ANTIOQUIA | O5: MEDELLÍN
A6: TOLIMA | B6: MELGAR | D6: ATLÁNTICO | E6: ANTIOQUIA | F6: JARDÍN | H6: AMALFI | N6: BOGOTÁ, D.C. | O6: BOGOTÁ, D.C.
A7: ANTIOQUIA | B7: GUARNE | D7: BOGOTÁ, D.C. | E7: ANTIOQUIA | F7: ENVIGADO | H7: ANDES | N7: BOGOTÁ, D.C. | O7: BOGOTÁ, D.C.
A8: ANTIOQUIA | B8: LA UNIÓN | D8: BOLÍVAR | E8: ANTIOQUIA | F8: RETIRO | H8: ANGELÓPOLIS | N8: VALLE DEL CAUCA | O8: CALI
A9: SANTANDER | B9: BUCARAMANGA | D9: BOYACÁ | E9: ANTIOQUIA | F9: PUERTO BERRÍO | H9: ANGOSTURA | N9: BOGOTÁ, D.C. | O9: BOGOTÁ, D.C.
A10: ANTIOQUIA | B10: SABANETA | D10: CALDAS | E10: ANTIOQUIA | F10: RIONEGRO | H10: ANORÍ | N10: VALLE DEL CAUCA | O10: CALI
A11: BOLÍVAR | B11: CARTAGENA | D11: CAQUETÁ | E11: ANTIOQUIA | F11: BARBOSA | H11: ANZA | N11: TOLIMA | O11: MELGAR
A12: SANTANDER | B12: AGUADA | D12: CASANARE | E12: ANTIOQUIA | F12: BELLO | H12: APARTADÓ | N12: ANTIOQUIA | O12: GUARNE
A13: CUNDINAMARCA | B13: CAJICÁ | D13: CAUCA | E13: ANTIOQUIA | F13: ARMENIA | H13: ARBOLETES | N13: ANTIOQUIA | O13: MEDELLÍN
A14: HUILA | B14: NEIVA | D14: CESAR | E14: ANTIOQUIA | F14: COPACABANA | H14: ARGELIA | N14: ANTIOQUIA | O14: LA UNIÓN
A15: QUINDÍO | B15: ARMENIA | D15: CHOCÓ | E15: ANTIOQUIA | F15: BETANIA | H15: ARMENIA | N15: SANTANDER | O15: BUCARAMANGA
A16: CÓRDOBA | B16: MONTERÍA | D16: CÓRDOBA | E16: ANTIOQUIA | F16: SEGOVIA | H16: BARBOSA | N16: ANTIOQUIA | O16: SABANETA
A17: ATLÁNTICO | B17: BARRANQUILLA | D17: CUNDINAMARCA | E17: ANTIOQUIA | F17: VIGÍA DEL FUERTE | H17: BELLO | N17: BOLÍVAR | O17: CARTAGENA
A18: CUNDINAMARCA | B18: CHÍA | D18: GUAINÍA | E18: ANTIOQUIA | F18: ABRIAQUÍ | H18: BELMIRA | N18: SANTANDER | O18: AGUADA
A19: META | B19: ACACÍAS | D19: GUAVIARE | E19: ANTIOQUIA | F19: NARIÑO | H19: BETANIA | N19: CUNDINAMARCA | O19: CAJICÁ
A20: TOLIMA | B20: IBAGUÉ | D20: HUILA | E20: ANTIOQUIA | F20: FREDONIA | H20: BETULIA | N20: HUILA | O20: NEIVA
A21: CAUCA | B21: SANTANDER DE QUILICHAO | D21: LA GUAJIRA | E21: ANTIOQUIA | F21: CALDAS | H21: BRICEÑO | N21: ANTIOQUIA | O21: MEDELLÍN
A22: RISARALDA | B22: LA VIRGINIA | D22: MAGDALENA | E22: ANTIOQUIA | F22: ITAGUI | H22: BURITICÁ | N22: QUINDÍO | O22: ARMENIA
A23: TOLIMA | B23: HONDA | D23: META | E23: ANTIOQUIA | F23: FRONTINO | H23: CÁCERES | N23: CÓRDOBA | O23: MONTERÍA
A24: META | B24: VILLAVICENCIO | D24: NARIÑO | E24: ANTIOQUIA | F24: SANTO DOMINGO | H24: CAICEDO | N24: CÓRDOBA | O24: MONTERÍA
A25: NORTE DE SANTANDER | B25: LOS PATIOS | D25: NORTE DE SANTANDER | E25: ANTIOQUIA | F25: APARTADÓ | H25: CALDAS | N25: SANTANDER | O25: BUCARAMANGA
A26: META | B26: CUMARAL | D26: PUTUMAYO | E26: ANTIOQUIA | F26: SOPETRÁN | H26: CAMPAMENTO | N26: ATLÁNTICO | O26: BARRANQUILLA
A27: SANTANDER | B27: ZAPATOCA | D27: QUINDÍO | E27: ANTIOQUIA | F27: MARINILLA | H27: CAÑASGORDAS | N27: CUNDINAMARCA | O27: CHÍA
A28: CUNDINAMARCA | B28: TENJO | D28: RISARALDA | E28: ANTIOQUIA | F28: TOLEDO | H28: CARACOLÍ | N28: META | O28: ACACÍAS
A29: MAGDALENA | B29: SANTA MARTA | D29: SANTANDER | E29: ANTIOQUIA | F29: LA CEJA | H29: CARAMANTA | N29: SANTANDER | O29: BUCARAMANGA
A30: SANTANDER | B30: FLORIDABLANCA | D30: Sin Info | E30: ANTIOQUIA | F30: LA ESTRELLA | H30: CAREPA | N30: TOLIMA | O30: IBAGUÉ
A31: CAUCA | B31: POPAYÁN | D31: SUCRE | E31: ANTIOQUIA | F31: VALPARAÍSO | H31: CAROLINA | N31: ATLÁNTICO | O31: BARRANQUILLA
A32: CUNDINAMARCA | B32: GIRARDOT | D32: TOLIMA | E32: ANTIOQUIA | F32: ENTRERRIOS | H32: CAUCASIA | N32: CAUCA | O32: SANTANDER DE QUILICHAO
A33: RISARALDA | B33: PEREIRA | D33: VALLE DEL CAUCA | E33: ANTIOQUIA | F33: PUERTO NARE | H33: CHIGORODÓ | N33: HUILA | O33: NEIVA
A34: ARAUCA | B34: FORTUL | D34: VAUPÉS | E34: ANTIOQUIA | F34: PUERTO TRIUNFO | H34: CISNEROS | N34: RISARALDA | O34: LA VIRGINIA
A35: CUNDINAMARCA | B35: FUSAGASUGÁ | D35: VICHADA | E35: ANTIOQUIA | F35: GIRARDOTA | H35: CIUDAD BOLÍVAR | N35: TOLIMA | O35: HONDA
A36: CUNDINAMARCA | B36: LA VEGA | D36: 0 | E36: ANTIOQUIA | F36: SAN JERÓNIMO | H36: COCORNÁ | N36: META | O36: VILLAVICENCIO
A37: CUNDINAMARCA | B37: SOPÓ | E37: ANTIOQUIA | F37: SANTAFÉ DE ANTIOQUIA | H37: CONCEPCIÓN | N37: NORTE DE SANTANDER | O37: LOS PATIOS
A38: ANTIOQUIA | B38: JARDÍN | E38: ANTIOQUIA | F38: CONCORDIA | H38: CONCORDIA | N38: META | O38: CUMARAL
A39: BOYACÁ | B39: SOGAMOSO | E39: ANTIOQUIA | F39: SAN PEDRO DE LOS MILAGROS | H39: COPACABANA | N39: SANTANDER | O39: ZAPATOCA
A40: BOYACÁ | B40: DUITAMA | E40: ANTIOQUIA | F40: EL SANTUARIO | H40: DABEIBA | N40: CUNDINAMARCA | O40: TENJO
A41: BOYACÁ | B41: SUTATENZA | E41: ANTIOQUIA | F41: ARGELIA | H41: DON MATÍAS | N41: MAGDALENA | O41: SANTA MARTA
A42: CÓRDOBA | B42: SAN PELAYO | E42: ANTIOQUIA | F42: CAUCASIA | H42: EBÉJICO | N42: SANTANDER | O42: FLORIDABLANCA
A43: VALLE DEL CAUCA | B43: TULUÁ | E43: ANTIOQUIA | F43: EL CARMEN DE VIBORAL | H43: EL BAGRE | N43: CAUCA | O43: POPAYÁN
A44: CALDAS | B44: MANIZALES | E44: ANTIOQUIA | F44: ABEJORRAL | H44: EL CARMEN DE VIBORAL | N44: BOLÍVAR | O44: CARTAGENA
A45: TOLIMA | B45: ESPINAL | E45: ANTIOQUIA | F45: URRAO | H45: EL SANTUARIO | N45: CUNDINAMARCA | O45: GIRARDOT
A46: CESAR | B46: VALLEDUPAR | E46: ANTIOQUIA | F46: ALEJANDRÍA | H46: ENTRERRIOS | N46: RISARALDA | O46: PEREIRA
A47: CUNDINAMARCA | B47: VILLA DE SAN DIEGO DE UBATE | E47: ANTIOQUIA | F47: AMAGÁ | H47: ENVIGADO | N47: ARAUCA | O47: FORTUL
A48: CUNDINAMARCA | B48: ZIPAQUIRÁ | E48: ANTIOQUIA | F48: AMALFI | H48: FREDONIA | N48: VALLE DEL CAUCA | O48: CALI
A49: ARCHIPIÉLAGO DE SAN ANDRÉS, PROVIDENCIA Y SANTA CATALINA | B49: SAN ANDRÉS | E49: ANTIOQUIA | F49: ANDES | H49: FRONTINO | N49: CUNDINAMARCA | O49: FUSAGASUGÁ
A50: NORTE DE SANTANDER | B50: CÚCUTA | E50: ANTIOQUIA | F50: JERICÓ | H50: GIRALDO | N50: CUNDINAMARCA | O50: LA VEGA
A51: CUNDINAMARCA | B51: TOCAIMA | E51: ANTIOQUIA | F51: HISPANIA | H51: GIRARDOTA | N51: TOLIMA | O51: IBAGUÉ
A52: CUNDINAMARCA | B52: LA MESA | E52: ANTIOQUIA | F52: ANGOSTURA | H52: GÓMEZ PLATA | N52: CUNDINAMARCA | O52: SOPÓ
A53: CALDAS | B53: AGUADAS | E53: ANTIOQUIA | F53: TURBO | H53: GRANADA | N53: ANTIOQUIA | O53: JARDÍN
A54: META | B54: SAN MARTÍN | E54: ANTIOQUIA | F54: DON MATÍAS | H54: GUADALUPE | N54: BOYACÁ | O54: SOGAMOSO
A55: CUNDINAMARCA | B55: VILLETA | E55: ANTIOQUIA | F55: BETULIA | H55: GUARNE | N55: BOYACÁ | O55: DUITAMA
A56: BOYACÁ | B56: CHIQUINQUIRÁ | E56: ANTIOQUIA | F56: CIUDAD BOLÍVAR | H56: GUATAPE | N56: BOYACÁ | O56: SUTATENZA
A57: CASANARE | B57: TAURAMENA | E57: ANTIOQUIA | F57: BURITICÁ | H57: HELICONIA | N57: CÓRDOBA | O57: SAN PELAYO
A58: BOYACÁ | B58: PAIPA | E58: ANTIOQUIA | F58: CÁCERES | H58: HISPANIA | N58: VALLE DEL CAUCA | O58: TULUÁ
A59: BOYACÁ | B59: TUNJA | E59: ANTIOQUIA | F59: YARUMAL | H59: ITAGUI | N59: META | O59: VILLAVICENCIO
A60: CUNDINAMARCA | B60: ANAPOIMA | E60: ANTIOQUIA | F60: CAMPAMENTO | H60: ITUANGO | N60: CALDAS | O60: MANIZALES
A61: NARIÑO | B61: PASTO | E61: ANTIOQUIA | F61: REMEDIOS | H61: JARDÍN | N61: TOLIMA | O61: ESPINAL
A62: SANTANDER | B62: PUENTE NACIONAL | E62: ANTIOQUIA | F62: VENECIA | H62: JERICÓ | N62: CESAR | O62: VALLEDUPAR
A63: LA GUAJIRA | B63: RIOHACHA | E63: ANTIOQUIA | F63: CHIGORODÓ | H63: LA CEJA | N63: CUNDINAMARCA | O63: VILLA DE SAN DIEGO DE UBATE
A64: CUNDINAMARCA | B64: LA CALERA | E64: ANTIOQUIA | F64: TITIRIBÍ | H64: LA ESTRELLA | N64: CUNDINAMARCA | O64: ZIPAQUIRÁ
A65: CUNDINAMARCA | B65: AGUA DE DIOS | E65: ANTIOQUIA | F65: CISNEROS | H65: LA PINTADA | N65: ARCHIPIÉLAGO DE SAN ANDRÉS, PROVIDENCIA Y SANTA CATALINA | O65: SAN ANDRÉS
A66: CUNDINAMARCA | B66: MOSQUERA | E66: ANTIOQUIA | F66: CONCEPCIÓN | H66: LA UNIÓN | N66: NORTE DE SANTANDER | O66: CÚCUTA
A67: CESAR | B67: AGUACHICA | E67: ANTIOQUIA | F67: COCORNÁ | H67: LIBORINA | N67: NORTE DE SANTANDER | O67: CÚCUTA
A68: TOLIMA | B68: VILLARRICA | E68: ANTIOQUIA | F68: ARBOLETES | H68: MACEO | N68: CUNDINAMARCA | O68: TOCAIMA
A69: CUNDINAMARCA | B69: FACATATIVÁ | E69: ANTIOQUIA | F69: EBÉJICO | H69: MARINILLA | N69: CUNDINAMARCA | O69: LA MESA
A70: CUNDINAMARCA | B70: TABIO | E70: ANTIOQUIA | F70: SANTA ROSA DE OSOS | H70: MEDELLÍN | N70: CALDAS | O70: AGUADAS
A71: CUNDINAMARCA | B71: SUBACHOQUE | E71: ANTIOQUIA | F71: SANTA BÁRBARA | H71: MONTEBELLO | N71: META | O71: SAN MARTÍN
A72: CUNDINAMARCA | B72: GUASCA | E72: ANTIOQUIA | F72: SAN VICENTE | H72: MURINDÓ | N72: CUNDINAMARCA | O72: VILLETA
A73: CAUCA | B73: PIENDAMÓ | E73: ANTIOQUIA | F73: GIRALDO | H73: MUTATÁ | N73: BOYACÁ | O73: CHIQUINQUIRÁ
A74: TOLIMA | B74: SUÁREZ | E74: ANTIOQUIA | F74: GÓMEZ PLATA | H74: NARIÑO | N74: CASANARE | O74: TAURAMENA
A75: CUNDINAMARCA | B75: FUNZA | E75: ANTIOQUIA | F75: GUATAPE | H75: NECHÍ | N75: BOYACÁ | O75: PAIPA
A76: BOYACÁ | B76: GUATEQUE | E76: ANTIOQUIA | F76: CAROLINA | H76: NECOCLÍ | N76: BOYACÁ | O76: TUNJA
A77: META | B77: GRANADA | E77: ANTIOQUIA | F77: GRANADA | H77: OLAYA | N77: CUNDINAMARCA | O77: ANAPOIMA
A78: CALDAS | B78: LA DORADA | E78: ANTIOQUIA | F78: PEÑOL | H78: PEÑOL | N78: NARIÑO | O78: PASTO
A79: SANTANDER | B79: GIRÓN | E79: ANTIOQUIA | F79: SAN RAFAEL | H79: PEQUE | N79: ANTIOQUIA | O79: SABANETA
A80: SANTANDER | B80: BARRANCABERMEJA | E80: ANTIOQUIA | F80: MURINDÓ | H80: PUEBLORRICO | N80: SANTANDER | O80: PUENTE NACIONAL
A81: TOLIMA | B81: ROVIRA | E81: ANTIOQUIA | F81: OLAYA | H81: PUERTO BERRÍO | N81: CUNDINAMARCA | O81: CHÍA
A82: CUNDINAMARCA | B82: APULO | E82: ANTIOQUIA | F82: SAN JOSÉ DE LA MONTAÑA | H82: PUERTO NARE | N82: LA GUAJIRA | O82: RIOHACHA
A83: VALLE DEL CAUCA | B83: CARTAGO | E83: ANTIOQUIA | F83: PUEBLORRICO | H83: PUERTO TRIUNFO | N83: CUNDINAMARCA | O83: LA CALERA
A84: ANTIOQUIA | B84: ENVIGADO | E84: ANTIOQUIA | F84: SAN ROQUE | H84: REMEDIOS | N84: CUNDINAMARCA | O84: AGUA DE DIOS
A85: ARAUCA | B85: ARAUCA | E85: ANTIOQUIA | F85: YONDÓ | H85: RETIRO | N85: CUNDINAMARCA | O85: TOCAIMA
A86: VALLE DEL CAUCA | B86: PALMIRA | E86: ANTIOQUIA | F86: CARACOLÍ | H86: RIONEGRO | N86: CUNDINAMARCA | O86: MOSQUERA
A87: SANTANDER | B87: SAN GIL | E87: ANTIOQUIA | F87: BELMIRA | H87: SABANALARGA | N87: CESAR | O87: AGUACHICA
A88: SANTANDER | B88: VÉLEZ | E88: ANTIOQUIA | F88: SALGAR | H88: SABANETA | N88: TOLIMA | O88: VILLARRICA
A89: ANTIOQUIA | B89: RETIRO | E89: ANTIOQUIA | F89: TÁMESIS | H89: SALGAR | N89: ANTIOQUIA | O89: GUARNE
A90: GUAVIARE | B90: CALAMAR | E90: ANTIOQUIA | F90: LA PINTADA | H90: SAN ANDRÉS DE CUERQUÍA | N90: CUNDINAMARCA | O90: FACATATIVÁ
A91: CUNDINAMARCA | B91: SOACHA | E91: ANTIOQUIA | F91: SONSON | H91: SAN CARLOS | N91: CUNDINAMARCA | O91: TABIO
A92: VALLE DEL CAUCA | B92: SEVILLA | E92: ANTIOQUIA | F92: TARSO | H92: SAN FRANCISCO | N92: CUNDINAMARCA | O92: SUBACHOQUE
A93: TOLIMA | B93: FLANDES | E93: ANTIOQUIA | F93: VALDIVIA | H93: SAN JERÓNIMO | N93: CUNDINAMARCA | O93: GUASCA
A94: CÓRDOBA | B94: SAHAGÚN | E94: ANTIOQUIA | F94: SAN ANDRÉS DE CUERQUÍA | H94: SAN JOSÉ DE LA MONTAÑA | N94: CAUCA | O94: PIENDAMÓ
A95: ANTIOQUIA | B95: PUERTO BERRÍO | E95: ANTIOQUIA | F95: EL BAGRE | H95: SAN JUAN DE URABÁ | N95: TOLIMA | O95: SUÁREZ
A96: VALLE DEL CAUCA | B96: FLORIDA | E96: ANTIOQUIA | F96: ZARAGOZA | H96: SAN LUIS | N96: CUNDINAMARCA | O96: FUNZA
A97: CUNDINAMARCA | B97: COTA | E97: ANTIOQUIA | F97: SAN FRANCISCO | H97: SAN PEDRO DE LOS MILAGROS | N97: BOYACÁ | O97: GUATEQUE
A98: ATLÁNTICO | B98: SOLEDAD | E98: ANTIOQUIA | F98: CAREPA | H98: SAN PEDRO DE URABA | N98: NORTE DE SANTANDER | O98: CÚCUTA
A99: CUNDINAMARCA | B99: SAN FRANCISCO | E99: ANTIOQUIA | F99: ANORÍ | H99: SAN RAFAEL | N99: META | O99: GRANADA
A100: ANTIOQUIA | B100: RIONEGRO | E100: ANTIOQUIA | F100: ANGELÓPOLIS | H100: SAN ROQUE | N100: CALDAS | O100: LA DORADA
A101: CUNDINAMARCA | B101: MADRID | E101: ANTIOQUIA | F101: SAN PEDRO DE URABA | H101: SAN VICENTE | N101: SANTANDER | O101: GIRÓN
A102: SUCRE | B102: SINCELEJO | E102: ANTIOQUIA | F102: CARAMANTA | H102: SANTA BÁRBARA | N102: SANTANDER | O102: BARRANCABERMEJA
A103: CASANARE | B103: PAZ DE ARIPORO | E103: ANTIOQUIA | F103: MACEO | H103: SANTA ROSA DE OSOS | N103: TOLIMA | O103: ROVIRA
A104: QUINDÍO | B104: CALARCA | E104: ANTIOQUIA | F104: PEQUE | H104: SANTAFÉ DE ANTIOQUIA | N104: CUNDINAMARCA | O104: APULO
A105: CUNDINAMARCA | B105: GRANADA | E105: ANTIOQUIA | F105: SAN CARLOS | H105: SANTO DOMINGO | N105: VALLE DEL CAUCA | O105: CARTAGO
A106: CASANARE | B106: MONTERREY | E106: ANTIOQUIA | F106: SAN JUAN DE URABÁ | H106: SEGOVIA | N106: ANTIOQUIA | O106: ENVIGADO
A107: CUNDINAMARCA | B107: ALBÁN | E107: ANTIOQUIA | F107: NECHÍ | H107: SONSON | N107: ARAUCA | O107: ARAUCA
A108: VALLE DEL CAUCA | B108: GUADALAJARA DE BUGA | E108: ANTIOQUIA | F108: YOLOMBÓ | H108: SOPETRÁN | N108: BOYACÁ | O108: TUNJA
A109: CUNDINAMARCA | B109: TOCANCIPÁ | E109: ANTIOQUIA | F109: VEGACHÍ | H109: TÁMESIS | N109: VALLE DEL CAUCA | O109: PALMIRA
A110: ANTIOQUIA | B110: BARBOSA | E110: ANTIOQUIA | F110: NECOCLÍ | H110: TARAZÁ | N110: SANTANDER | O110: SAN GIL
A111: TOLIMA | B111: SANTA ISABEL | E111: ANTIOQUIA | F111: SAN LUIS | H111: TARSO | N111: SANTANDER | O111: VÉLEZ
A112: BOYACÁ | B112: BOYACÁ | E112: ANTIOQUIA | F112: SABANALARGA | H112: TITIRIBÍ | N112: ANTIOQUIA | O112: RETIRO
A113: HUILA | B113: RIVERA | E113: ANTIOQUIA | F113: MONTEBELLO | H113: TOLEDO | N113: GUAVIARE | O113: CALAMAR
A114: SANTANDER | B114: OIBA | E114: ANTIOQUIA | F114: MUTATÁ | H114: TURBO | N114: CUNDINAMARCA | O114: SOACHA
A115: CUNDINAMARCA | B115: GUADUAS | E115: ANTIOQUIA | F115: BRICEÑO | H115: URAMITA | N115: VALLE DEL CAUCA | O115: SEVILLA
A116: CUNDINAMARCA | B116: ANOLAIMA | E116: ANTIOQUIA | F116: CAÑASGORDAS | H116: URRAO | N116: TOLIMA | O116: FLANDES
A117: CUNDINAMARCA | B117: NEMOCÓN | E117: ANTIOQUIA | F117: YALÍ | H117: VALDIVIA | N117: CÓRDOBA | O117: SAHAGÚN
A118: CUNDINAMARCA | B118: SASAIMA | E118: ANTIOQUIA | F118: URAMITA | H118: VALPARAÍSO | N118: CUNDINAMARCA | O118: MOSQUERA
A119: ANTIOQUIA | B119: BELLO | E119: ANTIOQUIA | F119: GUADALUPE | H119: VEGACHÍ | N119: ANTIOQUIA | O119: PUERTO BERRÍO
A120: VICHADA | B120: CUMARIBO | E120: ANTIOQUIA | F120: CAICEDO | H120: VENECIA | N120: VALLE DEL CAUCA | O120: FLORIDA
A121: CUNDINAMARCA | B121: TENA | E121: ANTIOQUIA | F121: ITUANGO | H121: VIGÍA DEL FUERTE | N121: CUNDINAMARCA | O121: COTA
A122: VALLE DEL CAUCA | B122: LA UNIÓN | E122: ANTIOQUIA | F122: TARAZÁ | H122: YALÍ | N122: ATLÁNTICO | O122: SOLEDAD
A123: CUNDINAMARCA | B123: SAN JUAN DE RÍO SECO | E123: ANTIOQUIA | F123: DABEIBA | H123: YARUMAL | N123: CUNDINAMARCA | O123: SAN FRANCISCO
A124: SANTANDER | B124: SABANA DE TORRES | E124: ANTIOQUIA | F124: ANZA | H124: YOLOMBÓ | N124: ANTIOQUIA | O124: RIONEGRO
A125: GUAVIARE | B125: SAN JOSÉ DEL GUAVIARE | E125: ANTIOQUIA | F125: HELICONIA | H125: YONDÓ | N125: CUNDINAMARCA | O125: MADRID
A126: CUNDINAMARCA | B126: FOMEQUE | E126: ANTIOQUIA | F126: LIBORINA | H126: ZARAGOZA | N126: CUNDINAMARCA | O126: MADRID
A127: CUNDINAMARCA | B127: QUEBRADANEGRA | H127: 0 | N127: SUCRE | O127: SINCELEJO
A128: CUNDINAMARCA | B128: GUAYABAL DE SIQUIMA | N128: CUNDINAMARCA | O128: FUNZA
A129: CHOCÓ | B129: ACANDÍ | N129: CUNDINAMARCA | O129: ZIPAQUIRÁ
A130: CUNDINAMARCA | B130: SIBATÉ | N130: CASANARE | O130: PAZ DE ARIPORO
A131: BOYACÁ | B131: VILLA DE LEYVA | N131: SUCRE | O131: SINCELEJO
A132: CUNDINAMARCA | B132: EL ROSAL | N132: QUINDÍO | O132: CALARCA
A133: ANTIOQUIA | B133: ARMENIA | N133: CUNDINAMARCA | O133: GRANADA
A134: LA GUAJIRA | B134: MAICAO | N134: CUNDINAMARCA | O134: FUSAGASUGÁ
A135: CASANARE | B135: YOPAL | N135: CUNDINAMARCA | O135: SOACHA
A136: CUNDINAMARCA | B136: CAPARRAPÍ | N136: CASANARE | O136: MONTERREY
A137: CUNDINAMARCA | B137: QUIPILE | N137: CUNDINAMARCA | O137: ALBÁN
A138: VALLE DEL CAUCA | B138: JAMUNDÍ | N138: VALLE DEL CAUCA | O138: GUADALAJARA DE BUGA
A139: CUNDINAMARCA | B139: COGUA | N139: CUNDINAMARCA | O139: FACATATIVÁ
A140: TOLIMA | B140: FRESNO | N140: CUNDINAMARCA | O140: TOCANCIPÁ
A141: RISARALDA | B141: DOSQUEBRADAS | N141: ANTIOQUIA | O141: BARBOSA
A142: CUNDINAMARCA | B142: SESQUILÉ | N142: META | O142: ACACÍAS
A143: CUNDINAMARCA | B143: UBALÁ | N143: TOLIMA | O143: SANTA ISABEL
A144: SANTANDER | B144: PUERTO PARRA | N144: CUNDINAMARCA | O144: ALBÁN
A145: PUTUMAYO | B145: MOCOA | N145: BOYACÁ | O145: BOYACÁ
A146: PUTUMAYO | B146: PUERTO ASÍS | N146: HUILA | O146: RIVERA
A147: CUNDINAMARCA | B147: CHOCONTÁ | N147: RISARALDA | O147: PEREIRA
A148: HUILA | B148: GARZÓN | N148: SANTANDER | O148: OIBA
A149: CUNDINAMARCA | B149: VENECIA | N149: CUNDINAMARCA | O149: GUADUAS
A150: CUNDINAMARCA | B150: RICAURTE | N150: CUNDINAMARCA | O150: FACATATIVÁ
A151: HUILA | B151: LA PLATA | N151: CUNDINAMARCA | O151: ANOLAIMA
A152: CUNDINAMARCA | B152: SUESCA | N152: CUNDINAMARCA | O152: AGUA DE DIOS
A153: BOLÍVAR | B153: EL CARMEN DE BOLÍVAR | N153: CUNDINAMARCA | O153: NEMOCÓN
A154: CASANARE | B154: VILLANUEVA | N154: CUNDINAMARCA | O154: LA VEGA
A155: CUNDINAMARCA | B155: EL COLEGIO | N155: META | O155: SAN MARTÍN
A156: CUNDINAMARCA | B156: VIOTÁ | N156: CUNDINAMARCA | O156: SASAIMA
A157: CUNDINAMARCA | B157: CACHIPAY | N157: CUNDINAMARCA | O157: VILLA DE SAN DIEGO DE UBATE
A158: BOYACÁ | B158: CHIVOR | N158: SANTANDER | O158: BARRANCABERMEJA
A159: TOLIMA | B159: MARIQUITA | N159: BOYACÁ | O159: DUITAMA
A160: CUNDINAMARCA | B160: ARBELÁEZ | N160: ANTIOQUIA | O160: BELLO
A161: CUNDINAMARCA | B161: BELTRÁN | N161: CUNDINAMARCA | O161: AGUA DE DIOS
A162: META | B162: PUERTO LÓPEZ | N162: VICHADA | O162: CUMARIBO
A163: META | B163: PUERTO GAITÁN | N163: BOYACÁ | O163: SOGAMOSO
A164: TOLIMA | B164: AMBALEMA | N164: CUNDINAMARCA | O164: TENA
A165: TOLIMA | B165: LÉRIDA | N165: VALLE DEL CAUCA | O165: LA UNIÓN
A166: NORTE DE SANTANDER | B166: OCAÑA | N166: CUNDINAMARCA | O166: CAJICÁ
A167: BOYACÁ | B167: PUERTO BOYACÁ | N167: CUNDINAMARCA | O167: SAN JUAN DE RÍO SECO
A168: MAGDALENA | B168: GUAMAL | N168: CUNDINAMARCA | O168: ALBÁN
A169: CUNDINAMARCA | B169: BITUIMA | N169: BOYACÁ | O169: SOGAMOSO
A170: TOLIMA | B170: LÍBANO | N170: SANTANDER | O170: SABANA DE TORRES
A171: CUNDINAMARCA | B171: VIANÍ | N171: GUAVIARE | O171: SAN JOSÉ DEL GUAVIARE
A172: META | B172: SAN CARLOS DE GUAROA | N172: CUNDINAMARCA | O172: FOMEQUE
A173: CUNDINAMARCA | B173: BOJACÁ | N173: CUNDINAMARCA | O173: GUADUAS
A174: CUNDINAMARCA | B174: SIMIJACA | N174: CUNDINAMARCA | O174: SOPÓ
A175: TOLIMA | B175: COELLO | N175: CUNDINAMARCA | O175: QUEBRADANEGRA
A176: CAQUETÁ | B176: SAN VICENTE DEL CAGUÁN | N176: CUNDINAMARCA | O176: SASAIMA
A177: SANTANDER | B177: LANDÁZURI | N177: CUNDINAMARCA | O177: GUAYABAL DE SIQUIMA
A178: CUNDINAMARCA | B178: PACHO | N178: CHOCÓ | O178: ACANDÍ
A179: CHOCÓ | B179: QUIBDÓ | N179: CUNDINAMARCA | O179: SIBATÉ
A180: CUNDINAMARCA | B180: GACHANCIPÁ | N180: CUNDINAMARCA | O180: TOCANCIPÁ
A181: CUNDINAMARCA | B181: GUACHETÁ | N181: CUNDINAMARCA | O181: SASAIMA
A182: TOLIMA | B182: ARMERO | N182: CUNDINAMARCA | O182: VILLETA
A183: TOLIMA | B183: VENADILLO | N183: BOYACÁ | O183: VILLA DE LEYVA
A184: CUNDINAMARCA | B184: PUERTO SALGAR | N184: CUNDINAMARCA | O184: EL ROSAL
A185: BOYACÁ | B185: CÓMBITA | N185: CUNDINAMARCA | O185: TENJO
A186: CHOCÓ | B186: BOJAYA | N186: GUAVIARE | O186: SAN JOSÉ DEL GUAVIARE
A187: CUNDINAMARCA | B187: CARMEN DE CARUPA | N187: ANTIOQUIA | O187: ARMENIA
A188: CUNDINAMARCA | B188: UBAQUE | N188: LA GUAJIRA | O188: MAICAO
A189: BOYACÁ | B189: RÁQUIRA | N189: CASANARE | O189: YOPAL
A190: CUNDINAMARCA | B190: MANTA | N190: CUNDINAMARCA | O190: CAPARRAPÍ
A191: PUTUMAYO | B191: SIBUNDOY | N191: VALLE DEL CAUCA | O191: CARTAGO
A192: VALLE DEL CAUCA | B192: YUMBO | N192: CUNDINAMARCA | O192: QUIPILE
A193: CUNDINAMARCA | B193: CUCUNUBÁ | N193: VALLE DEL CAUCA | O193: JAMUNDÍ
A194: CUNDINAMARCA | B194: SUTATAUSA | N194: CUNDINAMARCA | O194: LA MESA
A195: CUNDINAMARCA | B195: SUSA | N195: CUNDINAMARCA | O195: COGUA
A196: CUNDINAMARCA | B196: VILLAPINZÓN | N196: CUNDINAMARCA | O196: ANAPOIMA
A197: CUNDINAMARCA | B197: LENGUAZAQUE | N197: CUNDINAMARCA | O197: ANAPOIMA
A198: CUNDINAMARCA | B198: CHAGUANÍ | N198: CUNDINAMARCA | O198: LA MESA
A199: TOLIMA | B199: CAJAMARCA | N199: CUNDINAMARCA | O199: GIRARDOT
A200: CAUCA | B200: ARGELIA | N200: TOLIMA | O200: FRESNO
... 3172 more rows

Sheet Visor
J3: Informe Mensual de las cotizaciones
AB4: Pg. 1
J5: Fecha de corte: 25 de Feb de 2022
L7: Departamento | Q7: ANTIOQUIA
L8: Municipio | Q8: MEDELLÍN
C10: ="Resumen general mes "&Lista!R2&":" -> Resumen general mes Diciembre:
H12: Total | L12: % | M12: Dependientes | Q12: % | R12: Dep.Privados* | V12: % | W12: Independientes | AA12: %
D13: Nacional | H13: =M13+W13 -> 12434346 | M13: =R13+SUMIFS('Cotizantes Mes'!$AK$2:$AK$5000,'Cotizantes Mes'!$I$2:$I$5000,"Dep_No_priv") -> 10231191 | R13: =SUMIFS('Cotizantes Mes'!$AK$2:$AK$5000,'Cotizantes Mes'!$I$2:$I$5000,"Dep_sec_priv") -> 8737634 | W13: =SUMIFS('Cotizantes Mes'!$AK$2:$AK$5000,'Cotizantes Mes'!$I$2:$I$5000,"Independiente") -> 2203155
D14: =PROPER(Q7) -> Antioquia | H14: =M14+W14 -> 2155243 | L14: =H14/H13 -> 0.1733298237 | M14: =R14+SUMIFS('Cotizantes Mes'!$CA$2:$CA$5000,'Cotizantes Mes'!$AY$2:$AY$5000,"Dep_No_priv") -> 1835071 | Q14: =M14/M13 -> 0.1793604479 | R14: =SUMIFS('Cotizantes Mes'!$CA$2:$CA$5000,'Cotizantes Mes'!$AY$2:$AY$5000,"Dep_sec_priv") -> 1603496 | V14: =R14/R13 -> 0.1835160411 | W14: =SUMIFS('Cotizantes Mes'!$CA$2:$CA$2000,'Cotizantes Mes'!$AY$2:$AY$2000,"Independiente") -> 320172 | AA14: =W14/W13 -> 0.145324319
D15: =PROPER(Q8) -> Medellín | H15: =M15+W15 -> 1483775 | L15: =H15/H14 -> 0.6884490519 | M15: =R15+SUMIFS('Cotizantes Mes'!$CA$2:$CA$2000,'Cotizantes Mes'!$AY$2:$AY$2000,"Dep_No_priv",'Cotizantes Mes'!$AX$2:$AX$2000,Visor!$Q$8) -> 1285932 | Q15: =M15/M14 -> 0.7007532679 | R15: =SUMIFS('Cotizantes Mes'!$CA$2:$CA$2000,'Cotizantes Mes'!$AY$2:$AY$2000,"Dep_sec_priv",'Cotizantes Mes'!$AX$2:$AX$2000,Visor!$Q$8) -> 1139153 | V15: =R15/R14 -> 0.7104183609 | W15: =SUMIFS('Cotizantes Mes'!$CA$2:$CA$2000,'Cotizantes Mes'!$AY$2:$AY$2000,"Independiente",'Cotizantes Mes'!$AX$2:$AX$2000,Visor!$Q$8) -> 197843 | AA15: =W15/W14 -> 0.6179272391
C16: *Ubicación basada en la ubicación de los cotizantes
C18: Variaciones mensuales del número de cotizantes
C30: ="Variaciones anuales y mensuales de "&Lista!R2 -> Variaciones anuales y mensuales de Diciembre
L32: Dependientes | P32: Dep. Privados | T32: Independientes
L33: ='Cotizantes Mes'!DL5 -> ∆ Anual Dic | N33: ='Cotizantes Mes'!DM5 -> ∆ Mensual Dic | P33: ='Cotizantes Mes'!DN5 -> ∆ Anual Dic | R33: ='Cotizantes Mes'!DO5 -> ∆ Mensual Dic | T33: =L33 -> ∆ Anual Dic | V33: =N33 -> ∆ Mensual Dic
H34: Nacional | L34: =IFERROR('Cotizantes Mes'!DL6,"") -> 0.07171797343 | N34: =IFERROR('Cotizantes Mes'!DM6,"") -> -0.0410781301 | P34: =IFERROR('Cotizantes Mes'!DN6,"") -> 0.07629671903 | R34: =IFERROR('Cotizantes Mes'!DO6,"") -> -0.01713063014 | T34: =IFERROR('Cotizantes Mes'!DP6,"") -> 0.007779897692 | V34: =IFERROR('Cotizantes Mes'!DQ6,"") -> -0.03544184426
H35: =PROPER(Q7) -> Antioquia | L35: =IFERROR('Cotizantes Mes'!DL7,"") -> 0.0663549273 | N35: =IFERROR('Cotizantes Mes'!DM7,"") -> -0.03371697059 | P35: =IFERROR('Cotizantes Mes'!DN7,"") -> 0.06810226364 | R35: =IFERROR('Cotizantes Mes'!DO7,"") -> -0.01725191448 | T35: =IFERROR('Cotizantes Mes'!DP7,"") -> 0.02566303926 | V35: =IFERROR('Cotizantes Mes'!DQ7,"") -> -0.02889605367
H36: =PROPER(Q8) -> Medellín | L36: =IFERROR('Cotizantes Mes'!DL8,"") -> 0.06259301279 | N36: =IFERROR('Cotizantes Mes'!DM8,"") -> -0.03478123804 | P36: =IFERROR('Cotizantes Mes'!DN8,"") -> 0.06572756776 | R36: =IFERROR('Cotizantes Mes'!DO8,"") -> -0.01623129881 | T36: =IFERROR('Cotizantes Mes'!DP8,"") -> -0.00322445751 | V36: =IFERROR('Cotizantes Mes'!DQ8,"") -> -0.02503412624
C38: *Ubicación basada en la ubicación de los cotizantes
C39: ="Número de aportantes privados por tamaño mes de "&Lista!R2 -> Número de aportantes privados por tamaño mes de Diciembre
I41: Nacional | L41: % | M41: Cotizantes | O41: =PROPER(Q7) -> Antioquia | R41: % | S41: Cotizantes | U41: =PROPER(Q8) -> Medellín | X41: % | Y41: Cotizantes
E42: Micro | I42: =COUNTIFS(Tamaño!$G$2:$G$600000,"<=10") -> 415989 | L42: =I42/$I$47 -> 0.8156950945 | M42: =SUMIFS(Tamaño!$G$2:$G$600000,Tamaño!$G$2:$G$600000,"<="&10) -> 1218893 | O42: =COUNTIFS(Tamaño!$S$2:$S$300000,"<=10") -> 86707 | R42: =O42/$O$47 -> 0.8228656569 | S42: =SUMIFS(Tamaño!$S$2:$S$300000,Tamaño!$S$2:$S$300000,"<="&10) -> 252685 | U42: =COUNTIFS(Tamaño!$S$2:$S$300000,"<=10",Tamaño!$R$2:$R$300000,Visor!$Q$8) -> 55283 | X42: =U42/$U$47 -> 0.8274411782 | Y42: =SUMIFS(Tamaño!$S$2:$S$300000,Tamaño!$S$2:$S$300000,"<="&10,Tamaño!$R$2:$R$300000,Visor!$Q$8) -> 156616
E43: Pequeñas | I43: =COUNTIFS(Tamaño!$G$2:$G$600000,">=11",Tamaño!$G$2:$G$600000,"<=50") -> 70571 | L43: =I43/$I$47 -> 0.1383796651 | M43: =SUMIFS(Tamaño!$G$2:$G$600000,Tamaño!$G$2:$G$600000,">"&10,Tamaño!$G$2:$G$600000,"<="&50) -> 1524699 | O43: =COUNTIFS(Tamaño!$S$2:$S$300000,">=11",Tamaño!$S$2:$S$300000,"<=50") -> 14289 | R43: =O43/$O$47 -> 0.1356052841 | S43: =SUMIFS(Tamaño!$S$2:$S$300000,Tamaño!$S$2:$S$300000,">"&10,Tamaño!$S$2:$S$300000,"<="&50) -> 308663 | U43: =COUNTIFS(Tamaño!$S$2:$S$300000,">=11",Tamaño!$S$2:$S$300000,"<=50",Tamaño!$R$2:$R$300000,Visor!$Q$8) -> 8707 | X43: =U43/$U$47 -> 0.1303209004 | Y43: =SUMIFS(Tamaño!$S$2:$S$300000,Tamaño!$S$2:$S$300000,">"&10,Tamaño!$S$2:$S$300000,"<="&50,Tamaño!$R$2:$R$300000,Visor!$Q$8) -> 189044
E44: Medianas | I44: =COUNTIFS(Tamaño!$G$2:$G$600000,">=51",Tamaño!$G$2:$G$600000,"<=200") -> 17780 | L44: =I44/$I$47 -> 0.03486404395 | M44: =SUMIFS(Tamaño!$G$2:$G$600000,Tamaño!$G$2:$G$600000,">"&50,Tamaño!$G$2:$G$600000,"<="&200) -> 1681257 | O44: =COUNTIFS(Tamaño!$S$2:$S$300000,">=51",Tamaño!$S$2:$S$300000,"<=200") -> 3409 | R44: =O44/$O$47 -> 0.03235204798 | S44: =SUMIFS(Tamaño!$S$2:$S$300000,Tamaño!$S$2:$S$300000,">"&50,Tamaño!$S$2:$S$300000,"<="&200) -> 318978 | U44: =COUNTIFS(Tamaño!$S$2:$S$300000,">=51",Tamaño!$S$2:$S$300000,"<=200",Tamaño!$R$2:$R$300000,Visor!$Q$8) -> 2147 | X44: =U44/$U$47 -> 0.03213494582 | Y44: =SUMIFS(Tamaño!$S$2:$S$300000,Tamaño!$S$2:$S$300000,">"&50,Tamaño!$S$2:$S$300000,"<="&200,Tamaño!$R$2:$R$300000,Visor!$Q$8) -> 202840
E45: Grandes | I45: =COUNTIFS(Tamaño!$G$2:$G$600000,">=201",Tamaño!$G$2:$G$600000,"<=500") -> 3629 | L45: =I45/$I$47 -> 0.007115951379 | M45: =SUMIFS(Tamaño!$G$2:$G$600000,Tamaño!$G$2:$G$600000,">"&200,Tamaño!$G$2:$G$600000,"<="&500) -> 1107295 | O45: =COUNTIFS(Tamaño!$S$2:$S$300000,">=201",Tamaño!$S$2:$S$300000,"<=500") -> 599 | R45: =O45/$O$47 -> 0.005684622101 | S45: =SUMIFS(Tamaño!$S$2:$S$300000,Tamaño!$S$2:$S$300000,">"&200,Tamaño!$S$2:$S$300000,"<="&500) -> 182117 | U45: =COUNTIFS(Tamaño!$S$2:$S$300000,">=201",Tamaño!$S$2:$S$300000,"<=500",Tamaño!$R$2:$R$300000,Visor!$Q$8) -> 396 | X45: =U45/$U$47 -> 0.005927078968 | Y45: =SUMIFS(Tamaño!$S$2:$S$300000,Tamaño!$S$2:$S$300000,">"&200,Tamaño!$S$2:$S$300000,"<="&500,Tamaño!$R$2:$R$300000,Visor!$Q$8) -> 122122
E46: Muy Grandes | I46: =COUNTIFS(Tamaño!$G$2:$G$600000,">=501") -> 2012 | L46: =I46/$I$47 -> 0.003945245019 | M46: =SUMIFS(Tamaño!$G$2:$G$600000,Tamaño!$G$2:$G$600000,">"&500) -> 3208663 | O46: =COUNTIFS(Tamaño!$S$2:$S$300000,">=501") -> 368 | R46: =O46/$O$47 -> 0.00349238887 | S46: =SUMIFS(Tamaño!$S$2:$S$300000,Tamaño!$S$2:$S$300000,">"&500) -> 609679 | U46: =COUNTIFS(Tamaño!$S$2:$S$300000,">=501",Tamaño!$R$2:$R$300000,Visor!$Q$8) -> 279 | X46: =U46/$U$47 -> 0.004175896546 | Y46: =SUMIFS(Tamaño!$S$2:$S$300000,Tamaño!$S$2:$S$300000,">"&500,Tamaño!$R$2:$R$300000,Visor!$Q$8) -> 473942
E47: Total | I47: =SUM(I42:K46) -> 509981 | L47: =SUM(L42:L46) -> 1 | M47: =SUM(M42:N46) -> 8740807 | O47: =SUM(O42:Q46) -> 105372 | R47: =SUM(R42:R46) -> 1 | S47: =SUM(S42:T46) -> 1672122 | U47: =SUM(U42:W46) -> 66812 | X47: =SUM(X42:X46) -> 1 | Y47: =SUM(Y42:Z46) -> 1144564
C49: *Ubicación basada en la ubicación de los aportantes
K51: =J3 -> Informe Mensual de las cotizaciones | AB51: Pg. 2
K53: =J5 -> Fecha de corte: 25 de Feb de 2022
L55: Departamento | Q55: =Q7 -> ANTIOQUIA
L56: Municipio | Q56: =Q8 -> MEDELLÍN
C58: ="Resumen por rangos de IBC privados e Independientes mes "&Lista!R2&":" -> Resumen por rangos de IBC privados e Independientes mes Diciembre:
F60: Nacional | L60: =PROPER($Q$7) -> Antioquia | R60: =PROPER($Q$8) -> Medellín
Z61: <= 1 SMMLV
Z62: 1-2 SMMLV
B63: Privados | Z63: 2-5 SMMLV
Z64: > 5 SMMLV
Z68: <= 1 SMMLV
B69: Independientes | Z69: 1-2 SMMLV
Z70: 2-5 SMMLV
Z71: > 5 SMMLV
C73: *Ubicación basada en la ubicación de los cotizantes
C74: Resumen por actividades económicas aportantes del sector privado
C76: Actividades económicas | K76: =PROPER(Q7) -> Antioquia | S76: =PROPER(Q56) -> Medellín
K77: Apt.Privados | N77: % | O77: Empleados | R77: % | S77: Apt.Privados | V77: % | W77: Empleados | Z77: %
B78: =IF(C78="Total",1,0) -> 0 | C78: =IF(Tamaño!$AP2="",Total,Tamaño!$AP2) -> Otras actividades de servicios | K78: =Tamaño!AQ2 -> 17294 | N78: =K78/Tamaño!$AQ$24 -> 0.1641232965 | O78: =Tamaño!AR2 -> 159920 | R78: =O78/Tamaño!$AR$24 -> 0.09563895457 | S78: =Tamaño!AS2 -> 11602 | V78: =S78/Tamaño!$AS$24 -> 0.1736514399 | W78: =Tamaño!AT2 -> 106861 | Z78: =W78/Tamaño!$AT$24 -> 0.09336393596
B79: =IF(C79="Total",1,0) -> 0 | C79: =IF(C78="Total","",IF(Tamaño!$AQ3=0,"Total",Tamaño!$AP3)) -> Comercio y reparacion de vehiculos | K79: =IF(C79="","",IF(C79="Total",K78,Tamaño!$AQ3)) -> 14399 | N79: =IF(C79="Total","",K79/Tamaño!$AQ$24) -> 0.1366492047 | O79: =IF(C79="","",IF(C79="Total",O78,Tamaño!$AR3)) -> 153505 | R79: =IF(C79="Total","",O79/Tamaño!$AR$24) -> 0.09180251202 | S79: =IF(C79="","",IF(C79="Total",SUM($S$78:$U78),Tamaño!$AS3)) -> 8171 | V79: =IF(OR(C78="",C78="Total"),"",IF(C79="Total","",S79/Tamaño!$AS$24)) -> 0.1222983895 | W79: =IF(C79="","",IF(C79="Total",SUM($W$78:$W78),Tamaño!$AT3)) -> 94150 | Z79: =IF(OR(C78="Total",C78=""),"",IF(C79="Total","",W79/Tamaño!$AT$24)) -> 0.08225839708
B80: 0 | C80: =IF(C79="Total","",IF(Tamaño!$AQ4=0,"Total",Tamaño!$AP4)) -> Act. profecionales cientificas y tecnicas | K80: =IF(C80="","",IF(C80="Total",SUM(K78:M79),Tamaño!$AQ4)) -> 13010 | N80: =IF(N79="","",IF(C80="Total","",K80/Tamaño!$AQ$24)) -> 0.1234673348 | O80: =IF(C80="","",IF(C80="Total",SUM($O$78:$Q79),Tamaño!$AR4)) -> 184162 | R80: =IF(N79="","",IF(C80="Total","",O80/Tamaño!$AR$24)) -> 0.1101367006 | S80: =IF(C80="","",IF(C80="Total",SUM($S$78:$U79),Tamaño!$AS4)) -> 9184 | V80: =IF(OR(C79="",C79="Total"),"",IF(C80="Total","",S80/Tamaño!$AS$24)) -> 0.1374603365 | W80: =IF(C80="","",IF(C80="Total",SUM($W$78:$W79),Tamaño!$AT4)) -> 139729 | Z80: =IF(OR(C79="Total",C79=""),"",IF(C80="Total","",W80/Tamaño!$AT$24)) -> 0.1220805477
B81: 0 | C81: =IF(OR(C80="Total",C80=""),"",IF(Tamaño!$AQ5=0,"Total",Tamaño!$AP5)) -> Actividades de servicios administrativos | K81: =IF(C81="","",IF(C81="Total",SUM(K78:M80),Tamaño!$AQ5)) -> 10214 | N81: =IF(N80="","",IF(C81="Total","",K81/Tamaño!$AQ$24)) -> 0.09693277151 | O81: =IF(C81="","",IF(C81="Total",SUM($O$78:$Q80),Tamaño!$AR5)) -> 280661 | R81: =IF(N80="","",IF(C81="Total","",O81/Tamaño!$AR$24)) -> 0.1678472025 | S81: =IF(C81="","",IF(C81="Total",SUM($S$78:$U80),Tamaño!$AS5)) -> 6948 | V81: =IF(OR(C80="",C80="Total"),"",IF(C81="Total","",S81/Tamaño!$AS$24)) -> 0.1039932946 | W81: =IF(C81="","",IF(C81="Total",SUM($W$78:$W80),Tamaño!$AT5)) -> 232504 | Z81: =IF(OR(C80="Total",C80=""),"",IF(C81="Total","",W81/Tamaño!$AT$24)) -> 0.203137614
B82: 0 | C82: =IF(OR(C81="Total",C81=""),"",IF(Tamaño!$AQ6=0,"Total",Tamaño!$AP6)) -> Admin. pública y defensa; planes seg. social | K82: =IF(C82="","",IF(C82="Total",SUM(K78:M81),Tamaño!$AQ6)) -> 9092 | N82: =IF(N81="","",IF(C82="Total","",K82/Tamaño!$AQ$24)) -> 0.08628478154 | O82: =IF(C82="","",IF(C82="Total",SUM($O$78:$Q81),Tamaño!$AR6)) -> 78688 | R82: =IF(N81="","",IF(C82="Total","",O82/Tamaño!$AR$24)) -> 0.04705876724 | S82: =IF(C82="","",IF(C82="Total",SUM($S$78:$U81),Tamaño!$AS6)) -> 5619 | V82: =IF(OR(C81="",C81="Total"),"",IF(C82="Total","",S82/Tamaño!$AS$24)) -> 0.08410165838 | W82: =IF(C82="","",IF(C82="Total",SUM($W$78:$W81),Tamaño!$AT6)) -> 56692 | Z82: =IF(OR(C81="Total",C81=""),"",IF(C82="Total","",W82/Tamaño!$AT$24)) -> 0.04953152467
B83: 0 | C83: =IF(OR(C82="Total",C82=""),"",IF(Tamaño!$AQ7=0,"Total",Tamaño!$AP7)) -> Industrias manufactureras | K83: =IF(C83="","",IF(C83="Total",SUM(K78:M82),Tamaño!$AQ7)) -> 8738 | N83: =IF(N82="","",IF(C83="Total","",K83/Tamaño!$AQ$24)) -> 0.08292525529 | O83: =IF(C83="","",IF(C83="Total",SUM($O$78:$Q82),Tamaño!$AR7)) -> 205308 | R83: =IF(N82="","",IF(C83="Total","",O83/Tamaño!$AR$24)) -> 0.122782907 | S83: =IF(C83="","",IF(C83="Total",SUM($S$78:$U82),Tamaño!$AS7)) -> 5091 | V83: =IF(OR(C82="",C82="Total"),"",IF(C83="Total","",S83/Tamaño!$AS$24)) -> 0.07619888643 | W83: =IF(C83="","",IF(C83="Total",SUM($W$78:$W82),Tamaño!$AT7)) -> 111167 | Z83: =IF(OR(C82="Total",C82=""),"",IF(C83="Total","",W83/Tamaño!$AT$24)) -> 0.09712606722
B84: 0 | C84: =IF(OR(C83="Total",C83=""),"",IF(Tamaño!$AQ8=0,"Total",Tamaño!$AP8)) -> Construcción | K84: =IF(C84="","",IF(C84="Total",SUM($K$78:$M83),Tamaño!$AQ8)) -> 5904 | N84: =IF(N83="","",IF(C84="Total","",K84/Tamaño!$AQ$24)) -> 0.05603006491 | O84: =IF(C84="","",IF(C84="Total",SUM($O$78:$Q83),Tamaño!$AR8)) -> 145472 | R84: =IF(N83="","",IF(C84="Total","",O84/Tamaño!$AR$24)) -> 0.08699843672 | S84: =IF(C84="","",IF(C84="Total",SUM($S$78:$U83),Tamaño!$AS8)) -> 3632 | V84: =IF(OR(C83="",C83="Total"),"",IF(C84="Total","",S84/Tamaño!$AS$24)) -> 0.05436149195 | W84: =IF(C84="","",IF(C84="Total",SUM($W$78:$W83),Tamaño!$AT8)) -> 99851 | Z84: =IF(OR(C83="Total",C83=""),"",IF(C84="Total","",W84/Tamaño!$AT$24)) -> 0.08723933306
B85: 0 | C85: =IF(OR(C84="Total",C84=""),"",IF(Tamaño!$AQ9=0,"Total",Tamaño!$AP9)) -> Agricultura, ganadería, caza | K85: =IF(C85="","",IF(C85="Total",SUM($K$78:$M84),Tamaño!$AQ9)) -> 3925 | N85: =IF(N84="","",IF(C85="Total","",K85/Tamaño!$AQ$24)) -> 0.03724898455 | O85: =IF(C85="","",IF(C85="Total",SUM($O$78:$Q84),Tamaño!$AR9)) -> 76071 | R85: =IF(N84="","",IF(C85="Total","",O85/Tamaño!$AR$24)) -> 0.04549369005 | S85: =IF(C85="","",IF(C85="Total",SUM($S$78:$U84),Tamaño!$AS9)) -> 1704 | V85: =IF(OR(C84="",C84="Total"),"",IF(C85="Total","",S85/Tamaño!$AS$24)) -> 0.02550440041 | W85: =IF(C85="","",IF(C85="Total",SUM($W$78:$W84),Tamaño!$AT9)) -> 43421 | Z85: =IF(OR(C84="Total",C84=""),"",IF(C85="Total","",W85/Tamaño!$AT$24)) -> 0.03793671651
B86: 0 | C86: =IF(OR(C85="Total",C85=""),"",IF(Tamaño!$AQ10=0,"Total",Tamaño!$AP10)) -> Alojamiento y servicios de comida | K86: =IF(C86="","",IF(C86="Total",SUM($K$78:$M85),Tamaño!$AQ10)) -> 3752 | N86: =IF(N85="","",IF(C86="Total","",K86/Tamaño!$AQ$24)) -> 0.03560718217 | O86: =IF(C86="","",IF(C86="Total",SUM($O$78:$Q85),Tamaño!$AR10)) -> 35472 | R86: =IF(N85="","",IF(C86="Total","",O86/Tamaño!$AR$24)) -> 0.02121376311 | S86: =IF(C86="","",IF(C86="Total",SUM($S$78:$U85),Tamaño!$AS10)) -> 2252 | V86: =IF(OR(C85="",C85="Total"),"",IF(C86="Total","",S86/Tamaño!$AS$24)) -> 0.03370651979 | W86: =IF(C86="","",IF(C86="Total",SUM($W$78:$W85),Tamaño!$AT10)) -> 23039 | Z86: =IF(OR(C85="Total",C85=""),"",IF(C86="Total","",W86/Tamaño!$AT$24)) -> 0.02012906225
B87: 0 | C87: =IF(OR(C86="Total",C86=""),"",IF(Tamaño!$AQ11=0,"Total",Tamaño!$AP11)) -> Transporte y almacenamiento | K87: =IF(C87="","",IF(C87="Total",SUM($K$78:$M86),Tamaño!$AQ11)) -> 3577 | N87: =IF(N86="","",IF(C87="Total","",K87/Tamaño!$AQ$24)) -> 0.03394639942 | O87: =IF(C87="","",IF(C87="Total",SUM($O$78:$Q86),Tamaño!$AR11)) -> 122664 | R87: =IF(N86="","",IF(C87="Total","",O87/Tamaño!$AR$24)) -> 0.07335828367 | S87: =IF(C87="","",IF(C87="Total",SUM($S$78:$U86),Tamaño!$AS11)) -> 1810 | V87: =IF(OR(C86="",C86="Total"),"",IF(C87="Total","",S87/Tamaño!$AS$24)) -> 0.02709094175 | W87: =IF(C87="","",IF(C87="Total",SUM($W$78:$W86),Tamaño!$AT11)) -> 58576 | Z87: =IF(OR(C86="Total",C86=""),"",IF(C87="Total","",W87/Tamaño!$AT$24)) -> 0.0511775663
B88: 0 | C88: =IF(OR(C87="Total",C87=""),"",IF(Tamaño!$AQ12=0,"Total",Tamaño!$AP12)) -> Actividades de los hogares individuales | K88: =IF(C88="","",IF(C88="Total",SUM($K$78:$M87),Tamaño!$AQ12)) -> 3094 | N88: =IF(N87="","",IF(C88="Total","",K88/Tamaño!$AQ$24)) -> 0.02936263903 | O88: =IF(C88="","",IF(C88="Total",SUM($O$78:$Q87),Tamaño!$AR12)) -> 5772 | R88: =IF(N87="","",IF(C88="Total","",O88/Tamaño!$AR$24)) -> 0.003451901237 | S88: =IF(C88="","",IF(C88="Total",SUM($S$78:$U87),Tamaño!$AS12)) -> 2288 | V88: =IF(OR(C87="",C87="Total"),"",IF(C88="Total","",S88/Tamaño!$AS$24)) -> 0.03424534515 | W88: =IF(C88="","",IF(C88="Total",SUM($W$78:$W87),Tamaño!$AT12)) -> 4595 | Z88: =IF(OR(C87="Total",C87=""),"",IF(C88="Total","",W88/Tamaño!$AT$24)) -> 0.004014629151
B89: 0 | C89: =IF(OR(C88="Total",C88=""),"",IF(Tamaño!$AQ13=0,"Total",Tamaño!$AP13)) -> Actividades inmobiliarias | K89: =IF(C89="","",IF(C89="Total",SUM($K$78:$M88),Tamaño!$AQ13)) -> 2849 | N89: =IF(N88="","",IF(C89="Total","",K89/Tamaño!$AQ$24)) -> 0.02703754318 | O89: =IF(C89="","",IF(C89="Total",SUM($O$78:$Q88),Tamaño!$AR13)) -> 15919 | R89: =IF(N88="","",IF(C89="Total","",O89/Tamaño!$AR$24)) -> 0.009520238356 | S89: =IF(C89="","",IF(C89="Total",SUM($S$78:$U88),Tamaño!$AS13)) -> 2080 | V89: =IF(OR(C88="",C88="Total"),"",IF(C89="Total","",S89/Tamaño!$AS$24)) -> 0.03113213195 | W89: =IF(C89="","",IF(C89="Total",SUM($W$78:$W88),Tamaño!$AT13)) -> 12328 | Z89: =IF(OR(C88="Total",C88=""),"",IF(C89="Total","",W89/Tamaño!$AT$24)) -> 0.01077091364
B90: 0 | C90: =IF(OR(C89="Total",C89=""),"",IF(Tamaño!$AQ14=0,"Total",Tamaño!$AP14)) -> Información y comunicaciones | K90: =IF(C90="","",IF(C90="Total",SUM($K$78:$M89),Tamaño!$AQ14)) -> 2843 | N90: =IF(N89="","",IF(C90="Total","",K90/Tamaño!$AQ$24)) -> 0.02698060206 | O90: =IF(C90="","",IF(C90="Total",SUM($O$78:$Q89),Tamaño!$AR14)) -> 28126 | R90: =IF(N89="","",IF(C90="Total","",O90/Tamaño!$AR$24)) -> 0.016820543 | S90: =IF(C90="","",IF(C90="Total",SUM($S$78:$U89),Tamaño!$AS14)) -> 1930 | V90: =IF(OR(C89="",C89="Total"),"",IF(C90="Total","",S90/Tamaño!$AS$24)) -> 0.02888702628 | W90: =IF(C90="","",IF(C90="Total",SUM($W$78:$W89),Tamaño!$AT14)) -> 20871 | Z90: =IF(OR(C89="Total",C89=""),"",IF(C90="Total","",W90/Tamaño!$AT$24)) -> 0.01823489119
B91: 0 | C91: =IF(OR(C90="Total",C90=""),"",IF(Tamaño!$AQ15=0,"Total",Tamaño!$AP15)) -> Act. de atención de la salud humana | K91: =IF(C91="","",IF(C91="Total",SUM($K$78:$M90),Tamaño!$AQ15)) -> 2503 | N91: =IF(N90="","",IF(C91="Total","",K91/Tamaño!$AQ$24)) -> 0.02375393843 | O91: =IF(C91="","",IF(C91="Total",SUM($O$78:$Q90),Tamaño!$AR15)) -> 53314 | R91: =IF(N90="","",IF(C91="Total","",O91/Tamaño!$AR$24)) -> 0.03188403717 | S91: =IF(C91="","",IF(C91="Total",SUM($S$78:$U90),Tamaño!$AS15)) -> 1836 | V91: =IF(OR(C90="",C90="Total"),"",IF(C91="Total","",S91/Tamaño!$AS$24)) -> 0.0274800934 | W91: =IF(C91="","",IF(C91="Total",SUM($W$78:$W90),Tamaño!$AT15)) -> 43634 | Z91: =IF(OR(C90="Total",C90=""),"",IF(C91="Total","",W91/Tamaño!$AT$24)) -> 0.03812281358
B92: 0 | C92: =IF(OR(C91="Total",C91=""),"",IF(Tamaño!$AQ16=0,"Total",Tamaño!$AP16)) -> Actividades financieras y de seguros | K92: =IF(C92="","",IF(C92="Total",SUM($K$78:$M91),Tamaño!$AQ16)) -> 1276 | N92: =IF(N91="","",IF(C92="Total","",K92/Tamaño!$AQ$24)) -> 0.0121094788 | O92: =IF(C92="","",IF(C92="Total",SUM($O$78:$Q91),Tamaño!$AR16)) -> 40506 | R92: =IF(N91="","",IF(C92="Total","",O92/Tamaño!$AR$24)) -> 0.02422430899 | S92: =IF(C92="","",IF(C92="Total",SUM($S$78:$U91),Tamaño!$AS16)) -> 957 | V92: =IF(OR(C91="",C91="Total"),"",IF(C92="Total","",S92/Tamaño!$AS$24)) -> 0.01432377417 | W92: =IF(C92="","",IF(C92="Total",SUM($W$78:$W91),Tamaño!$AT16)) -> 34293 | Z92: =IF(OR(C91="Total",C91=""),"",IF(C92="Total","",W92/Tamaño!$AT$24)) -> 0.02996162731
B93: 0 | C93: =IF(OR(C92="Total",C92=""),"",IF(Tamaño!$AQ17=0,"Total",Tamaño!$AP17)) -> Educación | K93: =IF(C93="","",IF(C93="Total",SUM($K$78:$M92),Tamaño!$AQ17)) -> 1056 | N93: =IF(N92="","",IF(C93="Total","",K93/Tamaño!$AQ$24)) -> 0.01002163763 | O93: =IF(C93="","",IF(C93="Total",SUM($O$78:$Q92),Tamaño!$AR17)) -> 37241 | R93: =IF(N92="","",IF(C93="Total","",O93/Tamaño!$AR$24)) -> 0.02227170027 | S93: =IF(C93="","",IF(C93="Total",SUM($S$78:$U92),Tamaño!$AS17)) -> 674 | V93: =IF(OR(C92="",C92="Total"),"",IF(C93="Total","",S93/Tamaño!$AS$24)) -> 0.01008800814 | W93: =IF(C93="","",IF(C93="Total",SUM($W$78:$W92),Tamaño!$AT17)) -> 30441 | Z93: =IF(OR(C92="Total",C92=""),"",IF(C93="Total","",W93/Tamaño!$AT$24)) -> 0.02659615364
B94: 0 | C94: =IF(OR(C93="Total",C93=""),"",IF(Tamaño!$AQ18=0,"Total",Tamaño!$AP18)) -> Act artísticas y de entretenimiento | K94: =IF(C94="","",IF(C94="Total",SUM($K$78:$M93),Tamaño!$AQ18)) -> 943 | N94: =IF(N93="","",IF(C94="Total","",K94/Tamaño!$AQ$24)) -> 0.008949246479 | O94: =IF(C94="","",IF(C94="Total",SUM($O$78:$Q93),Tamaño!$AR18)) -> 14181 | R94: =IF(N93="","",IF(C94="Total","",O94/Tamaño!$AR$24)) -> 0.008480840513 | S94: =IF(C94="","",IF(C94="Total",SUM($S$78:$U93),Tamaño!$AS18)) -> 672 | V94: =IF(OR(C93="",C93="Total"),"",IF(C94="Total","",S94/Tamaño!$AS$24)) -> 0.0100580734 | W94: =IF(C94="","",IF(C94="Total",SUM($W$78:$W93),Tamaño!$AT18)) -> 11532 | Z94: =IF(OR(C93="Total",C93=""),"",IF(C94="Total","",W94/Tamaño!$AT$24)) -> 0.01007545231
B95: 0 | C95: =IF(OR(C94="Total",C94=""),"",IF(Tamaño!$AQ19=0,"Total",Tamaño!$AP19)) -> Distribución de agua; gestión de desechos | K95: =IF(C95="","",IF(C95="Total",SUM($K$78:$M94),Tamaño!$AQ19)) -> 368 | N95: =IF(N94="","",IF(C95="Total","",K95/Tamaño!$AQ$24)) -> 0.00349238887 | O95: =IF(C95="","",IF(C95="Total",SUM($O$78:$Q94),Tamaño!$AR19)) -> 14830 | R95: =IF(N94="","",IF(C95="Total","",O95/Tamaño!$AR$24)) -> 0.008868970087 | S95: =IF(C95="","",IF(C95="Total",SUM($S$78:$U94),Tamaño!$AS19)) -> 132 | V95: =IF(OR(C94="",C94="Total"),"",IF(C95="Total","",S95/Tamaño!$AS$24)) -> 0.001975692989 | W95: =IF(C95="","",IF(C95="Total",SUM($W$78:$W94),Tamaño!$AT19)) -> 8004 | Z95: =IF(OR(C94="Total",C94=""),"",IF(C95="Total","",W95/Tamaño!$AT$24)) -> 0.006993055871
B96: 0 | C96: =IF(OR(C95="Total",C95=""),"",IF(Tamaño!$AQ20=0,"Total",Tamaño!$AP20)) -> Explotación de minas y canteras | K96: =IF(C96="","",IF(C96="Total",SUM($K$78:$M95),Tamaño!$AQ20)) -> 355 | N96: =IF(N95="","",IF(C96="Total","",K96/Tamaño!$AQ$24)) -> 0.003369016437 | O96: =IF(C96="","",IF(C96="Total",SUM($O$78:$Q95),Tamaño!$AR20)) -> 14151 | R96: =IF(N95="","",IF(C96="Total","",O96/Tamaño!$AR$24)) -> 0.008462899238 | S96: =IF(C96="","",IF(C96="Total",SUM($S$78:$U95),Tamaño!$AS20)) -> 111 | V96: =IF(OR(C95="",C95="Total"),"",IF(C96="Total","",S96/Tamaño!$AS$24)) -> 0.001661378196 | W96: =IF(C96="","",IF(C96="Total",SUM($W$78:$W95),Tamaño!$AT20)) -> 7666 | Z96: =IF(OR(C95="Total",C95=""),"",IF(C96="Total","",W96/Tamaño!$AT$24)) -> 0.006697746915
B97: 0 | C97: =IF(OR(C96="Total",C96=""),"",IF(Tamaño!$AQ21=0,"Total",Tamaño!$AP21)) -> Suministro de electricidad, gas y vapor | K97: =IF(C97="","",IF(C97="Total",SUM($K$78:$M96),Tamaño!$AQ21)) -> 101 | N97: =IF(N96="","",IF(C97="Total","",K97/Tamaño!$AQ$24)) -> 0.0009585089018 | O97: =IF(C97="","",IF(C97="Total",SUM($O$78:$Q96),Tamaño!$AR21)) -> 1132 | R97: =IF(N96="","",IF(C97="Total","",O97/Tamaño!$AR$24)) -> 0.0006769840957 | S97: =IF(C97="","",IF(C97="Total",SUM($S$78:$U96),Tamaño!$AS21)) -> 66 | V97: =IF(OR(C96="",C96="Total"),"",IF(C97="Total","",S97/Tamaño!$AS$24)) -> 0.0009878464946 | W97: =IF(C97="","",IF(C97="Total",SUM($W$78:$W96),Tamaño!$AT21)) -> 806 | Z97: =IF(OR(C96="Total",C96=""),"",IF(C97="Total","",W97/Tamaño!$AT$24)) -> 0.0007041982799
B98: 0 | C98: =IF(OR(C97="Total",C97=""),"",IF(Tamaño!$AQ22=0,"Total",Tamaño!$AP22)) -> Organizaciones y entidades extraterritoriales | K98: =IF(C98="","",IF(C98="Total",SUM($K$78:$M97),Tamaño!$AQ22)) -> 79 | N98: =IF(N97="","",IF(C98="Total","",K98/Tamaño!$AQ$24)) -> 0.0007497247846 | O98: =IF(C98="","",IF(C98="Total",SUM($O$78:$Q97),Tamaño!$AR22)) -> 5027 | R98: =IF(N97="","",IF(C98="Total","",O98/Tamaño!$AR$24)) -> 0.003006359584 | S98: =IF(C98="","",IF(C98="Total",SUM($S$78:$U97),Tamaño!$AS22)) -> 53 | V98: =IF(OR(C97="",C97="Total"),"",IF(C98="Total","",S98/Tamaño!$AS$24)) -> 0.0007932706699 | W98: =IF(C98="","",IF(C98="Total",SUM($W$78:$W97),Tamaño!$AT22)) -> 4404 | Z98: =IF(OR(C97="Total",C97=""),"",IF(C98="Total","",W98/Tamaño!$AT$24)) -> 0.00384775338
B99: 1 | C99: =IF(OR(C98="Total",C98=""),"",IF(Tamaño!$AQ23=0,"Total",Tamaño!$AP23)) -> Total | K99: =IF(C99="","",IF(C99="Total",SUM($K$78:$M98),Tamaño!$AQ23)) -> 105372 | N99: =IF(N98="","",IF(C99="Total","",K99/Tamaño!$AQ$24)) ->  | O99: =IF(C99="","",IF(C99="Total",SUM($O$78:$Q98),Tamaño!$AR23)) -> 1672122 | R99: =IF(N98="","",IF(C99="Total","",O99/Tamaño!$AR$24)) ->  | S99: =IF(C99="","",IF(C99="Total",SUM($S$78:$U98),Tamaño!$AS23)) -> 66812 | V99: =IF(OR(C98="",C98="Total"),"",IF(C99="Total","",S99/Tamaño!$AS$24)) ->  | W99: =IF(C99="","",IF(C99="Total",SUM($W$78:$W98),Tamaño!$AT23)) -> 1144564 | Z99: =IF(OR(C98="Total",C98=""),"",IF(C99="Total","",W99/Tamaño!$AT$24)) -> 
C100: =IF(OR(C99="",C99="Total"),"","Total") ->  | K100: =IF(C100="","",IF(C100="","",SUM(K78:M99))) ->  | O100: =IF(C100="","",SUM(O78:Q99)) ->  | S100: =IF(C100="","",IF(C100="Total",SUM($S$78:$U99),Tamaño!$AS24)) ->  | W100: =IF(C100="","",IF(C100="Total",SUM($W$78:$W99),Tamaño!$AT24)) ->  | Z100: =IF(OR(C99="Total",C99=""),"",IF(C100="Total","",W100/Tamaño!$AT$24)) -> 
C101: *Ubicación basada en la ubicación de los aportantes
L105: =J3 -> Informe Mensual de las cotizaciones
L107: =J5 -> Fecha de corte: 25 de Feb de 2022 | AB107: Pg. 3
L109: Departamento | Q109: =Q7 -> ANTIOQUIA
L110: Municipio | Q110: =Q8 -> MEDELLÍN
D112: Resumen por actividades económicas de los independientes
F114: Actividades económicas | N114: =PROPER(Q55) -> Antioquia | R114: % | T114: =PROPER(Q8) -> Medellín | X114: %
F116: =IF(Tamaño!$BT2="",Total,Tamaño!$BT2) -> Act. profecionales cientificas y tecnicas | N116: =Tamaño!BU2 -> 58956 | R116: =N116/Tamaño!$BU$25 -> 0.1841385255 | T116: =Tamaño!BV2 -> 39650 | X116: =T116/Tamaño!$BV$25 -> 0.2004114374
F117: =IF(F116="Total","",IF(Tamaño!$BU3=0,"Total",Tamaño!$BT3)) -> Actividades de servicios administrativos | N117: =IF(F117="","",IF(F117="Total",N116,Tamaño!$BU3)) -> 47129 | R117: =IF(F117="Total","",N117/Tamaño!$BU$25) -> 0.1471990055 | T117: =IF(F117="","",IF(F117="Total",SUM($T$116:$T116),Tamaño!$BV3)) -> 28149 | X117: =IF(F117="Total","",T117/Tamaño!$BV$25) -> 0.1422794842
F118: =IF(F117="Total","",IF(Tamaño!$BU4=0,"Total",Tamaño!$BT4)) -> Otras actividades de servicios | N118: =IF(F118="","",IF(F118="Total",SUM($N$116:$N117),Tamaño!$BU4)) -> 45696 | R118: =IF(R117="","",IF(F118="Total","",N118/Tamaño!$BU$25)) -> 0.1427232862 | T118: =IF(F118="","",IF(F118="Total",SUM($T$116:$T117),Tamaño!$BV4)) -> 30059 | X118: =IF(X117="","",IF(F118="Total","",T118/Tamaño!$BV$25)) -> 0.1519336039
F119: =IF(OR(F118="Total",F118=""),"",IF(Tamaño!$BU5=0,"Total",Tamaño!$BT5)) -> Comercio y reparacion de vehiculos | N119: =IF(F119="","",IF(F119="Total",SUM($N$116:$N118),Tamaño!$BU5)) -> 33322 | R119: =IF(R118="","",IF(F119="Total","",N119/Tamaño!$BU$25)) -> 0.1040753095 | T119: =IF(F119="","",IF(F119="Total",SUM($T$116:$T118),Tamaño!$BV5)) -> 19285 | X119: =IF(X118="","",IF(F119="Total","",T119/Tamaño!$BV$25)) -> 0.0974762817
F120: =IF(OR(F119="Total",F119=""),"",IF(Tamaño!$BU6=0,"Total",Tamaño!$BT6)) -> Act. de atención de la salud humana | N120: =IF(F120="","",IF(F120="Total",SUM($N$116:$N119),Tamaño!$BU6)) -> 18064 | R120: =IF(R119="","",IF(F120="Total","",N120/Tamaño!$BU$25)) -> 0.05641967442 | T120: =IF(F120="","",IF(F120="Total",SUM($T$116:$T119),Tamaño!$BV6)) -> 11981 | X120: =IF(X119="","",IF(F120="Total","",T120/Tamaño!$BV$25)) -> 0.06055811932
F121: =IF(OR(F120="Total",F120=""),"",IF(Tamaño!$BU7=0,"Total",Tamaño!$BT7)) -> Educación | N121: =IF(F121="","",IF(F121="Total",SUM($N$116:$N120),Tamaño!$BU7)) -> 16556 | R121: =IF(R120="","",IF(F121="Total","",N121/Tamaño!$BU$25)) -> 0.05170970603 | T121: =IF(F121="","",IF(F121="Total",SUM($T$116:$T120),Tamaño!$BV7)) -> 9599 | X121: =IF(X120="","",IF(F121="Total","",T121/Tamaño!$BV$25)) -> 0.04851826954
F122: =IF(OR(F121="Total",F121=""),"",IF(Tamaño!$BU8=0,"Total",Tamaño!$BT8)) -> Admin. pública y defensa; planes seg. social | N122: =IF(F122="","",IF(F122="Total",SUM($N$116:$N121),Tamaño!$BU8)) -> 15138 | R122: =IF(R121="","",IF(F122="Total","",N122/Tamaño!$BU$25)) -> 0.04728083655 | T122: =IF(F122="","",IF(F122="Total",SUM($T$116:$T121),Tamaño!$BV8)) -> 8177 | X122: =IF(X121="","",IF(F122="Total","",T122/Tamaño!$BV$25)) -> 0.04133075216
F123: =IF(OR(F122="Total",F122=""),"",IF(Tamaño!$BU9=0,"Total",Tamaño!$BT9)) -> Transporte y almacenamiento | N123: =IF(F123="","",IF(F123="Total",SUM($N$116:$N122),Tamaño!$BU9)) -> 14697 | R123: =IF(R122="","",IF(F123="Total","",N123/Tamaño!$BU$25)) -> 0.04590345189 | T123: =IF(F123="","",IF(F123="Total",SUM($T$116:$T122),Tamaño!$BV9)) -> 9107 | X123: =IF(X122="","",IF(F123="Total","",T123/Tamaño!$BV$25)) -> 0.04603144918
F124: =IF(OR(F123="Total",F123=""),"",IF(Tamaño!$BU10=0,"Total",Tamaño!$BT10)) -> Industrias manufactureras | N124: =IF(F124="","",IF(F124="Total",SUM($N$116:$N123),Tamaño!$BU10)) -> 12721 | R124: =IF(R123="","",IF(F124="Total","",N124/Tamaño!$BU$25)) -> 0.03973176917 | T124: =IF(F124="","",IF(F124="Total",SUM($T$116:$T123),Tamaño!$BV10)) -> 7860 | X124: =IF(X123="","",IF(F124="Total","",T124/Tamaño!$BV$25)) -> 0.03972847157
F125: =IF(OR(F124="Total",F124=""),"",IF(Tamaño!$BU11=0,"Total",Tamaño!$BT11)) -> Agricultura, ganadería, caza | N125: =IF(F125="","",IF(F125="Total",SUM($N$116:$N124),Tamaño!$BU11)) -> 10719 | R125: =IF(R124="","",IF(F125="Total","",N125/Tamaño!$BU$25)) -> 0.0334788801 | T125: =IF(F125="","",IF(F125="Total",SUM($T$116:$T124),Tamaño!$BV11)) -> 3631 | X125: =IF(X124="","",IF(F125="Total","",T125/Tamaño!$BV$25)) -> 0.01835293642
F126: =IF(OR(F125="Total",F125=""),"",IF(Tamaño!$BU12=0,"Total",Tamaño!$BT12)) -> Construcción | N126: =IF(F126="","",IF(F126="Total",SUM($N$116:$N125),Tamaño!$BU12)) -> 8167 | R126: =IF(R125="","",IF(F126="Total","",N126/Tamaño!$BU$25)) -> 0.02550816436 | T126: =IF(F126="","",IF(F126="Total",SUM($T$116:$T125),Tamaño!$BV12)) -> 4962 | X126: =IF(X125="","",IF(F126="Total","",T126/Tamaño!$BV$25)) -> 0.02508049312
F127: =IF(OR(F126="Total",F126=""),"",IF(Tamaño!$BU13=0,"Total",Tamaño!$BT13)) -> Actividades inmobiliarias | N127: =IF(F127="","",IF(F127="Total",SUM($N$116:$N126),Tamaño!$BU13)) -> 8026 | R127: =IF(R126="","",IF(F127="Total","",N127/Tamaño!$BU$25)) -> 0.02506777607 | T127: =IF(F127="","",IF(F127="Total",SUM($T$116:$T126),Tamaño!$BV13)) -> 5691 | X127: =IF(X126="","",IF(F127="Total","",T127/Tamaño!$BV$25)) -> 0.02876523304
F128: =IF(OR(F127="Total",F127=""),"",IF(Tamaño!$BU14=0,"Total",Tamaño!$BT14)) -> Act artísticas y de entretenimiento | N128: =IF(F128="","",IF(F128="Total",SUM($N$116:$N127),Tamaño!$BU14)) -> 7491 | R128: =IF(R127="","",IF(F128="Total","",N128/Tamaño!$BU$25)) -> 0.02339679922 | T128: =IF(F128="","",IF(F128="Total",SUM($T$116:$T127),Tamaño!$BV14)) -> 4585 | X128: =IF(X127="","",IF(F128="Total","",T128/Tamaño!$BV$25)) -> 0.02317494175
F129: =IF(OR(F128="Total",F128=""),"",IF(Tamaño!$BU15=0,"Total",Tamaño!$BT15)) -> Información y comunicaciones | N129: =IF(F129="","",IF(F129="Total",SUM($N$116:$N128),Tamaño!$BU15)) -> 7031 | R129: =IF(R128="","",IF(F129="Total","",N129/Tamaño!$BU$25)) -> 0.02196007146 | T129: =IF(F129="","",IF(F129="Total",SUM($T$116:$T128),Tamaño!$BV15)) -> 4535 | X129: =IF(X128="","",IF(F129="Total","",T129/Tamaño!$BV$25)) -> 0.0229222161
F130: =IF(OR(F129="Total",F129=""),"",IF(Tamaño!$BU16=0,"Total",Tamaño!$BT16)) -> Alojamiento y servicios de comida | N130: =IF(F130="","",IF(F130="Total",SUM($N$116:$N129),Tamaño!$BU16)) -> 6845 | R130: =IF(R129="","",IF(F130="Total","",N130/Tamaño!$BU$25)) -> 0.02137913372 | T130: =IF(F130="","",IF(F130="Total",SUM($T$116:$T129),Tamaño!$BV16)) -> 3875 | X130: =IF(X129="","",IF(F130="Total","",T130/Tamaño!$BV$25)) -> 0.01958623757
F131: =IF(OR(F130="Total",F130=""),"",IF(Tamaño!$BU17=0,"Total",Tamaño!$BT17)) -> Otras | N131: =IF(F131="","",IF(F131="Total",SUM($N$116:$N130),Tamaño!$BU17)) -> 3521 | R131: =IF(R130="","",IF(F131="Total","",N131/Tamaño!$BU$25)) -> 0.010997214 | T131: =IF(F131="","",IF(F131="Total",SUM($T$116:$T130),Tamaño!$BV17)) -> 2559 | X131: =IF(X130="","",IF(F131="Total","",T131/Tamaño!$BV$25)) -> 0.01293449857
F132: =IF(OR(F131="Total",F131=""),"",IF(Tamaño!$BU18=0,"Total",Tamaño!$BT18)) -> Actividades financieras y de seguros | N132: =IF(F132="","",IF(F132="Total",SUM($N$116:$N131),Tamaño!$BU18)) -> 2900 | R132: =IF(R131="","",IF(F132="Total","",N132/Tamaño!$BU$25)) -> 0.009057631523 | T132: =IF(F132="","",IF(F132="Total",SUM($T$116:$T131),Tamaño!$BV18)) -> 2196 | X132: =IF(X131="","",IF(F132="Total","",T132/Tamaño!$BV$25)) -> 0.01109971038
F133: =IF(OR(F132="Total",F132=""),"",IF(Tamaño!$BU19=0,"Total",Tamaño!$BT19)) -> Actividades de los hogares individuales | N133: =IF(F133="","",IF(F133="Total",SUM($N$116:$N132),Tamaño!$BU19)) -> 1352 | R133: =IF(R132="","",IF(F133="Total","",N133/Tamaño!$BU$25)) -> 0.004222730282 | T133: =IF(F133="","",IF(F133="Total",SUM($T$116:$T132),Tamaño!$BV19)) -> 948 | X133: =IF(X132="","",IF(F133="Total","",T133/Tamaño!$BV$25)) -> 0.00479167825
F134: =IF(OR(F133="Total",F133=""),"",IF(Tamaño!$BU20=0,"Total",Tamaño!$BT20)) -> Explotación de minas y canteras | N134: =IF(F134="","",IF(F134="Total",SUM($N$116:$N133),Tamaño!$BU20)) -> 1253 | R134: =IF(R133="","",IF(F134="Total","",N134/Tamaño!$BU$25)) -> 0.003913521482 | T134: =IF(F134="","",IF(F134="Total",SUM($T$116:$T133),Tamaño!$BV20)) -> 710 | X134: =IF(X133="","",IF(F134="Total","",T134/Tamaño!$BV$25)) -> 0.003588704175
F135: =IF(OR(F134="Total",F134=""),"",IF(Tamaño!$BU21=0,"Total",Tamaño!$BT21)) -> Distribución de agua; gestión de desechos | N135: =IF(F135="","",IF(F135="Total",SUM($N$116:$N134),Tamaño!$BU21)) -> 458 | R135: =IF(R134="","",IF(F135="Total","",N135/Tamaño!$BU$25)) -> 0.001430481116 | T135: =IF(F135="","",IF(F135="Total",SUM($T$116:$T134),Tamaño!$BV21)) -> 205 | X135: =IF(X134="","",IF(F135="Total","",T135/Tamaño!$BV$25)) -> 0.001036175149
F136: =IF(OR(F135="Total",F135=""),"",IF(Tamaño!$BU22=0,"Total",Tamaño!$BT22)) -> Suministro de electricidad, gas y vapor | N136: =IF(F136="","",IF(F136="Total",SUM($N$116:$N135),Tamaño!$BU22)) -> 89 | R136: =IF(R135="","",IF(F136="Total","",N136/Tamaño!$BU$25)) -> 0.0002779755881 | T136: =IF(F136="","",IF(F136="Total",SUM($T$116:$T135),Tamaño!$BV22)) -> 55 | X136: =IF(X135="","",IF(F136="Total","",T136/Tamaño!$BV$25)) -> 0.0002779982107
F137: =IF(OR(F136="Total",F136=""),"",IF(Tamaño!$BU23=0,"Total",Tamaño!$BT23)) -> Organizaciones y entidades extraterritoriales | N137: =IF(F137="","",IF(F137="Total",SUM($N$116:$N136),Tamaño!$BU23)) -> 41 | R137: =IF(R136="","",IF(F137="Total","",N137/Tamaño!$BU$25)) -> 0.0001280561698 | T137: =IF(F137="","",IF(F137="Total",SUM($T$116:$T136),Tamaño!$BV23)) -> 24 | X137: =IF(X136="","",IF(F137="Total","",T137/Tamaño!$BV$25)) -> 0.0001213083101
F138: =IF(OR(F137="Total",F137=""),"",IF(Tamaño!$BU24=0,"Total",Tamaño!$BT24)) -> Total | N138: =IF(F138="","",IF(F138="Total",SUM($N$116:$N137),Tamaño!$BU24)) -> 320172 | R138: =IF(R137="","",IF(F138="Total","",N138/Tamaño!$BU$25)) ->  | T138: =IF(F138="","",IF(F138="Total",SUM($T$116:$T137),Tamaño!$BV24)) -> 197843 | X138: =IF(X137="","",IF(F138="Total","",T138/Tamaño!$BV$25)) -> 
C139: *Ubicación basada en la ubicación de los cotizantes
D140: ="Resumen por edad y sexo para "&PROPER(Q7) -> Resumen por edad y sexo para Antioquia
F142: =PROPER(Q7) -> Antioquia | X142: Piramided dependientes privados
B143: Edad | F143: Dependiente Privados | O143: Independientes
F144: Hombres | I144: Mujeres | L144: No Identificado | O144: Hombres | R144: Mujeres | U144: No Identificado
B145: 15-20 | F145: =SUMIFS('Edad y sexo'!$F$2:$F$5000,'Edad y sexo'!$B$2:$B$5000,Visor!$Q$7,'Edad y sexo'!$C$2:$C$5000,"M",'Edad y sexo'!$D$2:$D$5000,Visor!$B145,'Edad y sexo'!$E$2:$E$5000,"Dep_sec_priv") -> 16509 | I145: =SUMIFS('Edad y sexo'!$F$2:$F$5000,'Edad y sexo'!$B$2:$B$5000,Visor!$Q$7,'Edad y sexo'!$C$2:$C$5000,"F",'Edad y sexo'!$D$2:$D$5000,Visor!$B145,'Edad y sexo'!$E$2:$E$5000,"Dep_sec_priv") -> 10604 | L145: =SUMIFS('Edad y sexo'!$F$2:$F$5000,'Edad y sexo'!$B$2:$B$5000,Visor!$Q$7,'Edad y sexo'!$C$2:$C$5000,"NI",'Edad y sexo'!$D$2:$D$5000,Visor!$B145,'Edad y sexo'!$E$2:$E$5000,"Dep_sec_priv") -> 0 | O145: =SUMIFS('Edad y sexo'!$F$2:$F$5000,'Edad y sexo'!$B$2:$B$5000,Visor!$Q$7,'Edad y sexo'!$C$2:$C$5000,"M",'Edad y sexo'!$D$2:$D$5000,Visor!$B145,'Edad y sexo'!$E$2:$E$5000,"Independiente") -> 533 | R145: =SUMIFS('Edad y sexo'!$F$2:$F$5000,'Edad y sexo'!$B$2:$B$5000,Visor!$Q$7,'Edad y sexo'!$C$2:$C$5000,"F",'Edad y sexo'!$D$2:$D$5000,Visor!$B145,'Edad y sexo'!$E$2:$E$5000,"Independiente") -> 457 | U145: =SUMIFS('Edad y sexo'!$F$2:$F$5000,'Edad y sexo'!$B$2:$B$5000,Visor!$Q$7,'Edad y sexo'!$C$2:$C$5000,"NI",'Edad y sexo'!$D$2:$D$5000,Visor!$B145,'Edad y sexo'!$E$2:$E$5000,"Independiente") -> 0
B146: 20-25 | F146: =SUMIFS('Edad y sexo'!$F$2:$F$5000,'Edad y sexo'!$B$2:$B$5000,Visor!$Q$7,'Edad y sexo'!$C$2:$C$5000,"M",'Edad y sexo'!$D$2:$D$5000,Visor!$B146,'Edad y sexo'!$E$2:$E$5000,"Dep_sec_priv") -> 116707 | I146: =SUMIFS('Edad y sexo'!$F$2:$F$5000,'Edad y sexo'!$B$2:$B$5000,Visor!$Q$7,'Edad y sexo'!$C$2:$C$5000,"F",'Edad y sexo'!$D$2:$D$5000,Visor!$B146,'Edad y sexo'!$E$2:$E$5000,"Dep_sec_priv") -> 86227 | L146: =SUMIFS('Edad y sexo'!$F$2:$F$5000,'Edad y sexo'!$B$2:$B$5000,Visor!$Q$7,'Edad y sexo'!$C$2:$C$5000,"NI",'Edad y sexo'!$D$2:$D$5000,Visor!$B146,'Edad y sexo'!$E$2:$E$5000,"Dep_sec_priv") -> 0 | O146: =SUMIFS('Edad y sexo'!$F$2:$F$5000,'Edad y sexo'!$B$2:$B$5000,Visor!$Q$7,'Edad y sexo'!$C$2:$C$5000,"M",'Edad y sexo'!$D$2:$D$5000,Visor!$B146,'Edad y sexo'!$E$2:$E$5000,"Independiente") -> 5793 | R146: =SUMIFS('Edad y sexo'!$F$2:$F$5000,'Edad y sexo'!$B$2:$B$5000,Visor!$Q$7,'Edad y sexo'!$C$2:$C$5000,"F",'Edad y sexo'!$D$2:$D$5000,Visor!$B146,'Edad y sexo'!$E$2:$E$5000,"Independiente") -> 6375 | U146: =SUMIFS('Edad y sexo'!$F$2:$F$5000,'Edad y sexo'!$B$2:$B$5000,Visor!$Q$7,'Edad y sexo'!$C$2:$C$5000,"NI",'Edad y sexo'!$D$2:$D$5000,Visor!$B146,'Edad y sexo'!$E$2:$E$5000,"Independiente") -> 0
B147: 25-30 | F147: =SUMIFS('Edad y sexo'!$F$2:$F$5000,'Edad y sexo'!$B$2:$B$5000,Visor!$Q$7,'Edad y sexo'!$C$2:$C$5000,"M",'Edad y sexo'!$D$2:$D$5000,Visor!$B147,'Edad y sexo'!$E$2:$E$5000,"Dep_sec_priv") -> 158655 | I147: =SUMIFS('Edad y sexo'!$F$2:$F$5000,'Edad y sexo'!$B$2:$B$5000,Visor!$Q$7,'Edad y sexo'!$C$2:$C$5000,"F",'Edad y sexo'!$D$2:$D$5000,Visor!$B147,'Edad y sexo'!$E$2:$E$5000,"Dep_sec_priv") -> 125437 | L147: =SUMIFS('Edad y sexo'!$F$2:$F$5000,'Edad y sexo'!$B$2:$B$5000,Visor!$Q$7,'Edad y sexo'!$C$2:$C$5000,"NI",'Edad y sexo'!$D$2:$D$5000,Visor!$B147,'Edad y sexo'!$E$2:$E$5000,"Dep_sec_priv") -> 0 | O147: =SUMIFS('Edad y sexo'!$F$2:$F$5000,'Edad y sexo'!$B$2:$B$5000,Visor!$Q$7,'Edad y sexo'!$C$2:$C$5000,"M",'Edad y sexo'!$D$2:$D$5000,Visor!$B147,'Edad y sexo'!$E$2:$E$5000,"Independiente") -> 14422 | R147: =SUMIFS('Edad y sexo'!$F$2:$F$5000,'Edad y sexo'!$B$2:$B$5000,Visor!$Q$7,'Edad y sexo'!$C$2:$C$5000,"F",'Edad y sexo'!$D$2:$D$5000,Visor!$B147,'Edad y sexo'!$E$2:$E$5000,"Independiente") -> 15501 | U147: =SUMIFS('Edad y sexo'!$F$2:$F$5000,'Edad y sexo'!$B$2:$B$5000,Visor!$Q$7,'Edad y sexo'!$C$2:$C$5000,"NI",'Edad y sexo'!$D$2:$D$5000,Visor!$B147,'Edad y sexo'!$E$2:$E$5000,"Independiente") -> 0
B148: 30-35 | F148: =SUMIFS('Edad y sexo'!$F$2:$F$5000,'Edad y sexo'!$B$2:$B$5000,Visor!$Q$7,'Edad y sexo'!$C$2:$C$5000,"M",'Edad y sexo'!$D$2:$D$5000,Visor!$B148,'Edad y sexo'!$E$2:$E$5000,"Dep_sec_priv") -> 147734 | I148: =SUMIFS('Edad y sexo'!$F$2:$F$5000,'Edad y sexo'!$B$2:$B$5000,Visor!$Q$7,'Edad y sexo'!$C$2:$C$5000,"F",'Edad y sexo'!$D$2:$D$5000,Visor!$B148,'Edad y sexo'!$E$2:$E$5000,"Dep_sec_priv") -> 115376 | L148: =SUMIFS('Edad y sexo'!$F$2:$F$5000,'Edad y sexo'!$B$2:$B$5000,Visor!$Q$7,'Edad y sexo'!$C$2:$C$5000,"NI",'Edad y sexo'!$D$2:$D$5000,Visor!$B148,'Edad y sexo'!$E$2:$E$5000,"Dep_sec_priv") -> 0 | O148: =SUMIFS('Edad y sexo'!$F$2:$F$5000,'Edad y sexo'!$B$2:$B$5000,Visor!$Q$7,'Edad y sexo'!$C$2:$C$5000,"M",'Edad y sexo'!$D$2:$D$5000,Visor!$B148,'Edad y sexo'!$E$2:$E$5000,"Independiente") -> 17453 | R148: =SUMIFS('Edad y sexo'!$F$2:$F$5000,'Edad y sexo'!$B$2:$B$5000,Visor!$Q$7,'Edad y sexo'!$C$2:$C$5000,"F",'Edad y sexo'!$D$2:$D$5000,Visor!$B148,'Edad y sexo'!$E$2:$E$5000,"Independiente") -> 16824 | U148: =SUMIFS('Edad y sexo'!$F$2:$F$5000,'Edad y sexo'!$B$2:$B$5000,Visor!$Q$7,'Edad y sexo'!$C$2:$C$5000,"NI",'Edad y sexo'!$D$2:$D$5000,Visor!$B148,'Edad y sexo'!$E$2:$E$5000,"Independiente") -> 0
B149: 35-40 | F149: =SUMIFS('Edad y sexo'!$F$2:$F$5000,'Edad y sexo'!$B$2:$B$5000,Visor!$Q$7,'Edad y sexo'!$C$2:$C$5000,"M",'Edad y sexo'!$D$2:$D$5000,Visor!$B149,'Edad y sexo'!$E$2:$E$5000,"Dep_sec_priv") -> 124485 | I149: =SUMIFS('Edad y sexo'!$F$2:$F$5000,'Edad y sexo'!$B$2:$B$5000,Visor!$Q$7,'Edad y sexo'!$C$2:$C$5000,"F",'Edad y sexo'!$D$2:$D$5000,Visor!$B149,'Edad y sexo'!$E$2:$E$5000,"Dep_sec_priv") -> 97381 | L149: =SUMIFS('Edad y sexo'!$F$2:$F$5000,'Edad y sexo'!$B$2:$B$5000,Visor!$Q$7,'Edad y sexo'!$C$2:$C$5000,"NI",'Edad y sexo'!$D$2:$D$5000,Visor!$B149,'Edad y sexo'!$E$2:$E$5000,"Dep_sec_priv") -> 0 | O149: =SUMIFS('Edad y sexo'!$F$2:$F$5000,'Edad y sexo'!$B$2:$B$5000,Visor!$Q$7,'Edad y sexo'!$C$2:$C$5000,"M",'Edad y sexo'!$D$2:$D$5000,Visor!$B149,'Edad y sexo'!$E$2:$E$5000,"Independiente") -> 18525 | R149: =SUMIFS('Edad y sexo'!$F$2:$F$5000,'Edad y sexo'!$B$2:$B$5000,Visor!$Q$7,'Edad y sexo'!$C$2:$C$5000,"F",'Edad y sexo'!$D$2:$D$5000,Visor!$B149,'Edad y sexo'!$E$2:$E$5000,"Independiente") -> 16722 | U149: =SUMIFS('Edad y sexo'!$F$2:$F$5000,'Edad y sexo'!$B$2:$B$5000,Visor!$Q$7,'Edad y sexo'!$C$2:$C$5000,"NI",'Edad y sexo'!$D$2:$D$5000,Visor!$B149,'Edad y sexo'!$E$2:$E$5000,"Independiente") -> 0
B150: 40-45 | F150: =SUMIFS('Edad y sexo'!$F$2:$F$5000,'Edad y sexo'!$B$2:$B$5000,Visor!$Q$7,'Edad y sexo'!$C$2:$C$5000,"M",'Edad y sexo'!$D$2:$D$5000,Visor!$B150,'Edad y sexo'!$E$2:$E$5000,"Dep_sec_priv") -> 105813 | I150: =SUMIFS('Edad y sexo'!$F$2:$F$5000,'Edad y sexo'!$B$2:$B$5000,Visor!$Q$7,'Edad y sexo'!$C$2:$C$5000,"F",'Edad y sexo'!$D$2:$D$5000,Visor!$B150,'Edad y sexo'!$E$2:$E$5000,"Dep_sec_priv") -> 80146 | L150: =SUMIFS('Edad y sexo'!$F$2:$F$5000,'Edad y sexo'!$B$2:$B$5000,Visor!$Q$7,'Edad y sexo'!$C$2:$C$5000,"NI",'Edad y sexo'!$D$2:$D$5000,Visor!$B150,'Edad y sexo'!$E$2:$E$5000,"Dep_sec_priv") -> 0 | O150: =SUMIFS('Edad y sexo'!$F$2:$F$5000,'Edad y sexo'!$B$2:$B$5000,Visor!$Q$7,'Edad y sexo'!$C$2:$C$5000,"M",'Edad y sexo'!$D$2:$D$5000,Visor!$B150,'Edad y sexo'!$E$2:$E$5000,"Independiente") -> 18912 | R150: =SUMIFS('Edad y sexo'!$F$2:$F$5000,'Edad y sexo'!$B$2:$B$5000,Visor!$Q$7,'Edad y sexo'!$C$2:$C$5000,"F",'Edad y sexo'!$D$2:$D$5000,Visor!$B150,'Edad y sexo'!$E$2:$E$5000,"Independiente") -> 15967 | U150: =SUMIFS('Edad y sexo'!$F$2:$F$5000,'Edad y sexo'!$B$2:$B$5000,Visor!$Q$7,'Edad y sexo'!$C$2:$C$5000,"NI",'Edad y sexo'!$D$2:$D$5000,Visor!$B150,'Edad y sexo'!$E$2:$E$5000,"Independiente") -> 0
B151: 45-50 | F151: =SUMIFS('Edad y sexo'!$F$2:$F$5000,'Edad y sexo'!$B$2:$B$5000,Visor!$Q$7,'Edad y sexo'!$C$2:$C$5000,"M",'Edad y sexo'!$D$2:$D$5000,Visor!$B151,'Edad y sexo'!$E$2:$E$5000,"Dep_sec_priv") -> 80008 | I151: =SUMIFS('Edad y sexo'!$F$2:$F$5000,'Edad y sexo'!$B$2:$B$5000,Visor!$Q$7,'Edad y sexo'!$C$2:$C$5000,"F",'Edad y sexo'!$D$2:$D$5000,Visor!$B151,'Edad y sexo'!$E$2:$E$5000,"Dep_sec_priv") -> 56360 | L151: =SUMIFS('Edad y sexo'!$F$2:$F$5000,'Edad y sexo'!$B$2:$B$5000,Visor!$Q$7,'Edad y sexo'!$C$2:$C$5000,"NI",'Edad y sexo'!$D$2:$D$5000,Visor!$B151,'Edad y sexo'!$E$2:$E$5000,"Dep_sec_priv") -> 0 | O151: =SUMIFS('Edad y sexo'!$F$2:$F$5000,'Edad y sexo'!$B$2:$B$5000,Visor!$Q$7,'Edad y sexo'!$C$2:$C$5000,"M",'Edad y sexo'!$D$2:$D$5000,Visor!$B151,'Edad y sexo'!$E$2:$E$5000,"Independiente") -> 16293 | R151: =SUMIFS('Edad y sexo'!$F$2:$F$5000,'Edad y sexo'!$B$2:$B$5000,Visor!$Q$7,'Edad y sexo'!$C$2:$C$5000,"F",'Edad y sexo'!$D$2:$D$5000,Visor!$B151,'Edad y sexo'!$E$2:$E$5000,"Independiente") -> 13002 | U151: =SUMIFS('Edad y sexo'!$F$2:$F$5000,'Edad y sexo'!$B$2:$B$5000,Visor!$Q$7,'Edad y sexo'!$C$2:$C$5000,"NI",'Edad y sexo'!$D$2:$D$5000,Visor!$B151,'Edad y sexo'!$E$2:$E$5000,"Independiente") -> 0
B152: 50-55 | F152: =SUMIFS('Edad y sexo'!$F$2:$F$5000,'Edad y sexo'!$B$2:$B$5000,Visor!$Q$7,'Edad y sexo'!$C$2:$C$5000,"M",'Edad y sexo'!$D$2:$D$5000,Visor!$B152,'Edad y sexo'!$E$2:$E$5000,"Dep_sec_priv") -> 73927 | I152: =SUMIFS('Edad y sexo'!$F$2:$F$5000,'Edad y sexo'!$B$2:$B$5000,Visor!$Q$7,'Edad y sexo'!$C$2:$C$5000,"F",'Edad y sexo'!$D$2:$D$5000,Visor!$B152,'Edad y sexo'!$E$2:$E$5000,"Dep_sec_priv") -> 45789 | L152: =SUMIFS('Edad y sexo'!$F$2:$F$5000,'Edad y sexo'!$B$2:$B$5000,Visor!$Q$7,'Edad y sexo'!$C$2:$C$5000,"NI",'Edad y sexo'!$D$2:$D$5000,Visor!$B152,'Edad y sexo'!$E$2:$E$5000,"Dep_sec_priv") -> 0 | O152: =SUMIFS('Edad y sexo'!$F$2:$F$5000,'Edad y sexo'!$B$2:$B$5000,Visor!$Q$7,'Edad y sexo'!$C$2:$C$5000,"M",'Edad y sexo'!$D$2:$D$5000,Visor!$B152,'Edad y sexo'!$E$2:$E$5000,"Independiente") -> 17867 | R152: =SUMIFS('Edad y sexo'!$F$2:$F$5000,'Edad y sexo'!$B$2:$B$5000,Visor!$Q$7,'Edad y sexo'!$C$2:$C$5000,"F",'Edad y sexo'!$D$2:$D$5000,Visor!$B152,'Edad y sexo'!$E$2:$E$5000,"Independiente") -> 14655 | U152: =SUMIFS('Edad y sexo'!$F$2:$F$5000,'Edad y sexo'!$B$2:$B$5000,Visor!$Q$7,'Edad y sexo'!$C$2:$C$5000,"NI",'Edad y sexo'!$D$2:$D$5000,Visor!$B152,'Edad y sexo'!$E$2:$E$5000,"Independiente") -> 0
B153: 55-60 | F153: =SUMIFS('Edad y sexo'!$F$2:$F$5000,'Edad y sexo'!$B$2:$B$5000,Visor!$Q$7,'Edad y sexo'!$C$2:$C$5000,"M",'Edad y sexo'!$D$2:$D$5000,Visor!$B153,'Edad y sexo'!$E$2:$E$5000,"Dep_sec_priv") -> 62171 | I153: =SUMIFS('Edad y sexo'!$F$2:$F$5000,'Edad y sexo'!$B$2:$B$5000,Visor!$Q$7,'Edad y sexo'!$C$2:$C$5000,"F",'Edad y sexo'!$D$2:$D$5000,Visor!$B153,'Edad y sexo'!$E$2:$E$5000,"Dep_sec_priv") -> 28228 | L153: =SUMIFS('Edad y sexo'!$F$2:$F$5000,'Edad y sexo'!$B$2:$B$5000,Visor!$Q$7,'Edad y sexo'!$C$2:$C$5000,"NI",'Edad y sexo'!$D$2:$D$5000,Visor!$B153,'Edad y sexo'!$E$2:$E$5000,"Dep_sec_priv") -> 0 | O153: =SUMIFS('Edad y sexo'!$F$2:$F$5000,'Edad y sexo'!$B$2:$B$5000,Visor!$Q$7,'Edad y sexo'!$C$2:$C$5000,"M",'Edad y sexo'!$D$2:$D$5000,Visor!$B153,'Edad y sexo'!$E$2:$E$5000,"Independiente") -> 19780 | R153: =SUMIFS('Edad y sexo'!$F$2:$F$5000,'Edad y sexo'!$B$2:$B$5000,Visor!$Q$7,'Edad y sexo'!$C$2:$C$5000,"F",'Edad y sexo'!$D$2:$D$5000,Visor!$B153,'Edad y sexo'!$E$2:$E$5000,"Independiente") -> 15522 | U153: =SUMIFS('Edad y sexo'!$F$2:$F$5000,'Edad y sexo'!$B$2:$B$5000,Visor!$Q$7,'Edad y sexo'!$C$2:$C$5000,"NI",'Edad y sexo'!$D$2:$D$5000,Visor!$B153,'Edad y sexo'!$E$2:$E$5000,"Independiente") -> 0 | X153: Piramided independientes
B154: 60-65 | F154: =SUMIFS('Edad y sexo'!$F$2:$F$5000,'Edad y sexo'!$B$2:$B$5000,Visor!$Q$7,'Edad y sexo'!$C$2:$C$5000,"M",'Edad y sexo'!$D$2:$D$5000,Visor!$B154,'Edad y sexo'!$E$2:$E$5000,"Dep_sec_priv") -> 30715 | I154: =SUMIFS('Edad y sexo'!$F$2:$F$5000,'Edad y sexo'!$B$2:$B$5000,Visor!$Q$7,'Edad y sexo'!$C$2:$C$5000,"F",'Edad y sexo'!$D$2:$D$5000,Visor!$B154,'Edad y sexo'!$E$2:$E$5000,"Dep_sec_priv") -> 10249 | L154: =SUMIFS('Edad y sexo'!$F$2:$F$5000,'Edad y sexo'!$B$2:$B$5000,Visor!$Q$7,'Edad y sexo'!$C$2:$C$5000,"NI",'Edad y sexo'!$D$2:$D$5000,Visor!$B154,'Edad y sexo'!$E$2:$E$5000,"Dep_sec_priv") -> 0 | O154: =SUMIFS('Edad y sexo'!$F$2:$F$5000,'Edad y sexo'!$B$2:$B$5000,Visor!$Q$7,'Edad y sexo'!$C$2:$C$5000,"M",'Edad y sexo'!$D$2:$D$5000,Visor!$B154,'Edad y sexo'!$E$2:$E$5000,"Independiente") -> 14992 | R154: =SUMIFS('Edad y sexo'!$F$2:$F$5000,'Edad y sexo'!$B$2:$B$5000,Visor!$Q$7,'Edad y sexo'!$C$2:$C$5000,"F",'Edad y sexo'!$D$2:$D$5000,Visor!$B154,'Edad y sexo'!$E$2:$E$5000,"Independiente") -> 11605 | U154: =SUMIFS('Edad y sexo'!$F$2:$F$5000,'Edad y sexo'!$B$2:$B$5000,Visor!$Q$7,'Edad y sexo'!$C$2:$C$5000,"NI",'Edad y sexo'!$D$2:$D$5000,Visor!$B154,'Edad y sexo'!$E$2:$E$5000,"Independiente") -> 0
B155: 65-70 | F155: =SUMIFS('Edad y sexo'!$F$2:$F$5000,'Edad y sexo'!$B$2:$B$5000,Visor!$Q$7,'Edad y sexo'!$C$2:$C$5000,"M",'Edad y sexo'!$D$2:$D$5000,Visor!$B155,'Edad y sexo'!$E$2:$E$5000,"Dep_sec_priv") -> 8882 | I155: =SUMIFS('Edad y sexo'!$F$2:$F$5000,'Edad y sexo'!$B$2:$B$5000,Visor!$Q$7,'Edad y sexo'!$C$2:$C$5000,"F",'Edad y sexo'!$D$2:$D$5000,Visor!$B155,'Edad y sexo'!$E$2:$E$5000,"Dep_sec_priv") -> 3888 | L155: =SUMIFS('Edad y sexo'!$F$2:$F$5000,'Edad y sexo'!$B$2:$B$5000,Visor!$Q$7,'Edad y sexo'!$C$2:$C$5000,"NI",'Edad y sexo'!$D$2:$D$5000,Visor!$B155,'Edad y sexo'!$E$2:$E$5000,"Dep_sec_priv") -> 0 | O155: =SUMIFS('Edad y sexo'!$F$2:$F$5000,'Edad y sexo'!$B$2:$B$5000,Visor!$Q$7,'Edad y sexo'!$C$2:$C$5000,"M",'Edad y sexo'!$D$2:$D$5000,Visor!$B155,'Edad y sexo'!$E$2:$E$5000,"Independiente") -> 9559 | R155: =SUMIFS('Edad y sexo'!$F$2:$F$5000,'Edad y sexo'!$B$2:$B$5000,Visor!$Q$7,'Edad y sexo'!$C$2:$C$5000,"F",'Edad y sexo'!$D$2:$D$5000,Visor!$B155,'Edad y sexo'!$E$2:$E$5000,"Independiente") -> 9028 | U155: =SUMIFS('Edad y sexo'!$F$2:$F$5000,'Edad y sexo'!$B$2:$B$5000,Visor!$Q$7,'Edad y sexo'!$C$2:$C$5000,"NI",'Edad y sexo'!$D$2:$D$5000,Visor!$B155,'Edad y sexo'!$E$2:$E$5000,"Independiente") -> 0
B156: 70-75 | F156: =SUMIFS('Edad y sexo'!$F$2:$F$5000,'Edad y sexo'!$B$2:$B$5000,Visor!$Q$7,'Edad y sexo'!$C$2:$C$5000,"M",'Edad y sexo'!$D$2:$D$5000,Visor!$B156,'Edad y sexo'!$E$2:$E$5000,"Dep_sec_priv") -> 2715 | I156: =SUMIFS('Edad y sexo'!$F$2:$F$5000,'Edad y sexo'!$B$2:$B$5000,Visor!$Q$7,'Edad y sexo'!$C$2:$C$5000,"F",'Edad y sexo'!$D$2:$D$5000,Visor!$B156,'Edad y sexo'!$E$2:$E$5000,"Dep_sec_priv") -> 1446 | L156: =SUMIFS('Edad y sexo'!$F$2:$F$5000,'Edad y sexo'!$B$2:$B$5000,Visor!$Q$7,'Edad y sexo'!$C$2:$C$5000,"NI",'Edad y sexo'!$D$2:$D$5000,Visor!$B156,'Edad y sexo'!$E$2:$E$5000,"Dep_sec_priv") -> 0 | O156: =SUMIFS('Edad y sexo'!$F$2:$F$5000,'Edad y sexo'!$B$2:$B$5000,Visor!$Q$7,'Edad y sexo'!$C$2:$C$5000,"M",'Edad y sexo'!$D$2:$D$5000,Visor!$B156,'Edad y sexo'!$E$2:$E$5000,"Independiente") -> 5535 | R156: =SUMIFS('Edad y sexo'!$F$2:$F$5000,'Edad y sexo'!$B$2:$B$5000,Visor!$Q$7,'Edad y sexo'!$C$2:$C$5000,"F",'Edad y sexo'!$D$2:$D$5000,Visor!$B156,'Edad y sexo'!$E$2:$E$5000,"Independiente") -> 6395 | U156: =SUMIFS('Edad y sexo'!$F$2:$F$5000,'Edad y sexo'!$B$2:$B$5000,Visor!$Q$7,'Edad y sexo'!$C$2:$C$5000,"NI",'Edad y sexo'!$D$2:$D$5000,Visor!$B156,'Edad y sexo'!$E$2:$E$5000,"Independiente") -> 0
B157: 75-80 | F157: =SUMIFS('Edad y sexo'!$F$2:$F$5000,'Edad y sexo'!$B$2:$B$5000,Visor!$Q$7,'Edad y sexo'!$C$2:$C$5000,"M",'Edad y sexo'!$D$2:$D$5000,Visor!$B157,'Edad y sexo'!$E$2:$E$5000,"Dep_sec_priv") -> 876 | I157: =SUMIFS('Edad y sexo'!$F$2:$F$5000,'Edad y sexo'!$B$2:$B$5000,Visor!$Q$7,'Edad y sexo'!$C$2:$C$5000,"F",'Edad y sexo'!$D$2:$D$5000,Visor!$B157,'Edad y sexo'!$E$2:$E$5000,"Dep_sec_priv") -> 599 | L157: =SUMIFS('Edad y sexo'!$F$2:$F$5000,'Edad y sexo'!$B$2:$B$5000,Visor!$Q$7,'Edad y sexo'!$C$2:$C$5000,"NI",'Edad y sexo'!$D$2:$D$5000,Visor!$B157,'Edad y sexo'!$E$2:$E$5000,"Dep_sec_priv") -> 0 | O157: =SUMIFS('Edad y sexo'!$F$2:$F$5000,'Edad y sexo'!$B$2:$B$5000,Visor!$Q$7,'Edad y sexo'!$C$2:$C$5000,"M",'Edad y sexo'!$D$2:$D$5000,Visor!$B157,'Edad y sexo'!$E$2:$E$5000,"Independiente") -> 3118 | R157: =SUMIFS('Edad y sexo'!$F$2:$F$5000,'Edad y sexo'!$B$2:$B$5000,Visor!$Q$7,'Edad y sexo'!$C$2:$C$5000,"F",'Edad y sexo'!$D$2:$D$5000,Visor!$B157,'Edad y sexo'!$E$2:$E$5000,"Independiente") -> 4618 | U157: =SUMIFS('Edad y sexo'!$F$2:$F$5000,'Edad y sexo'!$B$2:$B$5000,Visor!$Q$7,'Edad y sexo'!$C$2:$C$5000,"NI",'Edad y sexo'!$D$2:$D$5000,Visor!$B157,'Edad y sexo'!$E$2:$E$5000,"Independiente") -> 0
B158: Más de 80 años | F158: =SUMIFS('Edad y sexo'!$F$2:$F$5000,'Edad y sexo'!$B$2:$B$5000,Visor!$Q$7,'Edad y sexo'!$C$2:$C$5000,"M",'Edad y sexo'!$D$2:$D$5000,Visor!$B158,'Edad y sexo'!$E$2:$E$5000,"Dep_sec_priv") -> 590 | I158: =SUMIFS('Edad y sexo'!$F$2:$F$5000,'Edad y sexo'!$B$2:$B$5000,Visor!$Q$7,'Edad y sexo'!$C$2:$C$5000,"F",'Edad y sexo'!$D$2:$D$5000,Visor!$B158,'Edad y sexo'!$E$2:$E$5000,"Dep_sec_priv") -> 600 | L158: =SUMIFS('Edad y sexo'!$F$2:$F$5000,'Edad y sexo'!$B$2:$B$5000,Visor!$Q$7,'Edad y sexo'!$C$2:$C$5000,"NI",'Edad y sexo'!$D$2:$D$5000,Visor!$B158,'Edad y sexo'!$E$2:$E$5000,"Dep_sec_priv") -> 0 | O158: =SUMIFS('Edad y sexo'!$F$2:$F$5000,'Edad y sexo'!$B$2:$B$5000,Visor!$Q$7,'Edad y sexo'!$C$2:$C$5000,"M",'Edad y sexo'!$D$2:$D$5000,Visor!$B158,'Edad y sexo'!$E$2:$E$5000,"Independiente") -> 3233 | R158: =SUMIFS('Edad y sexo'!$F$2:$F$5000,'Edad y sexo'!$B$2:$B$5000,Visor!$Q$7,'Edad y sexo'!$C$2:$C$5000,"F",'Edad y sexo'!$D$2:$D$5000,Visor!$B158,'Edad y sexo'!$E$2:$E$5000,"Independiente") -> 6242 | U158: =SUMIFS('Edad y sexo'!$F$2:$F$5000,'Edad y sexo'!$B$2:$B$5000,Visor!$Q$7,'Edad y sexo'!$C$2:$C$5000,"NI",'Edad y sexo'!$D$2:$D$5000,Visor!$B158,'Edad y sexo'!$E$2:$E$5000,"Independiente") -> 0
B159: No identificado | F159: =SUMIFS('Edad y sexo'!$F$2:$F$5000,'Edad y sexo'!$B$2:$B$5000,Visor!$Q$7,'Edad y sexo'!$C$2:$C$5000,"M",'Edad y sexo'!$D$2:$D$5000,"NI",'Edad y sexo'!$E$2:$E$5000,"Dep_sec_priv") -> 2 | I159: =SUMIFS('Edad y sexo'!$F$2:$F$5000,'Edad y sexo'!$B$2:$B$5000,Visor!$Q$7,'Edad y sexo'!$C$2:$C$5000,"F",'Edad y sexo'!$D$2:$D$5000,"NI",'Edad y sexo'!$E$2:$E$5000,"Dep_sec_priv") -> 0 | L159: =SUMIFS('Edad y sexo'!$F$2:$F$5000,'Edad y sexo'!$B$2:$B$5000,Visor!$Q$7,'Edad y sexo'!$C$2:$C$5000,"NI",'Edad y sexo'!$D$2:$D$5000,"NI",'Edad y sexo'!$E$2:$E$5000,"Dep_sec_priv") -> 11377 | O159: =SUMIFS('Edad y sexo'!$F$2:$F$5000,'Edad y sexo'!$B$2:$B$5000,Visor!$Q$7,'Edad y sexo'!$C$2:$C$5000,"M",'Edad y sexo'!$D$2:$D$5000,"NI",'Edad y sexo'!$E$2:$E$5000,"Independiente") -> 1 | R159: =SUMIFS('Edad y sexo'!$F$2:$F$5000,'Edad y sexo'!$B$2:$B$5000,Visor!$Q$7,'Edad y sexo'!$C$2:$C$5000,"F",'Edad y sexo'!$D$2:$D$5000,"NI",'Edad y sexo'!$E$2:$E$5000,"Independiente") -> 1 | U159: =SUMIFS('Edad y sexo'!$F$2:$F$5000,'Edad y sexo'!$B$2:$B$5000,Visor!$Q$7,'Edad y sexo'!$C$2:$C$5000,"NI",'Edad y sexo'!$D$2:$D$5000,"NI",'Edad y sexo'!$E$2:$E$5000,"Independiente") -> 1242
B160: Total | F160: =SUM(F145:H159) -> 929789 | I160: =SUM(I145:K159) -> 662330 | L160: =SUM(L145:N159) -> 11377 | O160: =SUM(O145:Q159) -> 166016 | R160: =SUM(R145:T159) -> 152914 | U160: =SUM(U145:W159) -> 1242
C162: *Ubicación basada en la ubicación de los cotizantes
L164: =J3 -> Informe Mensual de las cotizaciones
L166: =K53 -> Fecha de corte: 25 de Feb de 2022 | AB166: Pg. 4
L168: Departamento | Q168: =Q55 -> ANTIOQUIA
L169: Municipio | Q169: =Q56 -> MEDELLÍN
C171: ="Resumen municipal "&Q168&":" -> Resumen municipal ANTIOQUIA:
B174: =Q168 -> ANTIOQUIA
B175: Municipio | H175: Apt.Privados | L175: % | M175: Dep.Privados (Ubicación del aportante) | Q175: % | R175: Dep.Privados (Ubicación del cotizante) | V175: % | W175: Independientes | AA175: %
A176: =IF(AND(B177="",B175<>"",B176<>""),1,0) -> 0 | B176: =IF(Tamaño!BF2=0,"",PROPER(Tamaño!BF2)) -> Medellín | H176: =IF(B176="","",Tamaño!BG2) -> 66812 | L176: =H176/SUM($H$176:$K$201) -> 0.6340583836 | M176: =IF(B176="","",Tamaño!BJ2) -> 1144564 | Q176: =M176/SUM($M$176:$P$201) -> 0.7084679626 | R176: =IF(B176="","",Tamaño!BH2) -> 1139153 | V176: =R176/SUM($R$176:$U$201) -> 0.7104183609 | W176: =IF(B176="","",Tamaño!BI2) -> 197843 | AA176: =W176/SUM($W$176:$Z$201) -> 0.6179272391
A177: 0 | B177: =IF(OR(B176="",Tamaño!BF3=0),"",PROPER(Tamaño!BF3)) -> Envigado | H177: =IF(B177="","",Tamaño!BG3) -> 6790 | L177: =IF(H177="","",H177/SUM($H$176:$K$201)) -> 0.06443837072 | M177: =IF(B177="","",Tamaño!BJ3) -> 101467 | Q177: =IF(H177="","",M177/SUM($M$176:$P$201)) -> 0.06280655233 | R177: =IF(B177="","",Tamaño!BH3) -> 38960 | V177: =IF(R177="","",R177/SUM($R$176:$U$201)) -> 0.02429691125 | W177: =IF(B177="","",Tamaño!BI3) -> 16470 | AA177: =IF(W177="","",W177/SUM($W$176:$Z$201)) -> 0.05144110041
A178: 0 | B178: =IF(OR(B177="",Tamaño!BF4=0),"",PROPER(Tamaño!BF4)) -> Itagui | H178: =IF(B178="","",Tamaño!BG4) -> 4210 | L178: =IF(H178="","",H178/SUM($H$176:$K$201)) -> 0.03995368789 | M178: =IF(B178="","",Tamaño!BJ4) -> 89426 | Q178: =IF(H178="","",M178/SUM($M$176:$P$201)) -> 0.05535335378 | R178: =IF(B178="","",Tamaño!BH4) -> 51353 | V178: 0.03202564896 | W178: =IF(B178="","",Tamaño!BI4) -> 9722 | AA178: 0.03036492885
A179: 0 | B179: =IF(OR(B178="",Tamaño!BF5=0),"",PROPER(Tamaño!BF5)) -> Rionegro | H179: =IF(B179="","",Tamaño!BG5) -> 3294 | L179: 0.03126067646 | M179: =IF(B179="","",Tamaño!BJ5) -> 46843 | Q179: 0.02899511497 | R179: =IF(B179="","",Tamaño!BH5) -> 50200 | V179: 0.03130659509 | W179: =IF(B179="","",Tamaño!BI5) -> 10170 | AA179: 0.03176417675
A180: 0 | B180: =IF(OR(B179="",Tamaño!BF6=0),"",PROPER(Tamaño!BF6)) -> Bello | H180: =IF(B180="","",Tamaño!BG6) -> 2878 | L180: 0.02731275861 | M180: =IF(B180="","",Tamaño!BJ6) -> 43308 | Q180: 0.02680700295 | R180: =IF(B180="","",Tamaño!BH6) -> 37298 | V180: 0.02326042597 | W180: =IF(B180="","",Tamaño!BI6) -> 12514 | AA180: 0.03908524168
A181: 0 | B181: =IF(OR(B180="",Tamaño!BF7=0),"",PROPER(Tamaño!BF7)) -> Sabaneta | H181: =IF(B181="","",Tamaño!BG7) -> 2142 | L181: 0.02032798087 | M181: =IF(B181="","",Tamaño!BJ7) -> 36241 | Q181: 0.02243263586 | R181: =IF(B181="","",Tamaño!BH7) -> 23734 | V181: 0.01480140892 | W181: =IF(B181="","",Tamaño!BI7) -> 6885 | AA181: 0.02150406656
A182: =IF(AND(B183="",B181<>"",B182<>""),1,0) -> 0 | B182: =IF(OR(B181="",Tamaño!BF8=0),"",PROPER(Tamaño!BF8)) -> Apartadó | H182: =IF(B182="","",Tamaño!BG8) -> 1470 | L182: 0.01395057511 | M182: =IF(B182="","",Tamaño!BJ8) -> 20827 | Q182: 0.01289160087 | R182: =IF(B182="","",Tamaño!BH8) -> 35777 | V182: 0.02231187356 | W182: =IF(B182="","",Tamaño!BI8) -> 3938 | AA182: 0.01229963894
A183: 0 | B183: =IF(OR(B182="",Tamaño!BF9=0),"",PROPER(Tamaño!BF9)) -> La Ceja | H183: =IF(B183="","",Tamaño!BG9) -> 1157 | L183: 0.01098014653 | M183: =IF(B183="","",Tamaño!BJ9) -> 13916 | Q183: 0.008613795443 | R183: =IF(B183="","",Tamaño!BH9) -> 13381 | V183: 0.008344891412 | W183: =IF(B183="","",Tamaño!BI9) -> 3827 | AA183: 0.01195295029
A184: 0 | B184: =IF(OR(B183="",Tamaño!BF10=0),"",PROPER(Tamaño!BF10)) -> La Estrella | H184: =IF(B184="","",Tamaño!BG10) -> 1097 | L184: 0.0104107353 | M184: =IF(B184="","",Tamaño!BJ10) -> 25027 | Q184: 0.01549133792 | R184: =IF(B184="","",Tamaño!BH10) -> 16024 | V184: 0.009993164935 | W184: =IF(B184="","",Tamaño!BI10) -> 2654 | AA184: 0.008289294504
A185: 0 | B185: =IF(OR(B184="",Tamaño!BF11=0),"",PROPER(Tamaño!BF11)) -> Ciudad Bolívar | H185: =IF(B185="","",Tamaño!BG11) -> 1059 | L185: 0.01005010819 | M185: =IF(B185="","",Tamaño!BJ11) -> 6056 | Q185: 0.00374857324 | R185: =IF(B185="","",Tamaño!BH11) -> 1839 | V185: 0.001146869091 | W185: =IF(B185="","",Tamaño!BI11) -> 846 | AA185: 0.002642329748
A186: 0 | B186: =IF(OR(B185="",Tamaño!BF12=0),"",PROPER(Tamaño!BF12)) -> Caldas | H186: =IF(B186="","",Tamaño!BG12) -> 841 | L186: 0.00798124739 | M186: =IF(B186="","",Tamaño!BJ12) -> 9010 | Q186: 0.005577054968 | R186: =IF(B186="","",Tamaño!BH12) -> 8884 | V186: 0.005540394239 | W186: =IF(B186="","",Tamaño!BI12) -> 2679 | AA186: 0.008367377535
A187: 0 | B187: =IF(OR(B186="",Tamaño!BF13=0),"",PROPER(Tamaño!BF13)) -> Marinilla | H187: =IF(B187="","",Tamaño!BG13) -> 712 | L187: 0.006757013248 | M187: =IF(B187="","",Tamaño!BJ13) -> 8870 | Q187: 0.005490397067 | R187: =IF(B187="","",Tamaño!BH13) -> 8894 | V187: 0.005546630612 | W187: =IF(B187="","",Tamaño!BI13) -> 2441 | AA187: 0.007624027085
A188: 0 | B188: =IF(OR(B187="",Tamaño!BF14=0),"",PROPER(Tamaño!BF14)) -> Copacabana | H188: =IF(B188="","",Tamaño!BG14) -> 696 | L188: 0.006605170254 | M188: =IF(B188="","",Tamaño!BJ14) -> 11119 | Q188: 0.006882494361 | R188: =IF(B188="","",Tamaño!BH14) -> 7300 | V188: 0.004552552672 | W188: =IF(B188="","",Tamaño!BI14) -> 2336 | AA188: 0.007296078358
A189: 0 | B189: =IF(OR(B188="",Tamaño!BF15=0),"",PROPER(Tamaño!BF15)) -> Retiro | H189: =IF(B189="","",Tamaño!BG15) -> 675 | L189: 0.006405876324 | M189: =IF(B189="","",Tamaño!BJ15) -> 3964 | Q189: 0.002453656592 | R189: =IF(B189="","",Tamaño!BH15) -> 3887 | V189: 0.002424078389 | W189: =IF(B189="","",Tamaño!BI15) -> 1494 | AA189: 0.004666241895
A190: 0 | B190: =IF(OR(B189="",Tamaño!BF16=0),"",PROPER(Tamaño!BF16)) -> El Carmen De Viboral | H190: =IF(B190="","",Tamaño!BG16) -> 670 | L190: 0.006358425388 | M190: =IF(B190="","",Tamaño!BJ16) -> 7509 | Q190: 0.004647958464 | R190: =IF(B190="","",Tamaño!BH16) -> 8026 | V190: 0.00500531339 | W190: =IF(B190="","",Tamaño!BI16) -> 2223 | AA190: 0.006943143061
A191: 0 | B191: =IF(OR(B190="",Tamaño!BF17=0),"",PROPER(Tamaño!BF17)) -> Caucasia | H191: =IF(B191="","",Tamaño!BG17) -> 598 | L191: 0.005675131914 | M191: =IF(B191="","",Tamaño!BJ17) -> 5872 | Q191: 0.003634679997 | R191: =IF(B191="","",Tamaño!BH17) -> 8037 | V191: 0.005012173401 | W191: =IF(B191="","",Tamaño!BI17) -> 1623 | AA191: 0.005069150332
A192: 0 | B192: =IF(OR(B191="",Tamaño!BF18=0),"",PROPER(Tamaño!BF18)) -> Guarne | H192: =IF(B192="","",Tamaño!BG18) -> 572 | L192: 0.005428387048 | M192: =IF(B192="","",Tamaño!BJ18) -> 7917 | Q192: 0.004900504349 | R192: =IF(B192="","",Tamaño!BH18) -> 9009 | V192: 0.005618348908 | W192: =IF(B192="","",Tamaño!BI18) -> 1823 | AA192: 0.005693814575
A193: 0 | B193: =IF(OR(B192="",Tamaño!BF19=0),"",PROPER(Tamaño!BF19)) -> Santa Rosa De Osos | H193: =IF(B193="","",Tamaño!BG19) -> 540 | L193: 0.005124701059 | M193: =IF(B193="","",Tamaño!BJ19) -> 4714 | Q193: 0.002917895352 | R193: =IF(B193="","",Tamaño!BH19) -> 6136 | V193: 0.003826638794 | W193: =IF(B193="","",Tamaño!BI19) -> 1931 | AA193: 0.006031133266
A194: 0 | B194: =IF(OR(B193="",Tamaño!BF20=0),"",PROPER(Tamaño!BF20)) -> Turbo | H194: =IF(B194="","",Tamaño!BG20) -> 480 | L194: 0.00455528983 | M194: =IF(B194="","",Tamaño!BJ20) -> 4514 | Q194: 0.002794098349 | R194: =IF(B194="","",Tamaño!BH20) -> 7895 | V194: 0.004923616897 | W194: =IF(B194="","",Tamaño!BI20) -> 1316 | AA194: 0.004110290719
A195: 0 | B195: =IF(OR(B194="",Tamaño!BF21=0),"",PROPER(Tamaño!BF21)) -> Don Matías | H195: =IF(B195="","",Tamaño!BG21) -> 463 | L195: 0.004393956649 | M195: =IF(B195="","",Tamaño!BJ21) -> 3539 | Q195: 0.002190587961 | R195: =IF(B195="","",Tamaño!BH21) -> 3820 | V195: 0.002382294686 | W195: =IF(B195="","",Tamaño!BI21) -> 1977 | AA195: 0.006174806042
A196: 0 | B196: =IF(OR(B195="",Tamaño!BF22=0),"",PROPER(Tamaño!BF22)) -> Girardota | H196: =IF(B196="","",Tamaño!BG22) -> 435 | L196: 0.004128231409 | M196: =IF(B196="","",Tamaño!BJ22) -> 7769 | Q196: 0.004808894567 | R196: =IF(B196="","",Tamaño!BH22) -> 10256 | V196: 0.006396024686 | W196: =IF(B196="","",Tamaño!BI22) -> 1575 | AA196: 0.004919230913
A197: 0 | B197: =IF(OR(B196="",Tamaño!BF23=0),"",PROPER(Tamaño!BF23)) -> Puerto Berrío | H197: =IF(B197="","",Tamaño!BG23) -> 376 | L197: 0.003568310367 | M197: =IF(B197="","",Tamaño!BJ23) -> 3450 | Q197: 0.002135498295 | R197: =IF(B197="","",Tamaño!BH23) -> 5531 | V197: 0.003449338196 | W197: =IF(B197="","",Tamaño!BI23) -> 1056 | AA197: 0.003298227203
A198: 0 | B198: =IF(OR(B197="",Tamaño!BF24=0),"",PROPER(Tamaño!BF24)) -> El Santuario | H198: =IF(B198="","",Tamaño!BG24) -> 358 | L198: 0.003397486998 | M198: =IF(B198="","",Tamaño!BJ24) -> 3258 | Q198: 0.002016653173 | R198: =IF(B198="","",Tamaño!BH24) -> 3602 | V198: 0.002246341743 | W198: =IF(B198="","",Tamaño!BI24) -> 1463 | AA198: 0.004569418937
A199: 0 | B199: =IF(OR(B198="",Tamaño!BF25=0),"",PROPER(Tamaño!BF25)) -> Yarumal | H199: =IF(B199="","",Tamaño!BG25) -> 357 | L199: 0.003387996811 | M199: =IF(B199="","",Tamaño!BJ25) -> 2385 | Q199: 0.001476279256 | R199: =IF(B199="","",Tamaño!BH25) -> 3050 | V199: 0.001902093925 | W199: =IF(B199="","",Tamaño!BI25) -> 1371 | AA199: 0.004282073386
A200: 0 | B200: =IF(OR(B199="",Tamaño!BF26=0),"",PROPER(Tamaño!BF26)) -> San Pedro De Los Milagros | H200: =IF(B200="","",Tamaño!BG26) -> 348 | L200: 0.003302585127 | M200: =IF(B200="","",Tamaño!BJ26) -> 1970 | Q200: 0.001219400476 | R200: =IF(B200="","",Tamaño!BH26) -> 3535 | V200: 0.002204558041 | W200: =IF(B200="","",Tamaño!BI26) -> 1182 | AA200: 0.003691765676
B201: =IF(Lista!J3>25,"Otros","") -> Otros | H201: =IF(B201="Otros",SUM(Tamaño!$BG$27:$BG$150),"") -> 6342 | L201: 0.06018676688 | M201: =IF(B201="","",Tamaño!BJ27) -> 2013 | Q201: 0.001246016831 | R201: =IF(B201="Otros",R14-SUM(R176:U200),"") -> 97915 | V201: 0.06106345136 | W201: =IF(B201="Otros",W14-SUM(W176:Z200),"") -> 28813 | AA201: 0.08999225416
C202: *Para la columna de Apt.Privados y Dep.Privados/Apt se usa la ubicación del aportante, para las demas columnas la ubicación del cotizante
C204: ="Resumen de las novedades Dep.Privados e Independientes mes "&Lista!R2 -> Resumen de las novedades Dep.Privados e Independientes mes Diciembre
C219: *Ubicación basada en la ubicación de los cotizantes
C220: * Nota: Corresponden a los asociados a aportantes del sector privado, es decir los tipos de cotizantes 1, 2 o 22

Sheet Cotizantes Mes (hidden)
A1: Divipola | B1: Llave | C1: Tipologia | D1: Depto | E1: Mpio | F1: Mpio_0 | G1: Depto_Nom | H1: Mpio_Nom | I1: Tipologia_MES | J1: Ingresos_MES | K1: Retiros_MES | L1: Total_relaciones_laborales_11_19 | M1: Total_relaciones_laborales_12_19 | N1: Total_relaciones_laborales_1_20 | O1: Total_relaciones_laborales_2_20 | P1: Total_relaciones_laborales_3_20 | Q1: Total_relaciones_laborales_4_20 | R1: Total_relaciones_laborales_5_20 | S1: Total_relaciones_laborales_6_20 | T1: Total_relaciones_laborales_7_20 | U1: Total_relaciones_laborales_8_20 | V1: Total_relaciones_laborales_9_20 | W1: Total_relaciones_laborales_10_20 | X1: Total_relaciones_laborales_11_20 | Y1: Total_relaciones_laborales_12_20 | Z1: Total_relaciones_laborales_1_21 | AA1: Total_relaciones_laborales_2_21 | AB1: Total_relaciones_laborales_3_21 | AC1: Total_relaciones_laborales_4_21 | AD1: Total_relaciones_laborales_5_21 | AE1: Total_relaciones_laborales_6_21 | AF1: Total_relaciones_laborales_7_21 | AG1: Total_relaciones_laborales_8_21 | AH1: Total_relaciones_laborales_9_21 | AI1: Total_relaciones_laborales_10_21 | AJ1: Total_relaciones_laborales_11_21 | AK1: Total_relaciones_laborales_12_21 | AQ1: Divipola | AR1: Llave | AS1: Tipologia | AT1: Depto | AU1: Mpio | AV1: Mpio_0 | AW1: Depto_Nom | AX1: Mpio_Nom | AY1: Tipologia_MES | AZ1: Ingresos_MES | BA1: Retiros_MES | BB1: Total_relaciones_laborales_11_19 | BC1: Total_relaciones_laborales_12_19 | BD1: Total_relaciones_laborales_1_20 | BE1: Total_relaciones_laborales_2_20 | BF1: Total_relaciones_laborales_3_20 | BG1: Total_relaciones_laborales_4_20 | BH1: Total_relaciones_laborales_5_20 | BI1: Total_relaciones_laborales_6_20 | BJ1: Total_relaciones_laborales_7_20 | BK1: Total_relaciones_laborales_8_20 | BL1: Total_relaciones_laborales_9_20 | BM1: Total_relaciones_laborales_10_20 | BN1: Total_relaciones_laborales_11_20 | BO1: Total_relaciones_laborales_12_20 | BP1: Total_relaciones_laborales_1_21 | BQ1: Total_relaciones_laborales_2_21 | BR1: Total_relaciones_laborales_3_21 | BS1: Total_relaciones_laborales_4_21 | BT1: Total_relaciones_laborales_5_21 | BU1: Total_relaciones_laborales_6_21 | BV1: Total_relaciones_laborales_7_21 | BW1: Total_relaciones_laborales_8_21 | BX1: Total_relaciones_laborales_9_21 | BY1: Total_relaciones_laborales_10_21 | BZ1: Total_relaciones_laborales_11_21 | CA1: Total_relaciones_laborales_12_21
A2: Sin Info | B2: Sin Info1 | C2: 1 | D2: Sin Info | E2: Sin Info | F2: Sin Info | G2: Sin Info | H2: Sin Info | I2: Dep_No_priv | J2: 18 | K2: 18 | L2: 763 | M2: 49 | N2: 9 | O2: 26 | P2: 20 | Q2: 10 | R2: 8 | S2: 7 | T2: 22 | U2: 14 | V2: 14 | W2: 13 | X2: 15 | Y2: 15 | Z2: 17 | AA2: 18 | AB2: 33 | AC2: 17 | AD2: 24 | AE2: 23 | AF2: 22 | AG2: 18 | AH2: 23 | AI2: 21 | AJ2: 29 | AK2: 27 | AQ2: =_xlfn._xlws.FILTER($A$2:$AK$4994,$G$2:$G$4994=Visor!$Q$7,"") -> 5001 | AR2: 50011 | AS2: 1 | AT2: 5 | AU2: 1 | AV2: 001 | AW2: ANTIOQUIA | AX2: MEDELLÍN | AY2: Dep_No_priv | AZ2: 7919 | BA2: 22678 | BB2: 183814 | BC2: 141828 | BD2: 138096 | BE2: 156236 | BF2: 163947 | BG2: 147557 | BH2: 148288 | BI2: 153758 | BJ2: 157160 | BK2: 162898 | BL2: 164544 | BM2: 157491 | BN2: 151945 | BO2: 141286 | BP2: 135825 | BQ2: 151273 | BR2: 159681 | BS2: 158918 | BT2: 162420 | BU2: 162241 | BV2: 158622 | BW2: 170503 | BX2: 177764 | BY2: 180084 | BZ2: 174322 | CA2: 146779
A3: Sin Info | B3: Sin Info2 | C3: 2 | D3: Sin Info | E3: Sin Info | F3: Sin Info | G3: Sin Info | H3: Sin Info | I3: Dep_sec_priv | J3: 256 | K3: 196 | L3: 5352 | M3: 2243 | N3: 1151 | O3: 1370 | P3: 910 | Q3: 485 | R3: 563 | S3: 535 | T3: 602 | U3: 567 | V3: 594 | W3: 572 | X3: 658 | Y3: 877 | Z3: 817 | AA3: 788 | AB3: 797 | AC3: 680 | AD3: 617 | AE3: 613 | AF3: 681 | AG3: 678 | AH3: 720 | AI3: 722 | AJ3: 708 | AK3: 641 | AQ3: 5318 | AR3: 53182 | AS3: 2 | AT3: 5 | AU3: 318 | AV3: 318 | AW3: ANTIOQUIA | AX3: GUARNE | AY3: Dep_sec_priv | AZ3: 542 | BA3: 1164 | BB3: 7326 | BC3: 7207 | BD3: 7067 | BE3: 7109 | BF3: 7401 | BG3: 7152 | BH3: 7187 | BI3: 7149 | BJ3: 7168 | BK3: 7196 | BL3: 7410 | BM3: 7609 | BN3: 7752 | BO3: 7938 | BP3: 7967 | BQ3: 8134 | BR3: 8353 | BS3: 8560 | BT3: 8664 | BU3: 8685 | BV3: 8820 | BW3: 8943 | BX3: 8787 | BY3: 8958 | BZ3: 9038 | CA3: 9009 | CH3: ="Variaciones de "&PROPER(Visor!$Q$7) -> Variaciones de Antioquia
A4: Sin Info | B4: Sin Info3 | C4: 3 | D4: Sin Info | E4: Sin Info | F4: Sin Info | G4: Sin Info | H4: Sin Info | I4: Independiente | J4: 574 | K4: 538 | L4: 19420 | M4: 19877 | N4: 20673 | O4: 21057 | P4: 20940 | Q4: 20818 | R4: 20942 | S4: 21034 | T4: 21209 | U4: 21351 | V4: 21179 | W4: 21233 | X4: 21323 | Y4: 21355 | Z4: 21735 | AA4: 21992 | AB4: 22201 | AC4: 22246 | AD4: 22323 | AE4: 22492 | AF4: 22698 | AG4: 22907 | AH4: 23284 | AI4: 23339 | AJ4: 23017 | AK4: 22820 | AQ4: 5001 | AR4: 50012 | AS4: 2 | AT4: 5 | AU4: 1 | AV4: 001 | AW4: ANTIOQUIA | AX4: MEDELLÍN | AY4: Dep_sec_priv | AZ4: 70070 | BA4: 149514 | BB4: 1127854 | BC4: 1104203 | BD4: 1094445 | BE4: 1107180 | BF4: 1093233 | BG4: 1011385 | BH4: 1009410 | BI4: 1012761 | BJ4: 1018893 | BK4: 1022077 | BL4: 1042526 | BM4: 1060282 | BN4: 1072957 | BO4: 1068897 | BP4: 1055629 | BQ4: 1077769 | BR4: 1092066 | BS4: 1090930 | BT4: 1093576 | BU4: 1100684 | BV4: 1113199 | BW4: 1128115 | BX4: 1141136 | BY4: 1148616 | BZ4: 1157948 | CA4: 1139153 | CH4: 2019-12-01 | CI4: 2020-01-01 | CJ4: 2020-02-01 | CK4: 2020-03-01 | CL4: 2020-04-01 | CM4: 2020-05-01 | CN4: 2020-06-01 | CO4: 2020-07-01 | CP4: 2020-08-01 | CQ4: 2020-09-01 | CR4: 2020-10-01 | CS4: 2020-11-01 | CT4: 2020-12-01 | CU4: 2021-01-01 | CV4: 2021-02-01 | CW4: 2021-03-01 | CX4: 2021-04-01 | CY4: 2021-05-01 | CZ4: 2021-06-01 | DA4: 2021-07-01 | DB4: 2021-08-01 | DC4: 2021-09-01 | DD4: 2021-10-01 | DE4: 2021-11-01 | DF4: 2021-12-01 | DL4: Dependientes | DN4: Dep. Privados | DP4: Independientes
A5: 5001 | B5: 50011 | C5: 1 | D5: 5 | E5: 1 | F5: 001 | G5: ANTIOQUIA | H5: MEDELLÍN | I5: Dep_No_priv | J5: 7919 | K5: 22678 | L5: 183814 | M5: 141828 | N5: 138096 | O5: 156236 | P5: 163947 | Q5: 147557 | R5: 148288 | S5: 153758 | T5: 157160 | U5: 162898 | V5: 164544 | W5: 157491 | X5: 151945 | Y5: 141286 | Z5: 135825 | AA5: 151273 | AB5: 159681 | AC5: 158918 | AD5: 162420 | AE5: 162241 | AF5: 158622 | AG5: 170503 | AH5: 177764 | AI5: 180084 | AJ5: 174322 | AK5: 146779 | AQ5: 5400 | AR5: 54002 | AS5: 2 | AT5: 5 | AU5: 400 | AV5: 400 | AW5: ANTIOQUIA | AX5: LA UNIÓN | AY5: Dep_sec_priv | AZ5: 210 | BA5: 273 | BB5: 1948 | BC5: 1939 | BD5: 1892 | BE5: 1937 | BF5: 1902 | BG5: 1735 | BH5: 1729 | BI5: 1730 | BJ5: 1788 | BK5: 1827 | BL5: 1864 | BM5: 1859 | BN5: 1866 | BO5: 1824 | BP5: 1824 | BQ5: 1891 | BR5: 1923 | BS5: 1944 | BT5: 1863 | BU5: 1884 | BV5: 1911 | BW5: 1933 | BX5: 1951 | BY5: 2025 | BZ5: 2074 | CA5: 2096 | CG5: Independientes | CH5: =IFERROR(SUMIFS(BC$2:BC$600,$AS$2:$AS$600,3)/SUMIFS(BB$2:BB$600,$AS$2:$AS$600,3)-1,"") -> -0.02313349937 | CI5: =IFERROR(SUMIFS(BD$2:BD$600,$AS$2:$AS$600,3)/SUMIFS(BC$2:BC$600,$AS$2:$AS$600,3)-1,"") -> -0.03878261446 | CJ5: 0.02207414152 | CK5: -0.00118448227 | CL5: -0.03048844351 | CM5: 0.007297260565 | CN5: 0.01438154513 | CO5: 0.01154129492 | CP5: 0.01268071964 | CQ5: 0.01845162192 | CR5: 0.01646316547 | CS5: 0.0127134316 | CT5: -0.008647628968 | CU5: -0.03770490228 | CV5: 0.0194613021 | CW5: 0.01757788902 | CX5: 0.008978884539 | CY5: 0.00728329803 | CZ5: 0.006823319904 | DA5: 0.003289752218 | DB5: 0.01229377528 | DC5: 0.008087052379 | DD5: 0.005427757527 | DE5: 0.004438798204 | DF5: -0.02889605367 | DL5: ="∆ Anual "&MID(Lista!$R$2,1,3) -> ∆ Anual Dic | DM5: ="∆ Mensual "&MID(Lista!$R$2,1,3) -> ∆ Mensual Dic | DN5: ="∆ Anual "&MID(Lista!$R$2,1,3) -> ∆ Anual Dic | DO5: ="∆ Mensual "&MID(Lista!$R$2,1,3) -> ∆ Mensual Dic | DP5: ="∆ Anual "&MID(Lista!$R$2,1,3) -> ∆ Anual Dic | DQ5: ="∆ Mensual "&MID(Lista!$R$2,1,3) -> ∆ Mensual Dic
A6: 11001 | B6: 110011 | C6: 1 | D6: 11 | E6: 1 | F6: 001 | G6: BOGOTÁ, D.C. | H6: BOGOTÁ, D.C. | I6: Dep_No_priv | J6: 18849 | K6: 36435 | L6: 444132 | M6: 364835 | N6: 349923 | O6: 388577 | P6: 390329 | Q6: 366391 | R6: 377018 | S6: 365113 | T6: 393433 | U6: 414216 | V6: 423319 | W6: 419557 | X6: 397620 | Y6: 335302 | Z6: 328117 | AA6: 369491 | AB6: 377967 | AC6: 399234 | AD6: 408963 | AE6: 402591 | AF6: 402726 | AG6: 418362 | AH6: 429675 | AI6: 434300 | AJ6: 432649 | AK6: 351873 | AQ6: 5631 | AR6: 56312 | AS6: 2 | AT6: 5 | AU6: 631 | AV6: 631 | AW6: ANTIOQUIA | AX6: SABANETA | AY6: Dep_sec_priv | AZ6: 1372 | BA6: 3342 | BB6: 21368 | BC6: 21159 | BD6: 21316 | BE6: 21669 | BF6: 21588 | BG6: 20083 | BH6: 19937 | BI6: 19781 | BJ6: 19952 | BK6: 20406 | BL6: 20788 | BM6: 21224 | BN6: 22120 | BO6: 21856 | BP6: 21776 | BQ6: 22115 | BR6: 22477 | BS6: 22434 | BT6: 22365 | BU6: 22249 | BV6: 22647 | BW6: 23048 | BX6: 23638 | BY6: 24087 | BZ6: 24172 | CA6: 23734 | CG6: Dependientes | CH6: =IFERROR((SUMIFS(BC$2:BC$600,$AS$2:$AS$600,2)+SUMIFS(BC$2:BC$600,$AS$2:$AS$600,1))/(SUMIFS(BB$2:BB$600,$AS$2:$AS$600,2)+SUMIFS(BB$2:BB$600,$AS$2:$AS$600,1))-1,"") -> -0.04393766633 | CI6: =IFERROR((SUMIFS(BD$2:BD$600,$AS$2:$AS$600,2)+SUMIFS(BD$2:BD$600,$AS$2:$AS$600,1))/(SUMIFS(BC$2:BC$600,$AS$2:$AS$600,2)+SUMIFS(BC$2:BC$600,$AS$2:$AS$600,1))-1,"") -> -0.01201710705 | CJ6: 0.02498245987 | CK6: -0.003504910882 | CL6: -0.0725657663 | CM6: 0.001174184787 | CN6: 0.01088277717 | CO6: 0.01055023261 | CP6: 0.007700959889 | CQ6: 0.01749645266 | CR6: 0.007828034775 | CS6: 0.00616860626 | CT6: -0.01186078053 | CU6: -0.01377549419 | CV6: 0.03195661499 | CW6: 0.01985426616 | CX6: 0.001089472815 | CY6: 0.005625986016 | CZ6: 0.005105130656 | DA6: 0.007081556581 | DB6: 0.01856584824 | DC6: 0.01464268704 | DD6: 0.006872538023 | DE6: 0.002674180771 | DF6: -0.03371697059 | DK6: Nacional | DL6: =(SUMIFS($AK$2:$AK$5000,$C$2:$C$5000,2)+SUMIFS($AK$2:$AK$5000,$C$2:$C$5000,1))/(SUMIFS($Y$2:$Y$5000,$C$2:$C$5000,2)+SUMIFS($Y$2:$Y$5000,$C$2:$C$5000,1))-1 -> 0.07171797343 | DM6: =(SUMIFS($AK$2:$AK$5000,$C$2:$C$5000,2)+SUMIFS($AK$2:$AK$5000,$C$2:$C$5000,1))/(SUMIFS($AJ$2:$AJ$5000,$C$2:$C$5000,2)+SUMIFS($AJ$2:$AJ$5000,$C$2:$C$5000,1))-1 -> -0.0410781301 | DN6: =SUMIFS($AK$2:$AK$5000,$C$2:$C$5000,2)/SUMIFS($Y$2:$Y$5000,$C$2:$C$5000,2)-1 -> 0.07629671903 | DO6: =SUMIFS($AK$2:$AK$5000,$C$2:$C$5000,2)/SUMIFS($AJ$2:$AJ$5000,$C$2:$C$5000,2)-1 -> -0.01713063014 | DP6: =SUMIFS($AK$2:$AK$5000,$C$2:$C$5000,3)/SUMIFS($Y$2:$Y$5000,$C$2:$C$5000,3)-1 -> 0.007779897692 | DQ6: =SUMIFS($AK$2:$AK$5000,$C$2:$C$5000,3)/SUMIFS($AJ$2:$AJ$5000,$C$2:$C$5000,3)-1 -> -0.03544184426
A7: 11001 | B7: 110012 | C7: 2 | D7: 11 | E7: 1 | F7: 001 | G7: BOGOTÁ, D.C. | H7: BOGOTÁ, D.C. | I7: Dep_sec_priv | J7: 188375 | K7: 303087 | L7: 2662262 | M7: 2626153 | N7: 2608355 | O7: 2653610 | P7: 2623918 | Q7: 2445412 | R7: 2417344 | S7: 2405996 | T7: 2420723 | U7: 2420431 | V7: 2456529 | W7: 2482367 | X7: 2514395 | Y7: 2503608 | Z7: 2484062 | AA7: 2528635 | AB7: 2557997 | AC7: 2569642 | AD7: 2567843 | AE7: 2583010 | AF7: 2604514 | AG7: 2642081 | AH7: 2676884 | AI7: 2706355 | AJ7: 2729821 | AK7: 2692735 | AQ7: 5001 | AR7: 50013 | AS7: 3 | AT7: 5 | AU7: 1 | AV7: 001 | AW7: ANTIOQUIA | AX7: MEDELLÍN | AY7: Independiente | AZ7: 8595 | BA7: 14749 | BB7: 204605 | BC7: 200427 | BD7: 193259 | BE7: 195042 | BF7: 193308 | BG7: 185615 | BH7: 186401 | BI7: 189463 | BJ7: 191192 | BK7: 192906 | BL7: 195416 | BM7: 197717 | BN7: 199628 | BO7: 198483 | BP7: 193519 | BQ7: 195100 | BR7: 196983 | BS7: 197624 | BT7: 198222 | BU7: 198799 | BV7: 198844 | BW7: 200858 | BX7: 202150 | BY7: 202481 | BZ7: 202923 | CA7: 197843 | CG7: Dep.Privados | CH7: =IFERROR(SUMIFS(BC$2:BC$600,$AS$2:$AS$600,2)/SUMIFS(BB$2:BB$600,$AS$2:$AS$600,2)-1,"") -> -0.02069313195 | CI7: =IFERROR(SUMIFS(BD$2:BD$600,$AS$2:$AS$600,2)/SUMIFS(BC$2:BC$600,$AS$2:$AS$600,2)-1,"") -> -0.01078502209 | CJ7: 0.01471049547 | CK7: -0.00989847055 | CL7: -0.07392011127 | CM7: 0.001222994569 | CN7: 0.00642865245 | CO7: 0.007516053501 | CP7: 0.003439143451 | CQ7: 0.02029309853 | CR7: 0.01731289548 | CS7: 0.0122917861 | CT7: -0.004474786224 | CU7: -0.01163758104 | CV7: 0.02330052986 | CW7: 0.01487329413 | CX7: 0.001414719048 | CY7: 0.002765821497 | CZ7: 0.006421134943 | DA7: 0.01006019292 | DB7: 0.01219458701 | DC7: 0.01213246031 | DD7: 0.006298510945 | DE7: 0.00616843915 | DF7: -0.01725191448 | DK7: =PROPER(Visor!Q7) -> Antioquia | DL7: =(SUMIFS($CA$2:$CA$700,$AS$2:$AS$700,2)+SUMIFS($CA$2:$CA$700,$AS$2:$AS$700,1))/(SUMIFS($BO$2:$BO$700,$AS$2:$AS$700,2)+SUMIFS($BO$2:$BO$700,$AS$2:$AS$700,1))-1 -> 0.0663549273 | DM7: =(SUMIFS($CA$2:$CA$700,$AS$2:$AS$700,2)+SUMIFS($CA$2:$CA$700,$AS$2:$AS$700,1))/(SUMIFS($BZ$2:$BZ$700,$AS$2:$AS$700,2)+SUMIFS($BZ$2:$BZ$700,$AS$2:$AS$700,1))-1 -> -0.03371697059 | DN7: =SUMIFS($CA$2:$CA$700,$AS$2:$AS$700,2)/SUMIFS($BO$2:$BO$700,$AS$2:$AS$700,2)-1 -> 0.06810226364 | DO7: =SUMIFS($CA$2:$CA$700,$AS$2:$AS$700,2)/SUMIFS($BZ$2:$BZ$700,$AS$2:$AS$700,2)-1 -> -0.01725191448 | DP7: =SUMIFS($CA$2:$CA$700,$AS$2:$AS$700,3)/SUMIFS($BO$2:$BO$700,$AS$2:$AS$700,3)-1 -> 0.02566303926 | DQ7: =SUMIFS($CA$2:$CA$700,$AS$2:$AS$700,3)/SUMIFS($BZ$2:$BZ$700,$AS$2:$AS$700,3)-1 -> -0.02889605367
A8: 76001 | B8: 760013 | C8: 3 | D8: 76 | E8: 1 | F8: 001 | G8: VALLE DEL CAUCA | H8: CALI | I8: Independiente | J8: 6319 | K8: 12249 | L8: 144866 | M8: 141195 | N8: 130757 | O8: 132752 | P8: 132561 | Q8: 129040 | R8: 129194 | S8: 130418 | T8: 132464 | U8: 133450 | V8: 134746 | W8: 136212 | X8: 138263 | Y8: 137293 | Z8: 129063 | AA8: 131866 | AB8: 134108 | AC8: 134737 | AD8: 133519 | AE8: 133865 | AF8: 135093 | AG8: 137605 | AH8: 138453 | AI8: 139025 | AJ8: 141084 | AK8: 138189 | AQ8: 5364 | AR8: 53642 | AS8: 2 | AT8: 5 | AU8: 364 | AV8: 364 | AW8: ANTIOQUIA | AX8: JARDÍN | AY8: Dep_sec_priv | AZ8: 88 | BA8: 94 | BB8: 973 | BC8: 936 | BD8: 880 | BE8: 853 | BF8: 807 | BG8: 801 | BH8: 839 | BI8: 855 | BJ8: 854 | BK8: 823 | BL8: 817 | BM8: 906 | BN8: 967 | BO8: 1001 | BP8: 1051 | BQ8: 1022 | BR8: 971 | BS8: 1048 | BT8: 1093 | BU8: 1111 | BV8: 1098 | BW8: 1148 | BX8: 1099 | BY8: 1197 | BZ8: 1214 | CA8: 1176 | DK8: =PROPER(Visor!Q8) -> Medellín | DL8: =(SUMIFS($CA$2:$CA$700,$AX$2:$AX$700,Visor!$Q$8,'Cotizantes Mes'!$AS$2:$AS$700,2)+SUMIFS($CA$2:$CA$700,$AX$2:$AX$700,Visor!$Q$8,'Cotizantes Mes'!$AS$2:$AS$700,1))/(SUMIFS($BO$2:$BO$700,$AX$2:$AX$700,Visor!$Q$8,'Cotizantes Mes'!$AS$2:$AS$700,2)+SUMIFS($BO$2:$BO$700,$AX$2:$AX$700,Visor!$Q$8,'Cotizantes Mes'!$AS$2:$AS$700,1))-1 -> 0.06259301279 | DM8: =(SUMIFS($CA$2:$CA$700,$AS$2:$AS$700,2,$AX$2:$AX$700,Visor!$Q$8)+SUMIFS($CA$2:$CA$700,$AS$2:$AS$700,1,$AX$2:$AX$700,Visor!$Q$8))/(SUMIFS($BZ$2:$BZ$700,$AS$2:$AS$700,2,$AX$2:$AX$700,Visor!$Q$8)+SUMIFS($BZ$2:$BZ$700,$AS$2:$AS$700,1,$AX$2:$AX$700,Visor!$Q$8))-1 -> -0.03478123804 | DN8: =SUMIFS($CA$2:$CA$700,$AX$2:$AX$700,Visor!$Q$8,'Cotizantes Mes'!$AS$2:$AS$700,2)/SUMIFS($BO$2:$BO$700,$AX$2:$AX$700,Visor!$Q$8,'Cotizantes Mes'!$AS$2:$AS$700,2)-1 -> 0.06572756776 | DO8: =SUMIFS($CA$2:$CA$700,$AS$2:$AS$700,2,$AX$2:$AX$700,Visor!$Q$8)/SUMIFS($BZ$2:$BZ$700,$AS$2:$AS$700,2,$AX$2:$AX$700,Visor!$Q$8)-1 -> -0.01623129881 | DP8: =SUMIFS($CA$2:$CA$700,$AX$2:$AX$700,Visor!$Q$8,'Cotizantes Mes'!$AS$2:$AS$700,3)/SUMIFS($BO$2:$BO$700,$AX$2:$AX$700,Visor!$Q$8,'Cotizantes Mes'!$AS$2:$AS$700,3)-1 -> -0.00322445751 | DQ8: =SUMIFS($CA$2:$CA$700,$AS$2:$AS$700,3,$AX$2:$AX$700,Visor!$Q$8)/SUMIFS($BZ$2:$BZ$700,$AS$2:$AS$700,3,$AX$2:$AX$700,Visor!$Q$8)-1 -> -0.02503412624
A9: 11001 | B9: 110013 | C9: 3 | D9: 11 | E9: 1 | F9: 001 | G9: BOGOTÁ, D.C. | H9: BOGOTÁ, D.C. | I9: Independiente | J9: 45600 | K9: 59464 | L9: 747214 | M9: 728816 | N9: 702932 | O9: 709911 | P9: 699757 | Q9: 670201 | R9: 673546 | S9: 681882 | T9: 688062 | U9: 689182 | V9: 697798 | W9: 702823 | X9: 707119 | Y9: 703790 | Z9: 680821 | AA9: 685165 | AB9: 692922 | AC9: 693729 | AD9: 693578 | AE9: 696839 | AF9: 699038 | AG9: 701421 | AH9: 705516 | AI9: 706616 | AJ9: 703736 | AK9: 684365 | AQ9: 5631 | AR9: 56313 | AS9: 3 | AT9: 5 | AU9: 631 | AV9: 631 | AW9: ANTIOQUIA | AX9: SABANETA | AY9: Independiente | AZ9: 315 | BA9: 532 | BB9: 5162 | BC9: 5055 | BD9: 4838 | BE9: 5313 | BF9: 5486 | BG9: 5468 | BH9: 5644 | BI9: 5727 | BJ9: 5736 | BK9: 5926 | BL9: 6089 | BM9: 6254 | BN9: 6390 | BO9: 6351 | BP9: 6058 | BQ9: 6326 | BR9: 6462 | BS9: 6470 | BT9: 6565 | BU9: 6644 | BV9: 6687 | BW9: 6788 | BX9: 6880 | BY9: 6869 | BZ9: 6957 | CA9: 6885
A10: 76001 | B10: 760011 | C10: 1 | D10: 76 | E10: 1 | F10: 001 | G10: VALLE DEL CAUCA | H10: CALI | I10: Dep_No_priv | J10: 3976 | K10: 20026 | L10: 103424 | M10: 82415 | N10: 81774 | O10: 91558 | P10: 95334 | Q10: 79092 | R10: 77688 | S10: 75858 | T10: 80438 | U10: 88812 | V10: 94617 | W10: 95168 | X10: 92481 | Y10: 81040 | Z10: 71405 | AA10: 84428 | AB10: 85840 | AC10: 87973 | AD10: 86742 | AE10: 81835 | AF10: 76799 | AG10: 96072 | AH10: 98731 | AI10: 101158 | AJ10: 102843 | AK10: 85744 | AQ10: 5318 | AR10: 53183 | AS10: 3 | AT10: 5 | AU10: 318 | AV10: 318 | AW10: ANTIOQUIA | AX10: GUARNE | AY10: Independiente | AZ10: 55 | BA10: 231 | BB10: 1255 | BC10: 1226 | BD10: 1241 | BE10: 1346 | BF10: 1367 | BG10: 1376 | BH10: 1407 | BI10: 1440 | BJ10: 1477 | BK10: 1508 | BL10: 1554 | BM10: 1602 | BN10: 1638 | BO10: 1558 | BP10: 1463 | BQ10: 1537 | BR10: 1610 | BS10: 1641 | BT10: 1676 | BU10: 1710 | BV10: 1748 | BW10: 1793 | BX10: 1846 | BY10: 1862 | BZ10: 1887 | CA10: 1823
A11: 73449 | B11: 734493 | C11: 3 | D11: 73 | E11: 449 | F11: 449 | G11: TOLIMA | H11: MELGAR | I11: Independiente | J11: 78 | K11: 259 | L11: 1103 | M11: 1039 | N11: 963 | O11: 1105 | P11: 1186 | Q11: 1166 | R11: 1167 | S11: 1184 | T11: 1167 | U11: 1211 | V11: 1273 | W11: 1285 | X11: 1290 | Y11: 1275 | Z11: 1100 | AA11: 1317 | AB11: 1347 | AC11: 1352 | AD11: 1369 | AE11: 1336 | AF11: 1372 | AG11: 1392 | AH11: 1360 | AI11: 1363 | AJ11: 1407 | AK11: 1366 | AQ11: 5266 | AR11: 52663 | AS11: 3 | AT11: 5 | AU11: 266 | AV11: 266 | AW11: ANTIOQUIA | AX11: ENVIGADO | AY11: Independiente | AZ11: 691 | BA11: 1073 | BB11: 13084 | BC11: 13078 | BD11: 13198 | BE11: 13545 | BF11: 13736 | BG11: 13540 | BH11: 13683 | BI11: 13884 | BJ11: 14146 | BK11: 14364 | BL11: 14651 | BM11: 14870 | BN11: 15086 | BO11: 15194 | BP11: 15036 | BQ11: 15480 | BR11: 15761 | BS11: 15850 | BT11: 15912 | BU11: 16135 | BV11: 16195 | BW11: 16353 | BX11: 16526 | BY11: 16698 | BZ11: 16799 | CA11: 16470
A12: 5318 | B12: 53182 | C12: 2 | D12: 5 | E12: 318 | F12: 318 | G12: ANTIOQUIA | H12: GUARNE | I12: Dep_sec_priv | J12: 542 | K12: 1164 | L12: 7326 | M12: 7207 | N12: 7067 | O12: 7109 | P12: 7401 | Q12: 7152 | R12: 7187 | S12: 7149 | T12: 7168 | U12: 7196 | V12: 7410 | W12: 7609 | X12: 7752 | Y12: 7938 | Z12: 7967 | AA12: 8134 | AB12: 8353 | AC12: 8560 | AD12: 8664 | AE12: 8685 | AF12: 8820 | AG12: 8943 | AH12: 8787 | AI12: 8958 | AJ12: 9038 | AK12: 9009 | AQ12: 5607 | AR12: 56073 | AS12: 3 | AT12: 5 | AU12: 607 | AV12: 607 | AW12: ANTIOQUIA | AX12: RETIRO | AY12: Independiente | AZ12: 54 | BA12: 96 | BB12: 1080 | BC12: 1039 | BD12: 1043 | BE12: 1097 | BF12: 1103 | BG12: 1085 | BH12: 1120 | BI12: 1142 | BJ12: 1172 | BK12: 1192 | BL12: 1242 | BM12: 1263 | BN12: 1280 | BO12: 1272 | BP12: 1262 | BQ12: 1312 | BR12: 1339 | BS12: 1365 | BT12: 1397 | BU12: 1419 | BV12: 1450 | BW12: 1466 | BX12: 1444 | BY12: 1466 | BZ12: 1493 | CA12: 1494 | CH12: ="Variaciones de "&PROPER(Visor!Q8) -> Variaciones de Medellín
A13: 5001 | B13: 50012 | C13: 2 | D13: 5 | E13: 1 | F13: 001 | G13: ANTIOQUIA | H13: MEDELLÍN | I13: Dep_sec_priv | J13: 70070 | K13: 149514 | L13: 1127854 | M13: 1104203 | N13: 1094445 | O13: 1107180 | P13: 1093233 | Q13: 1011385 | R13: 1009410 | S13: 1012761 | T13: 1018893 | U13: 1022077 | V13: 1042526 | W13: 1060282 | X13: 1072957 | Y13: 1068897 | Z13: 1055629 | AA13: 1077769 | AB13: 1092066 | AC13: 1090930 | AD13: 1093576 | AE13: 1100684 | AF13: 1113199 | AG13: 1128115 | AH13: 1141136 | AI13: 1148616 | AJ13: 1157948 | AK13: 1139153 | AQ13: 5579 | AR13: 55793 | AS13: 3 | AT13: 5 | AU13: 579 | AV13: 579 | AW13: ANTIOQUIA | AX13: PUERTO BERRÍO | AY13: Independiente | AZ13: 57 | BA13: 328 | BB13: 874 | BC13: 811 | BD13: 735 | BE13: 772 | BF13: 806 | BG13: 800 | BH13: 817 | BI13: 828 | BJ13: 848 | BK13: 850 | BL13: 858 | BM13: 914 | BN13: 1057 | BO13: 1033 | BP13: 764 | BQ13: 794 | BR13: 861 | BS13: 936 | BT13: 981 | BU13: 972 | BV13: 1014 | BW13: 1032 | BX13: 1043 | BY13: 981 | BZ13: 1108 | CA13: 1056 | CH13: =CH4 -> 2019-12-01 | CI13: =CI4 -> 2020-01-01 | CJ13: 2020-02-01 | CK13: 2020-03-01 | CL13: 2020-04-01 | CM13: 2020-05-01 | CN13: 2020-06-01 | CO13: 2020-07-01 | CP13: 2020-08-01 | CQ13: 2020-09-01 | CR13: 2020-10-01 | CS13: 2020-11-01 | CT13: 2020-12-01 | CU13: 2021-01-01 | CV13: 2021-02-01 | CW13: 2021-03-01 | CX13: 2021-04-01 | CY13: 2021-05-01 | CZ13: 2021-06-01 | DA13: 2021-07-01 | DB13: 2021-08-01 | DC13: 2021-09-01 | DD13: 2021-10-01 | DE13: 2021-11-01 | DF13: 2021-12-01
A14: 5400 | B14: 54002 | C14: 2 | D14: 5 | E14: 400 | F14: 400 | G14: ANTIOQUIA | H14: LA UNIÓN | I14: Dep_sec_priv | J14: 210 | K14: 273 | L14: 1948 | M14: 1939 | N14: 1892 | O14: 1937 | P14: 1902 | Q14: 1735 | R14: 1729 | S14: 1730 | T14: 1788 | U14: 1827 | V14: 1864 | W14: 1859 | X14: 1866 | Y14: 1824 | Z14: 1824 | AA14: 1891 | AB14: 1923 | AC14: 1944 | AD14: 1863 | AE14: 1884 | AF14: 1911 | AG14: 1933 | AH14: 1951 | AI14: 2025 | AJ14: 2074 | AK14: 2096 | AQ14: 5615 | AR14: 56153 | AS14: 3 | AT14: 5 | AU14: 615 | AV14: 615 | AW14: ANTIOQUIA | AX14: RIONEGRO | AY14: Independiente | AZ14: 286 | BA14: 680 | BB14: 9813 | BC14: 9608 | BD14: 9261 | BE14: 9409 | BF14: 9392 | BG14: 9006 | BH14: 8864 | BI14: 9010 | BJ14: 9135 | BK14: 9373 | BL14: 9486 | BM14: 9649 | BN14: 9709 | BO14: 9627 | BP14: 9453 | BQ14: 9531 | BR14: 9793 | BS14: 9972 | BT14: 10008 | BU14: 10079 | BV14: 10171 | BW14: 10307 | BX14: 10333 | BY14: 10410 | BZ14: 10433 | CA14: 10170 | CG14: Independientes | CH14: =IFERROR(SUMIFS(BC$2:BC$500,$AS$2:$AS$500,3,$AX$2:$AX$500,Visor!$Q$8)/SUMIFS(BB$2:BB$500,$AS$2:$AS$500,3,$AX$2:$AX$500,Visor!$Q$8)-1,"") -> -0.02041983334 | CI14: =IFERROR(SUMIFS(BD$2:BD$500,$AS$2:$AS$500,3,$AX$2:$AX$500,Visor!$Q$8)/SUMIFS(BC$2:BC$500,$AS$2:$AS$500,3,$AX$2:$AX$500,Visor!$Q$8)-1,"") -> -0.03576364462 | CJ14: =IFERROR(SUMIFS(BE$2:BE$500,$AS$2:$AS$500,3,$AX$2:$AX$500,Visor!$Q$8)/SUMIFS(BD$2:BD$500,$AS$2:$AS$500,3,$AX$2:$AX$500,Visor!$Q$8)-1,"") -> 0.009225961016 | CK14: =IFERROR(SUMIFS(BF$2:BF$500,$AS$2:$AS$500,3,$AX$2:$AX$500,Visor!$Q$8)/SUMIFS(BE$2:BE$500,$AS$2:$AS$500,3,$AX$2:$AX$500,Visor!$Q$8)-1,"") -> -0.008890392838 | CL14: =IFERROR(SUMIFS(BG$2:BG$500,$AS$2:$AS$500,3,$AX$2:$AX$500,Visor!$Q$8)/SUMIFS(BF$2:BF$500,$AS$2:$AS$500,3,$AX$2:$AX$500,Visor!$Q$8)-1,"") -> -0.03979659404 | CM14: =IFERROR(SUMIFS(BH$2:BH$500,$AS$2:$AS$500,3,$AX$2:$AX$500,Visor!$Q$8)/SUMIFS(BG$2:BG$500,$AS$2:$AS$500,3,$AX$2:$AX$500,Visor!$Q$8)-1,"") -> 0.004234571559 | CN14: =IFERROR(SUMIFS(BI$2:BI$500,$AS$2:$AS$500,3,$AX$2:$AX$500,Visor!$Q$8)/SUMIFS(BH$2:BH$500,$AS$2:$AS$500,3,$AX$2:$AX$500,Visor!$Q$8)-1,"") -> 0.0164269505 | CO14: =IFERROR(SUMIFS(BJ$2:BJ$500,$AS$2:$AS$500,3,$AX$2:$AX$500,Visor!$Q$8)/SUMIFS(BI$2:BI$500,$AS$2:$AS$500,3,$AX$2:$AX$500,Visor!$Q$8)-1,"") -> 0.009125792371 | CP14: =IFERROR(SUMIFS(BK$2:BK$500,$AS$2:$AS$500,3,$AX$2:$AX$500,Visor!$Q$8)/SUMIFS(BJ$2:BJ$500,$AS$2:$AS$500,3,$AX$2:$AX$500,Visor!$Q$8)-1,"") -> 0.008964810243 | CQ14: =IFERROR(SUMIFS(BL$2:BL$500,$AS$2:$AS$500,3,$AX$2:$AX$500,Visor!$Q$8)/SUMIFS(BK$2:BK$500,$AS$2:$AS$500,3,$AX$2:$AX$500,Visor!$Q$8)-1,"") -> 0.01301151856 | CR14: =IFERROR(SUMIFS(BM$2:BM$500,$AS$2:$AS$500,3,$AX$2:$AX$500,Visor!$Q$8)/SUMIFS(BL$2:BL$500,$AS$2:$AS$500,3,$AX$2:$AX$500,Visor!$Q$8)-1,"") -> 0.01177488026 | CS14: =IFERROR(SUMIFS(BN$2:BN$500,$AS$2:$AS$500,3,$AX$2:$AX$500,Visor!$Q$8)/SUMIFS(BM$2:BM$500,$AS$2:$AS$500,3,$AX$2:$AX$500,Visor!$Q$8)-1,"") -> 0.009665329739 | CT14: =IFERROR(SUMIFS(BO$2:BO$500,$AS$2:$AS$500,3,$AX$2:$AX$500,Visor!$Q$8)/SUMIFS(BN$2:BN$500,$AS$2:$AS$500,3,$AX$2:$AX$500,Visor!$Q$8)-1,"") -> -0.005735668343 | CU14: =IFERROR(SUMIFS(BP$2:BP$500,$AS$2:$AS$500,3,$AX$2:$AX$500,Visor!$Q$8)/SUMIFS(BO$2:BO$500,$AS$2:$AS$500,3,$AX$2:$AX$500,Visor!$Q$8)-1,"") -> -0.02500969856 | CV14: =IFERROR(SUMIFS(BQ$2:BQ$500,$AS$2:$AS$500,3,$AX$2:$AX$500,Visor!$Q$8)/SUMIFS(BP$2:BP$500,$AS$2:$AS$500,3,$AX$2:$AX$500,Visor!$Q$8)-1,"") -> 0.008169740439 | CW14: =IFERROR(SUMIFS(BR$2:BR$500,$AS$2:$AS$500,3,$AX$2:$AX$500,Visor!$Q$8)/SUMIFS(BQ$2:BQ$500,$AS$2:$AS$500,3,$AX$2:$AX$500,Visor!$Q$8)-1,"") -> 0.009651460789 | CX14: =IFERROR(SUMIFS(BS$2:BS$500,$AS$2:$AS$500,3,$AX$2:$AX$500,Visor!$Q$8)/SUMIFS(BR$2:BR$500,$AS$2:$AS$500,3,$AX$2:$AX$500,Visor!$Q$8)-1,"") -> 0.003254087916 | CY14: =IFERROR(SUMIFS(BT$2:BT$500,$AS$2:$AS$500,3,$AX$2:$AX$500,Visor!$Q$8)/SUMIFS(BS$2:BS$500,$AS$2:$AS$500,3,$AX$2:$AX$500,Visor!$Q$8)-1,"") -> 0.003025948265 | CZ14: =IFERROR(SUMIFS(BU$2:BU$500,$AS$2:$AS$500,3,$AX$2:$AX$500,Visor!$Q$8)/SUMIFS(BT$2:BT$500,$AS$2:$AS$500,3,$AX$2:$AX$500,Visor!$Q$8)-1,"") -> 0.002910877703 | DA14: =IFERROR(SUMIFS(BV$2:BV$500,$AS$2:$AS$500,3,$AX$2:$AX$500,Visor!$Q$8)/SUMIFS(BU$2:BU$500,$AS$2:$AS$500,3,$AX$2:$AX$500,Visor!$Q$8)-1,"") -> 0.0002263592875 | DB14: =IFERROR(SUMIFS(BW$2:BW$500,$AS$2:$AS$500,3,$AX$2:$AX$500,Visor!$Q$8)/SUMIFS(BV$2:BV$500,$AS$2:$AS$500,3,$AX$2:$AX$500,Visor!$Q$8)-1,"") -> 0.01012854298 | DC14: =IFERROR(SUMIFS(BX$2:BX$500,$AS$2:$AS$500,3,$AX$2:$AX$500,Visor!$Q$8)/SUMIFS(BW$2:BW$500,$AS$2:$AS$500,3,$AX$2:$AX$500,Visor!$Q$8)-1,"") -> 0.006432404983 | DD14: =IFERROR(SUMIFS(BY$2:BY$500,$AS$2:$AS$500,3,$AX$2:$AX$500,Visor!$Q$8)/SUMIFS(BX$2:BX$500,$AS$2:$AS$500,3,$AX$2:$AX$500,Visor!$Q$8)-1,"") -> 0.001637397972 | DE14: =IFERROR(SUMIFS(BZ$2:BZ$500,$AS$2:$AS$500,3,$AX$2:$AX$500,Visor!$Q$8)/SUMIFS(BY$2:BY$500,$AS$2:$AS$500,3,$AX$2:$AX$500,Visor!$Q$8)-1,"") -> 0.002182920867 | DF14: =IFERROR(SUMIFS(CA$2:CA$500,$AS$2:$AS$500,3,$AX$2:$AX$500,Visor!$Q$8)/SUMIFS(BZ$2:BZ$500,$AS$2:$AS$500,3,$AX$2:$AX$500,Visor!$Q$8)-1,"") -> -0.02503412624
A15: 68001 | B15: 680013 | C15: 3 | D15: 68 | E15: 1 | F15: 001 | G15: SANTANDER | H15: BUCARAMANGA | I15: Independiente | J15: 2714 | K15: 5708 | L15: 65239 | M15: 64315 | N15: 61203 | O15: 61938 | P15: 61334 | Q15: 59117 | R15: 59055 | S15: 59849 | T15: 60156 | U15: 60169 | V15: 60581 | W15: 61429 | X15: 61810 | Y15: 62124 | Z15: 58901 | AA15: 59753 | AB15: 60624 | AC15: 60826 | AD15: 60985 | AE15: 61325 | AF15: 61472 | AG15: 61415 | AH15: 61900 | AI15: 62196 | AJ15: 62382 | AK15: 60978 | AQ15: 5079 | AR15: 50792 | AS15: 2 | AT15: 5 | AU15: 79 | AV15: 079 | AW15: ANTIOQUIA | AX15: BARBOSA | AY15: Dep_sec_priv | AZ15: 230 | BA15: 702 | BB15: 4047 | BC15: 4000 | BD15: 4097 | BE15: 4200 | BF15: 4285 | BG15: 4044 | BH15: 4119 | BI15: 4274 | BJ15: 4315 | BK15: 4330 | BL15: 4371 | BM15: 4336 | BN15: 4377 | BO15: 4267 | BP15: 4204 | BQ15: 4263 | BR15: 4120 | BS15: 4000 | BT15: 3930 | BU15: 3933 | BV15: 4031 | BW15: 4021 | BX15: 3861 | BY15: 3934 | BZ15: 4140 | CA15: 3968 | CG15: Dependientes | CH15: =IFERROR((SUMIFS(BC$2:BC$500,$AS$2:$AS$500,2,$AX$2:$AX$500,Visor!$Q$8)+SUMIFS(BC$2:BC$500,$AS$2:$AS$500,1,$AX$2:$AX$500,Visor!$Q$8))/(SUMIFS(BB$2:BB$500,$AS$2:$AS$500,2,$AX$2:$AX$500,Visor!$Q$8)+SUMIFS(BB$2:BB$500,$AS$2:$AS$500,1,$AX$2:$AX$500,Visor!$Q$8))-1,"") -> -0.050040864 | CI15: =IFERROR((SUMIFS(BD$2:BD$500,$AS$2:$AS$500,2,$AX$2:$AX$500,Visor!$Q$8)+SUMIFS(BD$2:BD$500,$AS$2:$AS$500,1,$AX$2:$AX$500,Visor!$Q$8))/(SUMIFS(BC$2:BC$500,$AS$2:$AS$500,2,$AX$2:$AX$500,Visor!$Q$8)+SUMIFS(BC$2:BC$500,$AS$2:$AS$500,1,$AX$2:$AX$500,Visor!$Q$8))-1,"") -> -0.01082637591 | CJ15: =IFERROR((SUMIFS(BE$2:BE$500,$AS$2:$AS$500,2,$AX$2:$AX$500,Visor!$Q$8)+SUMIFS(BE$2:BE$500,$AS$2:$AS$500,1,$AX$2:$AX$500,Visor!$Q$8))/(SUMIFS(BD$2:BD$500,$AS$2:$AS$500,2,$AX$2:$AX$500,Visor!$Q$8)+SUMIFS(BD$2:BD$500,$AS$2:$AS$500,1,$AX$2:$AX$500,Visor!$Q$8))-1,"") -> 0.02504987664 | CK15: =IFERROR((SUMIFS(BF$2:BF$500,$AS$2:$AS$500,2,$AX$2:$AX$500,Visor!$Q$8)+SUMIFS(BF$2:BF$500,$AS$2:$AS$500,1,$AX$2:$AX$500,Visor!$Q$8))/(SUMIFS(BE$2:BE$500,$AS$2:$AS$500,2,$AX$2:$AX$500,Visor!$Q$8)+SUMIFS(BE$2:BE$500,$AS$2:$AS$500,1,$AX$2:$AX$500,Visor!$Q$8))-1,"") -> -0.00493582478 | CL15: =IFERROR((SUMIFS(BG$2:BG$500,$AS$2:$AS$500,2,$AX$2:$AX$500,Visor!$Q$8)+SUMIFS(BG$2:BG$500,$AS$2:$AS$500,1,$AX$2:$AX$500,Visor!$Q$8))/(SUMIFS(BF$2:BF$500,$AS$2:$AS$500,2,$AX$2:$AX$500,Visor!$Q$8)+SUMIFS(BF$2:BF$500,$AS$2:$AS$500,1,$AX$2:$AX$500,Visor!$Q$8))-1,"") -> -0.07814155491 | CM15: =IFERROR((SUMIFS(BH$2:BH$500,$AS$2:$AS$500,2,$AX$2:$AX$500,Visor!$Q$8)+SUMIFS(BH$2:BH$500,$AS$2:$AS$500,1,$AX$2:$AX$500,Visor!$Q$8))/(SUMIFS(BG$2:BG$500,$AS$2:$AS$500,2,$AX$2:$AX$500,Visor!$Q$8)+SUMIFS(BG$2:BG$500,$AS$2:$AS$500,1,$AX$2:$AX$500,Visor!$Q$8))-1,"") -> -0.001073392801 | CN15: =IFERROR((SUMIFS(BI$2:BI$500,$AS$2:$AS$500,2,$AX$2:$AX$500,Visor!$Q$8)+SUMIFS(BI$2:BI$500,$AS$2:$AS$500,1,$AX$2:$AX$500,Visor!$Q$8))/(SUMIFS(BH$2:BH$500,$AS$2:$AS$500,2,$AX$2:$AX$500,Visor!$Q$8)+SUMIFS(BH$2:BH$500,$AS$2:$AS$500,1,$AX$2:$AX$500,Visor!$Q$8))-1,"") -> 0.007619430974 | CO15: =IFERROR((SUMIFS(BJ$2:BJ$500,$AS$2:$AS$500,2,$AX$2:$AX$500,Visor!$Q$8)+SUMIFS(BJ$2:BJ$500,$AS$2:$AS$500,1,$AX$2:$AX$500,Visor!$Q$8))/(SUMIFS(BI$2:BI$500,$AS$2:$AS$500,2,$AX$2:$AX$500,Visor!$Q$8)+SUMIFS(BI$2:BI$500,$AS$2:$AS$500,1,$AX$2:$AX$500,Visor!$Q$8))-1,"") -> 0.008173034473 | CP15: =IFERROR((SUMIFS(BK$2:BK$500,$AS$2:$AS$500,2,$AX$2:$AX$500,Visor!$Q$8)+SUMIFS(BK$2:BK$500,$AS$2:$AS$500,1,$AX$2:$AX$500,Visor!$Q$8))/(SUMIFS(BJ$2:BJ$500,$AS$2:$AS$500,2,$AX$2:$AX$500,Visor!$Q$8)+SUMIFS(BJ$2:BJ$500,$AS$2:$AS$500,1,$AX$2:$AX$500,Visor!$Q$8))-1,"") -> 0.00758639279 | CQ15: =IFERROR((SUMIFS(BL$2:BL$500,$AS$2:$AS$500,2,$AX$2:$AX$500,Visor!$Q$8)+SUMIFS(BL$2:BL$500,$AS$2:$AS$500,1,$AX$2:$AX$500,Visor!$Q$8))/(SUMIFS(BK$2:BK$500,$AS$2:$AS$500,2,$AX$2:$AX$500,Visor!$Q$8)+SUMIFS(BK$2:BK$500,$AS$2:$AS$500,1,$AX$2:$AX$500,Visor!$Q$8))-1,"") -> 0.01864596299 | CR15: =IFERROR((SUMIFS(BM$2:BM$500,$AS$2:$AS$500,2,$AX$2:$AX$500,Visor!$Q$8)+SUMIFS(BM$2:BM$500,$AS$2:$AS$500,1,$AX$2:$AX$500,Visor!$Q$8))/(SUMIFS(BL$2:BL$500,$AS$2:$AS$500,2,$AX$2:$AX$500,Visor!$Q$8)+SUMIFS(BL$2:BL$500,$AS$2:$AS$500,1,$AX$2:$AX$500,Visor!$Q$8))-1,"") -> 0.008866925696 | CS15: =IFERROR((SUMIFS(BN$2:BN$500,$AS$2:$AS$500,2,$AX$2:$AX$500,Visor!$Q$8)+SUMIFS(BN$2:BN$500,$AS$2:$AS$500,1,$AX$2:$AX$500,Visor!$Q$8))/(SUMIFS(BM$2:BM$500,$AS$2:$AS$500,2,$AX$2:$AX$500,Visor!$Q$8)+SUMIFS(BM$2:BM$500,$AS$2:$AS$500,1,$AX$2:$AX$500,Visor!$Q$8))-1,"") -> 0.005854128807 | CT15: =IFERROR((SUMIFS(BO$2:BO$500,$AS$2:$AS$500,2,$AX$2:$AX$500,Visor!$Q$8)+SUMIFS(BO$2:BO$500,$AS$2:$AS$500,1,$AX$2:$AX$500,Visor!$Q$8))/(SUMIFS(BN$2:BN$500,$AS$2:$AS$500,2,$AX$2:$AX$500,Visor!$Q$8)+SUMIFS(BN$2:BN$500,$AS$2:$AS$500,1,$AX$2:$AX$500,Visor!$Q$8))-1,"") -> -0.01201647152 | CU15: =IFERROR((SUMIFS(BP$2:BP$500,$AS$2:$AS$500,2,$AX$2:$AX$500,Visor!$Q$8)+SUMIFS(BP$2:BP$500,$AS$2:$AS$500,1,$AX$2:$AX$500,Visor!$Q$8))/(SUMIFS(BO$2:BO$500,$AS$2:$AS$500,2,$AX$2:$AX$500,Visor!$Q$8)+SUMIFS(BO$2:BO$500,$AS$2:$AS$500,1,$AX$2:$AX$500,Visor!$Q$8))-1,"") -> -0.01547617179 | CV15: =IFERROR((SUMIFS(BQ$2:BQ$500,$AS$2:$AS$500,2,$AX$2:$AX$500,Visor!$Q$8)+SUMIFS(BQ$2:BQ$500,$AS$2:$AS$500,1,$AX$2:$AX$500,Visor!$Q$8))/(SUMIFS(BP$2:BP$500,$AS$2:$AS$500,2,$AX$2:$AX$500,Visor!$Q$8)+SUMIFS(BP$2:BP$500,$AS$2:$AS$500,1,$AX$2:$AX$500,Visor!$Q$8))-1,"") -> 0.03154800773 | CW15: =IFERROR((SUMIFS(BR$2:BR$500,$AS$2:$AS$500,2,$AX$2:$AX$500,Visor!$Q$8)+SUMIFS(BR$2:BR$500,$AS$2:$AS$500,1,$AX$2:$AX$500,Visor!$Q$8))/(SUMIFS(BQ$2:BQ$500,$AS$2:$AS$500,2,$AX$2:$AX$500,Visor!$Q$8)+SUMIFS(BQ$2:BQ$500,$AS$2:$AS$500,1,$AX$2:$AX$500,Visor!$Q$8))-1,"") -> 0.01847373808 | CX15: =IFERROR((SUMIFS(BS$2:BS$500,$AS$2:$AS$500,2,$AX$2:$AX$500,Visor!$Q$8)+SUMIFS(BS$2:BS$500,$AS$2:$AS$500,1,$AX$2:$AX$500,Visor!$Q$8))/(SUMIFS(BR$2:BR$500,$AS$2:$AS$500,2,$AX$2:$AX$500,Visor!$Q$8)+SUMIFS(BR$2:BR$500,$AS$2:$AS$500,1,$AX$2:$AX$500,Visor!$Q$8))-1,"") -> -0.001517079729 | CY15: =IFERROR((SUMIFS(BT$2:BT$500,$AS$2:$AS$500,2,$AX$2:$AX$500,Visor!$Q$8)+SUMIFS(BT$2:BT$500,$AS$2:$AS$500,1,$AX$2:$AX$500,Visor!$Q$8))/(SUMIFS(BS$2:BS$500,$AS$2:$AS$500,2,$AX$2:$AX$500,Visor!$Q$8)+SUMIFS(BS$2:BS$500,$AS$2:$AS$500,1,$AX$2:$AX$500,Visor!$Q$8))-1,"") -> 0.00491899815 | CZ15: =IFERROR((SUMIFS(BU$2:BU$500,$AS$2:$AS$500,2,$AX$2:$AX$500,Visor!$Q$8)+SUMIFS(BU$2:BU$500,$AS$2:$AS$500,1,$AX$2:$AX$500,Visor!$Q$8))/(SUMIFS(BT$2:BT$500,$AS$2:$AS$500,2,$AX$2:$AX$500,Visor!$Q$8)+SUMIFS(BT$2:BT$500,$AS$2:$AS$500,1,$AX$2:$AX$500,Visor!$Q$8))-1,"") -> 0.005516737314 | DA15: =IFERROR((SUMIFS(BV$2:BV$500,$AS$2:$AS$500,2,$AX$2:$AX$500,Visor!$Q$8)+SUMIFS(BV$2:BV$500,$AS$2:$AS$500,1,$AX$2:$AX$500,Visor!$Q$8))/(SUMIFS(BU$2:BU$500,$AS$2:$AS$500,2,$AX$2:$AX$500,Visor!$Q$8)+SUMIFS(BU$2:BU$500,$AS$2:$AS$500,1,$AX$2:$AX$500,Visor!$Q$8))-1,"") -> 0.007043965398 | DB15: =IFERROR((SUMIFS(BW$2:BW$500,$AS$2:$AS$500,2,$AX$2:$AX$500,Visor!$Q$8)+SUMIFS(BW$2:BW$500,$AS$2:$AS$500,1,$AX$2:$AX$500,Visor!$Q$8))/(SUMIFS(BV$2:BV$500,$AS$2:$AS$500,2,$AX$2:$AX$500,Visor!$Q$8)+SUMIFS(BV$2:BV$500,$AS$2:$AS$500,1,$AX$2:$AX$500,Visor!$Q$8))-1,"") -> 0.02106978891 | DC15: =IFERROR((SUMIFS(BX$2:BX$500,$AS$2:$AS$500,2,$AX$2:$AX$500,Visor!$Q$8)+SUMIFS(BX$2:BX$500,$AS$2:$AS$500,1,$AX$2:$AX$500,Visor!$Q$8))/(SUMIFS(BW$2:BW$500,$AS$2:$AS$500,2,$AX$2:$AX$500,Visor!$Q$8)+SUMIFS(BW$2:BW$500,$AS$2:$AS$500,1,$AX$2:$AX$500,Visor!$Q$8))-1,"") -> 0.01561814175 | DD15: =IFERROR((SUMIFS(BY$2:BY$500,$AS$2:$AS$500,2,$AX$2:$AX$500,Visor!$Q$8)+SUMIFS(BY$2:BY$500,$AS$2:$AS$500,1,$AX$2:$AX$500,Visor!$Q$8))/(SUMIFS(BX$2:BX$500,$AS$2:$AS$500,2,$AX$2:$AX$500,Visor!$Q$8)+SUMIFS(BX$2:BX$500,$AS$2:$AS$500,1,$AX$2:$AX$500,Visor!$Q$8))-1,"") -> 0.007430434453 | DE15: =IFERROR((SUMIFS(BZ$2:BZ$500,$AS$2:$AS$500,2,$AX$2:$AX$500,Visor!$Q$8)+SUMIFS(BZ$2:BZ$500,$AS$2:$AS$500,1,$AX$2:$AX$500,Visor!$Q$8))/(SUMIFS(BY$2:BY$500,$AS$2:$AS$500,2,$AX$2:$AX$500,Visor!$Q$8)+SUMIFS(BY$2:BY$500,$AS$2:$AS$500,1,$AX$2:$AX$500,Visor!$Q$8))-1,"") -> 0.002686836758 | DF15: =IFERROR((SUMIFS(CA$2:CA$500,$AS$2:$AS$500,2,$AX$2:$AX$500,Visor!$Q$8)+SUMIFS(CA$2:CA$500,$AS$2:$AS$500,1,$AX$2:$AX$500,Visor!$Q$8))/(SUMIFS(BZ$2:BZ$500,$AS$2:$AS$500,2,$AX$2:$AX$500,Visor!$Q$8)+SUMIFS(BZ$2:BZ$500,$AS$2:$AS$500,1,$AX$2:$AX$500,Visor!$Q$8))-1,"") -> -0.03478123804
A16: 5631 | B16: 56312 | C16: 2 | D16: 5 | E16: 631 | F16: 631 | G16: ANTIOQUIA | H16: SABANETA | I16: Dep_sec_priv | J16: 1372 | K16: 3342 | L16: 21368 | M16: 21159 | N16: 21316 | O16: 21669 | P16: 21588 | Q16: 20083 | R16: 19937 | S16: 19781 | T16: 19952 | U16: 20406 | V16: 20788 | W16: 21224 | X16: 22120 | Y16: 21856 | Z16: 21776 | AA16: 22115 | AB16: 22477 | AC16: 22434 | AD16: 22365 | AE16: 22249 | AF16: 22647 | AG16: 23048 | AH16: 23638 | AI16: 24087 | AJ16: 24172 | AK16: 23734 | AQ16: 5088 | AR16: 50883 | AS16: 3 | AT16: 5 | AU16: 88 | AV16: 088 | AW16: ANTIOQUIA | AX16: BELLO | AY16: Independiente | AZ16: 506 | BA16: 1411 | BB16: 9890 | BC16: 9689 | BD16: 9375 | BE16: 9661 | BF16: 9802 | BG16: 9921 | BH16: 10066 | BI16: 10256 | BJ16: 10473 | BK16: 10688 | BL16: 11048 | BM16: 11389 | BN16: 11680 | BO16: 11521 | BP16: 10700 | BQ16: 11176 | BR16: 11610 | BS16: 11780 | BT16: 12045 | BU16: 12189 | BV16: 12282 | BW16: 12438 | BX16: 12578 | BY16: 12720 | BZ16: 12951 | CA16: 12514 | CG16: Dep.Privados | CH16: =IFERROR(SUMIFS(BC$2:BC$500,$AS$2:$AS$500,2,$AX$2:$AX$500,Visor!$Q$8)/SUMIFS(BB$2:BB$500,$AS$2:$AS$500,2,$AX$2:$AX$500,Visor!$Q$8)-1,"") -> -0.02096991277 | CI16: =IFERROR(SUMIFS(BD$2:BD$500,$AS$2:$AS$500,2,$AX$2:$AX$500,Visor!$Q$8)/SUMIFS(BC$2:BC$500,$AS$2:$AS$500,2,$AX$2:$AX$500,Visor!$Q$8)-1,"") -> -0.00883714317 | CJ16: =IFERROR(SUMIFS(BE$2:BE$500,$AS$2:$AS$500,2,$AX$2:$AX$500,Visor!$Q$8)/SUMIFS(BD$2:BD$500,$AS$2:$AS$500,2,$AX$2:$AX$500,Visor!$Q$8)-1,"") -> 0.0116360347 | CK16: =IFERROR(SUMIFS(BF$2:BF$500,$AS$2:$AS$500,2,$AX$2:$AX$500,Visor!$Q$8)/SUMIFS(BE$2:BE$500,$AS$2:$AS$500,2,$AX$2:$AX$500,Visor!$Q$8)-1,"") -> -0.01259686772 | CL16: =IFERROR(SUMIFS(BG$2:BG$500,$AS$2:$AS$500,2,$AX$2:$AX$500,Visor!$Q$8)/SUMIFS(BF$2:BF$500,$AS$2:$AS$500,2,$AX$2:$AX$500,Visor!$Q$8)-1,"") -> -0.0748678461 | CM16: =IFERROR(SUMIFS(BH$2:BH$500,$AS$2:$AS$500,2,$AX$2:$AX$500,Visor!$Q$8)/SUMIFS(BG$2:BG$500,$AS$2:$AS$500,2,$AX$2:$AX$500,Visor!$Q$8)-1,"") -> -0.001952767739 | CN16: =IFERROR(SUMIFS(BI$2:BI$500,$AS$2:$AS$500,2,$AX$2:$AX$500,Visor!$Q$8)/SUMIFS(BH$2:BH$500,$AS$2:$AS$500,2,$AX$2:$AX$500,Visor!$Q$8)-1,"") -> 0.003319761049 | CO16: =IFERROR(SUMIFS(BJ$2:BJ$500,$AS$2:$AS$500,2,$AX$2:$AX$500,Visor!$Q$8)/SUMIFS(BI$2:BI$500,$AS$2:$AS$500,2,$AX$2:$AX$500,Visor!$Q$8)-1,"") -> 0.00605473552 | CP16: =IFERROR(SUMIFS(BK$2:BK$500,$AS$2:$AS$500,2,$AX$2:$AX$500,Visor!$Q$8)/SUMIFS(BJ$2:BJ$500,$AS$2:$AS$500,2,$AX$2:$AX$500,Visor!$Q$8)-1,"") -> 0.003124960128 | CQ16: =IFERROR(SUMIFS(BL$2:BL$500,$AS$2:$AS$500,2,$AX$2:$AX$500,Visor!$Q$8)/SUMIFS(BK$2:BK$500,$AS$2:$AS$500,2,$AX$2:$AX$500,Visor!$Q$8)-1,"") -> 0.02000729886 | CR16: =IFERROR(SUMIFS(BM$2:BM$500,$AS$2:$AS$500,2,$AX$2:$AX$500,Visor!$Q$8)/SUMIFS(BL$2:BL$500,$AS$2:$AS$500,2,$AX$2:$AX$500,Visor!$Q$8)-1,"") -> 0.01703170952 | CS16: =IFERROR(SUMIFS(BN$2:BN$500,$AS$2:$AS$500,2,$AX$2:$AX$500,Visor!$Q$8)/SUMIFS(BM$2:BM$500,$AS$2:$AS$500,2,$AX$2:$AX$500,Visor!$Q$8)-1,"") -> 0.01195436686 | CT16: =IFERROR(SUMIFS(BO$2:BO$500,$AS$2:$AS$500,2,$AX$2:$AX$500,Visor!$Q$8)/SUMIFS(BN$2:BN$500,$AS$2:$AS$500,2,$AX$2:$AX$500,Visor!$Q$8)-1,"") -> -0.003783935423 | CU16: =IFERROR(SUMIFS(BP$2:BP$500,$AS$2:$AS$500,2,$AX$2:$AX$500,Visor!$Q$8)/SUMIFS(BO$2:BO$500,$AS$2:$AS$500,2,$AX$2:$AX$500,Visor!$Q$8)-1,"") -> -0.01241279562 | CV16: =IFERROR(SUMIFS(BQ$2:BQ$500,$AS$2:$AS$500,2,$AX$2:$AX$500,Visor!$Q$8)/SUMIFS(BP$2:BP$500,$AS$2:$AS$500,2,$AX$2:$AX$500,Visor!$Q$8)-1,"") -> 0.02097327754 | CW16: =IFERROR(SUMIFS(BR$2:BR$500,$AS$2:$AS$500,2,$AX$2:$AX$500,Visor!$Q$8)/SUMIFS(BQ$2:BQ$500,$AS$2:$AS$500,2,$AX$2:$AX$500,Visor!$Q$8)-1,"") -> 0.01326536577 | CX16: =IFERROR(SUMIFS(BS$2:BS$500,$AS$2:$AS$500,2,$AX$2:$AX$500,Visor!$Q$8)/SUMIFS(BR$2:BR$500,$AS$2:$AS$500,2,$AX$2:$AX$500,Visor!$Q$8)-1,"") -> -0.001040230169 | CY16: =IFERROR(SUMIFS(BT$2:BT$500,$AS$2:$AS$500,2,$AX$2:$AX$500,Visor!$Q$8)/SUMIFS(BS$2:BS$500,$AS$2:$AS$500,2,$AX$2:$AX$500,Visor!$Q$8)-1,"") -> 0.002425453512 | CZ16: =IFERROR(SUMIFS(BU$2:BU$500,$AS$2:$AS$500,2,$AX$2:$AX$500,Visor!$Q$8)/SUMIFS(BT$2:BT$500,$AS$2:$AS$500,2,$AX$2:$AX$500,Visor!$Q$8)-1,"") -> 0.006499776879 | DA16: =IFERROR(SUMIFS(BV$2:BV$500,$AS$2:$AS$500,2,$AX$2:$AX$500,Visor!$Q$8)/SUMIFS(BU$2:BU$500,$AS$2:$AS$500,2,$AX$2:$AX$500,Visor!$Q$8)-1,"") -> 0.01137020253 | DB16: =IFERROR(SUMIFS(BW$2:BW$500,$AS$2:$AS$500,2,$AX$2:$AX$500,Visor!$Q$8)/SUMIFS(BV$2:BV$500,$AS$2:$AS$500,2,$AX$2:$AX$500,Visor!$Q$8)-1,"") -> 0.01339922152 | DC16: =IFERROR(SUMIFS(BX$2:BX$500,$AS$2:$AS$500,2,$AX$2:$AX$500,Visor!$Q$8)/SUMIFS(BW$2:BW$500,$AS$2:$AS$500,2,$AX$2:$AX$500,Visor!$Q$8)-1,"") -> 0.01154226298 | DD16: =IFERROR(SUMIFS(BY$2:BY$500,$AS$2:$AS$500,2,$AX$2:$AX$500,Visor!$Q$8)/SUMIFS(BX$2:BX$500,$AS$2:$AS$500,2,$AX$2:$AX$500,Visor!$Q$8)-1,"") -> 0.006554871637 | DE16: =IFERROR(SUMIFS(BZ$2:BZ$500,$AS$2:$AS$500,2,$AX$2:$AX$500,Visor!$Q$8)/SUMIFS(BY$2:BY$500,$AS$2:$AS$500,2,$AX$2:$AX$500,Visor!$Q$8)-1,"") -> 0.00812456034 | DF16: =IFERROR(SUMIFS(CA$2:CA$500,$AS$2:$AS$500,2,$AX$2:$AX$500,Visor!$Q$8)/SUMIFS(BZ$2:BZ$500,$AS$2:$AS$500,2,$AX$2:$AX$500,Visor!$Q$8)-1,"") -> -0.01623129881
A17: 13001 | B17: 130012 | C17: 2 | D17: 13 | E17: 1 | F17: 001 | G17: BOLÍVAR | H17: CARTAGENA | I17: Dep_sec_priv | J17: 19862 | K17: 27092 | L17: 220066 | M17: 218746 | N17: 212984 | O17: 215648 | P17: 212090 | Q17: 192503 | R17: 190347 | S17: 187729 | T17: 186192 | U17: 186988 | V17: 188796 | W17: 192470 | X17: 196494 | Y17: 198740 | Z17: 193980 | AA17: 200196 | AB17: 206086 | AC17: 205035 | AD17: 203358 | AE17: 204872 | AF17: 207593 | AG17: 211347 | AH17: 215623 | AI17: 219303 | AJ17: 221580 | AK17: 220415 | AQ17: 5059 | AR17: 50592 | AS17: 2 | AT17: 5 | AU17: 59 | AV17: 059 | AW17: ANTIOQUIA | AX17: ARMENIA | AY17: Dep_sec_priv | AZ17: 35 | BA17: 36 | BB17: 256 | BC17: 294 | BD17: 221 | BE17: 201 | BF17: 160 | BG17: 162 | BH17: 160 | BI17: 172 | BJ17: 171 | BK17: 179 | BL17: 170 | BM17: 162 | BN17: 166 | BO17: 171 | BP17: 160 | BQ17: 163 | BR17: 188 | BS17: 174 | BT17: 201 | BU17: 186 | BV17: 228 | BW17: 307 | BX17: 263 | BY17: 285 | BZ17: 309 | CA17: 296
A18: 68013 | B18: 680132 | C18: 2 | D18: 68 | E18: 13 | F18: 013 | G18: SANTANDER | H18: AGUADA | I18: Dep_sec_priv | J18: 30 | K18: 40 | L18: 1089 | M18: 902 | N18: 888 | O18: 1713 | P18: 841 | Q18: 791 | R18: 713 | S18: 782 | T18: 833 | U18: 709 | V18: 716 | W18: 703 | X18: 842 | Y18: 1014 | Z18: 982 | AA18: 982 | AB18: 1883 | AC18: 757 | AD18: 779 | AE18: 1645 | AF18: 705 | AG18: 742 | AH18: 962 | AI18: 1385 | AJ18: 373 | AK18: 470 | AQ18: 5088 | AR18: 50882 | AS18: 2 | AT18: 5 | AU18: 88 | AV18: 088 | AW18: ANTIOQUIA | AX18: BELLO | AY18: Dep_sec_priv | AZ18: 2247 | BA18: 6215 | BB18: 36306 | BC18: 35235 | BD18: 35284 | BE18: 36724 | BF18: 36487 | BG18: 33646 | BH18: 33969 | BI18: 35134 | BJ18: 35451 | BK18: 35154 | BL18: 35474 | BM18: 35955 | BN18: 36307 | BO18: 35912 | BP18: 35462 | BQ18: 36968 | BR18: 37587 | BS18: 37317 | BT18: 37463 | BU18: 36638 | BV18: 37160 | BW18: 37628 | BX18: 38139 | BY18: 38431 | BZ18: 39172 | CA18: 37298
A19: 25126 | B19: 251263 | C19: 3 | D19: 25 | E19: 126 | F19: 126 | G19: CUNDINAMARCA | H19: CAJICÁ | I19: Independiente | J19: 234 | K19: 367 | L19: 4621 | M19: 4424 | N19: 4443 | O19: 4545 | P19: 4610 | Q19: 4427 | R19: 4458 | S19: 4558 | T19: 4714 | U19: 4751 | V19: 4909 | W19: 5038 | X19: 5057 | Y19: 5041 | Z19: 4981 | AA19: 5159 | AB19: 5261 | AC19: 5351 | AD19: 5391 | AE19: 5429 | AF19: 5450 | AG19: 5523 | AH19: 5597 | AI19: 5636 | AJ19: 5641 | AK19: 5475 | AQ19: 5212 | AR19: 52122 | AS19: 2 | AT19: 5 | AU19: 212 | AV19: 212 | AW19: ANTIOQUIA | AX19: COPACABANA | AY19: Dep_sec_priv | AZ19: 412 | BA19: 1146 | BB19: 7806 | BC19: 7629 | BD19: 7471 | BE19: 7630 | BF19: 7454 | BG19: 7027 | BH19: 6809 | BI19: 6903 | BJ19: 7046 | BK19: 7162 | BL19: 7357 | BM19: 7627 | BN19: 7835 | BO19: 7726 | BP19: 7708 | BQ19: 7785 | BR19: 7824 | BS19: 7659 | BT19: 7511 | BU19: 7429 | BV19: 7390 | BW19: 7439 | BX19: 7485 | BY19: 7476 | BZ19: 7376 | CA19: 7300
A20: 41001 | B20: 410013 | C20: 3 | D20: 41 | E20: 1 | F20: 001 | G20: HUILA | H20: NEIVA | I20: Independiente | J20: 1398 | K20: 3239 | L20: 21935 | M20: 21367 | N20: 20337 | O20: 21016 | P20: 20992 | Q20: 20204 | R20: 20287 | S20: 20600 | T20: 20987 | U20: 21392 | V20: 21901 | W20: 22276 | X20: 22583 | Y20: 22256 | Z20: 20707 | AA20: 21726 | AB20: 22161 | AC20: 22476 | AD20: 22413 | AE20: 22588 | AF20: 22810 | AG20: 22956 | AH20: 23112 | AI20: 23286 | AJ20: 23345 | AK20: 22702 | AQ20: 5091 | AR20: 50913 | AS20: 3 | AT20: 5 | AU20: 91 | AV20: 091 | AW20: ANTIOQUIA | AX20: BETANIA | AY20: Independiente | AZ20: 2 | BA20: 27 | BB20: 314 | BC20: 283 | BD20: 281 | BE20: 299 | BF20: 290 | BG20: 282 | BH20: 279 | BI20: 288 | BJ20: 289 | BK20: 291 | BL20: 291 | BM20: 315 | BN20: 327 | BO20: 321 | BP20: 288 | BQ20: 286 | BR20: 277 | BS20: 273 | BT20: 266 | BU20: 265 | BV20: 263 | BW20: 269 | BX20: 269 | BY20: 267 | BZ20: 263 | CA20: 256
A21: 5001 | B21: 50013 | C21: 3 | D21: 5 | E21: 1 | F21: 001 | G21: ANTIOQUIA | H21: MEDELLÍN | I21: Independiente | J21: 8595 | K21: 14749 | L21: 204605 | M21: 200427 | N21: 193259 | O21: 195042 | P21: 193308 | Q21: 185615 | R21: 186401 | S21: 189463 | T21: 191192 | U21: 192906 | V21: 195416 | W21: 197717 | X21: 199628 | Y21: 198483 | Z21: 193519 | AA21: 195100 | AB21: 196983 | AC21: 197624 | AD21: 198222 | AE21: 198799 | AF21: 198844 | AG21: 200858 | AH21: 202150 | AI21: 202481 | AJ21: 202923 | AK21: 197843 | AQ21: 5736 | AR21: 57361 | AS21: 1 | AT21: 5 | AU21: 736 | AV21: 736 | AW21: ANTIOQUIA | AX21: SEGOVIA | AY21: Dep_No_priv | AZ21: 19 | BA21: 37 | BB21: 546 | BC21: 531 | BD21: 508 | BE21: 510 | BF21: 517 | BG21: 507 | BH21: 501 | BI21: 495 | BJ21: 511 | BK21: 534 | BL21: 538 | BM21: 529 | BN21: 534 | BO21: 539 | BP21: 534 | BQ21: 543 | BR21: 537 | BS21: 522 | BT21: 517 | BU21: 523 | BV21: 526 | BW21: 528 | BX21: 523 | BY21: 524 | BZ21: 538 | CA21: 540
A22: 63001 | B22: 630013 | C22: 3 | D22: 63 | E22: 1 | F22: 001 | G22: QUINDÍO | H22: ARMENIA | I22: Independiente | J22: 982 | K22: 2142 | L22: 24386 | M22: 23656 | N22: 22518 | O22: 23405 | P22: 23332 | Q22: 22482 | R22: 22366 | S22: 22306 | T22: 22220 | U22: 22369 | V22: 22602 | W22: 22894 | X22: 23541 | Y22: 23342 | Z22: 22074 | AA22: 23082 | AB22: 23380 | AC22: 23456 | AD22: 23380 | AE22: 23523 | AF22: 23600 | AG22: 23670 | AH22: 23939 | AI22: 24080 | AJ22: 24106 | AK22: 23365 | AQ22: 5091 | AR22: 50911 | AS22: 1 | AT22: 5 | AU22: 91 | AV22: 091 | AW22: ANTIOQUIA | AX22: BETANIA | AY22: Dep_No_priv | AZ22: 11 | BA22: 16 | BB22: 161 | BC22: 158 | BD22: 158 | BE22: 156 | BF22: 164 | BG22: 164 | BH22: 164 | BI22: 163 | BJ22: 164 | BK22: 164 | BL22: 163 | BM22: 160 | BN22: 159 | BO22: 166 | BP22: 157 | BQ22: 158 | BR22: 160 | BS22: 161 | BT22: 164 | BU22: 163 | BV22: 168 | BW22: 172 | BX22: 169 | BY22: 175 | BZ22: 174 | CA22: 177
A23: 23001 | B23: 230012 | C23: 2 | D23: 23 | E23: 1 | F23: 001 | G23: CÓRDOBA | H23: MONTERÍA | I23: Dep_sec_priv | J23: 6385 | K23: 13852 | L23: 78719 | M23: 76095 | N23: 69702 | O23: 72007 | P23: 73611 | Q23: 69001 | R23: 70744 | S23: 70783 | T23: 70773 | U23: 71057 | V23: 71998 | W23: 73257 | X23: 74681 | Y23: 74310 | Z23: 68926 | AA23: 70501 | AB23: 72195 | AC23: 72723 | AD23: 73676 | AE23: 74674 | AF23: 75132 | AG23: 76231 | AH23: 78434 | AI23: 79029 | AJ23: 81165 | AK23: 80089 | AQ23: 5873 | AR23: 58731 | AS23: 1 | AT23: 5 | AU23: 873 | AV23: 873 | AW23: ANTIOQUIA | AX23: VIGÍA DEL FUERTE | AY23: Dep_No_priv | AZ23: 5 | BA23: 18 | BB23: 178 | BC23: 176 | BD23: 183 | BE23: 178 | BF23: 186 | BG23: 185 | BH23: 184 | BI23: 181 | BJ23: 184 | BK23: 187 | BL23: 184 | BM23: 189 | BN23: 190 | BO23: 190 | BP23: 180 | BQ23: 194 | BR23: 196 | BS23: 188 | BT23: 182 | BU23: 181 | BV23: 181 | BW23: 180 | BX23: 182 | BY23: 185 | BZ23: 188 | CA23: 188
A24: 23001 | B24: 230013 | C24: 3 | D24: 23 | E24: 1 | F24: 001 | G24: CÓRDOBA | H24: MONTERÍA | I24: Independiente | J24: 1022 | K24: 2311 | L24: 17935 | M24: 17107 | N24: 15780 | O24: 16248 | P24: 16210 | Q24: 15565 | R24: 15560 | S24: 15731 | T24: 15956 | U24: 16141 | V24: 16428 | W24: 16745 | X24: 17049 | Y24: 16555 | Z24: 15467 | AA24: 16133 | AB24: 16770 | AC24: 17025 | AD24: 17228 | AE24: 17428 | AF24: 17567 | AG24: 17758 | AH24: 17893 | AI24: 18032 | AJ24: 18000 | AK24: 16992 | AQ24: 5004 | AR24: 50043 | AS24: 3 | AT24: 5 | AU24: 4 | AV24: 004 | AW24: ANTIOQUIA | AX24: ABRIAQUÍ | AY24: Independiente | AZ24: 2 | BA24: 38 | BB24: 59 | BC24: 38 | BD24: 39 | BE24: 55 | BF24: 57 | BG24: 54 | BH24: 56 | BI24: 58 | BJ24: 55 | BK24: 52 | BL24: 126 | BM24: 137 | BN24: 137 | BO24: 137 | BP24: 113 | BQ24: 118 | BR24: 118 | BS24: 110 | BT24: 66 | BU24: 70 | BV24: 72 | BW24: 71 | BX24: 76 | BY24: 72 | BZ24: 71 | CA24: 69
A25: 68001 | B25: 680012 | C25: 2 | D25: 68 | E25: 1 | F25: 001 | G25: SANTANDER | H25: BUCARAMANGA | I25: Dep_sec_priv | J25: 17260 | K25: 36508 | L25: 255409 | M25: 250960 | N25: 242271 | O25: 248724 | P25: 247656 | Q25: 224551 | R25: 222116 | S25: 224781 | T25: 226420 | U25: 227915 | V25: 231298 | W25: 234370 | X25: 238293 | Y25: 237014 | Z25: 231570 | AA25: 238511 | AB25: 241688 | AC25: 242360 | AD25: 241595 | AE25: 245154 | AF25: 248172 | AG25: 251677 | AH25: 252750 | AI25: 254032 | AJ25: 257877 | AK25: 253443 | AQ25: 5483 | AR25: 54831 | AS25: 1 | AT25: 5 | AU25: 483 | AV25: 483 | AW25: ANTIOQUIA | AX25: NARIÑO | AY25: Dep_No_priv | AZ25: 7 | BA25: 11 | BB25: 205 | BC25: 202 | BD25: 196 | BE25: 184 | BF25: 189 | BG25: 190 | BH25: 190 | BI25: 191 | BJ25: 192 | BK25: 193 | BL25: 194 | BM25: 194 | BN25: 189 | BO25: 187 | BP25: 189 | BQ25: 194 | BR25: 195 | BS25: 203 | BT25: 208 | BU25: 203 | BV25: 200 | BW25: 192 | BX25: 195 | BY25: 194 | BZ25: 197 | CA25: 197
A26: 8001 | B26: 80013 | C26: 3 | D26: 8 | E26: 1 | F26: 001 | G26: ATLÁNTICO | H26: BARRANQUILLA | I26: Independiente | J26: 4264 | K26: 7495 | L26: 68166 | M26: 64103 | N26: 61739 | O26: 63134 | P26: 63178 | Q26: 68149 | R26: 67822 | S26: 62585 | T26: 62835 | U26: 63437 | V26: 64661 | W26: 65723 | X26: 66180 | Y26: 64126 | Z26: 60987 | AA26: 61972 | AB26: 63937 | AC26: 65526 | AD26: 66576 | AE26: 67001 | AF26: 66956 | AG26: 67456 | AH26: 67986 | AI26: 68077 | AJ26: 67795 | AK26: 63263 | AQ26: 5282 | AR26: 52821 | AS26: 1 | AT26: 5 | AU26: 282 | AV26: 282 | AW26: ANTIOQUIA | AX26: FREDONIA | AY26: Dep_No_priv | AZ26: 8 | BA26: 19 | BB26: 368 | BC26: 350 | BD26: 361 | BE26: 366 | BF26: 367 | BG26: 368 | BH26: 377 | BI26: 378 | BJ26: 375 | BK26: 385 | BL26: 393 | BM26: 388 | BN26: 383 | BO26: 375 | BP26: 361 | BQ26: 353 | BR26: 374 | BS26: 390 | BT26: 399 | BU26: 392 | BV26: 397 | BW26: 394 | BX26: 397 | BY26: 407 | BZ26: 422 | CA26: 404
A27: 25175 | B27: 251753 | C27: 3 | D27: 25 | E27: 175 | F27: 175 | G27: CUNDINAMARCA | H27: CHÍA | I27: Independiente | J27: 360 | K27: 640 | L27: 10586 | M27: 10430 | N27: 10171 | O27: 10210 | P27: 10093 | Q27: 9797 | R27: 9866 | S27: 10049 | T27: 10156 | U27: 10154 | V27: 10252 | W27: 10392 | X27: 10510 | Y27: 10563 | Z27: 10330 | AA27: 10518 | AB27: 10732 | AC27: 10810 | AD27: 10887 | AE27: 10896 | AF27: 10971 | AG27: 10972 | AH27: 11026 | AI27: 11021 | AJ27: 10912 | AK27: 10757 | AQ27: 5129 | AR27: 51292 | AS27: 2 | AT27: 5 | AU27: 129 | AV27: 129 | AW27: ANTIOQUIA | AX27: CALDAS | AY27: Dep_sec_priv | AZ27: 623 | BA27: 1579 | BB27: 7864 | BC27: 7613 | BD27: 7668 | BE27: 7940 | BF27: 7903 | BG27: 6744 | BH27: 7031 | BI27: 7120 | BJ27: 7459 | BK27: 7612 | BL27: 7826 | BM27: 8086 | BN27: 8203 | BO27: 8315 | BP27: 8462 | BQ27: 8551 | BR27: 8697 | BS27: 8687 | BT27: 8642 | BU27: 8693 | BV27: 8718 | BW27: 8749 | BX27: 8907 | BY27: 9110 | BZ27: 9084 | CA27: 8884
A28: 50006 | B28: 500063 | C28: 3 | D28: 50 | E28: 6 | F28: 006 | G28: META | H28: ACACÍAS | I28: Independiente | J28: 176 | K28: 415 | L28: 2984 | M28: 2809 | N28: 2440 | O28: 2507 | P28: 2502 | Q28: 2385 | R28: 2360 | S28: 2421 | T28: 2401 | U28: 2443 | V28: 2465 | W28: 2536 | X28: 2546 | Y28: 2577 | Z28: 2399 | AA28: 2476 | AB28: 2540 | AC28: 2582 | AD28: 2637 | AE28: 2655 | AF28: 2737 | AG28: 2709 | AH28: 2723 | AI28: 2709 | AJ28: 2688 | AK28: 2654 | AQ28: 5579 | AR28: 55792 | AS28: 2 | AT28: 5 | AU28: 579 | AV28: 579 | AW28: ANTIOQUIA | AX28: PUERTO BERRÍO | AY28: Dep_sec_priv | AZ28: 569 | BA28: 1406 | BB28: 5603 | BC28: 5467 | BD28: 5214 | BE28: 5429 | BF28: 5418 | BG28: 4953 | BH28: 5045 | BI28: 5043 | BJ28: 5157 | BK28: 5251 | BL28: 5564 | BM28: 5612 | BN28: 5463 | BO28: 5697 | BP28: 5683 | BQ28: 5934 | BR28: 6220 | BS28: 6404 | BT28: 6474 | BU28: 6664 | BV28: 6508 | BW28: 6424 | BX28: 6554 | BY28: 5971 | BZ28: 5942 | CA28: 5531 | CG28: Novedades | CH28: Privados | CJ28: Independientes | CN28: Privados | CP28: Independientes
A29: 68001 | B29: 680011 | C29: 1 | D29: 68 | E29: 1 | F29: 001 | G29: SANTANDER | H29: BUCARAMANGA | I29: Dep_No_priv | J29: 2794 | K29: 7987 | L29: 57644 | M29: 37872 | N29: 36344 | O29: 42583 | P29: 44926 | Q29: 35326 | R29: 36383 | S29: 46282 | T29: 33671 | U29: 36751 | V29: 38674 | W29: 46674 | X29: 41293 | Y29: 38402 | Z29: 30924 | AA29: 38511 | AB29: 41393 | AC29: 42687 | AD29: 44029 | AE29: 43981 | AF29: 49395 | AG29: 54119 | AH29: 54513 | AI29: 55229 | AJ29: 64751 | AK29: 37638 | AQ29: 5360 | AR29: 53602 | AS29: 2 | AT29: 5 | AU29: 360 | AV29: 360 | AW29: ANTIOQUIA | AX29: ITAGUI | AY29: Dep_sec_priv | AZ29: 2552 | BA29: 7858 | BB29: 47667 | BC29: 46625 | BD29: 46417 | BE29: 47693 | BF29: 47425 | BG29: 44050 | BH29: 43987 | BI29: 44526 | BJ29: 45013 | BK29: 45708 | BL29: 47022 | BM29: 47571 | BN29: 47868 | BO29: 47788 | BP29: 46857 | BQ29: 47987 | BR29: 48756 | BS29: 48981 | BT29: 48977 | BU29: 50473 | BV29: 50644 | BW29: 50735 | BX29: 51230 | BY29: 52105 | BZ29: 52334 | CA29: 51353 | CH29: Ingresos | CI29: Retiros | CJ29: Ingresos | CK29: Retiros | CN29: Ingresos | CO29: Retiros | CP29: Ingresos | CQ29: Retiros
A30: 73001 | B30: 730013 | C30: 3 | D30: 73 | E30: 1 | F30: 001 | G30: TOLIMA | H30: IBAGUÉ | I30: Independiente | J30: 1706 | K30: 4312 | L30: 33283 | M30: 32231 | N30: 29323 | O30: 29804 | P30: 29791 | Q30: 29117 | R30: 29273 | S30: 29773 | T30: 29904 | U30: 30158 | V30: 30484 | W30: 31172 | X30: 31690 | Y30: 31375 | Z30: 29138 | AA30: 30199 | AB30: 30918 | AC30: 31209 | AD30: 31535 | AE30: 31877 | AF30: 32353 | AG30: 32691 | AH30: 33017 | AI30: 33295 | AJ30: 33271 | AK30: 32085 | AQ30: 5615 | AR30: 56152 | AS30: 2 | AT30: 5 | AU30: 615 | AV30: 615 | AW30: ANTIOQUIA | AX30: RIONEGRO | AY30: Dep_sec_priv | AZ30: 3780 | BA30: 7383 | BB30: 46959 | BC30: 46306 | BD30: 46447 | BE30: 46643 | BF30: 45493 | BG30: 40581 | BH30: 40664 | BI30: 41752 | BJ30: 41780 | BK30: 42082 | BL30: 43614 | BM30: 44870 | BN30: 45752 | BO30: 45398 | BP30: 46180 | BQ30: 47096 | BR30: 47873 | BS30: 47062 | BT30: 46741 | BU30: 47804 | BV30: 48832 | BW30: 49190 | BX30: 50668 | BY30: 51182 | BZ30: 51201 | CA30: 50200 | CG30: =Visor!$Q$7 -> ANTIOQUIA | CH30: =SUMIFS($AZ$2:$AZ$500,$AY$2:$AY$500,"Dep_sec_priv") -> 99070 | CI30: =SUMIFS($BA$2:$BA$500,$AY$2:$AY$500,"Dep_sec_priv") -> 219440 | CJ30: =SUMIFS($AZ$2:$AZ$500,$AY$2:$AY$500,"Independiente") -> 13434 | CK30: =SUMIFS($BA$2:$BA$500,$AY$2:$AY$500,"Independiente") -> 28783 | CM30: =Visor!$Q$7 -> ANTIOQUIA | CN30: =CH30/CH$30 -> 1 | CO30: 1 | CP30: 1 | CQ30: 1
A31: 8001 | B31: 80012 | C31: 2 | D31: 8 | E31: 1 | F31: 001 | G31: ATLÁNTICO | H31: BARRANQUILLA | I31: Dep_sec_priv | J31: 32175 | K31: 60678 | L31: 400200 | M31: 395988 | N31: 388944 | O31: 393728 | P31: 391258 | Q31: 362261 | R31: 363664 | S31: 366545 | T31: 369682 | U31: 369868 | V31: 374228 | W31: 378826 | X31: 381751 | Y31: 380244 | Z31: 374006 | AA31: 381647 | AB31: 389510 | AC31: 390454 | AD31: 392617 | AE31: 397781 | AF31: 402730 | AG31: 408388 | AH31: 412972 | AI31: 417286 | AJ31: 420659 | AK31: 415058 | AQ31: 5284 | AR31: 52841 | AS31: 1 | AT31: 5 | AU31: 284 | AV31: 284 | AW31: ANTIOQUIA | AX31: FRONTINO | AY31: Dep_No_priv | AZ31: 17 | BA31: 39 | BB31: 373 | BC31: 364 | BD31: 354 | BE31: 350 | BF31: 356 | BG31: 360 | BH31: 365 | BI31: 366 | BJ31: 372 | BK31: 381 | BL31: 382 | BM31: 379 | BN31: 369 | BO31: 373 | BP31: 361 | BQ31: 433 | BR31: 443 | BS31: 442 | BT31: 445 | BU31: 450 | BV31: 433 | BW31: 438 | BX31: 436 | BY31: 440 | BZ31: 437 | CA31: 445 | CG31: =Visor!$Q$8 -> MEDELLÍN | CH31: =SUMIFS($AZ$2:$AZ$500,$AY$2:$AY$500,"Dep_sec_priv",$AX$2:$AX$500,Visor!$Q$8) -> 70070 | CI31: =SUMIFS($BA$2:$BA$500,$AY$2:$AY$500,"Dep_sec_priv",$AX$2:$AX$500,Visor!$Q$8) -> 149514 | CJ31: =SUMIFS($AZ$2:$AZ$500,$AY$2:$AY$500,"Independiente",$AX$2:$AX$500,Visor!$Q$8) -> 8595 | CK31: =SUMIFS($BA$2:$BA$500,$AY$2:$AY$500,"Independiente",$AX$2:$AX$500,Visor!$Q$8) -> 14749 | CM31: =Visor!$Q$8 -> MEDELLÍN | CN31: 0.7072776824 | CO31: 0.6813434196 | CP31: 0.6397945511 | CQ31: 0.512420526
A32: 19698 | B32: 196982 | C32: 2 | D32: 19 | E32: 698 | F32: 698 | G32: CAUCA | H32: SANTANDER DE QUILICHAO | I32: Dep_sec_priv | J32: 419 | K32: 1979 | L32: 8128 | M32: 7981 | N32: 7032 | O32: 7997 | P32: 8081 | Q32: 7657 | R32: 7515 | S32: 7394 | T32: 7535 | U32: 7765 | V32: 7762 | W32: 7882 | X32: 7689 | Y32: 7721 | Z32: 6759 | AA32: 7641 | AB32: 7779 | AC32: 7876 | AD32: 7653 | AE32: 7832 | AF32: 8151 | AG32: 8099 | AH32: 8182 | AI32: 8194 | AJ32: 8270 | AK32: 7971 | AQ32: 5690 | AR32: 56902 | AS32: 2 | AT32: 5 | AU32: 690 | AV32: 690 | AW32: ANTIOQUIA | AX32: SANTO DOMINGO | AY32: Dep_sec_priv | AZ32: 20 | BA32: 77 | BB32: 369 | BC32: 330 | BD32: 251 | BE32: 241 | BF32: 242 | BG32: 281 | BH32: 268 | BI32: 272 | BJ32: 252 | BK32: 265 | BL32: 265 | BM32: 285 | BN32: 278 | BO32: 277 | BP32: 249 | BQ32: 251 | BR32: 255 | BS32: 248 | BT32: 250 | BU32: 245 | BV32: 274 | BW32: 262 | BX32: 289 | BY32: 282 | BZ32: 259 | CA32: 248
A33: 41001 | B33: 410012 | C33: 2 | D33: 41 | E33: 1 | F33: 001 | G33: HUILA | H33: NEIVA | I33: Dep_sec_priv | J33: 6109 | K33: 13117 | L33: 78185 | M33: 77031 | N33: 73459 | O33: 75967 | P33: 74671 | Q33: 67159 | R33: 67090 | S33: 67441 | T33: 68382 | U33: 69093 | V33: 70940 | W33: 72270 | X33: 73666 | Y33: 72553 | Z33: 69852 | AA33: 72313 | AB33: 73343 | AC33: 73875 | AD33: 72346 | AE33: 73730 | AF33: 75368 | AG33: 77568 | AH33: 78505 | AI33: 79301 | AJ33: 80261 | AK33: 78995 | AQ33: 5045 | AR33: 50452 | AS33: 2 | AT33: 5 | AU33: 45 | AV33: 045 | AW33: ANTIOQUIA | AX33: APARTADÓ | AY33: Dep_sec_priv | AZ33: 1983 | BA33: 4330 | BB33: 35254 | BC33: 34432 | BD33: 34231 | BE33: 34633 | BF33: 34746 | BG33: 32784 | BH33: 34217 | BI33: 34924 | BJ33: 35383 | BK33: 35461 | BL33: 35785 | BM33: 36162 | BN33: 36453 | BO33: 36035 | BP33: 35475 | BQ33: 36109 | BR33: 36900 | BS33: 37156 | BT33: 37696 | BU33: 37184 | BV33: 36782 | BW33: 36893 | BX33: 37429 | BY33: 37382 | BZ33: 36858 | CA33: 35777
A34: 66400 | B34: 664002 | C34: 2 | D34: 66 | E34: 400 | F34: 400 | G34: RISARALDA | H34: LA VIRGINIA | I34: Dep_sec_priv | J34: 228 | K34: 410 | L34: 3000 | M34: 2889 | N34: 2794 | O34: 2773 | P34: 2852 | Q34: 2750 | R34: 2863 | S34: 2780 | T34: 2803 | U34: 2870 | V34: 2864 | W34: 2908 | X34: 2962 | Y34: 2785 | Z34: 2698 | AA34: 2700 | AB34: 2864 | AC34: 2878 | AD34: 2872 | AE34: 2918 | AF34: 2818 | AG34: 2809 | AH34: 2904 | AI34: 3027 | AJ34: 3191 | AK34: 3080 | AQ34: 5761 | AR34: 57612 | AS34: 2 | AT34: 5 | AU34: 761 | AV34: 761 | AW34: ANTIOQUIA | AX34: SOPETRÁN | AY34: Dep_sec_priv | AZ34: 55 | BA34: 85 | BB34: 678 | BC34: 676 | BD34: 647 | BE34: 659 | BF34: 628 | BG34: 595 | BH34: 628 | BI34: 622 | BJ34: 643 | BK34: 644 | BL34: 641 | BM34: 654 | BN34: 697 | BO34: 639 | BP34: 638 | BQ34: 704 | BR34: 696 | BS34: 686 | BT34: 670 | BU34: 680 | BV34: 659 | BW34: 658 | BX34: 684 | BY34: 708 | BZ34: 618 | CA34: 624
A35: 73349 | B35: 733493 | C35: 3 | D35: 73 | E35: 349 | F35: 349 | G35: TOLIMA | H35: HONDA | I35: Independiente | J35: 39 | K35: 98 | L35: 1021 | M35: 1002 | N35: 968 | O35: 993 | P35: 1000 | Q35: 976 | R35: 987 | S35: 1021 | T35: 1032 | U35: 1027 | V35: 1026 | W35: 1038 | X35: 1036 | Y35: 1051 | Z35: 965 | AA35: 992 | AB35: 994 | AC35: 995 | AD35: 991 | AE35: 1009 | AF35: 1037 | AG35: 1024 | AH35: 1049 | AI35: 1060 | AJ35: 1053 | AK35: 1019 | AQ35: 5440 | AR35: 54403 | AS35: 3 | AT35: 5 | AU35: 440 | AV35: 440 | AW35: ANTIOQUIA | AX35: MARINILLA | AY35: Independiente | AZ35: 79 | BA35: 158 | BB35: 2139 | BC35: 2031 | BD35: 1963 | BE35: 2088 | BF35: 2110 | BG35: 2062 | BH35: 2060 | BI35: 2110 | BJ35: 2151 | BK35: 2168 | BL35: 2214 | BM35: 2250 | BN35: 2283 | BO35: 2255 | BP35: 2193 | BQ35: 2249 | BR35: 2288 | BS35: 2326 | BT35: 2363 | BU35: 2389 | BV35: 2384 | BW35: 2413 | BX35: 2439 | BY35: 2517 | BZ35: 2548 | CA35: 2441
A36: 50001 | B36: 500013 | C36: 3 | D36: 50 | E36: 1 | F36: 001 | G36: META | H36: VILLAVICENCIO | I36: Independiente | J36: 1890 | K36: 4728 | L36: 28967 | M36: 27997 | N36: 25813 | O36: 26360 | P36: 26173 | Q36: 24700 | R36: 24855 | S36: 25468 | T36: 25808 | U36: 26073 | V36: 26761 | W36: 27365 | X36: 27644 | Y36: 27502 | Z36: 25191 | AA36: 26398 | AB36: 27243 | AC36: 27688 | AD36: 27571 | AE36: 27729 | AF36: 28098 | AG36: 28564 | AH36: 28804 | AI36: 28933 | AJ36: 29011 | AK36: 28022 | AQ36: 5819 | AR36: 58192 | AS36: 2 | AT36: 5 | AU36: 819 | AV36: 819 | AW36: ANTIOQUIA | AX36: TOLEDO | AY36: Dep_sec_priv | AZ36: 19 | BA36: 46 | BB36: 518 | BC36: 543 | BD36: 462 | BE36: 478 | BF36: 439 | BG36: 437 | BH36: 454 | BI36: 476 | BJ36: 455 | BK36: 456 | BL36: 462 | BM36: 452 | BN36: 472 | BO36: 460 | BP36: 421 | BQ36: 438 | BR36: 462 | BS36: 469 | BT36: 476 | BU36: 483 | BV36: 486 | BW36: 476 | BX36: 503 | BY36: 512 | BZ36: 489 | CA36: 491
A37: 54405 | B37: 544052 | C37: 2 | D37: 54 | E37: 405 | F37: 405 | G37: NORTE DE SANTANDER | H37: LOS PATIOS | I37: Dep_sec_priv | J37: 145 | K37: 519 | L37: 2355 | M37: 2176 | N37: 2227 | O37: 2270 | P37: 2251 | Q37: 2189 | R37: 2377 | S37: 2446 | T37: 2598 | U37: 2534 | V37: 2505 | W37: 2397 | X37: 2372 | Y37: 2264 | Z37: 2361 | AA37: 2477 | AB37: 2532 | AC37: 2579 | AD37: 2713 | AE37: 2718 | AF37: 2820 | AG37: 2858 | AH37: 2868 | AI37: 2831 | AJ37: 2905 | AK37: 2773 | AQ37: 5376 | AR37: 53763 | AS37: 3 | AT37: 5 | AU37: 376 | AV37: 376 | AW37: ANTIOQUIA | AX37: LA CEJA | AY37: Independiente | AZ37: 136 | BA37: 383 | BB37: 3098 | BC37: 3036 | BD37: 2888 | BE37: 3015 | BF37: 3037 | BG37: 2920 | BH37: 2987 | BI37: 3026 | BJ37: 3091 | BK37: 3123 | BL37: 3180 | BM37: 3261 | BN37: 3315 | BO37: 3294 | BP37: 3225 | BQ37: 3309 | BR37: 3409 | BS37: 3505 | BT37: 3586 | BU37: 3620 | BV37: 3718 | BW37: 3805 | BX37: 3823 | BY37: 3896 | BZ37: 3890 | CA37: 3827
A38: 50226 | B38: 502263 | C38: 3 | D38: 50 | E38: 226 | F38: 226 | G38: META | H38: CUMARAL | I38: Independiente | J38: 45 | K38: 163 | L38: 520 | M38: 499 | N38: 462 | O38: 556 | P38: 567 | Q38: 502 | R38: 496 | S38: 515 | T38: 498 | U38: 530 | V38: 582 | W38: 596 | X38: 601 | Y38: 597 | Z38: 507 | AA38: 573 | AB38: 592 | AC38: 594 | AD38: 631 | AE38: 647 | AF38: 638 | AG38: 635 | AH38: 636 | AI38: 645 | AJ38: 656 | AK38: 628 | AQ38: 5380 | AR38: 53803 | AS38: 3 | AT38: 5 | AU38: 380 | AV38: 380 | AW38: ANTIOQUIA | AX38: LA ESTRELLA | AY38: Independiente | AZ38: 109 | BA38: 204 | BB38: 2068 | BC38: 2019 | BD38: 2027 | BE38: 2091 | BF38: 2163 | BG38: 2092 | BH38: 2138 | BI38: 2191 | BJ38: 2227 | BK38: 2278 | BL38: 2347 | BM38: 2393 | BN38: 2436 | BO38: 2442 | BP38: 2336 | BQ38: 2445 | BR38: 2462 | BS38: 2497 | BT38: 2525 | BU38: 2559 | BV38: 2597 | BW38: 2639 | BX38: 2708 | BY38: 2724 | BZ38: 2746 | CA38: 2654
A39: 68895 | B39: 688953 | C39: 3 | D39: 68 | E39: 895 | F39: 895 | G39: SANTANDER | H39: ZAPATOCA | I39: Independiente | J39: 7 | K39: 17 | L39: 235 | M39: 236 | N39: 223 | O39: 226 | P39: 226 | Q39: 220 | R39: 226 | S39: 229 | T39: 224 | U39: 227 | V39: 230 | W39: 231 | X39: 238 | Y39: 236 | Z39: 227 | AA39: 228 | AB39: 231 | AC39: 237 | AD39: 241 | AE39: 249 | AF39: 244 | AG39: 241 | AH39: 241 | AI39: 247 | AJ39: 250 | AK39: 245 | AQ39: 5360 | AR39: 53601 | AS39: 1 | AT39: 5 | AU39: 360 | AV39: 360 | AW39: ANTIOQUIA | AX39: ITAGUI | AY39: Dep_No_priv | AZ39: 307 | BA39: 555 | BB39: 5479 | BC39: 4997 | BD39: 4958 | BE39: 5131 | BF39: 5191 | BG39: 5554 | BH39: 5715 | BI39: 6030 | BJ39: 6501 | BK39: 6634 | BL39: 6298 | BM39: 5532 | BN39: 5019 | BO39: 4809 | BP39: 5140 | BQ39: 5252 | BR39: 5482 | BS39: 6416 | BT39: 7929 | BU39: 7856 | BV39: 7825 | BW39: 7873 | BX39: 7803 | BY39: 7844 | BZ39: 7815 | CA39: 5072
A40: 25799 | B40: 257993 | C40: 3 | D40: 25 | E40: 799 | F40: 799 | G40: CUNDINAMARCA | H40: TENJO | I40: Independiente | J40: 46 | K40: 79 | L40: 1123 | M40: 1052 | N40: 1081 | O40: 1131 | P40: 1148 | Q40: 1141 | R40: 1150 | S40: 1147 | T40: 1177 | U40: 1196 | V40: 1199 | W40: 1217 | X40: 1209 | Y40: 1209 | Z40: 1178 | AA40: 1204 | AB40: 1270 | AC40: 1295 | AD40: 1283 | AE40: 1292 | AF40: 1303 | AG40: 1331 | AH40: 1328 | AI40: 1315 | AJ40: 1284 | AK40: 1255 | AQ40: 5380 | AR40: 53802 | AS40: 2 | AT40: 5 | AU40: 380 | AV40: 380 | AW40: ANTIOQUIA | AX40: LA ESTRELLA | AY40: Dep_sec_priv | AZ40: 854 | BA40: 2939 | BB40: 14226 | BC40: 14170 | BD40: 14434 | BE40: 14574 | BF40: 14404 | BG40: 13409 | BH40: 13216 | BI40: 13065 | BJ40: 13056 | BK40: 13098 | BL40: 13370 | BM40: 13633 | BN40: 13767 | BO40: 14251 | BP40: 14151 | BQ40: 14329 | BR40: 14612 | BS40: 14834 | BT40: 14982 | BU40: 14981 | BV40: 15291 | BW40: 15570 | BX40: 15836 | BY40: 15988 | BZ40: 16259 | CA40: 16024
A41: 47001 | B41: 470013 | C41: 3 | D41: 47 | E41: 1 | F41: 001 | G41: MAGDALENA | H41: SANTA MARTA | I41: Independiente | J41: 1165 | K41: 2604 | L41: 21414 | M41: 19887 | N41: 18679 | O41: 19345 | P41: 20022 | Q41: 19281 | R41: 19273 | S41: 19372 | T41: 19398 | U41: 19462 | V41: 19873 | W41: 19923 | X41: 20488 | Y41: 19850 | Z41: 18279 | AA41: 19127 | AB41: 20291 | AC41: 20938 | AD41: 21055 | AE41: 21176 | AF41: 21031 | AG41: 21255 | AH41: 21606 | AI41: 21782 | AJ41: 21732 | AK41: 20364 | AQ41: 5856 | AR41: 58563 | AS41: 3 | AT41: 5 | AU41: 856 | AV41: 856 | AW41: ANTIOQUIA | AX41: VALPARAÍSO | AY41: Independiente | AZ41: 5 | BA41: 35 | BB41: 99 | BC41: 94 | BD41: 72 | BE41: 96 | BF41: 96 | BG41: 87 | BH41: 89 | BI41: 90 | BJ41: 88 | BK41: 85 | BL41: 89 | BM41: 87 | BN41: 85 | BO41: 88 | BP41: 67 | BQ41: 76 | BR41: 82 | BS41: 87 | BT41: 90 | BU41: 94 | BV41: 95 | BW41: 100 | BX41: 100 | BY41: 105 | BZ41: 107 | CA41: 105 | CH41: Privs Dic 20 | CI41: Privs Nov 21 | CJ41: Privs Dic 21 | CK41: Ind Dic 20 | CL41: Ind Nov 21 | CM41: Ind Dic 21
A42: 68276 | B42: 682763 | C42: 3 | D42: 68 | E42: 276 | F42: 276 | G42: SANTANDER | H42: FLORIDABLANCA | I42: Independiente | J42: 612 | K42: 1387 | L42: 8979 | M42: 8931 | N42: 8324 | O42: 8627 | P42: 8681 | Q42: 8586 | R42: 8749 | S42: 8919 | T42: 9093 | U42: 9099 | V42: 9329 | W42: 9595 | X42: 9657 | Y42: 9766 | Z42: 8901 | AA42: 9204 | AB42: 9534 | AC42: 9733 | AD42: 9782 | AE42: 9911 | AF42: 10025 | AG42: 10105 | AH42: 10228 | AI42: 10221 | AJ42: 10374 | AK42: 10175 | AQ42: 5264 | AR42: 52643 | AS42: 3 | AT42: 5 | AU42: 264 | AV42: 264 | AW42: ANTIOQUIA | AX42: ENTRERRIOS | AY42: Independiente | AZ42: 32 | BA42: 27 | BB42: 1003 | BC42: 996 | BD42: 1021 | BE42: 1044 | BF42: 1042 | BG42: 1024 | BH42: 1047 | BI42: 1048 | BJ42: 1069 | BK42: 1077 | BL42: 1087 | BM42: 1088 | BN42: 1110 | BO42: 1114 | BP42: 1108 | BQ42: 1111 | BR42: 1111 | BS42: 1104 | BT42: 1115 | BU42: 1114 | BV42: 1115 | BW42: 1109 | BX42: 1112 | BY42: 1116 | BZ42: 1114 | CA42: 1112 | CG42: AMAZONAS | CH42: =SUMIFS($Y$2:$Y$3372,$G$2:$G$3372,$CG42,$I$2:$I$3372,"Dep_sec_priv") -> 16575 | CI42: =SUMIFS($AJ$2:$AJ$3372,$G$2:$G$3372,$CG42,$I$2:$I$3372,"Dep_sec_priv") -> 19328 | CJ42: =SUMIFS($AK$2:$AK$3372,$G$2:$G$3372,$CG42,$I$2:$I$3372,"Dep_sec_priv") -> 18600 | CK42: =SUMIFS($Y$2:$Y$3372,$G$2:$G$3372,$CG42,$I$2:$I$3372,"Independiente") -> 3316 | CL42: =SUMIFS($AJ$2:$AJ$3372,$G$2:$G$3372,$CG42,$I$2:$I$3372,"Independiente") -> 3677 | CM42: =SUMIFS($AK$2:$AK$3372,$G$2:$G$3372,$CG42,$I$2:$I$3372,"Independiente") -> 3500
A43: 19001 | B43: 190013 | C43: 3 | D43: 19 | E43: 1 | F43: 001 | G43: CAUCA | H43: POPAYÁN | I43: Independiente | J43: 1303 | K43: 3523 | L43: 20550 | M43: 19765 | N43: 17639 | O43: 19165 | P43: 19413 | Q43: 18503 | R43: 18103 | S43: 18337 | T43: 18657 | U43: 18995 | V43: 19507 | W43: 20209 | X43: 20331 | Y43: 19665 | Z43: 17629 | AA43: 18733 | AB43: 19348 | AC43: 19587 | AD43: 19368 | AE43: 19648 | AF43: 19997 | AG43: 20253 | AH43: 20570 | AI43: 20873 | AJ43: 20880 | AK43: 20339 | AQ43: 5282 | AR43: 52823 | AS43: 3 | AT43: 5 | AU43: 282 | AV43: 282 | AW43: ANTIOQUIA | AX43: FREDONIA | AY43: Independiente | AZ43: 13 | BA43: 67 | BB43: 321 | BC43: 311 | BD43: 273 | BE43: 279 | BF43: 282 | BG43: 288 | BH43: 291 | BI43: 307 | BJ43: 313 | BK43: 322 | BL43: 325 | BM43: 333 | BN43: 380 | BO43: 389 | BP43: 324 | BQ43: 353 | BR43: 347 | BS43: 358 | BT43: 361 | BU43: 367 | BV43: 403 | BW43: 430 | BX43: 427 | BY43: 434 | BZ43: 435 | CA43: 431 | CG43: ANTIOQUIA | CH43: 1501257 | CI43: 1631645 | CJ43: 1603496 | CK43: 312161 | CL43: 329699 | CM43: 320172
A44: 13001 | B44: 130013 | C44: 3 | D44: 13 | E44: 1 | F44: 001 | G44: BOLÍVAR | H44: CARTAGENA | I44: Independiente | J44: 3616 | K44: 5229 | L44: 44637 | M44: 41226 | N44: 39448 | O44: 40980 | P44: 40029 | Q44: 37017 | R44: 37187 | S44: 37360 | T44: 37639 | U44: 37821 | V44: 38584 | W44: 39624 | X44: 40806 | Y44: 39099 | Z44: 36955 | AA44: 38689 | AB44: 39914 | AC44: 40587 | AD44: 40783 | AE44: 40851 | AF44: 40908 | AG44: 41023 | AH44: 41622 | AI44: 42044 | AJ44: 42270 | AK44: 38657 | AQ44: 5585 | AR44: 55852 | AS44: 2 | AT44: 5 | AU44: 585 | AV44: 585 | AW44: ANTIOQUIA | AX44: PUERTO NARE | AY44: Dep_sec_priv | AZ44: 145 | BA44: 260 | BB44: 792 | BC44: 860 | BD44: 798 | BE44: 833 | BF44: 836 | BG44: 693 | BH44: 676 | BI44: 750 | BJ44: 770 | BK44: 804 | BL44: 796 | BM44: 834 | BN44: 950 | BO44: 1021 | BP44: 848 | BQ44: 889 | BR44: 904 | BS44: 877 | BT44: 889 | BU44: 888 | BV44: 854 | BW44: 945 | BX44: 992 | BY44: 1010 | BZ44: 979 | CA44: 922 | CG44: ARAUCA | CH44: 47227 | CI44: 51017 | CJ44: 49733 | CK44: 9148 | CL44: 9572 | CM44: 8993
A45: 25307 | B45: 253073 | C45: 3 | D45: 25 | E45: 307 | F45: 307 | G45: CUNDINAMARCA | H45: GIRARDOT | I45: Independiente | J45: 459 | K45: 916 | L45: 6212 | M45: 5750 | N45: 5493 | O45: 5792 | P45: 5845 | Q45: 5668 | R45: 5585 | S45: 5513 | T45: 5634 | U45: 5580 | V45: 5643 | W45: 5717 | X45: 5816 | Y45: 5783 | Z45: 5231 | AA45: 5453 | AB45: 5575 | AC45: 5672 | AD45: 5800 | AE45: 5885 | AF45: 5974 | AG45: 6018 | AH45: 6148 | AI45: 6075 | AJ45: 6014 | AK45: 5821 | AQ45: 5591 | AR45: 55912 | AS45: 2 | AT45: 5 | AU45: 591 | AV45: 591 | AW45: ANTIOQUIA | AX45: PUERTO TRIUNFO | AY45: Dep_sec_priv | AZ45: 213 | BA45: 345 | BB45: 1586 | BC45: 1503 | BD45: 1518 | BE45: 1536 | BF45: 1546 | BG45: 1246 | BH45: 1270 | BI45: 1397 | BJ45: 1490 | BK45: 1455 | BL45: 1491 | BM45: 1570 | BN45: 1740 | BO45: 1706 | BP45: 1673 | BQ45: 1812 | BR45: 1731 | BS45: 1719 | BT45: 1728 | BU45: 1689 | BV45: 1767 | BW45: 1780 | BX45: 1835 | BY45: 1830 | BZ45: 1877 | CA45: 1869 | CG45: ARCHIPIÉLAGO DE SAN ANDRÉS, PROVIDENCIA Y SANTA CATALINA | CH45: 44388 | CI45: 43408 | CJ45: 42884 | CK45: 6750 | CL45: 7624 | CM45: 6483
A46: 66001 | B46: 660013 | C46: 3 | D46: 66 | E46: 1 | F46: 001 | G46: RISARALDA | H46: PEREIRA | I46: Independiente | J46: 1513 | K46: 3045 | L46: 41792 | M46: 40834 | N46: 38597 | O46: 39101 | P46: 39137 | Q46: 38135 | R46: 39833 | S46: 39563 | T46: 39372 | U46: 39075 | V46: 39343 | W46: 39962 | X46: 40466 | Y46: 40096 | Z46: 38257 | AA46: 38969 | AB46: 39571 | AC46: 39462 | AD46: 39274 | AE46: 39544 | AF46: 39798 | AG46: 40005 | AH46: 40406 | AI46: 40691 | AJ46: 40658 | AK46: 39562 | AQ46: 5376 | AR46: 53762 | AS46: 2 | AT46: 5 | AU46: 376 | AV46: 376 | AW46: ANTIOQUIA | AX46: LA CEJA | AY46: Dep_sec_priv | AZ46: 867 | BA46: 1549 | BB46: 12876 | BC46: 12720 | BD46: 12585 | BE46: 12596 | BF46: 12410 | BG46: 11088 | BH46: 11341 | BI46: 11373 | BJ46: 11484 | BK46: 11651 | BL46: 12265 | BM46: 12016 | BN46: 12164 | BO46: 12007 | BP46: 12083 | BQ46: 12213 | BR46: 12521 | BS46: 12737 | BT46: 12798 | BU46: 12981 | BV46: 13060 | BW46: 13290 | BX46: 13448 | BY46: 13868 | BZ46: 13810 | CA46: 13381 | CG46: ATLÁNTICO | CH46: 409694 | CI46: 455917 | CJ46: 449450 | CK46: 75377 | CL46: 81475 | CM46: 75651
A47: 81300 | B47: 813002 | C47: 2 | D47: 81 | E47: 300 | F47: 300 | G47: ARAUCA | H47: FORTUL | I47: Dep_sec_priv | J47: 2606 | K47: 3228 | L47: 15156 | M47: 14861 | N47: 15155 | O47: 15500 | P47: 15912 | Q47: 17747 | R47: 19084 | S47: 20561 | T47: 21626 | U47: 24171 | V47: 24071 | W47: 24258 | X47: 24796 | Y47: 24889 | Z47: 24778 | AA47: 22304 | AB47: 22312 | AC47: 22093 | AD47: 21698 | AE47: 23330 | AF47: 23695 | AG47: 24028 | AH47: 24108 | AI47: 24786 | AJ47: 24817 | AK47: 24736 | AQ47: 5266 | AR47: 52662 | AS47: 2 | AT47: 5 | AU47: 266 | AV47: 266 | AW47: ANTIOQUIA | AX47: ENVIGADO | AY47: Dep_sec_priv | AZ47: 1888 | BA47: 4690 | BB47: 38889 | BC47: 38159 | BD47: 37480 | BE47: 38177 | BF47: 37812 | BG47: 36008 | BH47: 35803 | BI47: 35921 | BJ47: 35860 | BK47: 35691 | BL47: 36454 | BM47: 37044 | BN47: 37382 | BO47: 36962 | BP47: 36502 | BQ47: 37274 | BR47: 37701 | BS47: 37332 | BT47: 37582 | BU47: 37887 | BV47: 38043 | BW47: 38410 | BX47: 39364 | BY47: 39409 | BZ47: 39396 | CA47: 38960 | CG47: BOGOTÁ, D.C. | CH47: 2503608 | CI47: 2729821 | CJ47: 2692735 | CK47: 703790 | CL47: 703736 | CM47: 684365
A48: 76001 | B48: 760012 | C48: 2 | D48: 76 | E48: 1 | F48: 001 | G48: VALLE DEL CAUCA | H48: CALI | I48: Dep_sec_priv | J48: 41331 | K48: 85360 | L48: 683096 | M48: 678508 | N48: 655962 | O48: 670182 | P48: 662966 | Q48: 613791 | R48: 612050 | S48: 612236 | T48: 615138 | U48: 616563 | V48: 627311 | W48: 634620 | X48: 641958 | Y48: 643547 | Z48: 624883 | AA48: 638200 | AB48: 645699 | AC48: 646934 | AD48: 627618 | AE48: 631721 | AF48: 643444 | AG48: 655937 | AH48: 667255 | AI48: 669648 | AJ48: 676693 | AK48: 667941 | AQ48: 5360 | AR48: 53603 | AS48: 3 | AT48: 5 | AU48: 360 | AV48: 360 | AW48: ANTIOQUIA | AX48: ITAGUI | AY48: Independiente | AZ48: 378 | BA48: 684 | BB48: 7577 | BC48: 7559 | BD48: 7547 | BE48: 7726 | BF48: 7784 | BG48: 7663 | BH48: 7797 | BI48: 8015 | BJ48: 8202 | BK48: 8356 | BL48: 8604 | BM48: 8811 | BN48: 8945 | BO48: 8923 | BP48: 8758 | BQ48: 8988 | BR48: 9215 | BS48: 9401 | BT48: 9462 | BU48: 9549 | BV48: 9613 | BW48: 9812 | BX48: 9916 | BY48: 10055 | BZ48: 10078 | CA48: 9722 | CG48: BOLÍVAR | CH48: 216513 | CI48: 241638 | CJ48: 239859 | CK48: 46675 | CL48: 51392 | CM48: 46819
A49: 25290 | B49: 252903 | C49: 3 | D49: 25 | E49: 290 | F49: 290 | G49: CUNDINAMARCA | H49: FUSAGASUGÁ | I49: Independiente | J49: 305 | K49: 629 | L49: 8522 | M49: 8328 | N49: 8126 | O49: 8298 | P49: 8281 | Q49: 8137 | R49: 8160 | S49: 8281 | T49: 8302 | U49: 8316 | V49: 8444 | W49: 8510 | X49: 8623 | Y49: 8420 | Z49: 8203 | AA49: 8394 | AB49: 8558 | AC49: 8587 | AD49: 8582 | AE49: 8670 | AF49: 8704 | AG49: 8749 | AH49: 8775 | AI49: 8815 | AJ49: 8763 | AK49: 8566 | AQ49: 5045 | AR49: 50453 | AS49: 3 | AT49: 5 | AU49: 45 | AV49: 045 | AW49: ANTIOQUIA | AX49: APARTADÓ | AY49: Independiente | AZ49: 195 | BA49: 599 | BB49: 4708 | BC49: 4339 | BD49: 4014 | BE49: 4156 | BF49: 4056 | BG49: 3909 | BH49: 3907 | BI49: 3899 | BJ49: 3856 | BK49: 3943 | BL49: 4006 | BM49: 4078 | BN49: 4072 | BO49: 3984 | BP49: 3620 | BQ49: 3760 | BR49: 3914 | BS49: 3936 | BT49: 4005 | BU49: 4033 | BV49: 4076 | BW49: 4116 | BX49: 4167 | BY49: 4172 | BZ49: 4155 | CA49: 3938 | CG49: BOYACÁ | CH49: 129235 | CI49: 142930 | CJ49: 137181 | CK49: 49915 | CL49: 52725 | CM49: 50770
A50: 25402 | B50: 254023 | C50: 3 | D50: 25 | E50: 402 | F50: 402 | G50: CUNDINAMARCA | H50: LA VEGA | I50: Independiente | J50: 32 | K50: 69 | L50: 625 | M50: 601 | N50: 620 | O50: 651 | P50: 650 | Q50: 646 | R50: 647 | S50: 663 | T50: 683 | U50: 678 | V50: 686 | W50: 687 | X50: 689 | Y50: 673 | Z50: 684 | AA50: 725 | AB50: 729 | AC50: 731 | AD50: 728 | AE50: 716 | AF50: 707 | AG50: 712 | AH50: 705 | AI50: 695 | AJ50: 698 | AK50: 691 | AQ50: 5308 | AR50: 53083 | AS50: 3 | AT50: 5 | AU50: 308 | AV50: 308 | AW50: ANTIOQUIA | AX50: GIRARDOTA | AY50: Independiente | AZ50: 47 | BA50: 203 | BB50: 1181 | BC50: 1159 | BD50: 1058 | BE50: 1113 | BF50: 1123 | BG50: 1131 | BH50: 1151 | BI50: 1169 | BJ50: 1267 | BK50: 1334 | BL50: 1353 | BM50: 1386 | BN50: 1382 | BO50: 1373 | BP50: 1288 | BQ50: 1398 | BR50: 1441 | BS50: 1474 | BT50: 1507 | BU50: 1522 | BV50: 1529 | BW50: 1562 | BX50: 1573 | BY50: 1604 | BZ50: 1625 | CA50: 1575 | CG50: CALDAS | CH50: 139801 | CI50: 154563 | CJ50: 153469 | CK50: 43179 | CL50: 46429 | CM50: 44804
A51: 73001 | B51: 730012 | C51: 2 | D51: 73 | E51: 1 | F51: 001 | G51: TOLIMA | H51: IBAGUÉ | I51: Dep_sec_priv | J51: 9041 | K51: 17474 | L51: 115674 | M51: 113604 | N51: 112407 | O51: 116116 | P51: 114459 | Q51: 103137 | R51: 104146 | S51: 106043 | T51: 107763 | U51: 109053 | V51: 109746 | W51: 112115 | X51: 113126 | Y51: 111557 | Z51: 109044 | AA51: 112109 | AB51: 113478 | AC51: 114081 | AD51: 113868 | AE51: 115943 | AF51: 116849 | AG51: 119078 | AH51: 120163 | AI51: 120799 | AJ51: 121473 | AK51: 119330 | AQ51: 5656 | AR51: 56563 | AS51: 3 | AT51: 5 | AU51: 656 | AV51: 656 | AW51: ANTIOQUIA | AX51: SAN JERÓNIMO | AY51: Independiente | AZ51: 8 | BA51: 45 | BB51: 297 | BC51: 281 | BD51: 262 | BE51: 294 | BF51: 288 | BG51: 283 | BH51: 300 | BI51: 300 | BJ51: 301 | BK51: 308 | BL51: 302 | BM51: 307 | BN51: 313 | BO51: 310 | BP51: 269 | BQ51: 293 | BR51: 296 | BS51: 298 | BT51: 299 | BU51: 312 | BV51: 310 | BW51: 302 | BX51: 302 | BY51: 311 | BZ51: 310 | CA51: 312 | CG51: CAQUETÁ | CH51: 22587 | CI51: 24201 | CJ51: 23807 | CK51: 11606 | CL51: 12538 | CM51: 11988
A52: 25758 | B52: 257583 | C52: 3 | D52: 25 | E52: 758 | F52: 758 | G52: CUNDINAMARCA | H52: SOPÓ | I52: Independiente | J52: 93 | K52: 167 | L52: 1774 | M52: 1720 | N52: 1656 | O52: 1726 | P52: 1780 | Q52: 1719 | R52: 1757 | S52: 1771 | T52: 1798 | U52: 1813 | V52: 1849 | W52: 1844 | X52: 1855 | Y52: 1748 | Z52: 1688 | AA52: 1828 | AB52: 1873 | AC52: 1868 | AD52: 1876 | AE52: 1856 | AF52: 1874 | AG52: 1906 | AH52: 1888 | AI52: 1888 | AJ52: 1879 | AK52: 1795 | AQ52: 5042 | AR52: 50423 | AS52: 3 | AT52: 5 | AU52: 42 | AV52: 042 | AW52: ANTIOQUIA | AX52: SANTAFÉ DE ANTIOQUIA | AY52: Independiente | AZ52: 19 | BA52: 53 | BB52: 722 | BC52: 688 | BD52: 652 | BE52: 681 | BF52: 690 | BG52: 672 | BH52: 655 | BI52: 666 | BJ52: 676 | BK52: 694 | BL52: 707 | BM52: 706 | BN52: 741 | BO52: 725 | BP52: 682 | BQ52: 692 | BR52: 689 | BS52: 705 | BT52: 692 | BU52: 690 | BV52: 713 | BW52: 735 | BX52: 739 | BY52: 736 | BZ52: 730 | CA52: 705 | CG52: CASANARE | CH52: 59617 | CI52: 66370 | CJ52: 64268 | CK52: 17755 | CL52: 19419 | CM52: 18703
A53: 5364 | B53: 53642 | C53: 2 | D53: 5 | E53: 364 | F53: 364 | G53: ANTIOQUIA | H53: JARDÍN | I53: Dep_sec_priv | J53: 88 | K53: 94 | L53: 973 | M53: 936 | N53: 880 | O53: 853 | P53: 807 | Q53: 801 | R53: 839 | S53: 855 | T53: 854 | U53: 823 | V53: 817 | W53: 906 | X53: 967 | Y53: 1001 | Z53: 1051 | AA53: 1022 | AB53: 971 | AC53: 1048 | AD53: 1093 | AE53: 1111 | AF53: 1098 | AG53: 1148 | AH53: 1099 | AI53: 1197 | AJ53: 1214 | AK53: 1176 | AQ53: 5209 | AR53: 52092 | AS53: 2 | AT53: 5 | AU53: 209 | AV53: 209 | AW53: ANTIOQUIA | AX53: CONCORDIA | AY53: Dep_sec_priv | AZ53: 46 | BA53: 104 | BB53: 789 | BC53: 780 | BD53: 729 | BE53: 794 | BF53: 799 | BG53: 748 | BH53: 791 | BI53: 771 | BJ53: 818 | BK53: 782 | BL53: 797 | BM53: 806 | BN53: 800 | BO53: 802 | BP53: 771 | BQ53: 849 | BR53: 834 | BS53: 814 | BT53: 840 | BU53: 837 | BV53: 864 | BW53: 850 | BX53: 873 | BY53: 843 | BZ53: 855 | CA53: 859 | CG53: CAUCA | CH53: 95637 | CI53: 99773 | CJ53: 99283 | CK53: 31420 | CL53: 33762 | CM53: 32443
A54: 15759 | B54: 157593 | C54: 3 | D54: 15 | E54: 759 | F54: 759 | G54: BOYACÁ | H54: SOGAMOSO | I54: Independiente | J54: 425 | K54: 1127 | L54: 8312 | M54: 8144 | N54: 7688 | O54: 7917 | P54: 7956 | Q54: 7645 | R54: 7658 | S54: 7763 | T54: 7819 | U54: 7883 | V54: 7937 | W54: 8059 | X54: 8188 | Y54: 8125 | Z54: 7656 | AA54: 7913 | AB54: 8084 | AC54: 8122 | AD54: 8218 | AE54: 8283 | AF54: 8238 | AG54: 8223 | AH54: 8322 | AI54: 8371 | AJ54: 8350 | AK54: 8110 | AQ54: 5212 | AR54: 52123 | AS54: 3 | AT54: 5 | AU54: 212 | AV54: 212 | AW54: ANTIOQUIA | AX54: COPACABANA | AY54: Independiente | AZ54: 114 | BA54: 278 | BB54: 1687 | BC54: 1657 | BD54: 1563 | BE54: 1599 | BF54: 1625 | BG54: 1619 | BH54: 1630 | BI54: 1687 | BJ54: 1726 | BK54: 1783 | BL54: 1844 | BM54: 1916 | BN54: 1997 | BO54: 1991 | BP54: 1922 | BQ54: 2053 | BR54: 2171 | BS54: 2185 | BT54: 2232 | BU54: 2264 | BV54: 2280 | BW54: 2306 | BX54: 2338 | BY54: 2369 | BZ54: 2389 | CA54: 2336 | CG54: CESAR | CH54: 97600 | CI54: 106869 | CJ54: 105396 | CK54: 28854 | CL54: 29668 | CM54: 28172
A55: 15238 | B55: 152383 | C55: 3 | D55: 15 | E55: 238 | F55: 238 | G55: BOYACÁ | H55: DUITAMA | I55: Independiente | J55: 278 | K55: 651 | L55: 8524 | M55: 8424 | N55: 8020 | O55: 8217 | P55: 8211 | Q55: 7937 | R55: 7933 | S55: 7970 | T55: 8055 | U55: 8074 | V55: 8142 | W55: 8248 | X55: 8343 | Y55: 8228 | Z55: 7951 | AA55: 8027 | AB55: 8152 | AC55: 8208 | AD55: 8209 | AE55: 8229 | AF55: 8331 | AG55: 8278 | AH55: 8354 | AI55: 8461 | AJ55: 8457 | AK55: 8145 | AQ55: 5664 | AR55: 56643 | AS55: 3 | AT55: 5 | AU55: 664 | AV55: 664 | AW55: ANTIOQUIA | AX55: SAN PEDRO DE LOS MILAGROS | AY55: Independiente | AZ55: 26 | BA55: 68 | BB55: 936 | BC55: 927 | BD55: 919 | BE55: 934 | BF55: 956 | BG55: 969 | BH55: 1038 | BI55: 1048 | BJ55: 1074 | BK55: 1105 | BL55: 1096 | BM55: 1113 | BN55: 1119 | BO55: 1103 | BP55: 1092 | BQ55: 1116 | BR55: 1140 | BS55: 1143 | BT55: 1159 | BU55: 1167 | BV55: 1177 | BW55: 1187 | BX55: 1182 | BY55: 1201 | BZ55: 1197 | CA55: 1182 | CG55: CHOCÓ | CH55: 66358 | CI55: 76854 | CJ55: 71876 | CK55: 9502 | CL55: 11740 | CM55: 10037
A56: 15778 | B56: 157783 | C56: 3 | D56: 15 | E56: 778 | F56: 778 | G56: BOYACÁ | H56: SUTATENZA | I56: Independiente | J56: 2 | K56: 11 | L56: 45 | M56: 39 | N56: 40 | O56: 45 | P56: 49 | Q56: 45 | R56: 42 | S56: 44 | T56: 38 | U56: 42 | V56: 43 | W56: 44 | X56: 52 | Y56: 41 | Z56: 37 | AA56: 48 | AB56: 52 | AC56: 52 | AD56: 49 | AE56: 52 | AF56: 50 | AG56: 50 | AH56: 52 | AI56: 51 | AJ56: 49 | AK56: 49 | AQ56: 5607 | AR56: 56072 | AS56: 2 | AT56: 5 | AU56: 607 | AV56: 607 | AW56: ANTIOQUIA | AX56: RETIRO | AY56: Dep_sec_priv | AZ56: 257 | BA56: 757 | BB56: 3478 | BC56: 3364 | BD56: 3214 | BE56: 3302 | BF56: 3323 | BG56: 3049 | BH56: 2991 | BI56: 3135 | BJ56: 3166 | BK56: 3168 | BL56: 3403 | BM56: 3542 | BN56: 3487 | BO56: 3409 | BP56: 3432 | BQ56: 3727 | BR56: 3718 | BS56: 3765 | BT56: 3806 | BU56: 3812 | BV56: 3908 | BW56: 3845 | BX56: 3891 | BY56: 3996 | BZ56: 3945 | CA56: 3887 | CG56: CÓRDOBA | CH56: 102182 | CI56: 111629 | CJ56: 109721 | CK56: 27977 | CL56: 30746 | CM56: 28802
A57: 23686 | B57: 236863 | C57: 3 | D57: 23 | E57: 686 | F57: 686 | G57: CÓRDOBA | H57: SAN PELAYO | I57: Independiente | J57: 12 | K57: 46 | L57: 163 | M57: 141 | N57: 141 | O57: 158 | P57: 150 | Q57: 178 | R57: 196 | S57: 205 | T57: 215 | U57: 212 | V57: 234 | W57: 245 | X57: 252 | Y57: 220 | Z57: 230 | AA57: 255 | AB57: 253 | AC57: 271 | AD57: 278 | AE57: 282 | AF57: 296 | AG57: 311 | AH57: 305 | AI57: 323 | AJ57: 312 | AK57: 262 | AQ57: 5697 | AR57: 56973 | AS57: 3 | AT57: 5 | AU57: 697 | AV57: 697 | AW57: ANTIOQUIA | AX57: EL SANTUARIO | AY57: Independiente | AZ57: 26 | BA57: 62 | BB57: 1312 | BC57: 1287 | BD57: 1296 | BE57: 1336 | BF57: 1354 | BG57: 1366 | BH57: 1393 | BI57: 1382 | BJ57: 1386 | BK57: 1386 | BL57: 1403 | BM57: 1396 | BN57: 1397 | BO57: 1386 | BP57: 1380 | BQ57: 1402 | BR57: 1410 | BS57: 1424 | BT57: 1412 | BU57: 1424 | BV57: 1441 | BW57: 1455 | BX57: 1465 | BY57: 1488 | BZ57: 1487 | CA57: 1463 | CG57: CUNDINAMARCA | CH57: 325204 | CI57: 365399 | CJ57: 352220 | CK57: 102239 | CL57: 111776 | CM57: 108471
A58: 76834 | B58: 768343 | C58: 3 | D58: 76 | E58: 834 | F58: 834 | G58: VALLE DEL CAUCA | H58: TULUÁ | I58: Independiente | J58: 345 | K58: 895 | L58: 9255 | M58: 8777 | N58: 8063 | O58: 8302 | P58: 8365 | Q58: 8159 | R58: 8164 | S58: 8218 | T58: 8212 | U58: 8344 | V58: 8588 | W58: 8703 | X58: 8812 | Y58: 8746 | Z58: 8038 | AA58: 8516 | AB58: 8689 | AC58: 8698 | AD58: 8638 | AE58: 8854 | AF58: 8643 | AG58: 8888 | AH58: 9038 | AI58: 9083 | AJ58: 9169 | AK58: 8997 | AQ58: 5129 | AR58: 51293 | AS58: 3 | AT58: 5 | AU58: 129 | AV58: 129 | AW58: ANTIOQUIA | AX58: CALDAS | AY58: Independiente | AZ58: 103 | BA58: 258 | BB58: 2274 | BC58: 2165 | BD58: 2059 | BE58: 2186 | BF58: 2205 | BG58: 2170 | BH58: 2239 | BI58: 2285 | BJ58: 2329 | BK58: 2381 | BL58: 2437 | BM58: 2477 | BN58: 2502 | BO58: 2475 | BP58: 2435 | BQ58: 2498 | BR58: 2550 | BS58: 2599 | BT58: 2613 | BU58: 2665 | BV58: 2690 | BW58: 2705 | BX58: 2710 | BY58: 2742 | BZ58: 2773 | CA58: 2679 | CG58: GUAINÍA | CH58: 8769 | CI58: 14476 | CJ58: 14206 | CK58: 1388 | CL58: 1835 | CM58: 1566
A59: 50001 | B59: 500012 | C59: 2 | D59: 50 | E59: 1 | F59: 001 | G59: META | H59: VILLAVICENCIO | I59: Dep_sec_priv | J59: 9442 | K59: 18211 | L59: 122201 | M59: 120116 | N59: 117558 | O59: 121697 | P59: 120728 | Q59: 107358 | R59: 104579 | S59: 105170 | T59: 106872 | U59: 107156 | V59: 108852 | W59: 110318 | X59: 112733 | Y59: 111013 | Z59: 109019 | AA59: 112697 | AB59: 114973 | AC59: 116488 | AD59: 115599 | AE59: 117237 | AF59: 118791 | AG59: 121192 | AH59: 123493 | AI59: 124402 | AJ59: 125114 | AK59: 121733 | AQ59: 5761 | AR59: 57613 | AS59: 3 | AT59: 5 | AU59: 761 | AV59: 761 | AW59: ANTIOQUIA | AX59: SOPETRÁN | AY59: Independiente | AZ59: 9 | BA59: 43 | BB59: 250 | BC59: 213 | BD59: 200 | BE59: 218 | BF59: 216 | BG59: 203 | BH59: 218 | BI59: 219 | BJ59: 220 | BK59: 239 | BL59: 244 | BM59: 265 | BN59: 270 | BO59: 247 | BP59: 234 | BQ59: 258 | BR59: 270 | BS59: 263 | BT59: 261 | BU59: 267 | BV59: 280 | BW59: 296 | BX59: 303 | BY59: 305 | BZ59: 302 | CA59: 266 | CG59: GUAVIARE | CH59: 9088 | CI59: 11928 | CJ59: 11504 | CK59: 3790 | CL59: 4150 | CM59: 3974
A60: 17001 | B60: 170013 | C60: 3 | D60: 17 | E60: 1 | F60: 001 | G60: CALDAS | H60: MANIZALES | I60: Independiente | J60: 1332 | K60: 2283 | L60: 29842 | M60: 29189 | N60: 28244 | O60: 28458 | P60: 28329 | Q60: 27648 | R60: 27634 | S60: 27749 | T60: 27980 | U60: 28007 | V60: 28171 | W60: 28574 | X60: 28957 | Y60: 28747 | Z60: 27912 | AA60: 28365 | AB60: 28761 | AC60: 29198 | AD60: 29391 | AE60: 29602 | AF60: 29727 | AG60: 30183 | AH60: 30410 | AI60: 30620 | AJ60: 30623 | AK60: 29470 | AQ60: 5055 | AR60: 50553 | AS60: 3 | AT60: 5 | AU60: 55 | AV60: 055 | AW60: ANTIOQUIA | AX60: ARGELIA | AY60: Independiente | AZ60: 1 | BA60: 42 | BB60: 75 | BC60: 71 | BD60: 53 | BE60: 79 | BF60: 78 | BG60: 73 | BH60: 77 | BI60: 54 | BJ60: 85 | BK60: 97 | BL60: 97 | BM60: 103 | BN60: 104 | BO60: 108 | BP60: 69 | BQ60: 78 | BR60: 81 | BS60: 83 | BT60: 98 | BU60: 99 | BV60: 102 | BW60: 100 | BX60: 99 | BY60: 105 | BZ60: 103 | CA60: 99 | CG60: HUILA | CH60: 95385 | CI60: 105062 | CJ60: 103256 | CK60: 39394 | CL60: 42626 | CM60: 41373
A61: 73268 | B61: 732683 | C61: 3 | D61: 73 | E61: 268 | F61: 268 | G61: TOLIMA | H61: ESPINAL | I61: Independiente | J61: 177 | K61: 666 | L61: 2778 | M61: 2514 | N61: 2320 | O61: 2650 | P61: 2752 | Q61: 2728 | R61: 2674 | S61: 2628 | T61: 2548 | U61: 2665 | V61: 2651 | W61: 2841 | X61: 2857 | Y61: 2858 | Z61: 2428 | AA61: 2724 | AB61: 2856 | AC61: 2887 | AD61: 2886 | AE61: 2868 | AF61: 2842 | AG61: 2829 | AH61: 3098 | AI61: 3116 | AJ61: 3078 | AK61: 2948 | AQ61: 5154 | AR61: 51543 | AS61: 3 | AT61: 5 | AU61: 154 | AV61: 154 | AW61: ANTIOQUIA | AX61: CAUCASIA | AY61: Independiente | AZ61: 84 | BA61: 244 | BB61: 2088 | BC61: 1941 | BD61: 1512 | BE61: 1603 | BF61: 1548 | BG61: 1525 | BH61: 1536 | BI61: 1557 | BJ61: 1590 | BK61: 1591 | BL61: 1644 | BM61: 1662 | BN61: 1709 | BO61: 1563 | BP61: 1510 | BQ61: 1604 | BR61: 1618 | BS61: 1655 | BT61: 1702 | BU61: 1781 | BV61: 1757 | BW61: 1797 | BX61: 1847 | BY61: 1879 | BZ61: 1851 | CA61: 1623 | CG61: LA GUAJIRA | CH61: 49679 | CI61: 56842 | CJ61: 55395 | CK61: 19597 | CL61: 22346 | CM61: 20612
A62: 20001 | B62: 200013 | C62: 3 | D62: 20 | E62: 1 | F62: 001 | G62: CESAR | H62: VALLEDUPAR | I62: Independiente | J62: 852 | K62: 2514 | L62: 18581 | M62: 17473 | N62: 16477 | O62: 16999 | P62: 17546 | Q62: 17017 | R62: 17057 | S62: 17164 | T62: 17226 | U62: 17288 | V62: 17616 | W62: 18165 | X62: 18405 | Y62: 17646 | Z62: 15817 | AA62: 16513 | AB62: 17350 | AC62: 17633 | AD62: 17716 | AE62: 17716 | AF62: 17830 | AG62: 17940 | AH62: 18010 | AI62: 18323 | AJ62: 18343 | AK62: 17389 | AQ62: 5148 | AR62: 51483 | AS62: 3 | AT62: 5 | AU62: 148 | AV62: 148 | AW62: ANTIOQUIA | AX62: EL CARMEN DE VIBORAL | AY62: Independiente | AZ62: 95 | BA62: 196 | BB62: 1827 | BC62: 1814 | BD62: 1777 | BE62: 1820 | BF62: 1836 | BG62: 1776 | BH62: 1795 | BI62: 1793 | BJ62: 1835 | BK62: 1902 | BL62: 2002 | BM62: 2034 | BN62: 2063 | BO62: 2081 | BP62: 1975 | BQ62: 2016 | BR62: 2030 | BS62: 2062 | BT62: 2078 | BU62: 2116 | BV62: 2124 | BW62: 2180 | BX62: 2218 | BY62: 2296 | BZ62: 2303 | CA62: 2223 | CG62: MAGDALENA | CH62: 103453 | CI62: 113047 | CJ62: 112916 | CK62: 28758 | CL62: 31221 | CM62: 29016
A63: 25843 | B63: 258433 | C63: 3 | D63: 25 | E63: 843 | F63: 843 | G63: CUNDINAMARCA | H63: VILLA DE SAN DIEGO DE UBATE | I63: Independiente | J63: 99 | K63: 177 | L63: 2148 | M63: 2084 | N63: 2033 | O63: 2052 | P63: 2114 | Q63: 2073 | R63: 2068 | S63: 2085 | T63: 2081 | U63: 2078 | V63: 2080 | W63: 2132 | X63: 2159 | Y63: 2105 | Z63: 2022 | AA63: 2077 | AB63: 2128 | AC63: 2181 | AD63: 2181 | AE63: 2190 | AF63: 2216 | AG63: 2228 | AH63: 2294 | AI63: 2301 | AJ63: 2301 | AK63: 2254 | AQ63: 5002 | AR63: 50023 | AS63: 3 | AT63: 5 | AU63: 2 | AV63: 002 | AW63: ANTIOQUIA | AX63: ABEJORRAL | AY63: Independiente | AZ63: 21 | BA63: 32 | BB63: 528 | BC63: 483 | BD63: 410 | BE63: 417 | BF63: 450 | BG63: 441 | BH63: 438 | BI63: 438 | BJ63: 444 | BK63: 465 | BL63: 474 | BM63: 484 | BN63: 481 | BO63: 478 | BP63: 431 | BQ63: 463 | BR63: 444 | BS63: 437 | BT63: 439 | BU63: 445 | BV63: 443 | BW63: 454 | BX63: 462 | BY63: 460 | BZ63: 453 | CA63: 440 | CG63: META | CH63: 147756 | CI63: 170240 | CJ63: 165227 | CK63: 38839 | CL63: 41789 | CM63: 40233
A64: 25899 | B64: 258993 | C64: 3 | D64: 25 | E64: 899 | F64: 899 | G64: CUNDINAMARCA | H64: ZIPAQUIRÁ | I64: Independiente | J64: 336 | K64: 563 | L64: 7085 | M64: 6899 | N64: 6728 | O64: 6840 | P64: 7164 | Q64: 6569 | R64: 6743 | S64: 6691 | T64: 6795 | U64: 6838 | V64: 6865 | W64: 7006 | X64: 7050 | Y64: 6975 | Z64: 6800 | AA64: 7013 | AB64: 7202 | AC64: 7281 | AD64: 7367 | AE64: 7509 | AF64: 7560 | AG64: 7561 | AH64: 7602 | AI64: 7603 | AJ64: 7546 | AK64: 7412 | AQ64: 5400 | AR64: 54003 | AS64: 3 | AT64: 5 | AU64: 400 | AV64: 400 | AW64: ANTIOQUIA | AX64: LA UNIÓN | AY64: Independiente | AZ64: 15 | BA64: 70 | BB64: 1189 | BC64: 1172 | BD64: 1127 | BE64: 1146 | BF64: 1164 | BG64: 1149 | BH64: 1176 | BI64: 1201 | BJ64: 1210 | BK64: 1219 | BL64: 1236 | BM64: 1236 | BN64: 1254 | BO64: 1244 | BP64: 1211 | BQ64: 1206 | BR64: 1200 | BS64: 1208 | BT64: 1220 | BU64: 1214 | BV64: 1221 | BW64: 1235 | BX64: 1237 | BY64: 1256 | BZ64: 1269 | CA64: 1242 | CG64: NARIÑO | CH64: 96849 | CI64: 100877 | CJ64: 99522 | CK64: 42014 | CL64: 45924 | CM64: 43794
A65: 88001 | B65: 880013 | C65: 3 | D65: 88 | E65: 1 | F65: 001 | G65: ARCHIPIÉLAGO DE SAN ANDRÉS, PROVIDENCIA Y SANTA CATALINA | H65: SAN ANDRÉS | I65: Independiente | J65: 245 | K65: 377 | L65: 6287 | M65: 5695 | N65: 5462 | O65: 5524 | P65: 5451 | Q65: 5340 | R65: 5457 | S65: 5657 | T65: 5645 | U65: 5667 | V65: 5781 | W65: 5780 | X65: 5921 | Y65: 5684 | Z65: 4936 | AA65: 5122 | AB65: 5402 | AC65: 5661 | AD65: 5576 | AE65: 5580 | AF65: 5487 | AG65: 5524 | AH65: 5600 | AI65: 5894 | AJ65: 6037 | AK65: 5312 | AQ65: 5847 | AR65: 58473 | AS65: 3 | AT65: 5 | AU65: 847 | AV65: 847 | AW65: ANTIOQUIA | AX65: URRAO | AY65: Independiente | AZ65: 24 | BA65: 103 | BB65: 497 | BC65: 489 | BD65: 371 | BE65: 410 | BF65: 435 | BG65: 424 | BH65: 396 | BI65: 394 | BJ65: 397 | BK65: 417 | BL65: 426 | BM65: 447 | BN65: 459 | BO65: 456 | BP65: 405 | BQ65: 398 | BR65: 416 | BS65: 452 | BT65: 466 | BU65: 469 | BV65: 492 | BW65: 505 | BX65: 513 | BY65: 519 | BZ65: 532 | CA65: 504 | CG65: NORTE DE SANTANDER | CH65: 139336 | CI65: 158645 | CJ65: 154707 | CK65: 45119 | CL65: 48270 | CM65: 46610
A66: 54001 | B66: 540011 | C66: 1 | D66: 54 | E66: 1 | F66: 001 | G66: NORTE DE SANTANDER | H66: CÚCUTA | I66: Dep_No_priv | J66: 1029 | K66: 5745 | L66: 32647 | M66: 23451 | N66: 19600 | O66: 26153 | P66: 29403 | Q66: 23533 | R66: 21871 | S66: 23324 | T66: 21103 | U66: 22073 | V66: 24066 | W66: 24988 | X66: 24403 | Y66: 22446 | Z66: 18585 | AA66: 20994 | AB66: 23094 | AC66: 24289 | AD66: 22940 | AE66: 23090 | AF66: 22747 | AG66: 27877 | AH66: 29639 | AI66: 29513 | AJ66: 28717 | AK66: 24089 | AQ66: 5021 | AR66: 50213 | AS66: 3 | AT66: 5 | AU66: 21 | AV66: 021 | AW66: ANTIOQUIA | AX66: ALEJANDRÍA | AY66: Independiente | AZ66: 3 | BA66: 36 | BB66: 112 | BC66: 90 | BD66: 75 | BE66: 99 | BF66: 99 | BG66: 99 | BH66: 103 | BI66: 109 | BJ66: 114 | BK66: 114 | BL66: 112 | BM66: 117 | BN66: 118 | BO66: 112 | BP66: 78 | BQ66: 103 | BR66: 116 | BS66: 127 | BT66: 132 | BU66: 136 | BV66: 138 | BW66: 137 | BX66: 131 | BY66: 131 | BZ66: 136 | CA66: 119 | CG66: PUTUMAYO | CH66: 20669 | CI66: 23240 | CJ66: 22343 | CK66: 10867 | CL66: 11215 | CM66: 10481
A67: 54001 | B67: 540013 | C67: 3 | D67: 54 | E67: 1 | F67: 001 | G67: NORTE DE SANTANDER | H67: CÚCUTA | I67: Independiente | J67: 1896 | K67: 5029 | L67: 34712 | M67: 32913 | N67: 30101 | O67: 30863 | P67: 31072 | Q67: 30207 | R67: 30134 | S67: 30325 | T67: 30408 | U67: 30768 | V67: 31279 | W67: 32056 | X67: 32380 | Y67: 31643 | Z67: 29825 | AA67: 30290 | AB67: 31457 | AC67: 31039 | AD67: 31945 | AE67: 32220 | AF67: 32565 | AG67: 33021 | AH67: 33498 | AI67: 33558 | AJ67: 33792 | AK67: 32728 | AQ67: 5615 | AR67: 56151 | AS67: 1 | AT67: 5 | AU67: 615 | AV67: 615 | AW67: ANTIOQUIA | AX67: RIONEGRO | AY67: Dep_No_priv | AZ67: 273 | BA67: 1072 | BB67: 4324 | BC67: 4006 | BD67: 3845 | BE67: 4225 | BF67: 4370 | BG67: 4039 | BH67: 4089 | BI67: 4871 | BJ67: 5343 | BK67: 5740 | BL67: 5680 | BM67: 5172 | BN67: 4982 | BO67: 4539 | BP67: 4248 | BQ67: 4805 | BR67: 4906 | BS67: 5045 | BT67: 5205 | BU67: 4916 | BV67: 4705 | BW67: 4878 | BX67: 5084 | BY67: 5360 | BZ67: 5396 | CA67: 4513 | CG67: QUINDÍO | CH67: 74558 | CI67: 83149 | CJ67: 82914 | CK67: 28775 | CL67: 30060 | CM67: 29182
A68: 25815 | B68: 258152 | C68: 2 | D68: 25 | E68: 815 | F68: 815 | G68: CUNDINAMARCA | H68: TOCAIMA | I68: Dep_sec_priv | J68: 25 | K68: 58 | L68: 511 | M68: 487 | N68: 477 | O68: 478 | P68: 453 | Q68: 534 | R68: 471 | S68: 492 | T68: 515 | U68: 520 | V68: 530 | W68: 594 | X68: 603 | Y68: 638 | Z68: 669 | AA68: 670 | AB68: 666 | AC68: 687 | AD68: 678 | AE68: 680 | AF68: 701 | AG68: 712 | AH68: 715 | AI68: 743 | AJ68: 760 | AK68: 758 | AQ68: 5030 | AR68: 50303 | AS68: 3 | AT68: 5 | AU68: 30 | AV68: 030 | AW68: ANTIOQUIA | AX68: AMAGÁ | AY68: Independiente | AZ68: 45 | BA68: 87 | BB68: 539 | BC68: 492 | BD68: 508 | BE68: 598 | BF68: 572 | BG68: 554 | BH68: 563 | BI68: 583 | BJ68: 582 | BK68: 584 | BL68: 592 | BM68: 617 | BN68: 621 | BO68: 606 | BP68: 586 | BQ68: 630 | BR68: 661 | BS68: 658 | BT68: 673 | BU68: 683 | BV68: 680 | BW68: 696 | BX68: 698 | BY68: 702 | BZ68: 723 | CA68: 705 | CG68: RISARALDA | CH68: 167444 | CI68: 182550 | CJ68: 180531 | CK68: 51645 | CL68: 53513 | CM68: 52027
A69: 25386 | B69: 253863 | C69: 3 | D69: 25 | E69: 386 | F69: 386 | G69: CUNDINAMARCA | H69: LA MESA | I69: Independiente | J69: 71 | K69: 177 | L69: 1635 | M69: 1569 | N69: 1539 | O69: 1568 | P69: 1583 | Q69: 1567 | R69: 1606 | S69: 1670 | T69: 1679 | U69: 1649 | V69: 1692 | W69: 1730 | X69: 1731 | Y69: 1702 | Z69: 1688 | AA69: 1724 | AB69: 1750 | AC69: 1828 | AD69: 1839 | AE69: 1839 | AF69: 1854 | AG69: 1847 | AH69: 1859 | AI69: 1834 | AJ69: 1853 | AK69: 1809 | AQ69: 5031 | AR69: 50313 | AS69: 3 | AT69: 5 | AU69: 31 | AV69: 031 | AW69: ANTIOQUIA | AX69: AMALFI | AY69: Independiente | AZ69: 28 | BA69: 109 | BB69: 475 | BC69: 691 | BD69: 629 | BE69: 664 | BF69: 668 | BG69: 621 | BH69: 392 | BI69: 386 | BJ69: 381 | BK69: 370 | BL69: 621 | BM69: 648 | BN69: 424 | BO69: 428 | BP69: 349 | BQ69: 387 | BR69: 402 | BS69: 430 | BT69: 427 | BU69: 440 | BV69: 448 | BW69: 458 | BX69: 463 | BY69: 488 | BZ69: 484 | CA69: 468 | CG69: SANTANDER | CH69: 345320 | CI69: 377845 | CJ69: 369369 | CK69: 108843 | CL69: 111613 | CM69: 108913
A70: 17013 | B70: 170133 | C70: 3 | D70: 17 | E70: 13 | F70: 013 | G70: CALDAS | H70: AGUADAS | I70: Independiente | J70: 33 | K70: 77 | L70: 551 | M70: 551 | N70: 517 | O70: 538 | P70: 551 | Q70: 536 | R70: 560 | S70: 567 | T70: 589 | U70: 602 | V70: 612 | W70: 620 | X70: 623 | Y70: 619 | Z70: 619 | AA70: 643 | AB70: 635 | AC70: 636 | AD70: 656 | AE70: 642 | AF70: 657 | AG70: 663 | AH70: 677 | AI70: 687 | AJ70: 709 | AK70: 703 | AQ70: 5034 | AR70: 50343 | AS70: 3 | AT70: 5 | AU70: 34 | AV70: 034 | AW70: ANTIOQUIA | AX70: ANDES | AY70: Independiente | AZ70: 40 | BA70: 106 | BB70: 1221 | BC70: 1167 | BD70: 1129 | BE70: 1153 | BF70: 1195 | BG70: 1133 | BH70: 1151 | BI70: 1140 | BJ70: 1152 | BK70: 1166 | BL70: 1201 | BM70: 1310 | BN70: 1330 | BO70: 1322 | BP70: 1199 | BQ70: 1244 | BR70: 1250 | BS70: 1252 | BT70: 1264 | BU70: 1261 | BV70: 1292 | BW70: 1296 | BX70: 1324 | BY70: 1341 | BZ70: 1351 | CA70: 1263 | CG70: SUCRE | CH70: 47726 | CI70: 50174 | CJ70: 49470 | CK70: 15565 | CL70: 17165 | CM70: 15988
A71: 50689 | B71: 506893 | C71: 3 | D71: 50 | E71: 689 | F71: 689 | G71: META | H71: SAN MARTÍN | I71: Independiente | J71: 57 | K71: 167 | L71: 661 | M71: 636 | N71: 550 | O71: 591 | P71: 606 | Q71: 615 | R71: 599 | S71: 604 | T71: 624 | U71: 627 | V71: 632 | W71: 629 | X71: 661 | Y71: 630 | Z71: 543 | AA71: 595 | AB71: 631 | AC71: 642 | AD71: 681 | AE71: 686 | AF71: 678 | AG71: 710 | AH71: 758 | AI71: 745 | AJ71: 799 | AK71: 738 | AQ71: 5368 | AR71: 53683 | AS71: 3 | AT71: 5 | AU71: 368 | AV71: 368 | AW71: ANTIOQUIA | AX71: JERICÓ | AY71: Independiente | AZ71: 13 | BA71: 44 | BB71: 417 | BC71: 396 | BD71: 400 | BE71: 415 | BF71: 419 | BG71: 417 | BH71: 428 | BI71: 430 | BJ71: 449 | BK71: 442 | BL71: 448 | BM71: 445 | BN71: 446 | BO71: 437 | BP71: 424 | BQ71: 443 | BR71: 443 | BS71: 457 | BT71: 463 | BU71: 463 | BV71: 467 | BW71: 476 | BX71: 487 | BY71: 495 | BZ71: 494 | CA71: 485 | CG71: TOLIMA | CH71: 138921 | CI71: 150361 | CJ71: 147879 | CK71: 47719 | CL71: 50713 | CM71: 49061
A72: 25875 | B72: 258753 | C72: 3 | D72: 25 | E72: 875 | F72: 875 | G72: CUNDINAMARCA | H72: VILLETA | I72: Independiente | J72: 45 | K72: 97 | L72: 2096 | M72: 2055 | N72: 2034 | O72: 2045 | P72: 2043 | Q72: 2009 | R72: 2042 | S72: 2045 | T72: 2067 | U72: 2091 | V72: 2087 | W72: 2117 | X72: 2126 | Y72: 2115 | Z72: 2114 | AA72: 2114 | AB72: 2144 | AC72: 2181 | AD72: 2176 | AE72: 2194 | AF72: 2201 | AG72: 2175 | AH72: 2197 | AI72: 2153 | AJ72: 2156 | AK72: 2079 | AQ72: 5353 | AR72: 53533 | AS72: 3 | AT72: 5 | AU72: 353 | AV72: 353 | AW72: ANTIOQUIA | AX72: HISPANIA | AY72: Independiente | AZ72: 2 | BA72: 15 | BB72: 70 | BC72: 62 | BD72: 64 | BE72: 68 | BF72: 67 | BG72: 72 | BH72: 77 | BI72: 81 | BJ72: 74 | BK72: 73 | BL72: 77 | BM72: 79 | BN72: 92 | BO72: 97 | BP72: 67 | BQ72: 79 | BR72: 73 | BS72: 81 | BT72: 85 | BU72: 85 | BV72: 83 | BW72: 85 | BX72: 85 | BY72: 87 | BZ72: 91 | CA72: 84 | CG72: VALLE DEL CAUCA | CH72: 831012 | CI72: 878801 | CJ72: 866369 | CK72: 199735 | CL72: 208811 | CM72: 203898
A73: 15176 | B73: 151763 | C73: 3 | D73: 15 | E73: 176 | F73: 176 | G73: BOYACÁ | H73: CHIQUINQUIRÁ | I73: Independiente | J73: 186 | K73: 390 | L73: 2969 | M73: 2884 | N73: 2756 | O73: 2881 | P73: 2938 | Q73: 2788 | R73: 2766 | S73: 2788 | T73: 2860 | U73: 2921 | V73: 2948 | W73: 2981 | X73: 2985 | Y73: 2984 | Z73: 2785 | AA73: 2823 | AB73: 2917 | AC73: 2925 | AD73: 2960 | AE73: 2983 | AF73: 3042 | AG73: 3021 | AH73: 3079 | AI73: 3118 | AJ73: 3063 | AK73: 2962 | AQ73: 5038 | AR73: 50383 | AS73: 3 | AT73: 5 | AU73: 38 | AV73: 038 | AW73: ANTIOQUIA | AX73: ANGOSTURA | AY73: Independiente | AZ73: 3 | BA73: 46 | BB73: 121 | BC73: 86 | BD73: 88 | BE73: 95 | BF73: 101 | BG73: 101 | BH73: 106 | BI73: 108 | BJ73: 111 | BK73: 119 | BL73: 130 | BM73: 132 | BN73: 139 | BO73: 133 | BP73: 84 | BQ73: 108 | BR73: 109 | BS73: 108 | BT73: 110 | BU73: 114 | BV73: 105 | BW73: 109 | BX73: 114 | BY73: 114 | BZ73: 113 | CA73: 114 | CG73: VAUPÉS | CH73: 2348 | CI73: 2795 | CJ73: 3549 | CK73: 1145 | CL73: 1484 | CM73: 1407
A74: 85410 | B74: 854103 | C74: 3 | D74: 85 | E74: 410 | F74: 410 | G74: CASANARE | H74: TAURAMENA | I74: Independiente | J74: 110 | K74: 208 | L74: 683 | M74: 666 | N74: 554 | O74: 612 | P74: 601 | Q74: 547 | R74: 579 | S74: 603 | T74: 625 | U74: 623 | V74: 649 | W74: 672 | X74: 707 | Y74: 706 | Z74: 579 | AA74: 640 | AB74: 676 | AC74: 694 | AD74: 702 | AE74: 696 | AF74: 730 | AG74: 726 | AH74: 761 | AI74: 758 | AJ74: 761 | AK74: 783 | AQ74: 5031 | AR74: 50312 | AS74: 2 | AT74: 5 | AU74: 31 | AV74: 031 | AW74: ANTIOQUIA | AX74: AMALFI | AY74: Dep_sec_priv | AZ74: 166 | BA74: 476 | BB74: 1824 | BC74: 1774 | BD74: 1551 | BE74: 1736 | BF74: 1758 | BG74: 1521 | BH74: 1550 | BI74: 1740 | BJ74: 1829 | BK74: 1787 | BL74: 1804 | BM74: 1800 | BN74: 1948 | BO74: 1873 | BP74: 1852 | BQ74: 2008 | BR74: 2022 | BS74: 2070 | BT74: 2229 | BU74: 2073 | BV74: 2158 | BW74: 2551 | BX74: 2119 | BY74: 1945 | BZ74: 2104 | CA74: 1958 | CG74: VICHADA | CH74: 61566 | CI74: 87822 | CJ74: 83858 | CK74: 1935 | CL74: 2378 | CM74: 2027
A75: 15516 | B75: 155163 | C75: 3 | D75: 15 | E75: 516 | F75: 516 | G75: BOYACÁ | H75: PAIPA | I75: Independiente | J75: 58 | K75: 203 | L75: 1248 | M75: 1196 | N75: 1050 | O75: 1141 | P75: 1148 | Q75: 1101 | R75: 1093 | S75: 1141 | T75: 1167 | U75: 1178 | V75: 1212 | W75: 1238 | X75: 1253 | Y75: 1269 | Z75: 1199 | AA75: 1270 | AB75: 1292 | AC75: 1315 | AD75: 1343 | AE75: 1348 | AF75: 1382 | AG75: 1387 | AH75: 1400 | AI75: 1414 | AJ75: 1412 | AK75: 1371 | AQ75: 5042 | AR75: 50422 | AS75: 2 | AT75: 5 | AU75: 42 | AV75: 042 | AW75: ANTIOQUIA | AX75: SANTAFÉ DE ANTIOQUIA | AY75: Dep_sec_priv | AZ75: 637 | BA75: 1576 | BB75: 8367 | BC75: 7859 | BD75: 7146 | BE75: 7077 | BF75: 6931 | BG75: 6210 | BH75: 5925 | BI75: 5828 | BJ75: 5756 | BK75: 5720 | BL75: 5337 | BM75: 5477 | BN75: 5783 | BO75: 5958 | BP75: 5585 | BQ75: 5858 | BR75: 6019 | BS75: 6120 | BT75: 6166 | BU75: 6162 | BV75: 6136 | BW75: 6192 | BX75: 6150 | BY75: 6219 | BZ75: 6375 | CA75: 6264 | CG75: Sin Info | CH75: 877 | CI75: 708 | CJ75: 641 | CK75: 21355 | CL75: 23017 | CM75: 22820
A76: 15001 | B76: 150012 | C76: 2 | D76: 15 | E76: 1 | F76: 001 | G76: BOYACÁ | H76: TUNJA | I76: Dep_sec_priv | J76: 3471 | K76: 7816 | L76: 51250 | M76: 50478 | N76: 48807 | O76: 50636 | P76: 51404 | Q76: 45488 | R76: 45002 | S76: 45985 | T76: 46105 | U76: 46612 | V76: 47904 | W76: 48460 | X76: 49283 | Y76: 48208 | Z76: 47117 | AA76: 48677 | AB76: 49255 | AC76: 49547 | AD76: 49222 | AE76: 49028 | AF76: 50045 | AG76: 51094 | AH76: 51645 | AI76: 51707 | AJ76: 53733 | AK76: 51936 | AQ76: 5837 | AR76: 58373 | AS76: 3 | AT76: 5 | AU76: 837 | AV76: 837 | AW76: ANTIOQUIA | AX76: TURBO | AY76: Independiente | AZ76: 39 | BA76: 259 | BB76: 1943 | BC76: 1688 | BD76: 1140 | BE76: 1213 | BF76: 1251 | BG76: 1260 | BH76: 1290 | BI76: 1340 | BJ76: 1364 | BK76: 1380 | BL76: 1455 | BM76: 1477 | BN76: 1480 | BO76: 1375 | BP76: 1140 | BQ76: 1217 | BR76: 1373 | BS76: 1406 | BT76: 1451 | BU76: 1488 | BV76: 1483 | BW76: 1528 | BX76: 1494 | BY76: 1495 | BZ76: 1489 | CA76: 1316
A77: 25035 | B77: 250353 | C77: 3 | D77: 25 | E77: 35 | F77: 035 | G77: CUNDINAMARCA | H77: ANAPOIMA | I77: Independiente | J77: 19 | K77: 62 | L77: 542 | M77: 518 | N77: 526 | O77: 538 | P77: 564 | Q77: 545 | R77: 538 | S77: 536 | T77: 544 | U77: 558 | V77: 574 | W77: 571 | X77: 581 | Y77: 573 | Z77: 603 | AA77: 621 | AB77: 624 | AC77: 628 | AD77: 636 | AE77: 649 | AF77: 634 | AG77: 636 | AH77: 650 | AI77: 636 | AJ77: 628 | AK77: 584 | AQ77: 5079 | AR77: 50793 | AS77: 3 | AT77: 5 | AU77: 79 | AV77: 079 | AW77: ANTIOQUIA | AX77: BARBOSA | AY77: Independiente | AZ77: 30 | BA77: 183 | BB77: 782 | BC77: 771 | BD77: 767 | BE77: 832 | BF77: 846 | BG77: 830 | BH77: 826 | BI77: 846 | BJ77: 841 | BK77: 860 | BL77: 879 | BM77: 900 | BN77: 939 | BO77: 937 | BP77: 861 | BQ77: 930 | BR77: 975 | BS77: 997 | BT77: 1031 | BU77: 1040 | BV77: 1062 | BW77: 1096 | BX77: 1106 | BY77: 1112 | BZ77: 1122 | CA77: 1089
A78: 52001 | B78: 520013 | C78: 3 | D78: 52 | E78: 1 | F78: 001 | G78: NARIÑO | H78: PASTO | I78: Independiente | J78: 1544 | K78: 3813 | L78: 23607 | M78: 22451 | N78: 20651 | O78: 21976 | P78: 22145 | Q78: 21164 | R78: 21202 | S78: 21538 | T78: 21839 | U78: 22203 | V78: 22661 | W78: 23100 | X78: 23408 | Y78: 22964 | Z78: 20924 | AA78: 22209 | AB78: 22835 | AC78: 22937 | AD78: 22973 | AE78: 22901 | AF78: 22940 | AG78: 23342 | AH78: 23624 | AI78: 24097 | AJ78: 24354 | AK78: 23186 | AQ78: 5237 | AR78: 52373 | AS78: 3 | AT78: 5 | AU78: 237 | AV78: 237 | AW78: ANTIOQUIA | AX78: DON MATÍAS | AY78: Independiente | AZ78: 40 | BA78: 74 | BB78: 1856 | BC78: 1766 | BD78: 1791 | BE78: 1842 | BF78: 1860 | BG78: 1863 | BH78: 1972 | BI78: 1952 | BJ78: 1983 | BK78: 1972 | BL78: 1957 | BM78: 1958 | BN78: 1964 | BO78: 1930 | BP78: 1924 | BQ78: 1949 | BR78: 1967 | BS78: 1960 | BT78: 1955 | BU78: 1963 | BV78: 1973 | BW78: 1984 | BX78: 2005 | BY78: 2008 | BZ78: 2004 | CA78: 1977
A79: 5631 | B79: 56313 | C79: 3 | D79: 5 | E79: 631 | F79: 631 | G79: ANTIOQUIA | H79: SABANETA | I79: Independiente | J79: 315 | K79: 532 | L79: 5162 | M79: 5055 | N79: 4838 | O79: 5313 | P79: 5486 | Q79: 5468 | R79: 5644 | S79: 5727 | T79: 5736 | U79: 5926 | V79: 6089 | W79: 6254 | X79: 6390 | Y79: 6351 | Z79: 6058 | AA79: 6326 | AB79: 6462 | AC79: 6470 | AD79: 6565 | AE79: 6644 | AF79: 6687 | AG79: 6788 | AH79: 6880 | AI79: 6869 | AJ79: 6957 | AK79: 6885 | AQ79: 5093 | AR79: 50933 | AS79: 3 | AT79: 5 | AU79: 93 | AV79: 093 | AW79: ANTIOQUIA | AX79: BETULIA | AY79: Independiente | AZ79: 2 | BA79: 34 | BB79: 210 | BC79: 205 | BD79: 165 | BE79: 197 | BF79: 199 | BG79: 170 | BH79: 168 | BI79: 168 | BJ79: 187 | BK79: 200 | BL79: 172 | BM79: 223 | BN79: 227 | BO79: 226 | BP79: 150 | BQ79: 164 | BR79: 174 | BS79: 168 | BT79: 169 | BU79: 174 | BV79: 181 | BW79: 179 | BX79: 191 | BY79: 192 | BZ79: 190 | CA79: 185
A80: 68572 | B80: 685723 | C80: 3 | D80: 68 | E80: 572 | F80: 572 | G80: SANTANDER | H80: PUENTE NACIONAL | I80: Independiente | J80: 8 | K80: 67 | L80: 361 | M80: 345 | N80: 297 | O80: 326 | P80: 331 | Q80: 325 | R80: 337 | S80: 336 | T80: 330 | U80: 338 | V80: 341 | W80: 352 | X80: 335 | Y80: 339 | Z80: 302 | AA80: 318 | AB80: 345 | AC80: 349 | AD80: 344 | AE80: 359 | AF80: 374 | AG80: 377 | AH80: 368 | AI80: 370 | AJ80: 371 | AK80: 372 | AQ80: 5101 | AR80: 51013 | AS80: 3 | AT80: 5 | AU80: 101 | AV80: 101 | AW80: ANTIOQUIA | AX80: CIUDAD BOLÍVAR | AY80: Independiente | AZ80: 42 | BA80: 102 | BB80: 606 | BC80: 589 | BD80: 580 | BE80: 582 | BF80: 593 | BG80: 601 | BH80: 629 | BI80: 628 | BJ80: 665 | BK80: 664 | BL80: 710 | BM80: 772 | BN80: 802 | BO80: 786 | BP80: 740 | BQ80: 774 | BR80: 809 | BS80: 810 | BT80: 811 | BU80: 806 | BV80: 821 | BW80: 836 | BX80: 839 | BY80: 854 | BZ80: 858 | CA80: 846
A81: 25175 | B81: 251752 | C81: 2 | D81: 25 | E81: 175 | F81: 175 | G81: CUNDINAMARCA | H81: CHÍA | I81: Dep_sec_priv | J81: 1829 | K81: 3598 | L81: 26563 | M81: 26585 | N81: 26912 | O81: 26982 | P81: 26144 | Q81: 24140 | R81: 24594 | S81: 24396 | T81: 24655 | U81: 24061 | V81: 24724 | W81: 25114 | X81: 24502 | Y81: 24021 | Z81: 24366 | AA81: 25731 | AB81: 25274 | AC81: 26112 | AD81: 26203 | AE81: 25826 | AF81: 25728 | AG81: 26422 | AH81: 26693 | AI81: 26535 | AJ81: 27012 | AK81: 25643 | AQ81: 5113 | AR81: 51132 | AS81: 2 | AT81: 5 | AU81: 113 | AV81: 113 | AW81: ANTIOQUIA | AX81: BURITICÁ | AY81: Dep_sec_priv | AZ81: 49 | BA81: 187 | BB81: 1151 | BC81: 1096 | BD81: 1093 | BE81: 1183 | BF81: 1038 | BG81: 807 | BH81: 803 | BI81: 721 | BJ81: 651 | BK81: 590 | BL81: 549 | BM81: 504 | BN81: 538 | BO81: 549 | BP81: 674 | BQ81: 769 | BR81: 789 | BS81: 814 | BT81: 862 | BU81: 811 | BV81: 828 | BW81: 882 | BX81: 918 | BY81: 927 | BZ81: 873 | CA81: 824
A82: 44001 | B82: 440013 | C82: 3 | D82: 44 | E82: 1 | F82: 001 | G82: LA GUAJIRA | H82: RIOHACHA | I82: Independiente | J82: 561 | K82: 3963 | L82: 9607 | M82: 9042 | N82: 5443 | O82: 5829 | P82: 7885 | Q82: 9452 | R82: 9437 | S82: 9463 | T82: 9724 | U82: 9800 | V82: 9954 | W82: 10123 | X82: 10226 | Y82: 9575 | Z82: 5585 | AA82: 5960 | AB82: 7885 | AC82: 8918 | AD82: 9431 | AE82: 9562 | AF82: 9776 | AG82: 9952 | AH82: 10064 | AI82: 10164 | AJ82: 10262 | AK82: 9446 | AQ82: 5120 | AR82: 51201 | AS82: 1 | AT82: 5 | AU82: 120 | AV82: 120 | AW82: ANTIOQUIA | AX82: CÁCERES | AY82: Dep_No_priv | AZ82: 12 | BA82: 29 | BB82: 385 | BC82: 367 | BD82: 360 | BE82: 368 | BF82: 376 | BG82: 375 | BH82: 376 | BI82: 379 | BJ82: 379 | BK82: 382 | BL82: 391 | BM82: 385 | BN82: 382 | BO82: 374 | BP82: 364 | BQ82: 372 | BR82: 361 | BS82: 359 | BT82: 365 | BU82: 369 | BV82: 371 | BW82: 367 | BX82: 373 | BY82: 378 | BZ82: 391 | CA82: 399
A83: 25377 | B83: 253773 | C83: 3 | D83: 25 | E83: 377 | F83: 377 | G83: CUNDINAMARCA | H83: LA CALERA | I83: Independiente | J83: 94 | K83: 141 | L83: 1649 | M83: 1595 | N83: 1566 | O83: 1623 | P83: 1664 | Q83: 1630 | R83: 1666 | S83: 1678 | T83: 1703 | U83: 1711 | V83: 1721 | W83: 1757 | X83: 1798 | Y83: 1794 | Z83: 1704 | AA83: 1790 | AB83: 1816 | AC83: 1834 | AD83: 1842 | AE83: 1843 | AF83: 1863 | AG83: 1868 | AH83: 1906 | AI83: 1914 | AJ83: 1886 | AK83: 1915 | AQ83: 5887 | AR83: 58873 | AS83: 3 | AT83: 5 | AU83: 887 | AV83: 887 | AW83: ANTIOQUIA | AX83: YARUMAL | AY83: Independiente | AZ83: 31 | BA83: 133 | BB83: 1233 | BC83: 1182 | BD83: 1172 | BE83: 1197 | BF83: 1210 | BG83: 1201 | BH83: 1197 | BI83: 1198 | BJ83: 1215 | BK83: 1229 | BL83: 1243 | BM83: 1279 | BN83: 1285 | BO83: 1274 | BP83: 1206 | BQ83: 1259 | BR83: 1260 | BS83: 1254 | BT83: 1265 | BU83: 1288 | BV83: 1339 | BW83: 1372 | BX83: 1393 | BY83: 1402 | BZ83: 1418 | CA83: 1371
A84: 25001 | B84: 250013 | C84: 3 | D84: 25 | E84: 1 | F84: 001 | G84: CUNDINAMARCA | H84: AGUA DE DIOS | I84: Independiente | J84: 34 | K84: 85 | L84: 589 | M84: 571 | N84: 663 | O84: 680 | P84: 605 | Q84: 600 | R84: 573 | S84: 568 | T84: 567 | U84: 561 | V84: 574 | W84: 580 | X84: 574 | Y84: 552 | Z84: 524 | AA84: 530 | AB84: 608 | AC84: 611 | AD84: 591 | AE84: 601 | AF84: 633 | AG84: 642 | AH84: 650 | AI84: 651 | AJ84: 639 | AK84: 640 | AQ84: 5134 | AR84: 51342 | AS84: 2 | AT84: 5 | AU84: 134 | AV84: 134 | AW84: ANTIOQUIA | AX84: CAMPAMENTO | AY84: Dep_sec_priv | AZ84: 26 | BA84: 32 | BB84: 71 | BC84: 60 | BD84: 64 | BE84: 77 | BF84: 73 | BG84: 64 | BH84: 63 | BI84: 66 | BJ84: 63 | BK84: 64 | BL84: 65 | BM84: 64 | BN84: 53 | BO84: 51 | BP84: 30 | BQ84: 46 | BR84: 62 | BS84: 68 | BT84: 93 | BU84: 84 | BV84: 72 | BW84: 82 | BX84: 91 | BY84: 100 | BZ84: 111 | CA84: 124
A85: 25815 | B85: 258153 | C85: 3 | D85: 25 | E85: 815 | F85: 815 | G85: CUNDINAMARCA | H85: TOCAIMA | I85: Independiente | J85: 20 | K85: 66 | L85: 303 | M85: 288 | N85: 256 | O85: 275 | P85: 287 | Q85: 288 | R85: 296 | S85: 292 | T85: 297 | U85: 319 | V85: 356 | W85: 360 | X85: 359 | Y85: 345 | Z85: 333 | AA85: 368 | AB85: 372 | AC85: 375 | AD85: 398 | AE85: 403 | AF85: 388 | AG85: 405 | AH85: 392 | AI85: 409 | AJ85: 411 | AK85: 397 | AQ85: 5134 | AR85: 51343 | AS85: 3 | AT85: 5 | AU85: 134 | AV85: 134 | AW85: ANTIOQUIA | AX85: CAMPAMENTO | AY85: Independiente | AZ85: 2 | BA85: 37 | BB85: 86 | BC85: 69 | BD85: 64 | BE85: 69 | BF85: 71 | BG85: 68 | BH85: 67 | BI85: 71 | BJ85: 77 | BK85: 88 | BL85: 99 | BM85: 98 | BN85: 105 | BO85: 98 | BP85: 94 | BQ85: 102 | BR85: 102 | BS85: 98 | BT85: 102 | BU85: 100 | BV85: 101 | BW85: 109 | BX85: 107 | BY85: 108 | BZ85: 111 | CA85: 104
A86: 25473 | B86: 254733 | C86: 3 | D86: 25 | E86: 473 | F86: 473 | G86: CUNDINAMARCA | H86: MOSQUERA | I86: Independiente | J86: 177 | K86: 497 | L86: 3807 | M86: 3647 | N86: 3566 | O86: 3788 | P86: 3876 | Q86: 3767 | R86: 3844 | S86: 3894 | T86: 3988 | U86: 4060 | V86: 4177 | W86: 4295 | X86: 4363 | Y86: 4380 | Z86: 4218 | AA86: 4377 | AB86: 4516 | AC86: 4581 | AD86: 4654 | AE86: 4705 | AF86: 4790 | AG86: 4843 | AH86: 4935 | AI86: 4961 | AJ86: 4992 | AK86: 4847 | AQ86: 5148 | AR86: 51482 | AS86: 2 | AT86: 5 | AU86: 148 | AV86: 148 | AW86: ANTIOQUIA | AX86: EL CARMEN DE VIBORAL | AY86: Dep_sec_priv | AZ86: 535 | BA86: 1173 | BB86: 7357 | BC86: 7080 | BD86: 7234 | BE86: 7182 | BF86: 7153 | BG86: 6302 | BH86: 6401 | BI86: 6405 | BJ86: 6473 | BK86: 6606 | BL86: 6788 | BM86: 6867 | BN86: 7078 | BO86: 7001 | BP86: 7146 | BQ86: 7432 | BR86: 7644 | BS86: 7673 | BT86: 7689 | BU86: 7623 | BV86: 7738 | BW86: 7825 | BX86: 7913 | BY86: 8059 | BZ86: 8170 | CA86: 8026
A87: 20011 | B87: 200113 | C87: 3 | D87: 20 | E87: 11 | F87: 011 | G87: CESAR | H87: AGUACHICA | I87: Independiente | J87: 223 | K87: 534 | L87: 3073 | M87: 2873 | N87: 2736 | O87: 2862 | P87: 3015 | Q87: 2949 | R87: 3162 | S87: 3166 | T87: 3471 | U87: 3313 | V87: 3408 | W87: 3526 | X87: 3515 | Y87: 3480 | Z87: 3057 | AA87: 2928 | AB87: 3015 | AC87: 3017 | AD87: 3052 | AE87: 3104 | AF87: 3090 | AG87: 3164 | AH87: 3152 | AI87: 3190 | AJ87: 3156 | AK87: 3056 | AQ87: 5604 | AR87: 56043 | AS87: 3 | AT87: 5 | AU87: 604 | AV87: 604 | AW87: ANTIOQUIA | AX87: REMEDIOS | AY87: Independiente | AZ87: 9 | BA87: 66 | BB87: 339 | BC87: 320 | BD87: 281 | BE87: 318 | BF87: 333 | BG87: 316 | BH87: 317 | BI87: 330 | BJ87: 323 | BK87: 368 | BL87: 390 | BM87: 388 | BN87: 401 | BO87: 384 | BP87: 349 | BQ87: 330 | BR87: 345 | BS87: 364 | BT87: 381 | BU87: 379 | BV87: 382 | BW87: 394 | BX87: 393 | BY87: 394 | BZ87: 405 | CA87: 381
A88: 73873 | B88: 738733 | C88: 3 | D88: 73 | E88: 873 | F88: 873 | G88: TOLIMA | H88: VILLARRICA | I88: Independiente | J88: 5 | K88: 33 | L88: 56 | M88: 49 | N88: 45 | O88: 61 | P88: 67 | Q88: 64 | R88: 67 | S88: 65 | T88: 67 | U88: 71 | V88: 69 | W88: 75 | X88: 67 | Y88: 62 | Z88: 46 | AA88: 68 | AB88: 77 | AC88: 80 | AD88: 82 | AE88: 87 | AF88: 85 | AG88: 85 | AH88: 86 | AI88: 85 | AJ88: 86 | AK88: 86 | AQ88: 5154 | AR88: 51542 | AS88: 2 | AT88: 5 | AU88: 154 | AV88: 154 | AW88: ANTIOQUIA | AX88: CAUCASIA | AY88: Dep_sec_priv | AZ88: 462 | BA88: 1540 | BB88: 8055 | BC88: 7824 | BD88: 7177 | BE88: 7452 | BF88: 7827 | BG88: 7410 | BH88: 7621 | BI88: 7779 | BJ88: 7657 | BK88: 7795 | BL88: 7715 | BM88: 7654 | BN88: 7863 | BO88: 7827 | BP88: 7010 | BQ88: 7970 | BR88: 8198 | BS88: 8423 | BT88: 7721 | BU88: 7807 | BV88: 7954 | BW88: 8039 | BX88: 8168 | BY88: 8302 | BZ88: 8230 | CA88: 8037
A89: 5318 | B89: 53183 | C89: 3 | D89: 5 | E89: 318 | F89: 318 | G89: ANTIOQUIA | H89: GUARNE | I89: Independiente | J89: 55 | K89: 231 | L89: 1255 | M89: 1226 | N89: 1241 | O89: 1346 | P89: 1367 | Q89: 1376 | R89: 1407 | S89: 1440 | T89: 1477 | U89: 1508 | V89: 1554 | W89: 1602 | X89: 1638 | Y89: 1558 | Z89: 1463 | AA89: 1537 | AB89: 1610 | AC89: 1641 | AD89: 1676 | AE89: 1710 | AF89: 1748 | AG89: 1793 | AH89: 1846 | AI89: 1862 | AJ89: 1887 | AK89: 1823 | AQ89: 5861 | AR89: 58612 | AS89: 2 | AT89: 5 | AU89: 861 | AV89: 861 | AW89: ANTIOQUIA | AX89: VENECIA | AY89: Dep_sec_priv | AZ89: 57 | BA89: 196 | BB89: 1537 | BC89: 1516 | BD89: 1525 | BE89: 1484 | BF89: 1430 | BG89: 1341 | BH89: 1401 | BI89: 1453 | BJ89: 1490 | BK89: 1409 | BL89: 1445 | BM89: 1500 | BN89: 1634 | BO89: 1556 | BP89: 1573 | BQ89: 1552 | BR89: 1508 | BS89: 1514 | BT89: 1482 | BU89: 1452 | BV89: 1443 | BW89: 1408 | BX89: 1428 | BY89: 1423 | BZ89: 1246 | CA89: 1183
A90: 25269 | B90: 252693 | C90: 3 | D90: 25 | E90: 269 | F90: 269 | G90: CUNDINAMARCA | H90: FACATATIVÁ | I90: Independiente | J90: 222 | K90: 455 | L90: 5168 | M90: 4853 | N90: 4784 | O90: 4846 | P90: 4814 | Q90: 4735 | R90: 4735 | S90: 4767 | T90: 4926 | U90: 4952 | V90: 5014 | W90: 5041 | X90: 5084 | Y90: 4986 | Z90: 4808 | AA90: 5001 | AB90: 5098 | AC90: 5175 | AD90: 5206 | AE90: 5255 | AF90: 5251 | AG90: 5236 | AH90: 5316 | AI90: 5336 | AJ90: 5351 | AK90: 5057 | AQ90: 5172 | AR90: 51723 | AS90: 3 | AT90: 5 | AU90: 172 | AV90: 172 | AW90: ANTIOQUIA | AX90: CHIGORODÓ | AY90: Independiente | AZ90: 34 | BA90: 141 | BB90: 599 | BC90: 533 | BD90: 542 | BE90: 565 | BF90: 595 | BG90: 614 | BH90: 632 | BI90: 643 | BJ90: 654 | BK90: 656 | BL90: 715 | BM90: 715 | BN90: 719 | BO90: 663 | BP90: 546 | BQ90: 591 | BR90: 648 | BS90: 689 | BT90: 737 | BU90: 762 | BV90: 767 | BW90: 773 | BX90: 793 | BY90: 816 | BZ90: 867 | CA90: 703
A91: 25785 | B91: 257853 | C91: 3 | D91: 25 | E91: 785 | F91: 785 | G91: CUNDINAMARCA | H91: TABIO | I91: Independiente | J91: 38 | K91: 75 | L91: 1124 | M91: 1093 | N91: 1078 | O91: 1109 | P91: 1102 | Q91: 1096 | R91: 1089 | S91: 1092 | T91: 1149 | U91: 1158 | V91: 1185 | W91: 1152 | X91: 1151 | Y91: 1147 | Z91: 1111 | AA91: 1133 | AB91: 1152 | AC91: 1154 | AD91: 1156 | AE91: 1146 | AF91: 1140 | AG91: 1151 | AH91: 1151 | AI91: 1189 | AJ91: 1172 | AK91: 1119 | AQ91: 5154 | AR91: 51541 | AS91: 1 | AT91: 5 | AU91: 154 | AV91: 154 | AW91: ANTIOQUIA | AX91: CAUCASIA | AY91: Dep_No_priv | AZ91: 80 | BA91: 260 | BB91: 1715 | BC91: 1661 | BD91: 1580 | BE91: 1682 | BF91: 1810 | BG91: 1808 | BH91: 1809 | BI91: 1815 | BJ91: 1850 | BK91: 1820 | BL91: 1826 | BM91: 1844 | BN91: 1823 | BO91: 1847 | BP91: 1781 | BQ91: 1911 | BR91: 2072 | BS91: 2127 | BT91: 2148 | BU91: 2069 | BV91: 2024 | BW91: 2081 | BX91: 2053 | BY91: 2047 | BZ91: 2049 | CA91: 1934
A92: 25769 | B92: 257693 | C92: 3 | D92: 25 | E92: 769 | F92: 769 | G92: CUNDINAMARCA | H92: SUBACHOQUE | I92: Independiente | J92: 14 | K92: 23 | L92: 692 | M92: 678 | N92: 693 | O92: 693 | P92: 686 | Q92: 683 | R92: 680 | S92: 696 | T92: 687 | U92: 695 | V92: 692 | W92: 694 | X92: 700 | Y92: 700 | Z92: 700 | AA92: 707 | AB92: 709 | AC92: 713 | AD92: 711 | AE92: 727 | AF92: 724 | AG92: 721 | AH92: 727 | AI92: 718 | AJ92: 694 | AK92: 686 | AQ92: 5809 | AR92: 58092 | AS92: 2 | AT92: 5 | AU92: 809 | AV92: 809 | AW92: ANTIOQUIA | AX92: TITIRIBÍ | AY92: Dep_sec_priv | AZ92: 34 | BA92: 92 | BB92: 1119 | BC92: 1036 | BD92: 997 | BE92: 1029 | BF92: 1005 | BG92: 973 | BH92: 959 | BI92: 956 | BJ92: 966 | BK92: 978 | BL92: 978 | BM92: 996 | BN92: 993 | BO92: 1007 | BP92: 982 | BQ92: 1027 | BR92: 998 | BS92: 1004 | BT92: 992 | BU92: 1001 | BV92: 999 | BW92: 1015 | BX92: 1024 | BY92: 1033 | BZ92: 1058 | CA92: 1034
A93: 25322 | B93: 253222 | C93: 2 | D93: 25 | E93: 322 | F93: 322 | G93: CUNDINAMARCA | H93: GUASCA | I93: Dep_sec_priv | J93: 111 | K93: 214 | L93: 1798 | M93: 1775 | N93: 1534 | O93: 1538 | P93: 1524 | Q93: 1710 | R93: 1420 | S93: 1422 | T93: 1443 | U93: 1414 | V93: 1373 | W93: 1374 | X93: 1364 | Y93: 1360 | Z93: 1363 | AA93: 1386 | AB93: 1369 | AC93: 1396 | AD93: 1403 | AE93: 1659 | AF93: 1672 | AG93: 1678 | AH93: 1747 | AI93: 1903 | AJ93: 1916 | AK93: 1851 | AQ93: 5190 | AR93: 51903 | AS93: 3 | AT93: 5 | AU93: 190 | AV93: 190 | AW93: ANTIOQUIA | AX93: CISNEROS | AY93: Independiente | AZ93: 8 | BA93: 46 | BB93: 201 | BC93: 180 | BD93: 175 | BE93: 188 | BF93: 198 | BG93: 195 | BH93: 199 | BI93: 204 | BJ93: 209 | BK93: 205 | BL93: 205 | BM93: 204 | BN93: 209 | BO93: 201 | BP93: 189 | BQ93: 205 | BR93: 219 | BS93: 239 | BT93: 237 | BU93: 240 | BV93: 240 | BW93: 250 | BX93: 251 | BY93: 252 | BZ93: 260 | CA93: 258
A94: 19548 | B94: 195483 | C94: 3 | D94: 19 | E94: 548 | F94: 548 | G94: CAUCA | H94: PIENDAMÓ | I94: Independiente | J94: 23 | K94: 200 | L94: 641 | M94: 598 | N94: 505 | O94: 589 | P94: 647 | Q94: 638 | R94: 633 | S94: 646 | T94: 663 | U94: 684 | V94: 699 | W94: 697 | X94: 717 | Y94: 696 | Z94: 495 | AA94: 644 | AB94: 658 | AC94: 673 | AD94: 694 | AE94: 715 | AF94: 732 | AG94: 729 | AH94: 751 | AI94: 758 | AJ94: 758 | AK94: 713 | AQ94: 5206 | AR94: 52063 | AS94: 3 | AT94: 5 | AU94: 206 | AV94: 206 | AW94: ANTIOQUIA | AX94: CONCEPCIÓN | AY94: Independiente | AZ94: 4 | BA94: 29 | BB94: 100 | BC94: 91 | BD94: 97 | BE94: 103 | BF94: 104 | BG94: 106 | BH94: 110 | BI94: 119 | BJ94: 127 | BK94: 132 | BL94: 134 | BM94: 132 | BN94: 131 | BO94: 136 | BP94: 123 | BQ94: 119 | BR94: 123 | BS94: 127 | BT94: 136 | BU94: 140 | BV94: 142 | BW94: 143 | BX94: 153 | BY94: 150 | BZ94: 154 | CA94: 142
A95: 73770 | B95: 737703 | C95: 3 | D95: 73 | E95: 770 | F95: 770 | G95: TOLIMA | H95: SUÁREZ | I95: Independiente | J95: 1 | K95: 22 | L95: 61 | M95: 52 | N95: 56 | O95: 65 | P95: 63 | Q95: 61 | R95: 63 | S95: 57 | T95: 56 | U95: 55 | V95: 59 | W95: 55 | X95: 58 | Y95: 62 | Z95: 47 | AA95: 59 | AB95: 60 | AC95: 62 | AD95: 62 | AE95: 60 | AF95: 64 | AG95: 67 | AH95: 63 | AI95: 66 | AJ95: 68 | AK95: 63 | AQ95: 5197 | AR95: 51973 | AS95: 3 | AT95: 5 | AU95: 197 | AV95: 197 | AW95: ANTIOQUIA | AX95: COCORNÁ | AY95: Independiente | AZ95: 14 | BA95: 45 | BB95: 182 | BC95: 175 | BD95: 186 | BE95: 196 | BF95: 197 | BG95: 201 | BH95: 192 | BI95: 186 | BJ95: 192 | BK95: 201 | BL95: 207 | BM95: 206 | BN95: 216 | BO95: 216 | BP95: 193 | BQ95: 193 | BR95: 214 | BS95: 217 | BT95: 225 | BU95: 223 | BV95: 228 | BW95: 232 | BX95: 237 | BY95: 241 | BZ95: 244 | CA95: 254
A96: 25286 | B96: 252863 | C96: 3 | D96: 25 | E96: 286 | F96: 286 | G96: CUNDINAMARCA | H96: FUNZA | I96: Independiente | J96: 174 | K96: 476 | L96: 3555 | M96: 3328 | N96: 3337 | O96: 3452 | P96: 3669 | Q96: 3567 | R96: 3665 | S96: 3818 | T96: 3873 | U96: 4002 | V96: 4089 | W96: 4251 | X96: 4323 | Y96: 4112 | Z96: 4080 | AA96: 4308 | AB96: 4300 | AC96: 4409 | AD96: 4450 | AE96: 4539 | AF96: 4618 | AG96: 4692 | AH96: 4711 | AI96: 4785 | AJ96: 4759 | AK96: 4429 | AQ96: 5209 | AR96: 52093 | AS96: 3 | AT96: 5 | AU96: 209 | AV96: 209 | AW96: ANTIOQUIA | AX96: CONCORDIA | AY96: Independiente | AZ96: 12 | BA96: 38 | BB96: 394 | BC96: 378 | BD96: 355 | BE96: 364 | BF96: 363 | BG96: 359 | BH96: 361 | BI96: 365 | BJ96: 358 | BK96: 364 | BL96: 366 | BM96: 405 | BN96: 409 | BO96: 400 | BP96: 363 | BQ96: 365 | BR96: 374 | BS96: 376 | BT96: 379 | BU96: 383 | BV96: 377 | BW96: 379 | BX96: 383 | BY96: 383 | BZ96: 381 | CA96: 375
A97: 15322 | B97: 153223 | C97: 3 | D97: 15 | E97: 322 | F97: 322 | G97: BOYACÁ | H97: GUATEQUE | I97: Independiente | J97: 9 | K97: 40 | L97: 406 | M97: 408 | N97: 369 | O97: 399 | P97: 404 | Q97: 405 | R97: 397 | S97: 392 | T97: 398 | U97: 410 | V97: 408 | W97: 419 | X97: 430 | Y97: 421 | Z97: 404 | AA97: 413 | AB97: 423 | AC97: 411 | AD97: 397 | AE97: 395 | AF97: 402 | AG97: 398 | AH97: 399 | AI97: 395 | AJ97: 392 | AK97: 385 | AQ97: 5861 | AR97: 58613 | AS97: 3 | AT97: 5 | AU97: 861 | AV97: 861 | AW97: ANTIOQUIA | AX97: VENECIA | AY97: Independiente | AZ97: 8 | BA97: 39 | BB97: 222 | BC97: 215 | BD97: 158 | BE97: 159 | BF97: 162 | BG97: 154 | BH97: 154 | BI97: 161 | BJ97: 169 | BK97: 171 | BL97: 168 | BM97: 184 | BN97: 189 | BO97: 187 | BP97: 160 | BQ97: 174 | BR97: 179 | BS97: 177 | BT97: 193 | BU97: 193 | BV97: 204 | BW97: 208 | BX97: 212 | BY97: 213 | BZ97: 222 | CA97: 211
A98: 54001 | B98: 540012 | C98: 2 | D98: 54 | E98: 1 | F98: 001 | G98: NORTE DE SANTANDER | H98: CÚCUTA | I98: Dep_sec_priv | J98: 8450 | K98: 23193 | L98: 118653 | M98: 116431 | N98: 112991 | O98: 115403 | P98: 115626 | Q98: 105382 | R98: 106736 | S98: 108622 | T98: 108794 | U98: 110948 | V98: 112111 | W98: 113287 | X98: 115127 | Y98: 113857 | Z98: 110276 | AA98: 117217 | AB98: 119825 | AC98: 120689 | AD98: 120391 | AE98: 121651 | AF98: 124094 | AG98: 126345 | AH98: 127606 | AI98: 129463 | AJ98: 131965 | AK98: 128908 | AQ98: 5051 | AR98: 50513 | AS98: 3 | AT98: 5 | AU98: 51 | AV98: 051 | AW98: ANTIOQUIA | AX98: ARBOLETES | AY98: Independiente | AZ98: 11 | BA98: 172 | BB98: 288 | BC98: 315 | BD98: 208 | BE98: 241 | BF98: 256 | BG98: 295 | BH98: 313 | BI98: 315 | BJ98: 301 | BK98: 306 | BL98: 328 | BM98: 318 | BN98: 344 | BO98: 307 | BP98: 232 | BQ98: 239 | BR98: 282 | BS98: 334 | BT98: 357 | BU98: 361 | BV98: 369 | BW98: 386 | BX98: 404 | BY98: 408 | BZ98: 401 | CA98: 393
A99: 50313 | B99: 503133 | C99: 3 | D99: 50 | E99: 313 | F99: 313 | G99: META | H99: GRANADA | I99: Independiente | J99: 105 | K99: 443 | L99: 2378 | M99: 2245 | N99: 2041 | O99: 2348 | P99: 2349 | Q99: 2273 | R99: 2264 | S99: 2230 | T99: 2252 | U99: 2272 | V99: 2358 | W99: 2430 | X99: 2185 | Y99: 2151 | Z99: 1845 | AA99: 2068 | AB99: 2116 | AC99: 2116 | AD99: 2146 | AE99: 2187 | AF99: 2189 | AG99: 2244 | AH99: 2277 | AI99: 2267 | AJ99: 2290 | AK99: 2185 | AQ99: 5240 | AR99: 52403 | AS99: 3 | AT99: 5 | AU99: 240 | AV99: 240 | AW99: ANTIOQUIA | AX99: EBÉJICO | AY99: Independiente | AZ99: 6 | BA99: 24 | BB99: 138 | BC99: 136 | BD99: 122 | BE99: 131 | BF99: 137 | BG99: 137 | BH99: 134 | BI99: 139 | BJ99: 142 | BK99: 142 | BL99: 145 | BM99: 151 | BN99: 158 | BO99: 162 | BP99: 143 | BQ99: 146 | BR99: 150 | BS99: 152 | BT99: 156 | BU99: 163 | BV99: 161 | BW99: 163 | BX99: 165 | BY99: 168 | BZ99: 169 | CA99: 169
A100: 17380 | B100: 173803 | C100: 3 | D100: 17 | E100: 380 | F100: 380 | G100: CALDAS | H100: LA DORADA | I100: Independiente | J100: 182 | K100: 620 | L100: 3226 | M100: 3030 | N100: 3077 | O100: 3246 | P100: 3222 | Q100: 3152 | R100: 3151 | S100: 3120 | T100: 3161 | U100: 3233 | V100: 3278 | W100: 3333 | X100: 3376 | Y100: 3346 | Z100: 3068 | AA100: 3213 | AB100: 3294 | AC100: 3306 | AD100: 3356 | AE100: 3396 | AF100: 3409 | AG100: 3429 | AH100: 3558 | AI100: 3639 | AJ100: 3665 | AK100: 3531 | AQ100: 5686 | AR100: 56863 | AS100: 3 | AT100: 5 | AU100: 686 | AV100: 686 | AW100: ANTIOQUIA | AX100: SANTA ROSA DE OSOS | AY100: Independiente | AZ100: 43 | BA100: 83 | BB100: 1707 | BC100: 1673 | BD100: 1625 | BE100: 1678 | BF100: 1686 | BG100: 1694 | BH100: 1736 | BI100: 1744 | BJ100: 1753 | BK100: 1764 | BL100: 1765 | BM100: 1793 | BN100: 1804 | BO100: 1789 | BP100: 1736 | BQ100: 1775 | BR100: 1812 | BS100: 1833 | BT100: 1846 | BU100: 1884 | BV100: 1874 | BW100: 1902 | BX100: 1957 | BY100: 1994 | BZ100: 1995 | CA100: 1931
A101: 68307 | B101: 683073 | C101: 3 | D101: 68 | E101: 307 | F101: 307 | G101: SANTANDER | H101: GIRÓN | I101: Independiente | J101: 205 | K101: 504 | L101: 3574 | M101: 3258 | N101: 3066 | O101: 3142 | P101: 3145 | Q101: 3047 | R101: 3011 | S101: 3100 | T101: 3079 | U101: 3155 | V101: 3165 | W101: 3304 | X101: 3339 | Y101: 3276 | Z101: 3056 | AA101: 3186 | AB101: 3267 | AC101: 3319 | AD101: 3345 | AE101: 3489 | AF101: 3574 | AG101: 3567 | AH101: 3635 | AI101: 3671 | AJ101: 3583 | AK101: 3476 | AQ101: 5284 | AR101: 52843 | AS101: 3 | AT101: 5 | AU101: 284 | AV101: 284 | AW101: ANTIOQUIA | AX101: FRONTINO | AY101: Independiente | AZ101: 15 | BA101: 78 | BB101: 250 | BC101: 207 | BD101: 218 | BE101: 224 | BF101: 255 | BG101: 268 | BH101: 262 | BI101: 279 | BJ101: 280 | BK101: 266 | BL101: 268 | BM101: 275 | BN101: 280 | BO101: 271 | BP101: 219 | BQ101: 232 | BR101: 263 | BS101: 273 | BT101: 272 | BU101: 310 | BV101: 321 | BW101: 334 | BX101: 322 | BY101: 336 | BZ101: 324 | CA101: 319
A102: 68081 | B102: 680813 | C102: 3 | D102: 68 | E102: 81 | F102: 081 | G102: SANTANDER | H102: BARRANCABERMEJA | I102: Independiente | J102: 570 | K102: 2195 | L102: 8040 | M102: 7730 | N102: 6354 | O102: 6593 | P102: 6688 | Q102: 6434 | R102: 6417 | S102: 6469 | T102: 6836 | U102: 6879 | V102: 7042 | W102: 7286 | X102: 7613 | Y102: 7576 | Z102: 5950 | AA102: 6388 | AB102: 6686 | AC102: 6789 | AD102: 7042 | AE102: 7311 | AF102: 7480 | AG102: 7576 | AH102: 7778 | AI102: 7875 | AJ102: 7938 | AK102: 7723 | AQ102: 5284 | AR102: 52842 | AS102: 2 | AT102: 5 | AU102: 284 | AV102: 284 | AW102: ANTIOQUIA | AX102: FRONTINO | AY102: Dep_sec_priv | AZ102: 37 | BA102: 93 | BB102: 376 | BC102: 360 | BD102: 333 | BE102: 361 | BF102: 359 | BG102: 360 | BH102: 358 | BI102: 367 | BJ102: 367 | BK102: 377 | BL102: 394 | BM102: 397 | BN102: 411 | BO102: 409 | BP102: 354 | BQ102: 386 | BR102: 399 | BS102: 417 | BT102: 414 | BU102: 397 | BV102: 388 | BW102: 399 | BX102: 420 | BY102: 421 | BZ102: 428 | CA102: 469
A103: 73624 | B103: 736243 | C103: 3 | D103: 73 | E103: 624 | F103: 624 | G103: TOLIMA | H103: ROVIRA | I103: Independiente | J103: 8 | K103: 36 | L103: 218 | M103: 203 | N103: 193 | O103: 195 | P103: 197 | Q103: 181 | R103: 186 | S103: 195 | T103: 201 | U103: 202 | V103: 214 | W103: 216 | X103: 195 | Y103: 188 | Z103: 181 | AA103: 191 | AB103: 213 | AC103: 206 | AD103: 217 | AE103: 216 | AF103: 217 | AG103: 217 | AH103: 217 | AI103: 223 | AJ103: 224 | AK103: 210 | AQ103: 5679 | AR103: 56792 | AS103: 2 | AT103: 5 | AU103: 679 | AV103: 679 | AW103: ANTIOQUIA | AX103: SANTA BÁRBARA | AY103: Dep_sec_priv | AZ103: 76 | BA103: 98 | BB103: 770 | BC103: 758 | BD103: 748 | BE103: 763 | BF103: 742 | BG103: 677 | BH103: 703 | BI103: 721 | BJ103: 814 | BK103: 796 | BL103: 778 | BM103: 750 | BN103: 697 | BO103: 728 | BP103: 738 | BQ103: 692 | BR103: 693 | BS103: 715 | BT103: 740 | BU103: 788 | BV103: 773 | BW103: 778 | BX103: 838 | BY103: 865 | BZ103: 891 | CA103: 892
A104: 25599 | B104: 255993 | C104: 3 | D104: 25 | E104: 599 | F104: 599 | G104: CUNDINAMARCA | H104: APULO | I104: Independiente | J104: 10 | K104: 27 | L104: 172 | M104: 155 | N104: 176 | O104: 182 | P104: 185 | Q104: 184 | R104: 184 | S104: 177 | T104: 183 | U104: 180 | V104: 188 | W104: 178 | X104: 176 | Y104: 168 | Z104: 182 | AA104: 181 | AB104: 183 | AC104: 183 | AD104: 185 | AE104: 185 | AF104: 181 | AG104: 190 | AH104: 190 | AI104: 194 | AJ104: 196 | AK104: 210 | AQ104: 5172 | AR104: 51722 | AS104: 2 | AT104: 5 | AU104: 172 | AV104: 172 | AW104: ANTIOQUIA | AX104: CHIGORODÓ | AY104: Dep_sec_priv | AZ104: 234 | BA104: 480 | BB104: 3470 | BC104: 3438 | BD104: 3346 | BE104: 3468 | BF104: 3609 | BG104: 3555 | BH104: 3851 | BI104: 3782 | BJ104: 3798 | BK104: 3812 | BL104: 3875 | BM104: 3847 | BN104: 3868 | BO104: 3810 | BP104: 3778 | BQ104: 4005 | BR104: 3974 | BS104: 4170 | BT104: 4146 | BU104: 4107 | BV104: 4252 | BW104: 4114 | BX104: 4163 | BY104: 4201 | BZ104: 4245 | CA104: 4003
A105: 76147 | B105: 761473 | C105: 3 | D105: 76 | E105: 147 | F105: 147 | G105: VALLE DEL CAUCA | H105: CARTAGO | I105: Independiente | J105: 219 | K105: 397 | L105: 7318 | M105: 7034 | N105: 6748 | O105: 6847 | P105: 6826 | Q105: 6616 | R105: 6597 | S105: 6562 | T105: 6519 | U105: 6505 | V105: 6585 | W105: 6665 | X105: 6697 | Y105: 6604 | Z105: 6432 | AA105: 6520 | AB105: 6682 | AC105: 6676 | AD105: 6646 | AE105: 6625 | AF105: 6604 | AG105: 6697 | AH105: 6748 | AI105: 6734 | AJ105: 6770 | AK105: 6601 | AQ105: 5686 | AR105: 56862 | AS105: 2 | AT105: 5 | AU105: 686 | AV105: 686 | AW105: ANTIOQUIA | AX105: SANTA ROSA DE OSOS | AY105: Dep_sec_priv | AZ105: 327 | BA105: 1190 | BB105: 5862 | BC105: 5591 | BD105: 5398 | BE105: 5632 | BF105: 5722 | BG105: 5456 | BH105: 5679 | BI105: 5694 | BJ105: 5723 | BK105: 5669 | BL105: 5810 | BM105: 5921 | BN105: 6129 | BO105: 5917 | BP105: 5840 | BQ105: 5979 | BR105: 6254 | BS105: 6337 | BT105: 6375 | BU105: 6447 | BV105: 6535 | BW105: 6353 | BX105: 6351 | BY105: 6468 | BZ105: 6435 | CA105: 6136
A106: 5266 | B106: 52663 | C106: 3 | D106: 5 | E106: 266 | F106: 266 | G106: ANTIOQUIA | H106: ENVIGADO | I106: Independiente | J106: 691 | K106: 1073 | L106: 13084 | M106: 13078 | N106: 13198 | O106: 13545 | P106: 13736 | Q106: 13540 | R106: 13683 | S106: 13884 | T106: 14146 | U106: 14364 | V106: 14651 | W106: 14870 | X106: 15086 | Y106: 15194 | Z106: 15036 | AA106: 15480 | AB106: 15761 | AC106: 15850 | AD106: 15912 | AE106: 16135 | AF106: 16195 | AG106: 16353 | AH106: 16526 | AI106: 16698 | AJ106: 16799 | AK106: 16470 | AQ106: 5674 | AR106: 56742 | AS106: 2 | AT106: 5 | AU106: 674 | AV106: 674 | AW106: ANTIOQUIA | AX106: SAN VICENTE | AY106: Dep_sec_priv | AZ106: 50 | BA106: 109 | BB106: 689 | BC106: 684 | BD106: 704 | BE106: 694 | BF106: 717 | BG106: 714 | BH106: 711 | BI106: 719 | BJ106: 737 | BK106: 724 | BL106: 734 | BM106: 723 | BN106: 735 | BO106: 736 | BP106: 765 | BQ106: 742 | BR106: 737 | BS106: 770 | BT106: 781 | BU106: 806 | BV106: 868 | BW106: 922 | BX106: 929 | BY106: 940 | BZ106: 921 | CA106: 878
A107: 81001 | B107: 810013 | C107: 3 | D107: 81 | E107: 1 | F107: 001 | G107: ARAUCA | H107: ARAUCA | I107: Independiente | J107: 372 | K107: 953 | L107: 4708 | M107: 4510 | N107: 4034 | O107: 4525 | P107: 4603 | Q107: 4332 | R107: 4276 | S107: 4254 | T107: 4405 | U107: 4434 | V107: 4559 | W107: 4740 | X107: 4747 | Y107: 4704 | Z107: 4269 | AA107: 4569 | AB107: 4793 | AC107: 4915 | AD107: 4943 | AE107: 4963 | AF107: 5171 | AG107: 5036 | AH107: 4662 | AI107: 4708 | AJ107: 4675 | AK107: 4360 | AQ107: 5308 | AR107: 53082 | AS107: 2 | AT107: 5 | AU107: 308 | AV107: 308 | AW107: ANTIOQUIA | AX107: GIRARDOTA | AY107: Dep_sec_priv | AZ107: 411 | BA107: 764 | BB107: 8953 | BC107: 8859 | BD107: 8831 | BE107: 8867 | BF107: 8917 | BG107: 8443 | BH107: 8437 | BI107: 8437 | BJ107: 8495 | BK107: 8666 | BL107: 8862 | BM107: 9122 | BN107: 9156 | BO107: 9158 | BP107: 9168 | BQ107: 9465 | BR107: 9682 | BS107: 9808 | BT107: 9769 | BU107: 9962 | BV107: 10031 | BW107: 10174 | BX107: 10231 | BY107: 10251 | BZ107: 10339 | CA107: 10256
A108: 15001 | B108: 150013 | C108: 3 | D108: 15 | E108: 1 | F108: 001 | G108: BOYACÁ | H108: TUNJA | I108: Independiente | J108: 1206 | K108: 2835 | L108: 17519 | M108: 17025 | N108: 15502 | O108: 16196 | P108: 16112 | Q108: 15528 | R108: 15834 | S108: 16102 | T108: 16283 | U108: 16493 | V108: 16801 | W108: 17064 | X108: 17410 | Y108: 16965 | Z108: 15596 | AA108: 16236 | AB108: 16891 | AC108: 17092 | AD108: 17079 | AE108: 17367 | AF108: 17488 | AG108: 17446 | AH108: 17637 | AI108: 17857 | AJ108: 17939 | AK108: 17163 | AQ108: 5093 | AR108: 50932 | AS108: 2 | AT108: 5 | AU108: 93 | AV108: 093 | AW108: ANTIOQUIA | AX108: BETULIA | AY108: Dep_sec_priv | AZ108: 36 | BA108: 101 | BB108: 480 | BC108: 420 | BD108: 416 | BE108: 422 | BF108: 460 | BG108: 422 | BH108: 411 | BI108: 391 | BJ108: 382 | BK108: 435 | BL108: 407 | BM108: 365 | BN108: 357 | BO108: 337 | BP108: 307 | BQ108: 326 | BR108: 354 | BS108: 402 | BT108: 459 | BU108: 505 | BV108: 493 | BW108: 513 | BX108: 446 | BY108: 405 | BZ108: 417 | CA108: 468
A109: 76520 | B109: 765203 | C109: 3 | D109: 76 | E109: 520 | F109: 520 | G109: VALLE DEL CAUCA | H109: PALMIRA | I109: Independiente | J109: 515 | K109: 959 | L109: 15558 | M109: 15003 | N109: 14318 | O109: 14406 | P109: 14348 | Q109: 14116 | R109: 14177 | S109: 14197 | T109: 14135 | U109: 14254 | V109: 14511 | W109: 14591 | X109: 14776 | Y109: 14665 | Z109: 13999 | AA109: 14180 | AB109: 14417 | AC109: 14398 | AD109: 14315 | AE109: 14407 | AF109: 14602 | AG109: 14743 | AH109: 14910 | AI109: 14768 | AJ109: 14860 | AK109: 14581 | AQ109: 5264 | AR109: 52642 | AS109: 2 | AT109: 5 | AU109: 264 | AV109: 264 | AW109: ANTIOQUIA | AX109: ENTRERRIOS | AY109: Dep_sec_priv | AZ109: 128 | BA109: 207 | BB109: 2067 | BC109: 2045 | BD109: 2058 | BE109: 2138 | BF109: 2107 | BG109: 2047 | BH109: 2044 | BI109: 2055 | BJ109: 2109 | BK109: 2107 | BL109: 2244 | BM109: 2231 | BN109: 2265 | BO109: 2188 | BP109: 2212 | BQ109: 2252 | BR109: 2263 | BS109: 2310 | BT109: 2352 | BU109: 2358 | BV109: 2341 | BW109: 2372 | BX109: 2387 | BY109: 2169 | BZ109: 2110 | CA109: 2111
A110: 68679 | B110: 686793 | C110: 3 | D110: 68 | E110: 679 | F110: 679 | G110: SANTANDER | H110: SAN GIL | I110: Independiente | J110: 198 | K110: 579 | L110: 4497 | M110: 4447 | N110: 4222 | O110: 4279 | P110: 4309 | Q110: 4161 | R110: 4126 | S110: 4198 | T110: 4237 | U110: 4260 | V110: 4303 | W110: 4442 | X110: 4496 | Y110: 4504 | Z110: 4001 | AA110: 4237 | AB110: 4404 | AC110: 4482 | AD110: 4541 | AE110: 4621 | AF110: 4649 | AG110: 4614 | AH110: 4683 | AI110: 4699 | AJ110: 4697 | AK110: 4557 | AQ110: 5306 | AR110: 53063 | AS110: 3 | AT110: 5 | AU110: 306 | AV110: 306 | AW110: ANTIOQUIA | AX110: GIRALDO | AY110: Independiente | AZ110: 4 | BA110: 17 | BB110: 91 | BC110: 68 | BD110: 58 | BE110: 68 | BF110: 69 | BG110: 66 | BH110: 72 | BI110: 74 | BJ110: 67 | BK110: 73 | BL110: 76 | BM110: 76 | BN110: 86 | BO110: 72 | BP110: 71 | BQ110: 81 | BR110: 83 | BS110: 80 | BT110: 86 | BU110: 96 | BV110: 89 | BW110: 87 | BX110: 92 | BY110: 93 | BZ110: 96 | CA110: 83
A111: 68861 | B111: 688613 | C111: 3 | D111: 68 | E111: 861 | F111: 861 | G111: SANTANDER | H111: VÉLEZ | I111: Independiente | J111: 32 | K111: 72 | L111: 941 | M111: 925 | N111: 849 | O111: 876 | P111: 869 | Q111: 842 | R111: 834 | S111: 857 | T111: 848 | U111: 854 | V111: 864 | W111: 872 | X111: 898 | Y111: 888 | Z111: 821 | AA111: 861 | AB111: 881 | AC111: 898 | AD111: 913 | AE111: 904 | AF111: 912 | AG111: 908 | AH111: 913 | AI111: 898 | AJ111: 904 | AK111: 866 | AQ111: 5237 | AR111: 52372 | AS111: 2 | AT111: 5 | AU111: 237 | AV111: 237 | AW111: ANTIOQUIA | AX111: DON MATÍAS | AY111: Dep_sec_priv | AZ111: 161 | BA111: 1215 | BB111: 3684 | BC111: 3587 | BD111: 3495 | BE111: 3636 | BF111: 3642 | BG111: 3521 | BH111: 3589 | BI111: 3595 | BJ111: 3535 | BK111: 3472 | BL111: 3492 | BM111: 3526 | BN111: 3535 | BO111: 3477 | BP111: 3468 | BQ111: 3674 | BR111: 3789 | BS111: 3762 | BT111: 3761 | BU111: 3795 | BV111: 3855 | BW111: 3864 | BX111: 3901 | BY111: 3892 | BZ111: 3867 | CA111: 3820
A112: 5607 | B112: 56073 | C112: 3 | D112: 5 | E112: 607 | F112: 607 | G112: ANTIOQUIA | H112: RETIRO | I112: Independiente | J112: 54 | K112: 96 | L112: 1080 | M112: 1039 | N112: 1043 | O112: 1097 | P112: 1103 | Q112: 1085 | R112: 1120 | S112: 1142 | T112: 1172 | U112: 1192 | V112: 1242 | W112: 1263 | X112: 1280 | Y112: 1272 | Z112: 1262 | AA112: 1312 | AB112: 1339 | AC112: 1365 | AD112: 1397 | AE112: 1419 | AF112: 1450 | AG112: 1466 | AH112: 1444 | AI112: 1466 | AJ112: 1493 | AK112: 1494 | AQ112: 5310 | AR112: 53102 | AS112: 2 | AT112: 5 | AU112: 310 | AV112: 310 | AW112: ANTIOQUIA | AX112: GÓMEZ PLATA | AY112: Dep_sec_priv | AZ112: 81 | BA112: 133 | BB112: 566 | BC112: 494 | BD112: 464 | BE112: 528 | BF112: 543 | BG112: 464 | BH112: 473 | BI112: 435 | BJ112: 440 | BK112: 475 | BL112: 501 | BM112: 528 | BN112: 526 | BO112: 505 | BP112: 497 | BQ112: 603 | BR112: 649 | BS112: 697 | BT112: 701 | BU112: 686 | BV112: 692 | BW112: 711 | BX112: 678 | BY112: 732 | BZ112: 727 | CA112: 744
A113: 95015 | B113: 950151 | C113: 1 | D113: 95 | E113: 15 | F113: 015 | G113: GUAVIARE | H113: CALAMAR | I113: Dep_No_priv | J113: 3 | K113: 5 | L113: 125 | M113: 134 | N113: 139 | O113: 143 | P113: 142 | Q113: 147 | R113: 112 | S113: 145 | T113: 144 | U113: 140 | V113: 148 | W113: 144 | X113: 142 | Y113: 141 | Z113: 139 | AA113: 138 | AB113: 142 | AC113: 139 | AD113: 145 | AE113: 146 | AF113: 146 | AG113: 146 | AH113: 150 | AI113: 145 | AJ113: 157 | AK113: 157 | AQ113: 5321 | AR113: 53213 | AS113: 3 | AT113: 5 | AU113: 321 | AV113: 321 | AW113: ANTIOQUIA | AX113: GUATAPE | AY113: Independiente | AZ113: 10 | BA113: 55 | BB113: 369 | BC113: 354 | BD113: 308 | BE113: 330 | BF113: 347 | BG113: 341 | BH113: 340 | BI113: 364 | BJ113: 363 | BK113: 360 | BL113: 358 | BM113: 388 | BN113: 405 | BO113: 400 | BP113: 380 | BQ113: 422 | BR113: 439 | BS113: 451 | BT113: 450 | BU113: 457 | BV113: 462 | BW113: 457 | BX113: 465 | BY113: 473 | BZ113: 468 | CA113: 453
A114: 25754 | B114: 257543 | C114: 3 | D114: 25 | E114: 754 | F114: 754 | G114: CUNDINAMARCA | H114: SOACHA | I114: Independiente | J114: 517 | K114: 1213 | L114: 7966 | M114: 7787 | N114: 7385 | O114: 7641 | P114: 7850 | Q114: 7765 | R114: 7910 | S114: 8094 | T114: 8348 | U114: 8507 | V114: 8881 | W114: 9167 | X114: 9428 | Y114: 9345 | Z114: 8894 | AA114: 9311 | AB114: 9834 | AC114: 10003 | AD114: 10198 | AE114: 10459 | AF114: 10686 | AG114: 10923 | AH114: 11139 | AI114: 11285 | AJ114: 11305 | AK114: 10956 | AQ114: 5736 | AR114: 57362 | AS114: 2 | AT114: 5 | AU114: 736 | AV114: 736 | AW114: ANTIOQUIA | AX114: SEGOVIA | AY114: Dep_sec_priv | AZ114: 755 | BA114: 1058 | BB114: 6358 | BC114: 6313 | BD114: 4887 | BE114: 4934 | BF114: 4905 | BG114: 4799 | BH114: 4950 | BI114: 5043 | BJ114: 5212 | BK114: 5349 | BL114: 5608 | BM114: 5742 | BN114: 5784 | BO114: 5662 | BP114: 5893 | BQ114: 6105 | BR114: 6246 | BS114: 6186 | BT114: 6050 | BU114: 6476 | BV114: 6553 | BW114: 6703 | BX114: 6795 | BY114: 6922 | BZ114: 6953 | CA114: 7094
A115: 76736 | B115: 767362 | C115: 2 | D115: 76 | E115: 736 | F115: 736 | G115: VALLE DEL CAUCA | H115: SEVILLA | I115: Dep_sec_priv | J115: 112 | K115: 425 | L115: 1728 | M115: 1721 | N115: 1609 | O115: 1654 | P115: 1689 | Q115: 1666 | R115: 1728 | S115: 1698 | T115: 1709 | U115: 1796 | V115: 1858 | W115: 1751 | X115: 1734 | Y115: 1768 | Z115: 1766 | AA115: 1861 | AB115: 1871 | AC115: 1854 | AD115: 1952 | AE115: 1970 | AF115: 2022 | AG115: 2081 | AH115: 2145 | AI115: 2225 | AJ115: 2265 | AK115: 2214 | AQ115: 5150 | AR115: 51502 | AS115: 2 | AT115: 5 | AU115: 150 | AV115: 150 | AW115: ANTIOQUIA | AX115: CAROLINA | AY115: Dep_sec_priv | AZ115: 27 | BA115: 56 | BB115: 182 | BC115: 171 | BD115: 167 | BE115: 170 | BF115: 169 | BG115: 166 | BH115: 163 | BI115: 174 | BJ115: 172 | BK115: 186 | BL115: 189 | BM115: 180 | BN115: 197 | BO115: 208 | BP115: 192 | BQ115: 232 | BR115: 274 | BS115: 301 | BT115: 302 | BU115: 322 | BV115: 360 | BW115: 397 | BX115: 426 | BY115: 416 | BZ115: 411 | CA115: 423
A116: 73275 | B116: 732753 | C116: 3 | D116: 73 | E116: 275 | F116: 275 | G116: TOLIMA | H116: FLANDES | I116: Independiente | J116: 22 | K116: 64 | L116: 405 | M116: 395 | N116: 414 | O116: 475 | P116: 471 | Q116: 460 | R116: 469 | S116: 464 | T116: 492 | U116: 502 | V116: 499 | W116: 518 | X116: 532 | Y116: 535 | Z116: 489 | AA116: 556 | AB116: 570 | AC116: 575 | AD116: 600 | AE116: 599 | AF116: 591 | AG116: 580 | AH116: 551 | AI116: 536 | AJ116: 540 | AK116: 516 | AQ116: 5313 | AR116: 53133 | AS116: 3 | AT116: 5 | AU116: 313 | AV116: 313 | AW116: ANTIOQUIA | AX116: GRANADA | AY116: Independiente | AZ116: 4 | BA116: 34 | BB116: 185 | BC116: 184 | BD116: 174 | BE116: 189 | BF116: 193 | BG116: 188 | BH116: 193 | BI116: 193 | BJ116: 201 | BK116: 212 | BL116: 208 | BM116: 211 | BN116: 211 | BO116: 210 | BP116: 188 | BQ116: 192 | BR116: 197 | BS116: 197 | BT116: 206 | BU116: 211 | BV116: 218 | BW116: 223 | BX116: 223 | BY116: 223 | BZ116: 218 | CA116: 207
A117: 23660 | B117: 236601 | C117: 1 | D117: 23 | E117: 660 | F117: 660 | G117: CÓRDOBA | H117: SAHAGÚN | I117: Dep_No_priv | J117: 35 | K117: 38 | L117: 1376 | M117: 1244 | N117: 1257 | O117: 1263 | P117: 1267 | Q117: 1258 | R117: 1280 | S117: 1317 | T117: 1311 | U117: 1373 | V117: 1379 | W117: 1409 | X117: 1355 | Y117: 1308 | Z117: 1352 | AA117: 1328 | AB117: 1342 | AC117: 1313 | AD117: 1333 | AE117: 1319 | AF117: 1338 | AG117: 1325 | AH117: 1320 | AI117: 1285 | AJ117: 1305 | AK117: 1327 | AQ117: 5321 | AR117: 53212 | AS117: 2 | AT117: 5 | AU117: 321 | AV117: 321 | AW117: ANTIOQUIA | AX117: GUATAPE | AY117: Dep_sec_priv | AZ117: 64 | BA117: 84 | BB117: 731 | BC117: 726 | BD117: 686 | BE117: 716 | BF117: 683 | BG117: 591 | BH117: 568 | BI117: 536 | BJ117: 515 | BK117: 525 | BL117: 583 | BM117: 629 | BN117: 674 | BO117: 674 | BP117: 649 | BQ117: 660 | BR117: 713 | BS117: 700 | BT117: 725 | BU117: 747 | BV117: 784 | BW117: 814 | BX117: 828 | BY117: 829 | BZ117: 822 | CA117: 830
A118: 25473 | B118: 254732 | C118: 2 | D118: 25 | E118: 473 | F118: 473 | G118: CUNDINAMARCA | H118: MOSQUERA | I118: Dep_sec_priv | J118: 1622 | K118: 2848 | L118: 16376 | M118: 16305 | N118: 16859 | O118: 17430 | P118: 17023 | Q118: 15579 | R118: 15389 | S118: 15041 | T118: 15708 | U118: 15773 | V118: 16059 | W118: 16354 | X118: 16682 | Y118: 15949 | Z118: 17076 | AA118: 17535 | AB118: 17343 | AC118: 18334 | AD118: 17925 | AE118: 17376 | AF118: 17857 | AG118: 17959 | AH118: 18542 | AI118: 18753 | AJ118: 19021 | AK118: 18467 | AQ118: 5541 | AR118: 55413 | AS118: 3 | AT118: 5 | AU118: 541 | AV118: 541 | AW118: ANTIOQUIA | AX118: PEÑOL | AY118: Independiente | AZ118: 18 | BA118: 122 | BB118: 584 | BC118: 571 | BD118: 545 | BE118: 574 | BF118: 599 | BG118: 602 | BH118: 613 | BI118: 615 | BJ118: 628 | BK118: 648 | BL118: 654 | BM118: 668 | BN118: 696 | BO118: 700 | BP118: 666 | BQ118: 670 | BR118: 698 | BS118: 750 | BT118: 779 | BU118: 778 | BV118: 794 | BW118: 802 | BX118: 789 | BY118: 797 | BZ118: 792 | CA118: 782
A119: 5579 | B119: 55793 | C119: 3 | D119: 5 | E119: 579 | F119: 579 | G119: ANTIOQUIA | H119: PUERTO BERRÍO | I119: Independiente | J119: 57 | K119: 328 | L119: 874 | M119: 811 | N119: 735 | O119: 772 | P119: 806 | Q119: 800 | R119: 817 | S119: 828 | T119: 848 | U119: 850 | V119: 858 | W119: 914 | X119: 1057 | Y119: 1033 | Z119: 764 | AA119: 794 | AB119: 861 | AC119: 936 | AD119: 981 | AE119: 972 | AF119: 1014 | AG119: 1032 | AH119: 1043 | AI119: 981 | AJ119: 1108 | AK119: 1056 | AQ119: 5667 | AR119: 56673 | AS119: 3 | AT119: 5 | AU119: 667 | AV119: 667 | AW119: ANTIOQUIA | AX119: SAN RAFAEL | AY119: Independiente | AZ119: 4 | BA119: 69 | BB119: 244 | BC119: 213 | BD119: 200 | BE119: 196 | BF119: 216 | BG119: 210 | BH119: 218 | BI119: 220 | BJ119: 219 | BK119: 246 | BL119: 256 | BM119: 255 | BN119: 258 | BO119: 252 | BP119: 203 | BQ119: 223 | BR119: 254 | BS119: 268 | BT119: 288 | BU119: 303 | BV119: 313 | BW119: 318 | BX119: 324 | BY119: 330 | BZ119: 330 | CA119: 320
A120: 76275 | B120: 762752 | C120: 2 | D120: 76 | E120: 275 | F120: 275 | G120: VALLE DEL CAUCA | H120: FLORIDA | I120: Dep_sec_priv | J120: 231 | K120: 633 | L120: 2839 | M120: 2587 | N120: 2488 | O120: 2555 | P120: 2662 | Q120: 2392 | R120: 2691 | S120: 2449 | T120: 2407 | U120: 2418 | V120: 2508 | W120: 2655 | X120: 2745 | Y120: 2562 | Z120: 2569 | AA120: 2617 | AB120: 2576 | AC120: 2598 | AD120: 2263 | AE120: 2357 | AF120: 2429 | AG120: 2399 | AH120: 2544 | AI120: 2676 | AJ120: 2649 | AK120: 2392 | AQ120: 5440 | AR120: 54402 | AS120: 2 | AT120: 5 | AU120: 440 | AV120: 440 | AW120: ANTIOQUIA | AX120: MARINILLA | AY120: Dep_sec_priv | AZ120: 606 | BA120: 1376 | BB120: 6982 | BC120: 6934 | BD120: 6918 | BE120: 7200 | BF120: 7213 | BG120: 6333 | BH120: 6429 | BI120: 6608 | BJ120: 6723 | BK120: 6826 | BL120: 7077 | BM120: 7301 | BN120: 7508 | BO120: 7570 | BP120: 7590 | BQ120: 7856 | BR120: 8121 | BS120: 8153 | BT120: 8088 | BU120: 8207 | BV120: 8389 | BW120: 8559 | BX120: 8780 | BY120: 9053 | BZ120: 9096 | CA120: 8894
A121: 25214 | B121: 252142 | C121: 2 | D121: 25 | E121: 214 | F121: 214 | G121: CUNDINAMARCA | H121: COTA | I121: Dep_sec_priv | J121: 921 | K121: 1384 | L121: 13965 | M121: 13496 | N121: 13446 | O121: 13859 | P121: 13908 | Q121: 12771 | R121: 12300 | S121: 12589 | T121: 12767 | U121: 12940 | V121: 13206 | W121: 13636 | X121: 13744 | Y121: 13694 | Z121: 14668 | AA121: 13933 | AB121: 14220 | AC121: 14481 | AD121: 14318 | AE121: 14477 | AF121: 14618 | AG121: 14728 | AH121: 15129 | AI121: 14897 | AJ121: 15748 | AK121: 15493 | AQ121: 5475 | AR121: 54751 | AS121: 1 | AT121: 5 | AU121: 475 | AV121: 475 | AW121: ANTIOQUIA | AX121: MURINDÓ | AY121: Dep_No_priv | AZ121: 3 | BA121: 15 | BB121: 117 | BC121: 104 | BD121: 104 | BE121: 116 | BF121: 131 | BG121: 125 | BH121: 125 | BI121: 112 | BJ121: 112 | BK121: 111 | BL121: 123 | BM121: 122 | BN121: 134 | BO121: 122 | BP121: 106 | BQ121: 123 | BR121: 123 | BS121: 122 | BT121: 123 | BU121: 115 | BV121: 116 | BW121: 117 | BX121: 117 | BY121: 127 | BZ121: 129 | CA121: 120
A122: 8758 | B122: 87583 | C122: 3 | D122: 8 | E122: 758 | F122: 758 | G122: ATLÁNTICO | H122: SOLEDAD | I122: Independiente | J122: 428 | K122: 792 | L122: 4259 | M122: 3952 | N122: 3697 | O122: 4027 | P122: 4286 | Q122: 4315 | R122: 4392 | S122: 4475 | T122: 4482 | U122: 4692 | V122: 4841 | W122: 4898 | X122: 4929 | Y122: 4579 | Z122: 4038 | AA122: 4368 | AB122: 4860 | AC122: 5078 | AD122: 5212 | AE122: 5227 | AF122: 5272 | AG122: 5188 | AH122: 5325 | AI122: 5402 | AJ122: 5326 | AK122: 4843 | AQ122: 5483 | AR122: 54833 | AS122: 3 | AT122: 5 | AU122: 483 | AV122: 483 | AW122: ANTIOQUIA | AX122: NARIÑO | AY122: Independiente | AZ122: 6 | BA122: 33 | BB122: 104 | BC122: 95 | BD122: 74 | BE122: 82 | BF122: 86 | BG122: 85 | BH122: 89 | BI122: 92 | BJ122: 101 | BK122: 98 | BL122: 101 | BM122: 95 | BN122: 100 | BO122: 104 | BP122: 84 | BQ122: 83 | BR122: 85 | BS122: 97 | BT122: 101 | BU122: 99 | BV122: 100 | BW122: 106 | BX122: 108 | BY122: 110 | BZ122: 112 | CA122: 111
A123: 25658 | B123: 256583 | C123: 3 | D123: 25 | E123: 658 | F123: 658 | G123: CUNDINAMARCA | H123: SAN FRANCISCO | I123: Independiente | J123: 5 | K123: 26 | L123: 175 | M123: 170 | N123: 179 | O123: 217 | P123: 218 | Q123: 209 | R123: 231 | S123: 239 | T123: 235 | U123: 231 | V123: 262 | W123: 262 | X123: 272 | Y123: 273 | Z123: 274 | AA123: 290 | AB123: 282 | AC123: 295 | AD123: 280 | AE123: 287 | AF123: 291 | AG123: 289 | AH123: 298 | AI123: 290 | AJ123: 290 | AK123: 267 | AQ123: 5501 | AR123: 55013 | AS123: 3 | AT123: 5 | AU123: 501 | AV123: 501 | AW123: ANTIOQUIA | AX123: OLAYA | AY123: Independiente | AZ123: 1 | BA123: 16 | BB123: 42 | BC123: 40 | BD123: 40 | BE123: 44 | BF123: 46 | BG123: 47 | BH123: 46 | BI123: 48 | BJ123: 44 | BK123: 47 | BL123: 50 | BM123: 47 | BN123: 51 | BO123: 54 | BP123: 40 | BQ123: 49 | BR123: 49 | BS123: 48 | BT123: 50 | BU123: 52 | BV123: 55 | BW123: 59 | BX123: 58 | BY123: 60 | BZ123: 58 | CA123: 57
A124: 5615 | B124: 56153 | C124: 3 | D124: 5 | E124: 615 | F124: 615 | G124: ANTIOQUIA | H124: RIONEGRO | I124: Independiente | J124: 286 | K124: 680 | L124: 9813 | M124: 9608 | N124: 9261 | O124: 9409 | P124: 9392 | Q124: 9006 | R124: 8864 | S124: 9010 | T124: 9135 | U124: 9373 | V124: 9486 | W124: 9649 | X124: 9709 | Y124: 9627 | Z124: 9453 | AA124: 9531 | AB124: 9793 | AC124: 9972 | AD124: 10008 | AE124: 10079 | AF124: 10171 | AG124: 10307 | AH124: 10333 | AI124: 10410 | AJ124: 10433 | AK124: 10170 | AQ124: 5658 | AR124: 56582 | AS124: 2 | AT124: 5 | AU124: 658 | AV124: 658 | AW124: ANTIOQUIA | AX124: SAN JOSÉ DE LA MONTAÑA | AY124: Dep_sec_priv | AZ124: 40 | BA124: 45 | BB124: 265 | BC124: 270 | BD124: 269 | BE124: 299 | BF124: 289 | BG124: 276 | BH124: 283 | BI124: 277 | BJ124: 282 | BK124: 303 | BL124: 293 | BM124: 285 | BN124: 278 | BO124: 259 | BP124: 237 | BQ124: 230 | BR124: 237 | BS124: 252 | BT124: 250 | BU124: 243 | BV124: 239 | BW124: 228 | BX124: 224 | BY124: 232 | BZ124: 231 | CA124: 267
A125: 25430 | B125: 254302 | C125: 2 | D125: 25 | E125: 430 | F125: 430 | G125: CUNDINAMARCA | H125: MADRID | I125: Dep_sec_priv | J125: 2106 | K125: 2820 | L125: 14250 | M125: 13879 | N125: 14568 | O125: 14514 | P125: 13826 | Q125: 12083 | R125: 12922 | S125: 12961 | T125: 13035 | U125: 13426 | V125: 13591 | W125: 14172 | X125: 14346 | Y125: 14209 | Z125: 15160 | AA125: 14895 | AB125: 14806 | AC125: 15618 | AD125: 14865 | AE125: 14541 | AF125: 15079 | AG125: 15336 | AH125: 15485 | AI125: 16125 | AJ125: 16366 | AK125: 16391 | AQ125: 5576 | AR125: 55763 | AS125: 3 | AT125: 5 | AU125: 576 | AV125: 576 | AW125: ANTIOQUIA | AX125: PUEBLORRICO | AY125: Independiente | AZ125: 2 | BA125: 14 | BB125: 191 | BC125: 174 | BD125: 166 | BE125: 179 | BF125: 180 | BG125: 181 | BH125: 200 | BI125: 189 | BJ125: 186 | BK125: 188 | BL125: 197 | BM125: 207 | BN125: 202 | BO125: 185 | BP125: 174 | BQ125: 180 | BR125: 185 | BS125: 183 | BT125: 182 | BU125: 181 | BV125: 184 | BW125: 189 | BX125: 192 | BY125: 189 | BZ125: 194 | CA125: 186
A126: 25430 | B126: 254303 | C126: 3 | D126: 25 | E126: 430 | F126: 430 | G126: CUNDINAMARCA | H126: MADRID | I126: Independiente | J126: 165 | K126: 437 | L126: 3401 | M126: 3294 | N126: 2993 | O126: 3202 | P126: 3236 | Q126: 3233 | R126: 3268 | S126: 3286 | T126: 3398 | U126: 3468 | V126: 3572 | W126: 3662 | X126: 3705 | Y126: 3707 | Z126: 3412 | AA126: 3556 | AB126: 3747 | AC126: 3842 | AD126: 3870 | AE126: 3936 | AF126: 3979 | AG126: 4040 | AH126: 4099 | AI126: 4168 | AJ126: 4164 | AK126: 4032 | AQ126: 5670 | AR126: 56703 | AS126: 3 | AT126: 5 | AU126: 670 | AV126: 670 | AW126: ANTIOQUIA | AX126: SAN ROQUE | AY126: Independiente | AZ126: 22 | BA126: 60 | BB126: 227 | BC126: 207 | BD126: 184 | BE126: 201 | BF126: 209 | BG126: 192 | BH126: 198 | BI126: 207 | BJ126: 204 | BK126: 209 | BL126: 216 | BM126: 207 | BN126: 221 | BO126: 205 | BP126: 204 | BQ126: 212 | BR126: 211 | BS126: 244 | BT126: 254 | BU126: 254 | BV126: 264 | BW126: 267 | BX126: 270 | BY126: 276 | BZ126: 274 | CA126: 264
A127: 70001 | B127: 700012 | C127: 2 | D127: 70 | E127: 1 | F127: 001 | G127: SUCRE | H127: SINCELEJO | I127: Dep_sec_priv | J127: 2584 | K127: 5877 | L127: 39736 | M127: 39106 | N127: 36450 | O127: 37820 | P127: 38019 | Q127: 35380 | R127: 36444 | S127: 36089 | T127: 36610 | U127: 36652 | V127: 36956 | W127: 37720 | X127: 38127 | Y127: 37685 | Z127: 35705 | AA127: 36774 | AB127: 37899 | AC127: 39276 | AD127: 37707 | AE127: 37916 | AF127: 37818 | AG127: 38303 | AH127: 39435 | AI127: 38908 | AJ127: 39709 | AK127: 38974 | AQ127: 5893 | AR127: 58933 | AS127: 3 | AT127: 5 | AU127: 893 | AV127: 893 | AW127: ANTIOQUIA | AX127: YONDÓ | AY127: Independiente | AZ127: 16 | BA127: 120 | BB127: 227 | BC127: 189 | BD127: 106 | BE127: 145 | BF127: 164 | BG127: 172 | BH127: 187 | BI127: 195 | BJ127: 206 | BK127: 197 | BL127: 206 | BM127: 223 | BN127: 281 | BO127: 282 | BP127: 146 | BQ127: 153 | BR127: 160 | BS127: 220 | BT127: 221 | BU127: 222 | BV127: 216 | BW127: 214 | BX127: 202 | BY127: 209 | BZ127: 240 | CA127: 235
A128: 25286 | B128: 252862 | C128: 2 | D128: 25 | E128: 286 | F128: 286 | G128: CUNDINAMARCA | H128: FUNZA | I128: Dep_sec_priv | J128: 2253 | K128: 3368 | L128: 18939 | M128: 18078 | N128: 17995 | O128: 18183 | P128: 17490 | Q128: 16082 | R128: 16065 | S128: 15936 | T128: 16901 | U128: 17256 | V128: 17365 | W128: 17745 | X128: 17946 | Y128: 17574 | Z128: 18455 | AA128: 18910 | AB128: 19054 | AC128: 19676 | AD128: 19154 | AE128: 19316 | AF128: 19349 | AG128: 19742 | AH128: 20168 | AI128: 21399 | AJ128: 21543 | AK128: 21252 | AQ128: 5591 | AR128: 55913 | AS128: 3 | AT128: 5 | AU128: 591 | AV128: 591 | AW128: ANTIOQUIA | AX128: PUERTO TRIUNFO | AY128: Independiente | AZ128: 13 | BA128: 43 | BB128: 253 | BC128: 245 | BD128: 239 | BE128: 271 | BF128: 251 | BG128: 248 | BH128: 252 | BI128: 253 | BJ128: 258 | BK128: 241 | BL128: 245 | BM128: 256 | BN128: 272 | BO128: 265 | BP128: 234 | BQ128: 247 | BR128: 270 | BS128: 278 | BT128: 305 | BU128: 313 | BV128: 288 | BW128: 295 | BX128: 305 | BY128: 312 | BZ128: 305 | CA128: 286
A129: 25899 | B129: 258992 | C129: 2 | D129: 25 | E129: 899 | F129: 899 | G129: CUNDINAMARCA | H129: ZIPAQUIRÁ | I129: Dep_sec_priv | J129: 1207 | K129: 2376 | L129: 18329 | M129: 17658 | N129: 17340 | O129: 17845 | P129: 17701 | Q129: 16361 | R129: 16462 | S129: 16700 | T129: 17025 | U129: 17064 | V129: 17256 | W129: 17659 | X129: 17647 | Y129: 17677 | Z129: 17850 | AA129: 18452 | AB129: 18475 | AC129: 18712 | AD129: 18163 | AE129: 18552 | AF129: 18934 | AG129: 18981 | AH129: 19175 | AI129: 19338 | AJ129: 19341 | AK129: 18516 | AQ129: 5142 | AR129: 51423 | AS129: 3 | AT129: 5 | AU129: 142 | AV129: 142 | AW129: ANTIOQUIA | AX129: CARACOLÍ | AY129: Independiente | AZ129: 1 | BA129: 8 | BB129: 109 | BC129: 104 | BD129: 94 | BE129: 100 | BF129: 101 | BG129: 99 | BH129: 102 | BI129: 98 | BJ129: 99 | BK129: 105 | BL129: 106 | BM129: 103 | BN129: 117 | BO129: 117 | BP129: 104 | BQ129: 104 | BR129: 109 | BS129: 99 | BT129: 104 | BU129: 104 | BV129: 111 | BW129: 114 | BX129: 119 | BY129: 113 | BZ129: 109 | CA129: 106
A130: 85250 | B130: 852503 | C130: 3 | D130: 85 | E130: 250 | F130: 250 | G130: CASANARE | H130: PAZ DE ARIPORO | I130: Independiente | J130: 61 | K130: 199 | L130: 614 | M130: 567 | N130: 509 | O130: 543 | P130: 578 | Q130: 564 | R130: 555 | S130: 562 | T130: 581 | U130: 590 | V130: 580 | W130: 619 | X130: 615 | Y130: 592 | Z130: 487 | AA130: 572 | AB130: 617 | AC130: 657 | AD130: 645 | AE130: 660 | AF130: 662 | AG130: 686 | AH130: 705 | AI130: 717 | AJ130: 722 | AK130: 682 | AQ130: 5604 | AR130: 56042 | AS130: 2 | AT130: 5 | AU130: 604 | AV130: 604 | AW130: ANTIOQUIA | AX130: REMEDIOS | AY130: Dep_sec_priv | AZ130: 168 | BA130: 421 | BB130: 1551 | BC130: 1626 | BD130: 1479 | BE130: 1481 | BF130: 1444 | BG130: 1265 | BH130: 1319 | BI130: 1411 | BJ130: 1430 | BK130: 1466 | BL130: 1532 | BM130: 1610 | BN130: 1686 | BO130: 1685 | BP130: 1742 | BQ130: 1846 | BR130: 1865 | BS130: 2050 | BT130: 2155 | BU130: 2101 | BV130: 2104 | BW130: 2142 | BX130: 2253 | BY130: 2218 | BZ130: 2305 | CA130: 2236
A131: 70001 | B131: 700013 | C131: 3 | D131: 70 | E131: 1 | F131: 001 | G131: SUCRE | H131: SINCELEJO | I131: Independiente | J131: 842 | K131: 1875 | L131: 13407 | M131: 12777 | N131: 11038 | O131: 12018 | P131: 12071 | Q131: 11679 | R131: 11690 | S131: 11534 | T131: 11597 | U131: 11638 | V131: 11772 | W131: 11958 | X131: 12092 | Y131: 11701 | Z131: 10428 | AA131: 11069 | AB131: 11570 | AC131: 11728 | AD131: 11716 | AE131: 11802 | AF131: 11950 | AG131: 12014 | AH131: 12080 | AI131: 12203 | AJ131: 12141 | AK131: 11534 | AQ131: 5086 | AR131: 50863 | AS131: 3 | AT131: 5 | AU131: 86 | AV131: 086 | AW131: ANTIOQUIA | AX131: BELMIRA | AY131: Independiente | AZ131: 3 | BA131: 16 | BB131: 121 | BC131: 115 | BD131: 90 | BE131: 105 | BF131: 117 | BG131: 111 | BH131: 115 | BI131: 115 | BJ131: 120 | BK131: 114 | BL131: 122 | BM131: 128 | BN131: 125 | BO131: 125 | BP131: 117 | BQ131: 121 | BR131: 124 | BS131: 128 | BT131: 128 | BU131: 130 | BV131: 133 | BW131: 142 | BX131: 145 | BY131: 145 | BZ131: 147 | CA131: 147
A132: 63130 | B132: 631303 | C132: 3 | D132: 63 | E132: 130 | F132: 130 | G132: QUINDÍO | H132: CALARCA | I132: Independiente | J132: 80 | K132: 243 | L132: 1415 | M132: 1418 | N132: 1333 | O132: 1410 | P132: 1412 | Q132: 1406 | R132: 1420 | S132: 1388 | T132: 1396 | U132: 1440 | V132: 1450 | W132: 1503 | X132: 1582 | Y132: 1595 | Z132: 1447 | AA132: 1572 | AB132: 1622 | AC132: 1626 | AD132: 1633 | AE132: 1661 | AF132: 1647 | AG132: 1682 | AH132: 1740 | AI132: 1793 | AJ132: 1805 | AK132: 1775 | AQ132: 5642 | AR132: 56423 | AS132: 3 | AT132: 5 | AU132: 642 | AV132: 642 | AW132: ANTIOQUIA | AX132: SALGAR | AY132: Independiente | AZ132: 7 | BA132: 32 | BB132: 226 | BC132: 209 | BD132: 193 | BE132: 213 | BF132: 228 | BG132: 228 | BH132: 234 | BI132: 230 | BJ132: 238 | BK132: 246 | BL132: 252 | BM132: 298 | BN132: 296 | BO132: 303 | BP132: 231 | BQ132: 250 | BR132: 268 | BS132: 264 | BT132: 273 | BU132: 263 | BV132: 273 | BW132: 284 | BX132: 285 | BY132: 288 | BZ132: 287 | CA132: 278
A133: 25312 | B133: 253122 | C133: 2 | D133: 25 | E133: 312 | F133: 312 | G133: CUNDINAMARCA | H133: GRANADA | I133: Dep_sec_priv | J133: 3 | K133: 24 | L133: 166 | M133: 158 | N133: 155 | O133: 167 | P133: 166 | Q133: 179 | R133: 187 | S133: 197 | T133: 186 | U133: 159 | V133: 159 | W133: 166 | X133: 184 | Y133: 191 | Z133: 198 | AA133: 191 | AB133: 204 | AC133: 221 | AD133: 230 | AE133: 225 | AF133: 210 | AG133: 227 | AH133: 230 | AI133: 237 | AJ133: 233 | AK133: 237 | AQ133: 5585 | AR133: 55853 | AS133: 3 | AT133: 5 | AU133: 585 | AV133: 585 | AW133: ANTIOQUIA | AX133: PUERTO NARE | AY133: Independiente | AZ133: 56 | BA133: 125 | BB133: 170 | BC133: 128 | BD133: 189 | BE133: 195 | BF133: 177 | BG133: 170 | BH133: 174 | BI133: 170 | BJ133: 189 | BK133: 204 | BL133: 215 | BM133: 243 | BN133: 254 | BO133: 252 | BP133: 204 | BQ133: 221 | BR133: 228 | BS133: 272 | BT133: 240 | BU133: 288 | BV133: 283 | BW133: 270 | BX133: 262 | BY133: 282 | BZ133: 310 | CA133: 313
A134: 25290 | B134: 252902 | C134: 2 | D134: 25 | E134: 290 | F134: 290 | G134: CUNDINAMARCA | H134: FUSAGASUGÁ | I134: Dep_sec_priv | J134: 1140 | K134: 1660 | L134: 13309 | M134: 12933 | N134: 12743 | O134: 13262 | P134: 13340 | Q134: 12344 | R134: 12466 | S134: 12717 | T134: 12894 | U134: 12795 | V134: 13323 | W134: 13513 | X134: 13887 | Y134: 13730 | Z134: 13667 | AA134: 14379 | AB134: 14560 | AC134: 14685 | AD134: 14813 | AE134: 14921 | AF134: 15121 | AG134: 15394 | AH134: 15664 | AI134: 15236 | AJ134: 15193 | AK134: 15056 | AQ134: 5664 | AR134: 56642 | AS134: 2 | AT134: 5 | AU134: 664 | AV134: 664 | AW134: ANTIOQUIA | AX134: SAN PEDRO DE LOS MILAGROS | AY134: Dep_sec_priv | AZ134: 184 | BA134: 475 | BB134: 3023 | BC134: 2949 | BD134: 2975 | BE134: 3013 | BF134: 2989 | BG134: 2812 | BH134: 2984 | BI134: 2989 | BJ134: 2998 | BK134: 2999 | BL134: 3082 | BM134: 3142 | BN134: 3136 | BO134: 3119 | BP134: 3154 | BQ134: 3140 | BR134: 3201 | BS134: 3197 | BT134: 3245 | BU134: 3311 | BV134: 3355 | BW134: 3393 | BX134: 3418 | BY134: 3486 | BZ134: 3503 | CA134: 3535
A135: 25754 | B135: 257542 | C135: 2 | D135: 25 | E135: 754 | F135: 754 | G135: CUNDINAMARCA | H135: SOACHA | I135: Dep_sec_priv | J135: 1051 | K135: 3372 | L135: 18109 | M135: 16228 | N135: 16126 | O135: 17151 | P135: 16597 | Q135: 15408 | R135: 15507 | S135: 15541 | T135: 15567 | U135: 15889 | V135: 16534 | W135: 16726 | X135: 16982 | Y135: 15548 | Z135: 15137 | AA135: 16962 | AB135: 17484 | AC135: 17804 | AD135: 17394 | AE135: 17532 | AF135: 17771 | AG135: 18162 | AH135: 18486 | AI135: 18678 | AJ135: 18896 | AK135: 17437 | AQ135: 5670 | AR135: 56701 | AS135: 1 | AT135: 5 | AU135: 670 | AV135: 670 | AW135: ANTIOQUIA | AX135: SAN ROQUE | AY135: Dep_No_priv | AZ135: 20 | BA135: 38 | BB135: 500 | BC135: 464 | BD135: 446 | BE135: 440 | BF135: 484 | BG135: 481 | BH135: 482 | BI135: 479 | BJ135: 449 | BK135: 458 | BL135: 467 | BM135: 449 | BN135: 454 | BO135: 459 | BP135: 440 | BQ135: 451 | BR135: 510 | BS135: 507 | BT135: 503 | BU135: 524 | BV135: 507 | BW135: 503 | BX135: 489 | BY135: 464 | BZ135: 471 | CA135: 453
A136: 85162 | B136: 851623 | C136: 3 | D136: 85 | E136: 162 | F136: 162 | G136: CASANARE | H136: MONTERREY | I136: Independiente | J136: 87 | K136: 176 | L136: 531 | M136: 538 | N136: 455 | O136: 496 | P136: 506 | Q136: 494 | R136: 497 | S136: 518 | T136: 531 | U136: 528 | V136: 547 | W136: 557 | X136: 563 | Y136: 578 | Z136: 438 | AA136: 513 | AB136: 555 | AC136: 549 | AD136: 557 | AE136: 560 | AF136: 572 | AG136: 588 | AH136: 581 | AI136: 616 | AJ136: 635 | AK136: 601 | AQ136: 5190 | AR136: 51902 | AS136: 2 | AT136: 5 | AU136: 190 | AV136: 190 | AW136: ANTIOQUIA | AX136: CISNEROS | AY136: Dep_sec_priv | AZ136: 73 | BA136: 136 | BB136: 1285 | BC136: 1339 | BD136: 1457 | BE136: 1612 | BF136: 1620 | BG136: 1552 | BH136: 1608 | BI136: 1581 | BJ136: 1624 | BK136: 1631 | BL136: 1531 | BM136: 1511 | BN136: 1558 | BO136: 1508 | BP136: 1410 | BQ136: 1385 | BR136: 1371 | BS136: 1299 | BT136: 1315 | BU136: 1259 | BV136: 1129 | BW136: 1023 | BX136: 926 | BY136: 905 | BZ136: 840 | CA136: 858
A137: 25019 | B137: 250193 | C137: 3 | D137: 25 | E137: 19 | F137: 019 | G137: CUNDINAMARCA | H137: ALBÁN | I137: Independiente | J137: 9 | K137: 22 | L137: 113 | M137: 110 | N137: 119 | O137: 115 | P137: 121 | Q137: 117 | R137: 112 | S137: 119 | T137: 113 | U137: 115 | V137: 114 | W137: 122 | X137: 123 | Y137: 123 | Z137: 125 | AA137: 132 | AB137: 129 | AC137: 128 | AD137: 127 | AE137: 128 | AF137: 142 | AG137: 142 | AH137: 148 | AI137: 144 | AJ137: 146 | AK137: 145 | AQ137: 5670 | AR137: 56702 | AS137: 2 | AT137: 5 | AU137: 670 | AV137: 670 | AW137: ANTIOQUIA | AX137: SAN ROQUE | AY137: Dep_sec_priv | AZ137: 42 | BA137: 138 | BB137: 775 | BC137: 719 | BD137: 656 | BE137: 733 | BF137: 771 | BG137: 646 | BH137: 692 | BI137: 720 | BJ137: 618 | BK137: 621 | BL137: 632 | BM137: 677 | BN137: 692 | BO137: 663 | BP137: 665 | BQ137: 728 | BR137: 787 | BS137: 787 | BT137: 858 | BU137: 908 | BV137: 879 | BW137: 887 | BX137: 902 | BY137: 933 | BZ137: 926 | CA137: 900
A138: 76111 | B138: 761113 | C138: 3 | D138: 76 | E138: 111 | F138: 111 | G138: VALLE DEL CAUCA | H138: GUADALAJARA DE BUGA | I138: Independiente | J138: 224 | K138: 747 | L138: 6199 | M138: 5783 | N138: 5201 | O138: 5379 | P138: 5514 | Q138: 5445 | R138: 5429 | S138: 5468 | T138: 5497 | U138: 5586 | V138: 5705 | W138: 5802 | X138: 5842 | Y138: 5802 | Z138: 5213 | AA138: 5443 | AB138: 5687 | AC138: 5793 | AD138: 5774 | AE138: 5809 | AF138: 5804 | AG138: 5895 | AH138: 5979 | AI138: 6010 | AJ138: 6039 | AK138: 5861 | AQ138: 5674 | AR138: 56743 | AS138: 3 | AT138: 5 | AU138: 674 | AV138: 674 | AW138: ANTIOQUIA | AX138: SAN VICENTE | AY138: Independiente | AZ138: 7 | BA138: 58 | BB138: 247 | BC138: 248 | BD138: 246 | BE138: 269 | BF138: 274 | BG138: 273 | BH138: 278 | BI138: 289 | BJ138: 289 | BK138: 297 | BL138: 299 | BM138: 302 | BN138: 315 | BO138: 304 | BP138: 287 | BQ138: 288 | BR138: 321 | BS138: 344 | BT138: 360 | BU138: 368 | BV138: 373 | BW138: 377 | BX138: 383 | BY138: 394 | BZ138: 400 | CA138: 367
A139: 25269 | B139: 252692 | C139: 2 | D139: 25 | E139: 269 | F139: 269 | G139: CUNDINAMARCA | H139: FACATATIVÁ | I139: Dep_sec_priv | J139: 2731 | K139: 4367 | L139: 22254 | M139: 22299 | N139: 25242 | O139: 24379 | P139: 23226 | Q139: 22485 | R139: 21965 | S139: 21657 | T139: 22095 | U139: 22134 | V139: 22797 | W139: 23401 | X139: 23821 | Y139: 24463 | Z139: 26530 | AA139: 25807 | AB139: 25326 | AC139: 27371 | AD139: 25942 | AE139: 24824 | AF139: 25226 | AG139: 25449 | AH139: 25388 | AI139: 26011 | AJ139: 26595 | AK139: 26149 | AQ139: 5679 | AR139: 56793 | AS139: 3 | AT139: 5 | AU139: 679 | AV139: 679 | AW139: ANTIOQUIA | AX139: SANTA BÁRBARA | AY139: Independiente | AZ139: 7 | BA139: 24 | BB139: 338 | BC139: 328 | BD139: 295 | BE139: 305 | BF139: 306 | BG139: 300 | BH139: 301 | BI139: 296 | BJ139: 300 | BK139: 302 | BL139: 301 | BM139: 340 | BN139: 350 | BO139: 351 | BP139: 325 | BQ139: 339 | BR139: 333 | BS139: 346 | BT139: 354 | BU139: 357 | BV139: 361 | BW139: 362 | BX139: 371 | BY139: 370 | BZ139: 362 | CA139: 344
A140: 25817 | B140: 258173 | C140: 3 | D140: 25 | E140: 817 | F140: 817 | G140: CUNDINAMARCA | H140: TOCANCIPÁ | I140: Independiente | J140: 120 | K140: 264 | L140: 1377 | M140: 1363 | N140: 1171 | O140: 1257 | P140: 1321 | Q140: 1246 | R140: 1258 | S140: 1274 | T140: 1310 | U140: 1304 | V140: 1369 | W140: 1420 | X140: 1455 | Y140: 1498 | Z140: 1318 | AA140: 1402 | AB140: 1487 | AC140: 1500 | AD140: 1547 | AE140: 1563 | AF140: 1612 | AG140: 1597 | AH140: 1622 | AI140: 1640 | AJ140: 1662 | AK140: 1627 | AQ140: 5789 | AR140: 57892 | AS140: 2 | AT140: 5 | AU140: 789 | AV140: 789 | AW140: ANTIOQUIA | AX140: TÁMESIS | AY140: Dep_sec_priv | AZ140: 26 | BA140: 117 | BB140: 681 | BC140: 693 | BD140: 652 | BE140: 692 | BF140: 704 | BG140: 693 | BH140: 664 | BI140: 745 | BJ140: 757 | BK140: 731 | BL140: 777 | BM140: 831 | BN140: 853 | BO140: 793 | BP140: 865 | BQ140: 934 | BR140: 928 | BS140: 980 | BT140: 971 | BU140: 863 | BV140: 871 | BW140: 799 | BX140: 884 | BY140: 872 | BZ140: 896 | CA140: 850
A141: 5079 | B141: 50792 | C141: 2 | D141: 5 | E141: 79 | F141: 079 | G141: ANTIOQUIA | H141: BARBOSA | I141: Dep_sec_priv | J141: 230 | K141: 702 | L141: 4047 | M141: 4000 | N141: 4097 | O141: 4200 | P141: 4285 | Q141: 4044 | R141: 4119 | S141: 4274 | T141: 4315 | U141: 4330 | V141: 4371 | W141: 4336 | X141: 4377 | Y141: 4267 | Z141: 4204 | AA141: 4263 | AB141: 4120 | AC141: 4000 | AD141: 3930 | AE141: 3933 | AF141: 4031 | AG141: 4021 | AH141: 3861 | AI141: 3934 | AJ141: 4140 | AK141: 3968 | AQ141: 5390 | AR141: 53902 | AS141: 2 | AT141: 5 | AU141: 390 | AV141: 390 | AW141: ANTIOQUIA | AX141: LA PINTADA | AY141: Dep_sec_priv | AZ141: 51 | BA141: 108 | BB141: 1704 | BC141: 1650 | BD141: 1625 | BE141: 1742 | BF141: 1739 | BG141: 1661 | BH141: 1657 | BI141: 1634 | BJ141: 1638 | BK141: 1547 | BL141: 1571 | BM141: 1537 | BN141: 1541 | BO141: 1545 | BP141: 1435 | BQ141: 1393 | BR141: 1362 | BS141: 1319 | BT141: 1392 | BU141: 1327 | BV141: 1301 | BW141: 1247 | BX141: 1214 | BY141: 1283 | BZ141: 1274 | CA141: 1147
A142: 50006 | B142: 500062 | C142: 2 | D142: 50 | E142: 6 | F142: 006 | G142: META | H142: ACACÍAS | I142: Dep_sec_priv | J142: 1296 | K142: 2148 | L142: 14717 | M142: 13335 | N142: 12623 | O142: 12737 | P142: 12389 | Q142: 11032 | R142: 10944 | S142: 10716 | T142: 10605 | U142: 10080 | V142: 10200 | W142: 10694 | X142: 10656 | Y142: 10649 | Z142: 10356 | AA142: 10532 | AB142: 11244 | AC142: 11204 | AD142: 11147 | AE142: 11473 | AF142: 11627 | AG142: 11752 | AH142: 12133 | AI142: 12471 | AJ142: 13244 | AK142: 12739 | AQ142: 5856 | AR142: 58562 | AS142: 2 | AT142: 5 | AU142: 856 | AV142: 856 | AW142: ANTIOQUIA | AX142: VALPARAÍSO | AY142: Dep_sec_priv | AZ142: 15 | BA142: 41 | BB142: 371 | BC142: 351 | BD142: 322 | BE142: 340 | BF142: 334 | BG142: 323 | BH142: 321 | BI142: 339 | BJ142: 327 | BK142: 321 | BL142: 322 | BM142: 327 | BN142: 324 | BO142: 323 | BP142: 306 | BQ142: 314 | BR142: 329 | BS142: 349 | BT142: 354 | BU142: 351 | BV142: 341 | BW142: 345 | BX142: 344 | BY142: 359 | BZ142: 356 | CA142: 361
A143: 73686 | B143: 736861 | C143: 1 | D143: 73 | E143: 686 | F143: 686 | G143: TOLIMA | H143: SANTA ISABEL | I143: Dep_No_priv | J143: 4 | K143: 19 | L143: 199 | M143: 136 | N143: 134 | O143: 129 | P143: 134 | Q143: 136 | R143: 136 | S143: 138 | T143: 137 | U143: 142 | V143: 138 | W143: 137 | X143: 134 | Y143: 136 | Z143: 134 | AA143: 134 | AB143: 139 | AC143: 139 | AD143: 152 | AE143: 206 | AF143: 208 | AG143: 208 | AH143: 210 | AI143: 209 | AJ143: 172 | AK143: 150 | AQ143: 5120 | AR143: 51203 | AS143: 3 | AT143: 5 | AU143: 120 | AV143: 120 | AW143: ANTIOQUIA | AX143: CÁCERES | AY143: Independiente | AZ143: 5 | BA143: 47 | BB143: 126 | BC143: 296 | BD143: 272 | BE143: 277 | BF143: 278 | BG143: 280 | BH143: 283 | BI143: 128 | BJ143: 136 | BK143: 132 | BL143: 134 | BM143: 142 | BN143: 143 | BO143: 131 | BP143: 110 | BQ143: 119 | BR143: 132 | BS143: 155 | BT143: 163 | BU143: 165 | BV143: 164 | BW143: 182 | BX143: 182 | BY143: 193 | BZ143: 198 | CA143: 184
A144: 25019 | B144: 250192 | C144: 2 | D144: 25 | E144: 19 | F144: 019 | G144: CUNDINAMARCA | H144: ALBÁN | I144: Dep_sec_priv | J144: 43 | K144: 82 | L144: 415 | M144: 413 | N144: 443 | O144: 442 | P144: 411 | Q144: 372 | R144: 357 | S144: 356 | T144: 382 | U144: 379 | V144: 385 | W144: 374 | X144: 388 | Y144: 384 | Z144: 366 | AA144: 383 | AB144: 354 | AC144: 374 | AD144: 371 | AE144: 388 | AF144: 366 | AG144: 367 | AH144: 369 | AI144: 376 | AJ144: 368 | AK144: 373 | AQ144: 5658 | AR144: 56583 | AS144: 3 | AT144: 5 | AU144: 658 | AV144: 658 | AW144: ANTIOQUIA | AX144: SAN JOSÉ DE LA MONTAÑA | AY144: Independiente | AZ144: 5 | BA144: 5 | BB144: 171 | BC144: 160 | BD144: 154 | BE144: 163 | BF144: 167 | BG144: 170 | BH144: 171 | BI144: 174 | BJ144: 184 | BK144: 183 | BL144: 185 | BM144: 186 | BN144: 188 | BO144: 179 | BP144: 180 | BQ144: 180 | BR144: 181 | BS144: 184 | BT144: 191 | BU144: 195 | BV144: 192 | BW144: 195 | BX144: 189 | BY144: 192 | BZ144: 184 | CA144: 173
A145: 15104 | B145: 151042 | C145: 2 | D145: 15 | E145: 104 | F145: 104 | G145: BOYACÁ | H145: BOYACÁ | I145: Dep_sec_priv | J145: 248 | K145: 523 | L145: 5184 | M145: 5083 | N145: 4173 | O145: 4363 | P145: 4315 | Q145: 3880 | R145: 4138 | S145: 4233 | T145: 3740 | U145: 3451 | V145: 3470 | W145: 3700 | X145: 3825 | Y145: 3878 | Z145: 3792 | AA145: 3652 | AB145: 3642 | AC145: 3908 | AD145: 3560 | AE145: 3878 | AF145: 3987 | AG145: 4209 | AH145: 3684 | AI145: 3653 | AJ145: 4114 | AK145: 3675 | AQ145: 5887 | AR145: 58872 | AS145: 2 | AT145: 5 | AU145: 887 | AV145: 887 | AW145: ANTIOQUIA | AX145: YARUMAL | AY145: Dep_sec_priv | AZ145: 194 | BA145: 431 | BB145: 2980 | BC145: 2931 | BD145: 2914 | BE145: 2958 | BF145: 2936 | BG145: 2836 | BH145: 2903 | BI145: 2899 | BJ145: 2945 | BK145: 2628 | BL145: 2655 | BM145: 2682 | BN145: 2785 | BO145: 2776 | BP145: 2705 | BQ145: 2792 | BR145: 2837 | BS145: 2885 | BT145: 2925 | BU145: 2950 | BV145: 2978 | BW145: 2967 | BX145: 3018 | BY145: 3066 | BZ145: 3111 | CA145: 3050
A146: 41615 | B146: 416152 | C146: 2 | D146: 41 | E146: 615 | F146: 615 | G146: HUILA | H146: RIVERA | I146: Dep_sec_priv | J146: 90 | K146: 242 | L146: 1130 | M146: 1135 | N146: 966 | O146: 1089 | P146: 1131 | Q146: 1049 | R146: 1041 | S146: 1044 | T146: 1044 | U146: 1102 | V146: 1117 | W146: 1157 | X146: 1143 | Y146: 1091 | Z146: 1489 | AA146: 1507 | AB146: 1615 | AC146: 1610 | AD146: 1577 | AE146: 1664 | AF146: 1653 | AG146: 1128 | AH146: 1650 | AI146: 1680 | AJ146: 1674 | AK146: 1631 | AQ146: 5091 | AR146: 50912 | AS146: 2 | AT146: 5 | AU146: 91 | AV146: 091 | AW146: ANTIOQUIA | AX146: BETANIA | AY146: Dep_sec_priv | AZ146: 7 | BA146: 42 | BB146: 267 | BC146: 271 | BD146: 306 | BE146: 299 | BF146: 272 | BG146: 240 | BH146: 239 | BI146: 242 | BJ146: 239 | BK146: 281 | BL146: 259 | BM146: 230 | BN146: 206 | BO146: 178 | BP146: 200 | BQ146: 198 | BR146: 186 | BS146: 171 | BT146: 205 | BU146: 254 | BV146: 230 | BW146: 249 | BX146: 200 | BY146: 180 | BZ146: 227 | CA146: 288
A147: 66001 | B147: 660012 | C147: 2 | D147: 66 | E147: 1 | F147: 001 | G147: RISARALDA | H147: PEREIRA | I147: Dep_sec_priv | J147: 11078 | K147: 20270 | L147: 145958 | M147: 144044 | N147: 140850 | O147: 143521 | P147: 141941 | Q147: 129416 | R147: 129719 | S147: 130518 | T147: 132862 | U147: 133572 | V147: 135520 | W147: 136909 | X147: 137950 | Y147: 137649 | Z147: 135466 | AA147: 138426 | AB147: 139804 | AC147: 141036 | AD147: 138342 | AE147: 139796 | AF147: 141795 | AG147: 144693 | AH147: 147190 | AI147: 148913 | AJ147: 150372 | AK147: 149127 | AQ147: 5690 | AR147: 56901 | AS147: 1 | AT147: 5 | AU147: 690 | AV147: 690 | AW147: ANTIOQUIA | AX147: SANTO DOMINGO | AY147: Dep_No_priv | AZ147: 8 | BA147: 12 | BB147: 295 | BC147: 291 | BD147: 286 | BE147: 294 | BF147: 289 | BG147: 286 | BH147: 288 | BI147: 271 | BJ147: 277 | BK147: 281 | BL147: 278 | BM147: 276 | BN147: 280 | BO147: 277 | BP147: 274 | BQ147: 278 | BR147: 280 | BS147: 273 | BT147: 277 | BU147: 275 | BV147: 278 | BW147: 282 | BX147: 284 | BY147: 283 | BZ147: 285 | CA147: 282
A148: 68500 | B148: 685002 | C148: 2 | D148: 68 | E148: 500 | F148: 500 | G148: SANTANDER | H148: OIBA | I148: Dep_sec_priv | J148: 22 | K148: 84 | L148: 284 | M148: 281 | N148: 366 | O148: 471 | P148: 505 | Q148: 429 | R148: 419 | S148: 435 | T148: 456 | U148: 505 | V148: 626 | W148: 659 | X148: 631 | Y148: 601 | Z148: 594 | AA148: 670 | AB148: 687 | AC148: 670 | AD148: 689 | AE148: 687 | AF148: 684 | AG148: 642 | AH148: 641 | AI148: 630 | AJ148: 580 | AK148: 533 | AQ148: 5697 | AR148: 56972 | AS148: 2 | AT148: 5 | AU148: 697 | AV148: 697 | AW148: ANTIOQUIA | AX148: EL SANTUARIO | AY148: Dep_sec_priv | AZ148: 200 | BA148: 466 | BB148: 3430 | BC148: 3386 | BD148: 3325 | BE148: 3342 | BF148: 3371 | BG148: 3196 | BH148: 3073 | BI148: 3136 | BJ148: 3247 | BK148: 3340 | BL148: 3433 | BM148: 3464 | BN148: 3413 | BO148: 3394 | BP148: 3362 | BQ148: 3403 | BR148: 3448 | BS148: 3464 | BT148: 3554 | BU148: 3603 | BV148: 3630 | BW148: 3611 | BX148: 3613 | BY148: 3645 | BZ148: 3659 | CA148: 3602
A149: 25320 | B149: 253203 | C149: 3 | D149: 25 | E149: 320 | F149: 320 | G149: CUNDINAMARCA | H149: GUADUAS | I149: Independiente | J149: 85 | K149: 90 | L149: 767 | M149: 701 | N149: 680 | O149: 695 | P149: 697 | Q149: 692 | R149: 691 | S149: 696 | T149: 695 | U149: 697 | V149: 778 | W149: 799 | X149: 799 | Y149: 801 | Z149: 753 | AA149: 787 | AB149: 805 | AC149: 812 | AD149: 818 | AE149: 830 | AF149: 826 | AG149: 827 | AH149: 838 | AI149: 847 | AJ149: 848 | AK149: 877 | AQ149: 5756 | AR149: 57563 | AS149: 3 | AT149: 5 | AU149: 756 | AV149: 756 | AW149: ANTIOQUIA | AX149: SONSON | AY149: Independiente | AZ149: 26 | BA149: 69 | BB149: 714 | BC149: 679 | BD149: 648 | BE149: 708 | BF149: 730 | BG149: 694 | BH149: 687 | BI149: 677 | BJ149: 651 | BK149: 680 | BL149: 707 | BM149: 712 | BN149: 726 | BO149: 721 | BP149: 671 | BQ149: 678 | BR149: 692 | BS149: 695 | BT149: 724 | BU149: 730 | BV149: 727 | BW149: 722 | BX149: 749 | BY149: 750 | BZ149: 770 | CA149: 749
A150: 25269 | B150: 252691 | C150: 1 | D150: 25 | E150: 269 | F150: 269 | G150: CUNDINAMARCA | H150: FACATATIVÁ | I150: Dep_No_priv | J150: 162 | K150: 269 | L150: 3740 | M150: 3330 | N150: 3348 | O150: 3343 | P150: 3336 | Q150: 3262 | R150: 3267 | S150: 3202 | T150: 3413 | U150: 3363 | V150: 3512 | W150: 3520 | X150: 3530 | Y150: 3508 | Z150: 3473 | AA150: 3486 | AB150: 3484 | AC150: 3511 | AD150: 3563 | AE150: 3525 | AF150: 3524 | AG150: 3597 | AH150: 3610 | AI150: 3641 | AJ150: 3623 | AK150: 3552 | AQ150: 5756 | AR150: 57562 | AS150: 2 | AT150: 5 | AU150: 756 | AV150: 756 | AW150: ANTIOQUIA | AX150: SONSON | AY150: Dep_sec_priv | AZ150: 103 | BA150: 198 | BB150: 1369 | BC150: 1309 | BD150: 1428 | BE150: 1407 | BF150: 1536 | BG150: 1371 | BH150: 1428 | BI150: 1442 | BJ150: 1494 | BK150: 1544 | BL150: 1566 | BM150: 1601 | BN150: 1595 | BO150: 1600 | BP150: 1547 | BQ150: 1593 | BR150: 1570 | BS150: 1596 | BT150: 1605 | BU150: 1601 | BV150: 1666 | BW150: 1644 | BX150: 1711 | BY150: 1719 | BZ150: 1592 | CA150: 1617
A151: 25040 | B151: 250402 | C151: 2 | D151: 25 | E151: 40 | F151: 040 | G151: CUNDINAMARCA | H151: ANOLAIMA | I151: Dep_sec_priv | J151: 8 | K151: 50 | L151: 390 | M151: 395 | N151: 365 | O151: 383 | P151: 388 | Q151: 383 | R151: 371 | S151: 388 | T151: 395 | U151: 383 | V151: 411 | W151: 451 | X151: 425 | Y151: 424 | Z151: 346 | AA151: 380 | AB151: 409 | AC151: 394 | AD151: 380 | AE151: 408 | AF151: 416 | AG151: 417 | AH151: 410 | AI151: 412 | AJ151: 419 | AK151: 402 | AQ151: 5789 | AR151: 57893 | AS151: 3 | AT151: 5 | AU151: 789 | AV151: 789 | AW151: ANTIOQUIA | AX151: TÁMESIS | AY151: Independiente | AZ151: 10 | BA151: 20 | BB151: 291 | BC151: 269 | BD151: 260 | BE151: 286 | BF151: 298 | BG151: 285 | BH151: 292 | BI151: 295 | BJ151: 298 | BK151: 298 | BL151: 305 | BM151: 300 | BN151: 308 | BO151: 304 | BP151: 305 | BQ151: 300 | BR151: 319 | BS151: 317 | BT151: 304 | BU151: 311 | BV151: 307 | BW151: 317 | BX151: 326 | BY151: 351 | BZ151: 347 | CA151: 313
A152: 25001 | B152: 250011 | C152: 1 | D152: 25 | E152: 1 | F152: 001 | G152: CUNDINAMARCA | H152: AGUA DE DIOS | I152: Dep_No_priv | J152: 122 | K152: 210 | L152: 3094 | M152: 2767 | N152: 2730 | O152: 2572 | P152: 2454 | Q152: 2859 | R152: 2308 | S152: 2334 | T152: 2284 | U152: 2472 | V152: 2547 | W152: 2650 | X152: 2763 | Y152: 2474 | Z152: 2398 | AA152: 2417 | AB152: 2451 | AC152: 2659 | AD152: 2773 | AE152: 2705 | AF152: 2927 | AG152: 2852 | AH152: 2879 | AI152: 3407 | AJ152: 3646 | AK152: 2638 | AQ152: 5792 | AR152: 57923 | AS152: 3 | AT152: 5 | AU152: 792 | AV152: 792 | AW152: ANTIOQUIA | AX152: TARSO | AY152: Independiente | AZ152: 1 | BA152: 25 | BB152: 97 | BC152: 91 | BD152: 83 | BE152: 97 | BF152: 93 | BG152: 85 | BH152: 108 | BI152: 119 | BJ152: 123 | BK152: 129 | BL152: 128 | BM152: 130 | BN152: 129 | BO152: 131 | BP152: 119 | BQ152: 129 | BR152: 130 | BS152: 131 | BT152: 132 | BU152: 127 | BV152: 132 | BW152: 136 | BX152: 128 | BY152: 125 | BZ152: 125 | CA152: 115
A153: 25486 | B153: 254862 | C153: 2 | D153: 25 | E153: 486 | F153: 486 | G153: CUNDINAMARCA | H153: NEMOCÓN | I153: Dep_sec_priv | J153: 116 | K153: 228 | L153: 1376 | M153: 1313 | N153: 1397 | O153: 1320 | P153: 1313 | Q153: 1326 | R153: 1301 | S153: 1320 | T153: 1266 | U153: 1188 | V153: 1282 | W153: 1331 | X153: 1279 | Y153: 1283 | Z153: 1394 | AA153: 1469 | AB153: 1380 | AC153: 1479 | AD153: 1294 | AE153: 1312 | AF153: 1320 | AG153: 1396 | AH153: 1511 | AI153: 1551 | AJ153: 1550 | AK153: 1452 | AQ153: 5809 | AR153: 58093 | AS153: 3 | AT153: 5 | AU153: 809 | AV153: 809 | AW153: ANTIOQUIA | AX153: TITIRIBÍ | AY153: Independiente | AZ153: 9 | BA153: 23 | BB153: 168 | BC153: 166 | BD153: 157 | BE153: 156 | BF153: 163 | BG153: 161 | BH153: 163 | BI153: 167 | BJ153: 168 | BK153: 169 | BL153: 171 | BM153: 172 | BN153: 175 | BO153: 168 | BP153: 157 | BQ153: 159 | BR153: 170 | BS153: 172 | BT153: 172 | BU153: 171 | BV153: 169 | BW153: 174 | BX153: 178 | BY153: 178 | BZ153: 184 | CA153: 186
A154: 25402 | B154: 254022 | C154: 2 | D154: 25 | E154: 402 | F154: 402 | G154: CUNDINAMARCA | H154: LA VEGA | I154: Dep_sec_priv | J154: 65 | K154: 131 | L154: 816 | M154: 731 | N154: 762 | O154: 741 | P154: 765 | Q154: 710 | R154: 719 | S154: 762 | T154: 743 | U154: 749 | V154: 749 | W154: 770 | X154: 777 | Y154: 737 | Z154: 732 | AA154: 731 | AB154: 735 | AC154: 739 | AD154: 761 | AE154: 730 | AF154: 747 | AG154: 768 | AH154: 778 | AI154: 850 | AJ154: 853 | AK154: 839 | AQ154: 5030 | AR154: 50302 | AS154: 2 | AT154: 5 | AU154: 30 | AV154: 030 | AW154: ANTIOQUIA | AX154: AMAGÁ | AY154: Dep_sec_priv | AZ154: 346 | BA154: 724 | BB154: 4362 | BC154: 4289 | BD154: 4284 | BE154: 4415 | BF154: 4480 | BG154: 4145 | BH154: 4342 | BI154: 4489 | BJ154: 4521 | BK154: 4670 | BL154: 5071 | BM154: 5189 | BN154: 5154 | BO154: 5179 | BP154: 5289 | BQ154: 5361 | BR154: 5266 | BS154: 5332 | BT154: 5253 | BU154: 5236 | BV154: 5335 | BW154: 5252 | BX154: 5143 | BY154: 5221 | BZ154: 5076 | CA154: 5055
A155: 50689 | B155: 506891 | C155: 1 | D155: 50 | E155: 689 | F155: 689 | G155: META | H155: SAN MARTÍN | I155: Dep_No_priv | J155: 29 | K155: 38 | L155: 436 | M155: 436 | N155: 479 | O155: 473 | P155: 477 | Q155: 475 | R155: 480 | S155: 493 | T155: 517 | U155: 516 | V155: 506 | W155: 518 | X155: 480 | Y155: 454 | Z155: 412 | AA155: 413 | AB155: 432 | AC155: 438 | AD155: 434 | AE155: 436 | AF155: 439 | AG155: 440 | AH155: 461 | AI155: 439 | AJ155: 472 | AK155: 462 | AQ155: 5088 | AR155: 50881 | AS155: 1 | AT155: 5 | AU155: 88 | AV155: 088 | AW155: ANTIOQUIA | AX155: BELLO | AY155: Dep_No_priv | AZ155: 542 | BA155: 944 | BB155: 5948 | BC155: 5301 | BD155: 5604 | BE155: 5846 | BF155: 5925 | BG155: 6561 | BH155: 6634 | BI155: 7063 | BJ155: 7749 | BK155: 7953 | BL155: 7600 | BM155: 6425 | BN155: 5797 | BO155: 5304 | BP155: 5483 | BQ155: 5839 | BR155: 6686 | BS155: 6458 | BT155: 6576 | BU155: 6337 | BV155: 6248 | BW155: 6971 | BX155: 6919 | BY155: 7029 | BZ155: 7154 | CA155: 6441
A156: 25718 | B156: 257182 | C156: 2 | D156: 25 | E156: 718 | F156: 718 | G156: CUNDINAMARCA | H156: SASAIMA | I156: Dep_sec_priv | J156: 24 | K156: 38 | L156: 492 | M156: 514 | N156: 534 | O156: 520 | P156: 548 | Q156: 513 | R156: 468 | S156: 477 | T156: 515 | U156: 513 | V156: 508 | W156: 485 | X156: 493 | Y156: 476 | Z156: 446 | AA156: 445 | AB156: 449 | AC156: 448 | AD156: 433 | AE156: 440 | AF156: 457 | AG156: 471 | AH156: 481 | AI156: 468 | AJ156: 464 | AK156: 471 | AQ156: 5854 | AR156: 58543 | AS156: 3 | AT156: 5 | AU156: 854 | AV156: 854 | AW156: ANTIOQUIA | AX156: VALDIVIA | AY156: Independiente | AZ156: 7 | BA156: 75 | BB156: 158 | BC156: 142 | BD156: 121 | BE156: 139 | BF156: 151 | BG156: 146 | BH156: 157 | BI156: 159 | BJ156: 153 | BK156: 174 | BL156: 193 | BM156: 204 | BN156: 214 | BO156: 214 | BP156: 156 | BQ156: 159 | BR156: 169 | BS156: 166 | BT156: 180 | BU156: 179 | BV156: 174 | BW156: 183 | BX156: 189 | BY156: 186 | BZ156: 191 | CA156: 180
A157: 25843 | B157: 258432 | C157: 2 | D157: 25 | E157: 843 | F157: 843 | G157: CUNDINAMARCA | H157: VILLA DE SAN DIEGO DE UBATE | I157: Dep_sec_priv | J157: 331 | K157: 872 | L157: 5583 | M157: 5318 | N157: 5479 | O157: 5706 | P157: 5684 | Q157: 5356 | R157: 5376 | S157: 5759 | T157: 5829 | U157: 5606 | V157: 5595 | W157: 5740 | X157: 5739 | Y157: 5807 | Z157: 5914 | AA157: 6119 | AB157: 6347 | AC157: 6498 | AD157: 6539 | AE157: 6604 | AF157: 6637 | AG157: 6768 | AH157: 6897 | AI157: 6774 | AJ157: 6777 | AK157: 6491 | AQ157: 5647 | AR157: 56473 | AS157: 3 | AT157: 5 | AU157: 647 | AV157: 647 | AW157: ANTIOQUIA | AX157: SAN ANDRÉS DE CUERQUÍA | AY157: Independiente | AZ157: 8 | BA157: 16 | BB157: 111 | BC157: 99 | BD157: 92 | BE157: 100 | BF157: 100 | BG157: 96 | BH157: 99 | BI157: 95 | BJ157: 98 | BK157: 106 | BL157: 107 | BM157: 109 | BN157: 110 | BO157: 107 | BP157: 100 | BQ157: 104 | BR157: 108 | BS157: 106 | BT157: 107 | BU157: 111 | BV157: 107 | BW157: 105 | BX157: 116 | BY157: 117 | BZ157: 120 | CA157: 113
A158: 68081 | B158: 680812 | C158: 2 | D158: 68 | E158: 81 | F158: 081 | G158: SANTANDER | H158: BARRANCABERMEJA | I158: Dep_sec_priv | J158: 3609 | K158: 7878 | L158: 37924 | M158: 36938 | N158: 34262 | O158: 36722 | P158: 36555 | Q158: 31019 | R158: 30047 | S158: 30800 | T158: 32041 | U158: 32762 | V158: 34363 | W158: 35323 | X158: 35438 | Y158: 35020 | Z158: 33817 | AA158: 35426 | AB158: 34417 | AC158: 33916 | AD158: 34249 | AE158: 34373 | AF158: 35107 | AG158: 37116 | AH158: 37898 | AI158: 37793 | AJ158: 37946 | AK158: 36428 | AQ158: 5034 | AR158: 50342 | AS158: 2 | AT158: 5 | AU158: 34 | AV158: 034 | AW158: ANTIOQUIA | AX158: ANDES | AY158: Dep_sec_priv | AZ158: 104 | BA158: 220 | BB158: 1933 | BC158: 1873 | BD158: 1743 | BE158: 1718 | BF158: 1706 | BG158: 1624 | BH158: 1699 | BI158: 1713 | BJ158: 1693 | BK158: 1706 | BL158: 1780 | BM158: 1811 | BN158: 1797 | BO158: 1790 | BP158: 1792 | BQ158: 1777 | BR158: 1824 | BS158: 1818 | BT158: 1852 | BU158: 1847 | BV158: 1883 | BW158: 1908 | BX158: 1981 | BY158: 1976 | BZ158: 1937 | CA158: 1910
A159: 15238 | B159: 152382 | C159: 2 | D159: 15 | E159: 238 | F159: 238 | G159: BOYACÁ | H159: DUITAMA | I159: Dep_sec_priv | J159: 1451 | K159: 2961 | L159: 18902 | M159: 18604 | N159: 18249 | O159: 18795 | P159: 18595 | Q159: 17039 | R159: 17160 | S159: 17345 | T159: 17192 | U159: 17151 | V159: 17533 | W159: 18153 | X159: 18416 | Y159: 18267 | Z159: 18144 | AA159: 18650 | AB159: 18813 | AC159: 18934 | AD159: 18609 | AE159: 19130 | AF159: 18503 | AG159: 18912 | AH159: 19114 | AI159: 19268 | AJ159: 19583 | AK159: 19242 | AQ159: 5736 | AR159: 57363 | AS159: 3 | AT159: 5 | AU159: 736 | AV159: 736 | AW159: ANTIOQUIA | AX159: SEGOVIA | AY159: Independiente | AZ159: 44 | BA159: 147 | BB159: 548 | BC159: 516 | BD159: 460 | BE159: 568 | BF159: 575 | BG159: 557 | BH159: 538 | BI159: 542 | BJ159: 509 | BK159: 508 | BL159: 514 | BM159: 529 | BN159: 560 | BO159: 552 | BP159: 535 | BQ159: 549 | BR159: 584 | BS159: 600 | BT159: 632 | BU159: 650 | BV159: 605 | BW159: 616 | BX159: 641 | BY159: 667 | BZ159: 634 | CA159: 620
A160: 5088 | B160: 50883 | C160: 3 | D160: 5 | E160: 88 | F160: 088 | G160: ANTIOQUIA | H160: BELLO | I160: Independiente | J160: 506 | K160: 1411 | L160: 9890 | M160: 9689 | N160: 9375 | O160: 9661 | P160: 9802 | Q160: 9921 | R160: 10066 | S160: 10256 | T160: 10473 | U160: 10688 | V160: 11048 | W160: 11389 | X160: 11680 | Y160: 11521 | Z160: 10700 | AA160: 11176 | AB160: 11610 | AC160: 11780 | AD160: 12045 | AE160: 12189 | AF160: 12282 | AG160: 12438 | AH160: 12578 | AI160: 12720 | AJ160: 12951 | AK160: 12514 | AQ160: 5250 | AR160: 52503 | AS160: 3 | AT160: 5 | AU160: 250 | AV160: 250 | AW160: ANTIOQUIA | AX160: EL BAGRE | AY160: Independiente | AZ160: 51 | BA160: 97 | BB160: 365 | BC160: 339 | BD160: 355 | BE160: 392 | BF160: 391 | BG160: 404 | BH160: 440 | BI160: 434 | BJ160: 444 | BK160: 428 | BL160: 458 | BM160: 454 | BN160: 459 | BO160: 451 | BP160: 413 | BQ160: 432 | BR160: 467 | BS160: 514 | BT160: 488 | BU160: 484 | BV160: 501 | BW160: 515 | BX160: 520 | BY160: 540 | BZ160: 523 | CA160: 496
A161: 25001 | B161: 250012 | C161: 2 | D161: 25 | E161: 1 | F161: 001 | G161: CUNDINAMARCA | H161: AGUA DE DIOS | I161: Dep_sec_priv | J161: 4087 | K161: 6397 | L161: 56221 | M161: 55182 | N161: 54403 | O161: 56423 | P161: 52676 | Q161: 50637 | R161: 48594 | S161: 51232 | T161: 50371 | U161: 51679 | V161: 54528 | W161: 55834 | X161: 52308 | Y161: 55615 | Z161: 51081 | AA161: 53231 | AB161: 56667 | AC161: 62109 | AD161: 62938 | AE161: 57327 | AF161: 59322 | AG161: 60223 | AH161: 63466 | AI161: 58184 | AJ161: 57769 | AK161: 53691 | AQ161: 5895 | AR161: 58953 | AS161: 3 | AT161: 5 | AU161: 895 | AV161: 895 | AW161: ANTIOQUIA | AX161: ZARAGOZA | AY161: Independiente | AZ161: 59 | BA161: 166 | BB161: 209 | BC161: 192 | BD161: 178 | BE161: 207 | BF161: 218 | BG161: 228 | BH161: 249 | BI161: 263 | BJ161: 263 | BK161: 218 | BL161: 297 | BM161: 325 | BN161: 347 | BO161: 285 | BP161: 250 | BQ161: 322 | BR161: 350 | BS161: 382 | BT161: 391 | BU161: 409 | BV161: 369 | BW161: 364 | BX161: 393 | BY161: 392 | BZ161: 442 | CA161: 280
A162: 99773 | B162: 997732 | C162: 2 | D162: 99 | E162: 773 | F162: 773 | G162: VICHADA | H162: CUMARIBO | I162: Dep_sec_priv | J162: 2812 | K162: 4689 | L162: 20296 | M162: 17893 | N162: 17758 | O162: 20633 | P162: 20044 | Q162: 16642 | R162: 18219 | S162: 19008 | T162: 19514 | U162: 19374 | V162: 19884 | W162: 20309 | X162: 20801 | Y162: 20254 | Z162: 20446 | AA162: 20889 | AB162: 21982 | AC162: 22509 | AD162: 21539 | AE162: 22654 | AF162: 22600 | AG162: 22961 | AH162: 23360 | AI162: 23629 | AJ162: 23854 | AK162: 23041 | AQ162: 5895 | AR162: 58951 | AS162: 1 | AT162: 5 | AU162: 895 | AV162: 895 | AW162: ANTIOQUIA | AX162: ZARAGOZA | AY162: Dep_No_priv | AZ162: 6 | BA162: 31 | BB162: 351 | BC162: 351 | BD162: 332 | BE162: 332 | BF162: 350 | BG162: 355 | BH162: 354 | BI162: 367 | BJ162: 375 | BK162: 375 | BL162: 374 | BM162: 370 | BN162: 361 | BO162: 358 | BP162: 346 | BQ162: 397 | BR162: 372 | BS162: 362 | BT162: 355 | BU162: 365 | BV162: 367 | BW162: 368 | BX162: 370 | BY162: 366 | BZ162: 376 | CA162: 384
A163: 15759 | B163: 157592 | C163: 2 | D163: 15 | E163: 759 | F163: 759 | G163: BOYACÁ | H163: SOGAMOSO | I163: Dep_sec_priv | J163: 1114 | K163: 3422 | L163: 17232 | M163: 16640 | N163: 16706 | O163: 17243 | P163: 17130 | Q163: 15198 | R163: 15443 | S163: 15694 | T163: 15701 | U163: 15923 | V163: 16246 | W163: 16476 | X163: 16588 | Y163: 16657 | Z163: 16425 | AA163: 17014 | AB163: 17069 | AC163: 17073 | AD163: 16818 | AE163: 17276 | AF163: 17253 | AG163: 17382 | AH163: 17813 | AI163: 17720 | AJ163: 18100 | AK163: 17386 | AQ163: 5585 | AR163: 55851 | AS163: 1 | AT163: 5 | AU163: 585 | AV163: 585 | AW163: ANTIOQUIA | AX163: PUERTO NARE | AY163: Dep_No_priv | AZ163: 13 | BA163: 19 | BB163: 271 | BC163: 269 | BD163: 266 | BE163: 260 | BF163: 259 | BG163: 259 | BH163: 264 | BI163: 267 | BJ163: 278 | BK163: 302 | BL163: 299 | BM163: 291 | BN163: 291 | BO163: 284 | BP163: 284 | BQ163: 288 | BR163: 279 | BS163: 277 | BT163: 284 | BU163: 286 | BV163: 279 | BW163: 280 | BX163: 272 | BY163: 270 | BZ163: 269 | CA163: 273
A164: 25797 | B164: 257973 | C164: 3 | D164: 25 | E164: 797 | F164: 797 | G164: CUNDINAMARCA | H164: TENA | I164: Independiente | J164: 8 | K164: 26 | L164: 150 | M164: 142 | N164: 151 | O164: 160 | P164: 173 | Q164: 171 | R164: 170 | S164: 175 | T164: 170 | U164: 165 | V164: 162 | W164: 168 | X164: 195 | Y164: 170 | Z164: 166 | AA164: 179 | AB164: 188 | AC164: 201 | AD164: 206 | AE164: 205 | AF164: 210 | AG164: 207 | AH164: 205 | AI164: 213 | AJ164: 221 | AK164: 225 | AQ164: 5237 | AR164: 52371 | AS164: 1 | AT164: 5 | AU164: 237 | AV164: 237 | AW164: ANTIOQUIA | AX164: DON MATÍAS | AY164: Dep_No_priv | AZ164: 14 | BA164: 20 | BB164: 344 | BC164: 336 | BD164: 331 | BE164: 335 | BF164: 334 | BG164: 331 | BH164: 323 | BI164: 328 | BJ164: 340 | BK164: 356 | BL164: 353 | BM164: 341 | BN164: 328 | BO164: 315 | BP164: 315 | BQ164: 325 | BR164: 330 | BS164: 321 | BT164: 325 | BU164: 332 | BV164: 331 | BW164: 338 | BX164: 353 | BY164: 348 | BZ164: 342 | CA164: 346
A165: 76400 | B165: 764003 | C165: 3 | D165: 76 | E165: 400 | F165: 400 | G165: VALLE DEL CAUCA | H165: LA UNIÓN | I165: Independiente | J165: 23 | K165: 53 | L165: 1036 | M165: 976 | N165: 968 | O165: 990 | P165: 1006 | Q165: 1003 | R165: 935 | S165: 911 | T165: 940 | U165: 939 | V165: 950 | W165: 972 | X165: 1000 | Y165: 971 | Z165: 952 | AA165: 990 | AB165: 1016 | AC165: 1022 | AD165: 1041 | AE165: 999 | AF165: 1028 | AG165: 1057 | AH165: 1053 | AI165: 1021 | AJ165: 1013 | AK165: 1008 | AQ165: 5250 | AR165: 52501 | AS165: 1 | AT165: 5 | AU165: 250 | AV165: 250 | AW165: ANTIOQUIA | AX165: EL BAGRE | AY165: Dep_No_priv | AZ165: 36 | BA165: 56 | BB165: 663 | BC165: 652 | BD165: 652 | BE165: 722 | BF165: 755 | BG165: 768 | BH165: 772 | BI165: 795 | BJ165: 802 | BK165: 824 | BL165: 785 | BM165: 785 | BN165: 781 | BO165: 726 | BP165: 711 | BQ165: 742 | BR165: 738 | BS165: 745 | BT165: 752 | BU165: 779 | BV165: 766 | BW165: 754 | BX165: 743 | BY165: 717 | BZ165: 731 | CA165: 733
A166: 25126 | B166: 251262 | C166: 2 | D166: 25 | E166: 126 | F166: 126 | G166: CUNDINAMARCA | H166: CAJICÁ | I166: Dep_sec_priv | J166: 904 | K166: 1834 | L166: 13426 | M166: 12758 | N166: 12844 | O166: 13260 | P166: 13187 | Q166: 12345 | R166: 12476 | S166: 12670 | T166: 12854 | U166: 12794 | V166: 12977 | W166: 12986 | X166: 12958 | Y166: 12949 | Z166: 13248 | AA166: 13729 | AB166: 13656 | AC166: 13668 | AD166: 13871 | AE166: 14087 | AF166: 14402 | AG166: 14786 | AH166: 15089 | AI166: 15445 | AJ166: 15595 | AK166: 15073 | AQ166: 5364 | AR166: 53643 | AS166: 3 | AT166: 5 | AU166: 364 | AV166: 364 | AW166: ANTIOQUIA | AX166: JARDÍN | AY166: Independiente | AZ166: 14 | BA166: 38 | BB166: 410 | BC166: 387 | BD166: 375 | BE166: 388 | BF166: 400 | BG166: 397 | BH166: 395 | BI166: 399 | BJ166: 403 | BK166: 415 | BL166: 418 | BM166: 422 | BN166: 443 | BO166: 450 | BP166: 437 | BQ166: 436 | BR166: 427 | BS166: 428 | BT166: 438 | BU166: 439 | BV166: 444 | BW166: 461 | BX166: 461 | BY166: 474 | BZ166: 486 | CA166: 467
A167: 25662 | B167: 256623 | C167: 3 | D167: 25 | E167: 662 | F167: 662 | G167: CUNDINAMARCA | H167: SAN JUAN DE RÍO SECO | I167: Independiente | J167: 14 | K167: 34 | L167: 194 | M167: 161 | N167: 146 | O167: 161 | P167: 164 | Q167: 175 | R167: 178 | S167: 178 | T167: 180 | U167: 174 | V167: 193 | W167: 198 | X167: 210 | Y167: 203 | Z167: 192 | AA167: 207 | AB167: 213 | AC167: 222 | AD167: 222 | AE167: 224 | AF167: 225 | AG167: 232 | AH167: 228 | AI167: 234 | AJ167: 231 | AK167: 231 | AQ167: 5045 | AR167: 50451 | AS167: 1 | AT167: 5 | AU167: 45 | AV167: 045 | AW167: ANTIOQUIA | AX167: APARTADÓ | AY167: Dep_No_priv | AZ167: 370 | BA167: 501 | BB167: 3965 | BC167: 3369 | BD167: 3190 | BE167: 3611 | BF167: 3813 | BG167: 3349 | BH167: 3261 | BI167: 3372 | BJ167: 3492 | BK167: 3633 | BL167: 3699 | BM167: 3440 | BN167: 3324 | BO167: 3170 | BP167: 3083 | BQ167: 3354 | BR167: 3639 | BS167: 3954 | BT167: 3944 | BU167: 3908 | BV167: 3704 | BW167: 3815 | BX167: 3851 | BY167: 3775 | BZ167: 3817 | CA167: 3558
A168: 25019 | B168: 250191 | C168: 1 | D168: 25 | E168: 19 | F168: 019 | G168: CUNDINAMARCA | H168: ALBÁN | I168: Dep_No_priv | J168: 3 | K168: 8 | L168: 192 | M168: 112 | N168: 112 | O168: 114 | P168: 109 | Q168: 106 | R168: 150 | S168: 153 | T168: 152 | U168: 153 | V168: 152 | W168: 150 | X168: 151 | Y168: 106 | Z168: 106 | AA168: 95 | AB168: 95 | AC168: 95 | AD168: 136 | AE168: 135 | AF168: 136 | AG168: 141 | AH168: 141 | AI168: 141 | AJ168: 143 | AK168: 106 | AQ168: 5002 | AR168: 50022 | AS168: 2 | AT168: 5 | AU168: 2 | AV168: 002 | AW168: ANTIOQUIA | AX168: ABEJORRAL | AY168: Dep_sec_priv | AZ168: 178 | BA168: 314 | BB168: 2353 | BC168: 2377 | BD168: 2332 | BE168: 2255 | BF168: 2198 | BG168: 2015 | BH168: 1893 | BI168: 2075 | BJ168: 2990 | BK168: 2408 | BL168: 2398 | BM168: 2398 | BN168: 2381 | BO168: 2249 | BP168: 2377 | BQ168: 2398 | BR168: 2506 | BS168: 3604 | BT168: 3523 | BU168: 3602 | BV168: 2883 | BW168: 2807 | BX168: 3218 | BY168: 2435 | BZ168: 2292 | CA168: 2216
A169: 15759 | B169: 157591 | C169: 1 | D169: 15 | E169: 759 | F169: 759 | G169: BOYACÁ | H169: SOGAMOSO | I169: Dep_No_priv | J169: 145 | K169: 676 | L169: 5220 | M169: 2478 | N169: 2760 | O169: 5074 | P169: 5125 | Q169: 4724 | R169: 2303 | S169: 2420 | T169: 2470 | U169: 2687 | V169: 2915 | W169: 2891 | X169: 2773 | Y169: 2537 | Z169: 2644 | AA169: 2457 | AB169: 2710 | AC169: 2731 | AD169: 2700 | AE169: 2733 | AF169: 2779 | AG169: 2925 | AH169: 4863 | AI169: 5045 | AJ169: 4963 | AK169: 2906 | AQ169: 5059 | AR169: 50593 | AS169: 3 | AT169: 5 | AU169: 59 | AV169: 059 | AW169: ANTIOQUIA | AX169: ARMENIA | AY169: Independiente | AZ169: 5 | BA169: 13 | BB169: 201 | BC169: 192 | BD169: 179 | BE169: 191 | BF169: 177 | BG169: 172 | BH169: 175 | BI169: 176 | BJ169: 164 | BK169: 168 | BL169: 165 | BM169: 160 | BN169: 164 | BO169: 170 | BP169: 167 | BQ169: 166 | BR169: 165 | BS169: 165 | BT169: 163 | BU169: 163 | BV169: 161 | BW169: 164 | BX169: 167 | BY169: 170 | BZ169: 172 | CA169: 177
A170: 68655 | B170: 686552 | C170: 2 | D170: 68 | E170: 655 | F170: 655 | G170: SANTANDER | H170: SABANA DE TORRES | I170: Dep_sec_priv | J170: 453 | K170: 866 | L170: 3687 | M170: 3480 | N170: 3553 | O170: 3721 | P170: 3721 | Q170: 3286 | R170: 3299 | S170: 3386 | T170: 3485 | U170: 3242 | V170: 3284 | W170: 3276 | X170: 3276 | Y170: 3172 | Z170: 3176 | AA170: 3217 | AB170: 3270 | AC170: 3406 | AD170: 3315 | AE170: 3399 | AF170: 3339 | AG170: 3326 | AH170: 3249 | AI170: 3363 | AJ170: 3333 | AK170: 3329 | AQ170: 5310 | AR170: 53103 | AS170: 3 | AT170: 5 | AU170: 310 | AV170: 310 | AW170: ANTIOQUIA | AX170: GÓMEZ PLATA | AY170: Independiente | AZ170: 6 | BA170: 94 | BB170: 229 | BC170: 220 | BD170: 148 | BE170: 178 | BF170: 183 | BG170: 186 | BH170: 196 | BI170: 189 | BJ170: 198 | BK170: 212 | BL170: 230 | BM170: 231 | BN170: 244 | BO170: 241 | BP170: 162 | BQ170: 204 | BR170: 224 | BS170: 249 | BT170: 270 | BU170: 281 | BV170: 285 | BW170: 286 | BX170: 275 | BY170: 278 | BZ170: 276 | CA170: 256
A171: 95001 | B171: 950012 | C171: 2 | D171: 95 | E171: 1 | F171: 001 | G171: GUAVIARE | H171: SAN JOSÉ DEL GUAVIARE | I171: Dep_sec_priv | J171: 1118 | K171: 1745 | L171: 5479 | M171: 5017 | N171: 5030 | O171: 5637 | P171: 5701 | Q171: 5051 | R171: 5414 | S171: 5738 | T171: 6269 | U171: 6466 | V171: 6158 | W171: 6203 | X171: 6320 | Y171: 6320 | Z171: 6073 | AA171: 6400 | AB171: 6958 | AC171: 6770 | AD171: 6668 | AE171: 7073 | AF171: 7227 | AG171: 7496 | AH171: 8168 | AI171: 8322 | AJ171: 9013 | AK171: 9010 | AQ171: 5086 | AR171: 50862 | AS171: 2 | AT171: 5 | AU171: 86 | AV171: 086 | AW171: ANTIOQUIA | AX171: BELMIRA | AY171: Dep_sec_priv | AZ171: 13 | BA171: 37 | BB171: 215 | BC171: 262 | BD171: 225 | BE171: 268 | BF171: 280 | BG171: 267 | BH171: 258 | BI171: 285 | BJ171: 285 | BK171: 273 | BL171: 309 | BM171: 248 | BN171: 228 | BO171: 213 | BP171: 257 | BQ171: 278 | BR171: 289 | BS171: 272 | BT171: 289 | BU171: 378 | BV171: 329 | BW171: 363 | BX171: 303 | BY171: 267 | BZ171: 292 | CA171: 295
A172: 25279 | B172: 252792 | C172: 2 | D172: 25 | E172: 279 | F172: 279 | G172: CUNDINAMARCA | H172: FOMEQUE | I172: Dep_sec_priv | J172: 72 | K172: 81 | L172: 757 | M172: 754 | N172: 795 | O172: 818 | P172: 829 | Q172: 780 | R172: 808 | S172: 811 | T172: 834 | U172: 832 | V172: 875 | W172: 896 | X172: 855 | Y172: 803 | Z172: 808 | AA172: 807 | AB172: 752 | AC172: 771 | AD172: 751 | AE172: 752 | AF172: 754 | AG172: 768 | AH172: 790 | AI172: 782 | AJ172: 707 | AK172: 714 | AQ172: 5652 | AR172: 56522 | AS172: 2 | AT172: 5 | AU172: 652 | AV172: 652 | AW172: ANTIOQUIA | AX172: SAN FRANCISCO | AY172: Dep_sec_priv | AZ172: 20 | BA172: 66 | BB172: 75 | BC172: 63 | BD172: 55 | BE172: 62 | BF172: 61 | BG172: 63 | BH172: 55 | BI172: 64 | BJ172: 68 | BK172: 54 | BL172: 50 | BM172: 49 | BN172: 53 | BO172: 48 | BP172: 38 | BQ172: 46 | BR172: 60 | BS172: 81 | BT172: 91 | BU172: 115 | BV172: 116 | BW172: 137 | BX172: 157 | BY172: 159 | BZ172: 162 | CA172: 161
A173: 25320 | B173: 253202 | C173: 2 | D173: 25 | E173: 320 | F173: 320 | G173: CUNDINAMARCA | H173: GUADUAS | I173: Dep_sec_priv | J173: 97 | K173: 158 | L173: 1720 | M173: 1686 | N173: 1493 | O173: 1510 | P173: 1452 | Q173: 1328 | R173: 1269 | S173: 1288 | T173: 1278 | U173: 1284 | V173: 1319 | W173: 1374 | X173: 1415 | Y173: 1399 | Z173: 1414 | AA173: 1487 | AB173: 1486 | AC173: 1393 | AD173: 1384 | AE173: 1331 | AF173: 1216 | AG173: 1172 | AH173: 1174 | AI173: 1134 | AJ173: 1172 | AK173: 1106 | AQ173: 5308 | AR173: 53081 | AS173: 1 | AT173: 5 | AU173: 308 | AV173: 308 | AW173: ANTIOQUIA | AX173: GIRARDOTA | AY173: Dep_No_priv | AZ173: 71 | BA173: 129 | BB173: 986 | BC173: 946 | BD173: 952 | BE173: 970 | BF173: 992 | BG173: 1027 | BH173: 1034 | BI173: 1061 | BJ173: 1100 | BK173: 1109 | BL173: 1062 | BM173: 999 | BN173: 966 | BO173: 948 | BP173: 951 | BQ173: 1009 | BR173: 1040 | BS173: 1017 | BT173: 1032 | BU173: 1031 | BV173: 1035 | BW173: 1075 | BX173: 1072 | BY173: 1066 | BZ173: 1054 | CA173: 1013
A174: 25758 | B174: 257582 | C174: 2 | D174: 25 | E174: 758 | F174: 758 | G174: CUNDINAMARCA | H174: SOPÓ | I174: Dep_sec_priv | J174: 279 | K174: 356 | L174: 3642 | M174: 3512 | N174: 3561 | O174: 3638 | P174: 3443 | Q174: 3227 | R174: 3342 | S174: 3276 | T174: 3303 | U174: 3273 | V174: 3402 | W174: 3439 | X174: 3458 | Y174: 3428 | Z174: 3518 | AA174: 3604 | AB174: 3587 | AC174: 3801 | AD174: 3632 | AE174: 3556 | AF174: 3552 | AG174: 3612 | AH174: 3592 | AI174: 3634 | AJ174: 3679 | AK174: 3696 | AQ174: 5353 | AR174: 53532 | AS174: 2 | AT174: 5 | AU174: 353 | AV174: 353 | AW174: ANTIOQUIA | AX174: HISPANIA | AY174: Dep_sec_priv | AZ174: 16 | BA174: 12 | BB174: 421 | BC174: 383 | BD174: 358 | BE174: 379 | BF174: 371 | BG174: 326 | BH174: 310 | BI174: 319 | BJ174: 318 | BK174: 312 | BL174: 303 | BM174: 250 | BN174: 227 | BO174: 209 | BP174: 186 | BQ174: 192 | BR174: 202 | BS174: 195 | BT174: 186 | BU174: 187 | BV174: 199 | BW174: 201 | BX174: 192 | BY174: 195 | BZ174: 189 | CA174: 196
A175: 25592 | B175: 255923 | C175: 3 | D175: 25 | E175: 592 | F175: 592 | G175: CUNDINAMARCA | H175: QUEBRADANEGRA | I175: Independiente | J175: 1 | K175: 13 | L175: 80 | M175: 79 | N175: 75 | O175: 80 | P175: 84 | Q175: 84 | R175: 80 | S175: 80 | T175: 77 | U175: 80 | V175: 84 | W175: 83 | X175: 84 | Y175: 82 | Z175: 77 | AA175: 87 | AB175: 87 | AC175: 95 | AD175: 93 | AE175: 94 | AF175: 96 | AG175: 94 | AH175: 105 | AI175: 106 | AJ175: 96 | AK175: 87 | AQ175: 5837 | AR175: 58371 | AS175: 1 | AT175: 5 | AU175: 837 | AV175: 837 | AW175: ANTIOQUIA | AX175: TURBO | AY175: Dep_No_priv | AZ175: 71 | BA175: 172 | BB175: 3835 | BC175: 2765 | BD175: 2994 | BE175: 3116 | BF175: 3112 | BG175: 3172 | BH175: 2897 | BI175: 2887 | BJ175: 2869 | BK175: 2857 | BL175: 2818 | BM175: 2699 | BN175: 2713 | BO175: 2582 | BP175: 2486 | BQ175: 2570 | BR175: 2717 | BS175: 2695 | BT175: 2780 | BU175: 2750 | BV175: 4208 | BW175: 4223 | BX175: 4408 | BY175: 4467 | BZ175: 4441 | CA175: 2680
A176: 25718 | B176: 257181 | C176: 1 | D176: 25 | E176: 718 | F176: 718 | G176: CUNDINAMARCA | H176: SASAIMA | I176: Dep_No_priv | J176: 4 | K176: 8 | L176: 653 | M176: 335 | N176: 191 | O176: 186 | P176: 183 | Q176: 178 | R176: 184 | S176: 236 | T176: 233 | U176: 345 | V176: 282 | W176: 286 | X176: 335 | Y176: 175 | Z176: 172 | AA176: 176 | AB176: 174 | AC176: 177 | AD176: 215 | AE176: 212 | AF176: 212 | AG176: 217 | AH176: 212 | AI176: 281 | AJ176: 180 | AK176: 178 | AQ176: 5837 | AR176: 58372 | AS176: 2 | AT176: 5 | AU176: 837 | AV176: 837 | AW176: ANTIOQUIA | AX176: TURBO | AY176: Dep_sec_priv | AZ176: 324 | BA176: 1119 | BB176: 7054 | BC176: 6873 | BD176: 6517 | BE176: 6847 | BF176: 7025 | BG176: 7012 | BH176: 7026 | BI176: 7054 | BJ176: 7114 | BK176: 7102 | BL176: 7242 | BM176: 7464 | BN176: 7467 | BO176: 7389 | BP176: 7155 | BQ176: 7465 | BR176: 7681 | BS176: 7819 | BT176: 7840 | BU176: 7742 | BV176: 7778 | BW176: 7967 | BX176: 7975 | BY176: 8024 | BZ176: 8025 | CA176: 7895
A177: 25328 | B177: 253283 | C177: 3 | D177: 25 | E177: 328 | F177: 328 | G177: CUNDINAMARCA | H177: GUAYABAL DE SIQUIMA | I177: Independiente | J177: 5 | K177: 18 | L177: 65 | M177: 65 | N177: 68 | O177: 71 | P177: 74 | Q177: 72 | R177: 77 | S177: 80 | T177: 78 | U177: 86 | V177: 89 | W177: 96 | X177: 97 | Y177: 94 | Z177: 82 | AA177: 96 | AB177: 100 | AC177: 108 | AD177: 105 | AE177: 105 | AF177: 108 | AG177: 108 | AH177: 106 | AI177: 109 | AJ177: 111 | AK177: 108 | AQ177: 5147 | AR177: 51472 | AS177: 2 | AT177: 5 | AU177: 147 | AV177: 147 | AW177: ANTIOQUIA | AX177: CAREPA | AY177: Dep_sec_priv | AZ177: 236 | BA177: 639 | BB177: 4063 | BC177: 4082 | BD177: 3894 | BE177: 3941 | BF177: 4042 | BG177: 3916 | BH177: 4029 | BI177: 3982 | BJ177: 4078 | BK177: 4062 | BL177: 4096 | BM177: 4129 | BN177: 4097 | BO177: 4041 | BP177: 3839 | BQ177: 4019 | BR177: 4122 | BS177: 4198 | BT177: 4362 | BU177: 4371 | BV177: 4235 | BW177: 4298 | BX177: 4379 | BY177: 4275 | BZ177: 4292 | CA177: 4369
A178: 27006 | B178: 270062 | C178: 2 | D178: 27 | E178: 6 | F178: 006 | G178: CHOCÓ | H178: ACANDÍ | I178: Dep_sec_priv | J178: 214 | K178: 824 | L178: 4274 | M178: 4433 | N178: 4252 | O178: 4632 | P178: 4329 | Q178: 3880 | R178: 3859 | S178: 4201 | T178: 4766 | U178: 4667 | V178: 4861 | W178: 4860 | X178: 5869 | Y178: 4687 | Z178: 4560 | AA178: 4899 | AB178: 5056 | AC178: 5153 | AD178: 5260 | AE178: 5291 | AF178: 5232 | AG178: 5242 | AH178: 6034 | AI178: 5140 | AJ178: 5178 | AK178: 4842 | AQ178: 5059 | AR178: 50591 | AS178: 1 | AT178: 5 | AU178: 59 | AV178: 059 | AW178: ANTIOQUIA | AX178: ARMENIA | AY178: Dep_No_priv | AZ178: 4 | BA178: 11 | BB178: 84 | BC178: 82 | BD178: 77 | BE178: 81 | BF178: 82 | BG178: 81 | BH178: 90 | BI178: 88 | BJ178: 86 | BK178: 93 | BL178: 90 | BM178: 82 | BN178: 87 | BO178: 84 | BP178: 93 | BQ178: 94 | BR178: 98 | BS178: 95 | BT178: 100 | BU178: 97 | BV178: 99 | BW178: 102 | BX178: 91 | BY178: 95 | BZ178: 100 | CA178: 96
A179: 25740 | B179: 257403 | C179: 3 | D179: 25 | E179: 740 | F179: 740 | G179: CUNDINAMARCA | H179: SIBATÉ | I179: Independiente | J179: 34 | K179: 250 | L179: 633 | M179: 625 | N179: 561 | O179: 747 | P179: 795 | Q179: 756 | R179: 769 | S179: 770 | T179: 796 | U179: 759 | V179: 790 | W179: 1025 | X179: 1077 | Y179: 1110 | Z179: 890 | AA179: 985 | AB179: 884 | AC179: 945 | AD179: 967 | AE179: 1010 | AF179: 1024 | AG179: 936 | AH179: 953 | AI179: 959 | AJ179: 938 | AK179: 899 | AQ179: 5101 | AR179: 51012 | AS179: 2 | AT179: 5 | AU179: 101 | AV179: 101 | AW179: ANTIOQUIA | AX179: CIUDAD BOLÍVAR | AY179: Dep_sec_priv | AZ179: 94 | BA179: 258 | BB179: 1924 | BC179: 1788 | BD179: 1844 | BE179: 1936 | BF179: 1877 | BG179: 1771 | BH179: 1789 | BI179: 1853 | BJ179: 1858 | BK179: 1835 | BL179: 1772 | BM179: 1836 | BN179: 1800 | BO179: 1756 | BP179: 1703 | BQ179: 1848 | BR179: 1944 | BS179: 1895 | BT179: 1881 | BU179: 1907 | BV179: 1912 | BW179: 1927 | BX179: 2013 | BY179: 1997 | BZ179: 1913 | CA179: 1839
A180: 25817 | B180: 258172 | C180: 2 | D180: 25 | E180: 817 | F180: 817 | G180: CUNDINAMARCA | H180: TOCANCIPÁ | I180: Dep_sec_priv | J180: 808 | K180: 1471 | L180: 13019 | M180: 12521 | N180: 12220 | O180: 12381 | P180: 11988 | Q180: 11050 | R180: 10845 | S180: 10744 | T180: 11002 | U180: 11140 | V180: 11298 | W180: 11408 | X180: 11741 | Y180: 11634 | Z180: 12188 | AA180: 12831 | AB180: 12946 | AC180: 13196 | AD180: 13055 | AE180: 12962 | AF180: 13181 | AG180: 13200 | AH180: 13336 | AI180: 14197 | AJ180: 13750 | AK180: 13714 | AQ180: 5591 | AR180: 55911 | AS180: 1 | AT180: 5 | AU180: 591 | AV180: 591 | AW180: ANTIOQUIA | AX180: PUERTO TRIUNFO | AY180: Dep_No_priv | AZ180: 43 | BA180: 31 | BB180: 535 | BC180: 558 | BD180: 527 | BE180: 476 | BF180: 490 | BG180: 483 | BH180: 469 | BI180: 479 | BJ180: 544 | BK180: 560 | BL180: 582 | BM180: 615 | BN180: 631 | BO180: 624 | BP180: 601 | BQ180: 525 | BR180: 555 | BS180: 522 | BT180: 502 | BU180: 524 | BV180: 530 | BW180: 521 | BX180: 530 | BY180: 539 | BZ180: 553 | CA180: 578
A181: 25718 | B181: 257183 | C181: 3 | D181: 25 | E181: 718 | F181: 718 | G181: CUNDINAMARCA | H181: SASAIMA | I181: Independiente | J181: 11 | K181: 27 | L181: 244 | M181: 218 | N181: 231 | O181: 233 | P181: 228 | Q181: 230 | R181: 243 | S181: 239 | T181: 231 | U181: 240 | V181: 249 | W181: 242 | X181: 248 | Y181: 247 | Z181: 227 | AA181: 233 | AB181: 242 | AC181: 240 | AD181: 246 | AE181: 274 | AF181: 276 | AG181: 280 | AH181: 284 | AI181: 374 | AJ181: 379 | AK181: 368 | AQ181: 5172 | AR181: 51721 | AS181: 1 | AT181: 5 | AU181: 172 | AV181: 172 | AW181: ANTIOQUIA | AX181: CHIGORODÓ | AY181: Dep_No_priv | AZ181: 65 | BA181: 201 | BB181: 1729 | BC181: 1778 | BD181: 1696 | BE181: 1678 | BF181: 1834 | BG181: 1588 | BH181: 1598 | BI181: 1721 | BJ181: 1658 | BK181: 1706 | BL181: 1219 | BM181: 1214 | BN181: 1793 | BO181: 1670 | BP181: 1751 | BQ181: 1778 | BR181: 1836 | BS181: 1774 | BT181: 1856 | BU181: 1881 | BV181: 1850 | BW181: 1893 | BX181: 1922 | BY181: 1917 | BZ181: 1660 | CA181: 1827
A182: 25875 | B182: 258752 | C182: 2 | D182: 25 | E182: 875 | F182: 875 | G182: CUNDINAMARCA | H182: VILLETA | I182: Dep_sec_priv | J182: 195 | K182: 392 | L182: 2078 | M182: 2001 | N182: 2024 | O182: 2030 | P182: 2091 | Q182: 1854 | R182: 1964 | S182: 1998 | T182: 2016 | U182: 1995 | V182: 2041 | W182: 2163 | X182: 2189 | Y182: 2161 | Z182: 2180 | AA182: 2376 | AB182: 2380 | AC182: 2458 | AD182: 2528 | AE182: 2466 | AF182: 2430 | AG182: 2420 | AH182: 2456 | AI182: 2534 | AJ182: 2466 | AK182: 2433 | AQ182: 5895 | AR182: 58952 | AS182: 2 | AT182: 5 | AU182: 895 | AV182: 895 | AW182: ANTIOQUIA | AX182: ZARAGOZA | AY182: Dep_sec_priv | AZ182: 54 | BA182: 106 | BB182: 609 | BC182: 562 | BD182: 505 | BE182: 525 | BF182: 508 | BG182: 484 | BH182: 524 | BI182: 551 | BJ182: 479 | BK182: 591 | BL182: 625 | BM182: 600 | BN182: 634 | BO182: 634 | BP182: 614 | BQ182: 650 | BR182: 668 | BS182: 669 | BT182: 684 | BU182: 674 | BV182: 701 | BW182: 711 | BX182: 789 | BY182: 716 | BZ182: 689 | CA182: 688
A183: 15407 | B183: 154072 | C183: 2 | D183: 15 | E183: 407 | F183: 407 | G183: BOYACÁ | H183: VILLA DE LEYVA | I183: Dep_sec_priv | J183: 131 | K183: 128 | L183: 1472 | M183: 1410 | N183: 1357 | O183: 1420 | P183: 1399 | Q183: 1192 | R183: 1163 | S183: 1151 | T183: 1099 | U183: 1114 | V183: 1173 | W183: 1217 | X183: 1273 | Y183: 1233 | Z183: 1288 | AA183: 1323 | AB183: 1375 | AC183: 1419 | AD183: 1412 | AE183: 1426 | AF183: 1448 | AG183: 1490 | AH183: 1506 | AI183: 1575 | AJ183: 1638 | AK183: 1602 | AQ183: 5631 | AR183: 56311 | AS183: 1 | AT183: 5 | AU183: 631 | AV183: 631 | AW183: ANTIOQUIA | AX183: SABANETA | AY183: Dep_No_priv | AZ183: 122 | BA183: 526 | BB183: 2258 | BC183: 1914 | BD183: 2071 | BE183: 2207 | BF183: 2225 | BG183: 2325 | BH183: 2157 | BI183: 2219 | BJ183: 2351 | BK183: 2432 | BL183: 2434 | BM183: 2206 | BN183: 2157 | BO183: 1963 | BP183: 1983 | BQ183: 2251 | BR183: 2556 | BS183: 2512 | BT183: 2566 | BU183: 2515 | BV183: 2190 | BW183: 2544 | BX183: 2517 | BY183: 2556 | BZ183: 2553 | CA183: 2484
A184: 25260 | B184: 252602 | C184: 2 | D184: 25 | E184: 260 | F184: 260 | G184: CUNDINAMARCA | H184: EL ROSAL | I184: Dep_sec_priv | J184: 192 | K184: 306 | L184: 2226 | M184: 2193 | N184: 2312 | O184: 2344 | P184: 2120 | Q184: 2032 | R184: 1981 | S184: 2029 | T184: 2049 | U184: 1951 | V184: 1987 | W184: 2007 | X184: 2029 | Y184: 1999 | Z184: 2013 | AA184: 2223 | AB184: 2318 | AC184: 2330 | AD184: 2368 | AE184: 2349 | AF184: 2323 | AG184: 2201 | AH184: 2363 | AI184: 2406 | AJ184: 2384 | AK184: 2321 | AQ184: 5040 | AR184: 50402 | AS184: 2 | AT184: 5 | AU184: 40 | AV184: 040 | AW184: ANTIOQUIA | AX184: ANORÍ | AY184: Dep_sec_priv | AZ184: 73 | BA184: 146 | BB184: 579 | BC184: 533 | BD184: 488 | BE184: 500 | BF184: 456 | BG184: 408 | BH184: 429 | BI184: 450 | BJ184: 520 | BK184: 586 | BL184: 566 | BM184: 589 | BN184: 577 | BO184: 523 | BP184: 468 | BQ184: 588 | BR184: 552 | BS184: 560 | BT184: 560 | BU184: 601 | BV184: 575 | BW184: 625 | BX184: 640 | BY184: 674 | BZ184: 671 | CA184: 685
A185: 25799 | B185: 257992 | C185: 2 | D185: 25 | E185: 799 | F185: 799 | G185: CUNDINAMARCA | H185: TENJO | I185: Dep_sec_priv | J185: 374 | K185: 741 | L185: 6287 | M185: 6041 | N185: 6071 | O185: 6318 | P185: 6335 | Q185: 6030 | R185: 6092 | S185: 5857 | T185: 5992 | U185: 6040 | V185: 6083 | W185: 5859 | X185: 6008 | Y185: 5996 | Z185: 5798 | AA185: 6070 | AB185: 6088 | AC185: 6073 | AD185: 6086 | AE185: 6208 | AF185: 6226 | AG185: 6285 | AH185: 6009 | AI185: 6324 | AJ185: 6469 | AK185: 6340 | AQ185: 5282 | AR185: 52822 | AS185: 2 | AT185: 5 | AU185: 282 | AV185: 282 | AW185: ANTIOQUIA | AX185: FREDONIA | AY185: Dep_sec_priv | AZ185: 72 | BA185: 182 | BB185: 1767 | BC185: 1789 | BD185: 1711 | BE185: 1781 | BF185: 1773 | BG185: 1654 | BH185: 1667 | BI185: 1631 | BJ185: 1656 | BK185: 1629 | BL185: 1692 | BM185: 1739 | BN185: 1675 | BO185: 1647 | BP185: 1607 | BQ185: 1638 | BR185: 1741 | BS185: 1747 | BT185: 1773 | BU185: 1598 | BV185: 1769 | BW185: 1751 | BX185: 1802 | BY185: 1762 | BZ185: 1780 | CA185: 1751
A186: 95001 | B186: 950011 | C186: 1 | D186: 95 | E186: 1 | F186: 001 | G186: GUAVIARE | H186: SAN JOSÉ DEL GUAVIARE | I186: Dep_No_priv | J186: 275 | K186: 204 | L186: 4371 | M186: 2671 | N186: 2601 | O186: 2501 | P186: 2654 | Q186: 2604 | R186: 2660 | S186: 2582 | T186: 2661 | U186: 2716 | V186: 2727 | W186: 2681 | X186: 2682 | Y186: 2505 | Z186: 2390 | AA186: 2470 | AB186: 2543 | AC186: 2629 | AD186: 3218 | AE186: 3985 | AF186: 4039 | AG186: 4111 | AH186: 4192 | AI186: 4123 | AJ186: 4163 | AK186: 2689 | AQ186: 5036 | AR186: 50362 | AS186: 2 | AT186: 5 | AU186: 36 | AV186: 036 | AW186: ANTIOQUIA | AX186: ANGELÓPOLIS | AY186: Dep_sec_priv | AZ186: 91 | BA186: 79 | BB186: 566 | BC186: 513 | BD186: 530 | BE186: 513 | BF186: 485 | BG186: 433 | BH186: 417 | BI186: 441 | BJ186: 447 | BK186: 430 | BL186: 436 | BM186: 458 | BN186: 420 | BO186: 413 | BP186: 386 | BQ186: 391 | BR186: 397 | BS186: 403 | BT186: 385 | BU186: 403 | BV186: 417 | BW186: 475 | BX186: 407 | BY186: 395 | BZ186: 345 | CA186: 411
A187: 5059 | B187: 50592 | C187: 2 | D187: 5 | E187: 59 | F187: 059 | G187: ANTIOQUIA | H187: ARMENIA | I187: Dep_sec_priv | J187: 35 | K187: 36 | L187: 256 | M187: 294 | N187: 221 | O187: 201 | P187: 160 | Q187: 162 | R187: 160 | S187: 172 | T187: 171 | U187: 179 | V187: 170 | W187: 162 | X187: 166 | Y187: 171 | Z187: 160 | AA187: 163 | AB187: 188 | AC187: 174 | AD187: 201 | AE187: 186 | AF187: 228 | AG187: 307 | AH187: 263 | AI187: 285 | AJ187: 309 | AK187: 296 | AQ187: 5665 | AR187: 56653 | AS187: 3 | AT187: 5 | AU187: 665 | AV187: 665 | AW187: ANTIOQUIA | AX187: SAN PEDRO DE URABA | AY187: Independiente | AZ187: 9 | BA187: 111 | BB187: 247 | BC187: 218 | BD187: 170 | BE187: 187 | BF187: 198 | BG187: 191 | BH187: 196 | BI187: 207 | BJ187: 205 | BK187: 204 | BL187: 205 | BM187: 231 | BN187: 230 | BO187: 226 | BP187: 165 | BQ187: 163 | BR187: 234 | BS187: 245 | BT187: 254 | BU187: 251 | BV187: 252 | BW187: 255 | BX187: 270 | BY187: 278 | BZ187: 275 | CA187: 261
A188: 44430 | B188: 444301 | C188: 1 | D188: 44 | E188: 430 | F188: 430 | G188: LA GUAJIRA | H188: MAICAO | I188: Dep_No_priv | J188: 59 | K188: 127 | L188: 3032 | M188: 2862 | N188: 2831 | O188: 2890 | P188: 2913 | Q188: 2889 | R188: 2924 | S188: 2983 | T188: 2985 | U188: 3099 | V188: 3171 | W188: 3171 | X188: 3030 | Y188: 2961 | Z188: 2852 | AA188: 2849 | AB188: 2931 | AC188: 3153 | AD188: 3169 | AE188: 3151 | AF188: 3038 | AG188: 3122 | AH188: 3137 | AI188: 3103 | AJ188: 3104 | AK188: 3021 | AQ188: 5667 | AR188: 56672 | AS188: 2 | AT188: 5 | AU188: 667 | AV188: 667 | AW188: ANTIOQUIA | AX188: SAN RAFAEL | AY188: Dep_sec_priv | AZ188: 46 | BA188: 62 | BB188: 672 | BC188: 636 | BD188: 607 | BE188: 629 | BF188: 652 | BG188: 623 | BH188: 603 | BI188: 599 | BJ188: 623 | BK188: 639 | BL188: 659 | BM188: 652 | BN188: 620 | BO188: 566 | BP188: 516 | BQ188: 586 | BR188: 588 | BS188: 601 | BT188: 595 | BU188: 574 | BV188: 582 | BW188: 599 | BX188: 602 | BY188: 587 | BZ188: 611 | CA188: 588
A189: 85001 | B189: 850012 | C189: 2 | D189: 85 | E189: 1 | F189: 001 | G189: CASANARE | H189: YOPAL | I189: Dep_sec_priv | J189: 3896 | K189: 8237 | L189: 48751 | M189: 47649 | N189: 45333 | O189: 48669 | P189: 47160 | Q189: 39178 | R189: 40134 | S189: 39088 | T189: 40070 | U189: 40242 | V189: 40795 | W189: 40377 | X189: 40775 | Y189: 40267 | Z189: 39634 | AA189: 41762 | AB189: 43186 | AC189: 43350 | AD189: 42392 | AE189: 42463 | AF189: 42905 | AG189: 43710 | AH189: 44348 | AI189: 45462 | AJ189: 45519 | AK189: 44287 | AQ189: 5145 | AR189: 51453 | AS189: 3 | AT189: 5 | AU189: 145 | AV189: 145 | AW189: ANTIOQUIA | AX189: CARAMANTA | AY189: Independiente | AZ189: 3 | BA189: 9 | BB189: 95 | BC189: 70 | BD189: 68 | BE189: 79 | BF189: 84 | BG189: 86 | BH189: 86 | BI189: 75 | BJ189: 82 | BK189: 83 | BL189: 90 | BM189: 91 | BN189: 92 | BO189: 78 | BP189: 82 | BQ189: 85 | BR189: 93 | BS189: 92 | BT189: 88 | BU189: 94 | BV189: 95 | BW189: 99 | BX189: 100 | BY189: 99 | BZ189: 99 | CA189: 84
